Workbook

Sheet PANEL
O2: COMENTARIO
O3: VARIABLES DE VALORACION CLINICA SE HA OMITIDO IMC
O4: TAMIZAJE DE VIOLENCIA REGISTRAR CODIGOS 96150.01.. 02..
O5: CONSEJERIAS CON LAB "1"
O6: VISITAS DOMICILIARIAS LAB "4"
E106: SUBREGION | F106: CLAS | G106: EJECUTORA | H106: ESTABLEC | I106: PROVINCIA | J106: RED | K106: DISTRITO | L106: NIVEL | N106: A01 | O106: Valoracion clinica masculino 60-69a. (saludable) | P106: A01
D107: =VLOOKUP(Informe!$B$5,$C$109:$D$127,2,0) -> 13 | E107: LUCIANO CASTILLO COLONNA | F107: (Todas) | G107: (Todas) | H107: (Todas) | I107: (Todas) | J107: (Todas) | K107: (Todas) | N107: A02 | O107: Valoracion clinica femenino 60-69a. (saludable) | P107: A02
C108: MESES | E108: MORROPON HUANCABAMBA | F108: CLAS ALGARROBOS | G108: SALUD PIURA | H108: HOSPITAL DE APOYO II - 2, SULLANA | I108: AYABACA | J108: AYABACA | K108: AMOTAPE | L108: SUBREGION | N108: A03 | P108: A03
C109: Enero | D109: 3 | E109: PIURA SECHURA | F109: CLAS BATANES | G109: HOSPITAL DE APOYO I SANTA ROSA | H109: AYABACA | I109: HUANCABAMBA | J109: BAJO PIURA | K109: ARENAL | L109: EJECUTORA | N109: A04 | P109: A04
B110: VAL. CLINICA_FCAT_RIESGO_18-29 (5001502) | C110: Febrero | D110: 4 | F110: CLAS BELLAVISTA | G110: HOSPITAL DE APOYO I CHULUCANAS | H110: TAPAL | I110: MORROPON | J110: HUANCABAMBA | K110: AYABACA | L110: RED | N110: A05 | P110: A05
B111: VAL. CLINICA_FACT_RIESGO_30-39 (5001503) | C111: Marzo | D111: 5 | F111: CLAS BERNAL | G111: HOSPITAL DE APOYO I NUESTRA SEÑORA DE LAS MERCEDES DE PAITA | H111: CHINCHIN | I111: PAITA | J111: HUARMACA | K111: BELLAVISTA | L111: PROVINCIA | N111: A06 | P111: A06
B112: VAL. CLINICA_FACT_RIESGO_(5001507) | C112: Abril | D112: 6 | F112: CLAS BUENOS AIRES | G112: HOSPITAL DE APOYO III SULLANA | H112: OLLEROS | I112: PIURA | J112: MORROPON CHULUCANAS | K112: BELLAVISTA DE LA UNION | L112: CLAS | N112: A07 | P112: A07
B113: VAL. CLINICA_FCAT_RIESGO_60ymás (5001507) | C113: Mayo | D113: 7 | F113: CLAS CANCHAQUE | G113: SALUD LUCIANO CASTILLO COLONNA | H113: ARAGOTO | I113: SECHURA | J113: PIURA CASTILLA | K113: BERNAL | L113: DISTRITO | N113: A08 | P113: A08
B114: EMERGENCIAS_URGENCIAS HIPERTENS_(5001601) | C114: Junio | D114: 8 | F114: CLAS CASA GRANDE | G114: REGION PIURA-SALUD MORROPON-CHULUCANAS | H114: CHOCAN | I114: SULLANA | J114: SULLANA | K114: BUENOS AIRES | L114: IPRESS | N114: A09 | P114: A09
B115: TTO_CONT_PERS_DISLIPIDEMIAS_(5001602) | C115: Julio | D115: 9 | F115: CLAS CATACAOS | H115: YANCHALA | I115: TALARA | K115: CANCHAQUE | N115: A10 | P115: A10
B116: HIPERTENSO_NO ALTO RIESGO NO PC_(5001603) | C116: Agosto | D116: 10 | F116: CLAS CAYETANO HEREDIA | H116: ARREYPITE - PINGOLA | K116: CASTILLA | N116: A11 | P116: A11
B117: HIPERTENSO_NO ALTO RIESGO PC_(5001604) | C117: Septiembre | D117: 11 | F117: CLAS CHALACO | H117: CALVAS DE SAMANGA | K117: CATACAOS | N117: A12 | P117: A12
B118: PACIENTES_ENF. CARDIOMET_RECIBEN EDUC_(5001605) | C118: Octubre | D118: 12 | F118: CLAS CHATITO | H118: ESPINDOLA | K118: CHALACO | N118: A13 | P118: A13
B119: HIPERTENSOS_TTO. ESPECIALIZADO_(5001606) | C119: Noviembre | D119: 13 | F119: CLAS CURA MORI | H119: REMOLINOS | K119: CHULUCANAS | N119: A14 | P119: A14
B120: HIPERTENSOS_ESTRATIF_RIESGO_CARDIOVAS_(5001608) | C120: Diciembre | D120: 14 | F120: CLAS FRIAS | H120: ANDURCO | K120: COLAN | N120: A15 | P120: A15
B121: MANEJO BASICO_CRISIS HIPOGLU_HIPERGLU_(5001701) | C121: Total | D121: 15 | F121: CLAS HIGUERON | H121: HUIRIQUINGUE | K121: CRISTO NOS VALGA | N121: A16 | P121: A16
B122: DIABETICO NO COMPLIC_NO PC_(5001702) | C122: I-Trim | D122: 16 | F122: CLAS HOSPITALES PIURA | H122: HUACHUMA | K122: CURA MORI | N122: A17 | P122: A17
B123: VAL. CLINICA_FACT_RIESGO_5-11 (5001504) | C123: II-Trim | D123: 17 | F123: CLAS HOSPITALES SULLANA | H123: SAUSAL | K123: EL ALTO | N123: A18 | P123: A18
B124: VAL. CLINICA_FACT_RIESGO_12-17 (5001501) | C124: III-Trim | D124: 18 | F124: CLAS IGNACIO MERINO | H124: EL TOLDO | K124: EL CARMEN DE LA FRONTERA | N124: A19 | P124: A19
B125: DIABETICOS_NO_COMPLIC_PC_(5001703) | C125: IV-Trim | D125: 19 | F125: CLAS KM 50 | H125: SAMANGUILLA | K125: EL TALLAN | N125: A20 | P125: A20
B126: DIABETICOS_TTO_ESPECIALIZADO_(5001704) | C126: I-Sem | D126: 20 | F126: CLAS LA ARENA | H126: CHARAN | K126: FRIAS | N126: A21 | P126: A21
B127: VALORACION_COMPLICACIONES_PERS_DIABET_(5001705) | C127: II-Sem | D127: 21 | F127: CLAS LA LEGUA | H127: LAGUNAS DE CANGLY | K127: HUANCABAMBA | N127: A22 | P127: A22
F128: CLAS LA MATANZA | H128: PORTACHUELO DE YANTA | K128: HUARMACA | N128: A23 | P128: A23
F129: CLAS LA UNION | H129: GICLAS | K129: IGNACIO ESCUDERO | N129: A24 | P129: A24
F130: CLAS LAGRIMAS DE CURUMUY | H130: LAS LOMAS | K130: JILILI | N130: A25 | P130: A25
F131: CLAS LALAQUIZ | H131: POTRERILLO | K131: LA ARENA | N131: A26 | P131: A26
F132: CLAS LETIRA-BECARA | H132: CHIPILLICO | K132: LA BREA | N132: A27 | P132: A27
F133: CLAS MEDIO PIURA | H133: EL SAUCE-LAS LOMAS | K133: LA HUACA | N133: A28 | P133: A28
F134: CLAS MONTE SULLON- NARIHUALA-PEDRE | H134: PAMPA ELERA BAJA | K134: LA MATANZA | N134: A29 | P134: A29
F135: CLAS MORROPON | H135: PELINGARA | K135: LA UNION | N135: A30 | P135: A30
F136: CLAS NANGAY DE MATALACAS | H136: HUACHUMA ALTA | K136: LAGUNAS | N136: A31 | P136: A31
F137: CLAS PACAIPAMPA | H137: SAN FRANCISCO DE PAMPA ELERA | K137: LALAQUIZ | N137: A32 | P137: A32
F138: CLAS PACHITEA | H138: SANTA ELENA - LAS LOMAS | K138: LANCONES | N138: A33 | P138: A33
F139: CLAS PARACHIQUE | H139: PUERTA PULACHE | K139: LAS LOMAS | N139: A34 | P139: A34
F140: CLAS RINCONADA LICUAR | H140: GARABATOS | K140: LOBITOS | N140: A35 | P140: A35
F141: CLAS SALITRAL | H141: EL PARTIDOR | K141: LOS ORGANOS | N141: A36 | P141: A36
F142: CLAS SALUD PARA TODOS | H142: LA MENTA | K142: MANCORA | N142: A37 | P142: A37
F143: CLAS SAN JUAN DE BIGOTE | H143: SUYO | K143: MARCAVELICA | N143: A38 | P143: A38
F144: CLAS SAN MIGUEL DE PIURA | H144: CHIRINOS | K144: MIGUEL CHECA | N144: A39 | P144: A39
F145: CLAS SAN MIGUEL DEL FAIQUE | H145: PAMPA LARGA-GUITARRAS | K145: MONTERO | N145: A40 | P145: A40
F146: CLAS SANTA CATALINA DE MOSSA | H146: LA TINA | K146: MORROPON | N146: A41 | P146: A41
F147: CLAS SANTA ROSA | H147: LA TIENDA | K147: PACAIPAMPA | N147: A42 | P147: A42
F148: CLAS SANTA ROSA - NUEVO TALLAN | H148: SURPAMPA | K148: PAIMAS | N148: A43 | P148: A43
F149: CLAS SANTO CRISTO DE CRISTO NOS VA | H149: SARAYUYO | K149: PAITA | N149: A44 | P149: A44
F150: CLAS SANTO DOMINGO | H150: PUENTE INTERNACIONAL | K150: PARIÑAS | N150: A45 | P150: A45
F151: CLAS SECHURA | H151: SANTA ANA DE QUIROZ | K151: PIURA | N151: A46 | P151: A46
F152: CLAS SILAHUA | H152: LA LAGUNA | K152: QUERECOTILLO | N152: A47 | P152: A47
F153: CLAS SIN CLAS PIURA | H153: SAPILLLICA | K153: RINCONADA LLICUAR | N153: A48 | P153: A48
F154: CLAS SIN CLAS SULLANA | H154: TASAJERAS | K154: SALITRAL | N154: A49 | P154: A49
F155: CLAS SINCHAO GRANDE - EL TALLAN | H155: COLETAS-CHACHACOMAL | K155: SAN JUAN DE BIGOTE | N155: A50 | P155: A50
F156: CLAS TAMBOYA | H156: EL SAUCE-SAPILLICA | K156: SAN MIGUEL DE EL FAIQUE | N156: A51 | P156: A51
F157: CLAS VICE | H157: PAIMAS | K157: SANTA CATALINA DE MOSSA | N157: A52 | P157: A52
F158: CLAS VILLA LOS RANCHOS | H158: LA SAUCHA | K158: SANTO DOMINGO | N158: A53 | P158: A53
F159: CLAS YAMANGO | H159: TONDOPA | K159: SAPILLICA | N159: A54 | P159: A54
F160: CLAS YAPATERA | H160: JILILI | K160: SECHURA | N160: A55 | P160: A55
F161: CLAS EL OBRERO | H161: ANCHALAY | K161: SICCHEZ | N161: A56 | P161: A56
F162: CLAS IGNACIO ESCUDERO | H162: CUCUYAS | K162: SONDOR | N162: A57 | P162: A57
F163: CLAS JILILI | H163: LAGUNAS | K163: SONDORILLO | N163: A58 | P163: A58
F164: CLAS LA HUACA | H164: EL LUCUMO | K164: SULLANA | N164: A59 | P164: A59
F165: CLAS LA PEÐA-LA HORCA | H165: SALVIA | K165: SUYO | N165: A60 | P165: A60
F166: CLAS LA TORTUGA | H166: SAN JUAN DE LAGUNAS | K166: TAMARINDO | N166: A61 | P166: A61
F167: CLAS MALLARES | H167: PILLO | K167: TAMBO GRANDE | N167: A62 | P167: A62
F168: CLAS NEGRITOS | H168: MONTERO | K168: VEINTISEIS DE OCTUB | N168: A63 | P168: A63
F169: CLAS NUEVE DE OCTUBRE | H169: SICACATE | K169: VICE | N169: A64 | P169: A64
F170: CLAS PUEBLO NUEVO COLAN | H170: MARMAS ALTO | K170: VICHAYAL | N170: A65 | P170: A65
F171: CLAS QUERECOTILLO | H171: QUEBRADA DE AGUA | K171: YAMANGO | N171: A66 | P171: A66
F172: CLAS SAN FRANCISCO DE CHOCAN | H172: SICCHEZ | N172: A67 | P172: A67
F173: CLAS SANTA CRUZ | H173: OXAHUAY | N173: A68 | P173: A68
F174: CLAS SANTA TERESITA | H174: AMBASAL | N174: A69 | P174: A69
F175: CLAS SICCHEZ | H175: TAMBOGRANDE | N175: A70 | P175: A70
F176: CLAS TAMBOGRANDE | H176: SAN ISIDRO | N176: A71 | P176: A71
F177: CLAS VICHAYAL | H177: CRUCETA | N177: A72 | P177: A72
H178: TEJEDORES | N178: A73 | P178: A73
H179: MALINGAS | N179: A74 | P179: A74
H180: MALINGUITAS | N180: A75 | P180: A75
H181: PAPAYO - ALGARROBO | N181: A76 | P181: A76
H182: SANTA ANA | N182: A77 | P182: A77
H183: LA PEÑITA | N183: A78 | P183: A78
H184: CHICA ALTA | N184: A79 | P184: A79
H185: SINCHI ROCA | N185: A80 | P185: A80
H186: LAS MONICAS | N186: A81 | P186: A81
H187: PEDREGAL | N187: A82 | P187: A82
H188: PALOMINOS | N188: A83 | P188: A83
H189: LLOQUE YUPANQUI | N189: A84 | P189: A84
H190: EL PORVENIR | N190: A85 | P190: A85
H191: YAHUAR HUACA | N191: A86 | P191: A86
H192: OCOTO ALTO | N192: A87 | P192: A87
H193: PROGRESO BAJO | N193: A88 | P193: A88
H194: CP3-SAN MARTIN | N194: A89 | P194: A89
H195: CP4 | N195: A90 | P195: A90
H196: GUARAGUAOS | N196: A91 | P196: A91
H197: LA GREDA | N197: A92 | P197: A92
H198: LA RITA | N198: A93 | P198: A93
H199: BELLAVISTA | N199: A94 | P199: A94
H200: SOMATE CENTRO DE SERVICIOS | N200: A95 | P200: A95
H201: HUANGALA | N201: A96 | P201: A96
H202: CHALACALA | N202: A97 | P202: A97
H203: STA. ROSA DE PIEDRA RODADA | N203: A98 | P203: A98
H204: SOMATE BAJO | N204: A99 | P204: A99
H205: SAN VICENTE-PIEDRA RODADA | N205: A100 | P205: A100
H206: SOMATE ALTO | N206: A101 | P206: A101
H207: EL CUCHO | N207: A102 | P207: A102
H208: JOSE OLAYA | N208: A103 | P208: A103
H209: SANTA TERESITA | N209: A104 | P209: A104
H210: VILLA PRIMAVERA | N210: A105 | P210: A105
H211: NUEVE DE OCTUBRE | N211: A106 | P211: A106
H212: EL OBRERO | N212: A107 | P212: A107
H213: CIENEGUILLO CENTRO | N213: A108 | P213: A108
H214: CANAL MOCHO-CIENEG.SUR | N214: A109 | P214: A109
H215: NUEVO SULLANA | N215: A110 | P215: A110
H216: COMUNIDAD SALUDABLE | N216: A111 | P216: A111
H217: MIGUEL CHECA | N217: A112 | P217: A112
H218: JIBITO | N218: A113 | P218: A113
H219: HOSPITAL NUESTRA SEÑORA DE LAS MERCEDES - PAITA | N219: A114 | P219: A114
H220: LA ISLILLA | N220: A115 | P220: A115
H221: YACILA | N221: A116 | P221: A116
H222: SAN LUCAS DE COLAN | N222: A117 | P222: A117
H223: EL ARENAL | N223: A118 | P223: A118
H224: PUEBLO NUEVO DE COLAN | N224: A119 | P224: A119
H225: LA HUACA | N225: A120 | P225: A120
H226: VIVIATE | N226: A121 | P226: A121
H227: NOMARA | N227: A122 | P227: A122
H228: MACACARA | N228: A123 | P228: A123
H229: LA ISLA SAN LORENZO | N229: A124 | P229: A124
H230: MARCAVELICA | N230: A125 | P230: A125
H231: MALLARITOS | N231: A126 | P231: A126
H232: LA GOLONDRINA | N232: A127 | P232: A127
H233: MALLARES | N233: A128 | P233: A128
H234: MONTERON | N234: A129 | P234: A129
H235: TANGARARA | N235: A130 | P235: A130
H236: SAMAN | N236: A131 | P236: A131
H237: VISTA FLORIDA | N237: A132 | P237: A132
H238: LA NORIA | N238: A133 | P238: A133
H239: LA QUINTA | N239: A134 | P239: A134
H240: IGNACIO ESCUDERO | N240: A135 | P240: A135
H241: SAN JUAN DE LA VIRGEN | N241: A136 | P241: A136
H242: MONTELIMA | N242: A137 | P242: A137
H243: SANTA SOFIA | N243: A138 | P243: A138
H244: SAN MIGUEL | N244: A139 | P244: A139
H245: AMOTAPE | N245: A140 | P245: A140
H246: EL TAMBO | N246: A141 | P246: A141
H247: TAMARINDO | N247: A142 | P247: A142
H248: CLAS QUERECOTILLO | N248: A143 | P248: A143
H249: SAN FRANCISCO CHOCAN | N249: A144 | P249: A144
H250: LA PEÑA - LA HORCA | N250: A145 | P250: A145
H251: LA MARGARITA | N251: A146 | P251: A146
H252: SANTA VICTORIA | N252: A147 | P252: A147
H253: PUENTE DE LOS SERRANOS | N253: A148 | P253: A148
H254: SANTA CRUZ | N254: A149 | P254: A149
H255: SALITRAL | N255: A150 | P255: A150
H256: MIRAFLORES | N256: A151 | P256: A151
H257: LANCONES | N257: A152 | P257: A152
H258: ENCUENTRO DE PILARES | N258: A153 | P258: A153
H259: JAHUAY NEGRO | N259: A154 | P259: A154
H260: HUASIMAL DE LA SOLANA | N260: A155 | P260: A155
H261: PLAYAS DE ROMERO | N261: A156 | P261: A156
H262: EL ALAMOR | N262: A157 | P262: A157
H263: QUEBRADA SECA | N263: A158 | P263: A158
H264: EL PITAYO | N264: A159 | P264: A159
H265: CHILACO PELADOS | N265: A160 | P265: A160
H266: PILARES | N266: A161 | P266: A161
H267: CHORRERA DE PULGUERAS | N267: A162 | P267: A162
H268: LA PEÑITA | N268: A163 | P268: A163
H269: CASAS QUEMADAS | N269: A164 | P269: A164
H270: JOSE ABELARDO QUINONES | N270: A165 | P270: A165
H271: TALARA II | N271: A166 | P271: A166
H272: NEGRITOS | N272: A167 | P272: A167
H273: SAN PABLO | N273: A168 | P273: A168
H274: LOBITOS | N274: A169 | P274: A169
H275: VICHAYAL | N275: A170 | P275: A170
H276: MIRAMAR | N276: A171 | P276: A171
H277: LOS ORGANOS | N277: A172 | P277: A172
H278: EL ÑURO | N278: A173 | P278: A173
H279: EL ALTO | N279: A174 | P279: A174
H280: CABO BLANCO | N280: A175 | P280: A175
H281: HOSPITAL DE LA AMISTAD PERU - COREA SANTA ROSA II-2 | N281: A176 | P281: A176
H282: LOS ALGARROBOS | N282: A177 | P282: A177
H283: C.S PACHITEA | N283: A178 | P283: A178
H284: C.S MICAELA BASTIDAS | N284: A179 | P284: A179
H285: E.S I-4 CONSUELO DE VELASCO | N285: A180 | P285: A180
H286: C.S NUEVA ESPERANZA | N286: A181 | P286: A181
H287: E.S SANTA JULIA | N287: A182 | P287: A182
H288: C.S SAN JOSE | N288: A183 | P288: A183
H289: C.S SAN PEDRO | N289: A184 | P289: A184
H290: P.S SAN SEBASTIAN | N290: A185 | P290: A185
H291: P.S VICTOR RAUL HAYA DE LA TORRE | N291: A186 | P291: A186
H292: E.S. CIENEGUILLO SUR | N292: A187 | P292: A187
H293: P.S LAS VEGAS DE CIENEGUILLO | N293: A188 | P293: A188
H294: P.S. LAGRIMAS DE CURUMUY | N294: A189 | P294: A189
H295: E.S. I-4 CASTILLA | N295: A190 | P295: A190
H296: C.S. EL INDIO | N296: A191 | P296: A191
H297: C.S TACALA | N297: A192 | P297: A192
H298: C.S CHICLAYITO | N298: A193 | P298: A193
H299: C. S. MARIA GORETTI | N299: A194 | P299: A194
H300: P.S SAN RAFAEL | N300: A195 | P300: A195
... 226 more rows

Sheet Informe
A1: INFORME MENSUAL DE ACTIVIDADES ETAPA DE VIDA ADULTO MAYOR
A3: =IF(B2="REGION DE SALUD PIURA","REGION",Tabla!B2) -> SUBREGION | B3: =IF(Tabla!C2="(Todas)","REGION DE SALUD PIURA",Tabla!C2) -> REGION DE SALUD PIURA
A5: Periodo: | B5: Noviembre | E5: Año: | F5: =YEAR(TODAY()) -> 2025
C7: TOTAL | E7: De 60 a 69 años | G7: De 70 a 79 años | I7: De 80 años a más
C8: Masc | D8: Fem | E8: Masc | F8: Fem | G8: Masc | H8: Fem | I8: Masc | J8: Fem
A9: VALORACIÓN CLÍNICA DEL ADULTO MAYOR (VACAM)
A10: Clasificación | B10: Persona Adulta Mayor Saludable | C10: =E10+G10+I10 -> 82 | D10: =F10+H10+J10 -> 95 | E10: =VLOOKUP(Formato_VAL!F7,Tabla!$A$5:$U$534,PANEL!$D$107,0) -> 42 | F10: =VLOOKUP(Formato_VAL!G7,Tabla!$A$5:$U$534,PANEL!$D$107,0) -> 44 | G10: =VLOOKUP(Formato_VAL!H7,Tabla!$A$5:$U$534,PANEL!$D$107,0) -> 31 | H10: =VLOOKUP(Formato_VAL!I7,Tabla!$A$5:$U$534,PANEL!$D$107,0) -> 38 | I10: =VLOOKUP(Formato_VAL!J7,Tabla!$A$5:$U$534,PANEL!$D$107,0) -> 9 | J10: =VLOOKUP(Formato_VAL!K7,Tabla!$A$5:$U$534,PANEL!$D$107,0) -> 13
B11: Persona Adulta Mayor Enferma | C11: =E11+G11+I11 -> 104 | D11: =F11+H11+J11 -> 165 | E11: =VLOOKUP(Formato_VAL!F8,Tabla!$A$5:$U$534,PANEL!$D$107,0) -> 41 | F11: =VLOOKUP(Formato_VAL!G8,Tabla!$A$5:$U$534,PANEL!$D$107,0) -> 82 | G11: =VLOOKUP(Formato_VAL!H8,Tabla!$A$5:$U$534,PANEL!$D$107,0) -> 40 | H11: =VLOOKUP(Formato_VAL!I8,Tabla!$A$5:$U$534,PANEL!$D$107,0) -> 56 | I11: =VLOOKUP(Formato_VAL!J8,Tabla!$A$5:$U$534,PANEL!$D$107,0) -> 23 | J11: =VLOOKUP(Formato_VAL!K8,Tabla!$A$5:$U$534,PANEL!$D$107,0) -> 27
B12: Persona Adulta Mayor Fragil | C12: 54 | D12: 68 | E12: =VLOOKUP(Formato_VAL!F9,Tabla!$A$5:$U$534,PANEL!$D$107,0) -> 29 | F12: =VLOOKUP(Formato_VAL!G9,Tabla!$A$5:$U$534,PANEL!$D$107,0) -> 35 | G12: =VLOOKUP(Formato_VAL!H9,Tabla!$A$5:$U$534,PANEL!$D$107,0) -> 12 | H12: =VLOOKUP(Formato_VAL!I9,Tabla!$A$5:$U$534,PANEL!$D$107,0) -> 23 | I12: =VLOOKUP(Formato_VAL!J9,Tabla!$A$5:$U$534,PANEL!$D$107,0) -> 13 | J12: =VLOOKUP(Formato_VAL!K9,Tabla!$A$5:$U$534,PANEL!$D$107,0) -> 10
B13: Persona Adulta Mayor Geriatrico complejo | C13: 14 | D13: 11 | E13: =VLOOKUP(Formato_VAL!F10,Tabla!$A$5:$U$534,PANEL!$D$107,0) -> 8 | F13: =VLOOKUP(Formato_VAL!G10,Tabla!$A$5:$U$534,PANEL!$D$107,0) -> 3 | G13: =VLOOKUP(Formato_VAL!H10,Tabla!$A$5:$U$534,PANEL!$D$107,0) -> 3 | H13: =VLOOKUP(Formato_VAL!I10,Tabla!$A$5:$U$534,PANEL!$D$107,0) -> 5 | I13: =VLOOKUP(Formato_VAL!J10,Tabla!$A$5:$U$534,PANEL!$D$107,0) -> 3 | J13: =VLOOKUP(Formato_VAL!K10,Tabla!$A$5:$U$534,PANEL!$D$107,0) -> 3
A14: PLAN DE ATENCIÓN
B15: Plan de Atencion Integral Elaborado | C15: =E15+G15+I15 -> 198 | D15: =F15+H15+J15 -> 265 | E15: =VLOOKUP(Formato_VAL!F12,Tabla!$A$5:$U$534,PANEL!$D$107,0) -> 100 | F15: =VLOOKUP(Formato_VAL!G12,Tabla!$A$5:$U$534,PANEL!$D$107,0) -> 131 | G15: =VLOOKUP(Formato_VAL!H12,Tabla!$A$5:$U$534,PANEL!$D$107,0) -> 70 | H15: =VLOOKUP(Formato_VAL!I12,Tabla!$A$5:$U$534,PANEL!$D$107,0) -> 96 | I15: =VLOOKUP(Formato_VAL!J12,Tabla!$A$5:$U$534,PANEL!$D$107,0) -> 28 | J15: =VLOOKUP(Formato_VAL!K12,Tabla!$A$5:$U$534,PANEL!$D$107,0) -> 38
B16: Plan de Atencion Integral Ejecutado | C16: 123 | D16: 186 | E16: =VLOOKUP(Formato_VAL!F13,Tabla!$A$5:$U$534,PANEL!$D$107,0) -> 67 | F16: =VLOOKUP(Formato_VAL!G13,Tabla!$A$5:$U$534,PANEL!$D$107,0) -> 103 | G16: =VLOOKUP(Formato_VAL!H13,Tabla!$A$5:$U$534,PANEL!$D$107,0) -> 35 | H16: =VLOOKUP(Formato_VAL!I13,Tabla!$A$5:$U$534,PANEL!$D$107,0) -> 57 | I16: =VLOOKUP(Formato_VAL!J13,Tabla!$A$5:$U$534,PANEL!$D$107,0) -> 21 | J16: =VLOOKUP(Formato_VAL!K13,Tabla!$A$5:$U$534,PANEL!$D$107,0) -> 26
A17: ENTREVISTA DE TAMIZAJE EN SALUD MENTAL
A18: Tamizados | B18: Violencia Intrafamiliar | C18: =E18+G18+I18 -> 373 | D18: =F18+H18+J18 -> 536 | E18: =VLOOKUP(Formato_VAL!F15,Tabla!$A$5:$U$534,PANEL!$D$107,0) -> 176 | F18: =VLOOKUP(Formato_VAL!G15,Tabla!$A$5:$U$534,PANEL!$D$107,0) -> 296 | G18: =VLOOKUP(Formato_VAL!H15,Tabla!$A$5:$U$534,PANEL!$D$107,0) -> 119 | H18: =VLOOKUP(Formato_VAL!I15,Tabla!$A$5:$U$534,PANEL!$D$107,0) -> 163 | I18: =VLOOKUP(Formato_VAL!J15,Tabla!$A$5:$U$534,PANEL!$D$107,0) -> 78 | J18: =VLOOKUP(Formato_VAL!K15,Tabla!$A$5:$U$534,PANEL!$D$107,0) -> 77
B19: Transtornos Depresivos | C19: 155 | D19: 293 | E19: =VLOOKUP(Formato_VAL!F16,Tabla!$A$5:$U$534,PANEL!$D$107,0) -> 75 | F19: =VLOOKUP(Formato_VAL!G16,Tabla!$A$5:$U$534,PANEL!$D$107,0) -> 161 | G19: =VLOOKUP(Formato_VAL!H16,Tabla!$A$5:$U$534,PANEL!$D$107,0) -> 57 | H19: =VLOOKUP(Formato_VAL!I16,Tabla!$A$5:$U$534,PANEL!$D$107,0) -> 91 | I19: =VLOOKUP(Formato_VAL!J16,Tabla!$A$5:$U$534,PANEL!$D$107,0) -> 23 | J19: =VLOOKUP(Formato_VAL!K16,Tabla!$A$5:$U$534,PANEL!$D$107,0) -> 41
B20: Alcohol y drogas | C20: 99 | D20: 87 | E20: =VLOOKUP(Formato_VAL!F17,Tabla!$A$5:$U$534,PANEL!$D$107,0) -> 43 | F20: =VLOOKUP(Formato_VAL!G17,Tabla!$A$5:$U$534,PANEL!$D$107,0) -> 50 | G20: =VLOOKUP(Formato_VAL!H17,Tabla!$A$5:$U$534,PANEL!$D$107,0) -> 40 | H20: =VLOOKUP(Formato_VAL!I17,Tabla!$A$5:$U$534,PANEL!$D$107,0) -> 26 | I20: =VLOOKUP(Formato_VAL!J17,Tabla!$A$5:$U$534,PANEL!$D$107,0) -> 16 | J20: =VLOOKUP(Formato_VAL!K17,Tabla!$A$5:$U$534,PANEL!$D$107,0) -> 11
B21: Episodio Psicótico | C21: 48 | D21: 79 | E21: =VLOOKUP(Formato_VAL!F18,Tabla!$A$5:$U$534,PANEL!$D$107,0) -> 18 | F21: =VLOOKUP(Formato_VAL!G18,Tabla!$A$5:$U$534,PANEL!$D$107,0) -> 46 | G21: =VLOOKUP(Formato_VAL!H18,Tabla!$A$5:$U$534,PANEL!$D$107,0) -> 19 | H21: =VLOOKUP(Formato_VAL!I18,Tabla!$A$5:$U$534,PANEL!$D$107,0) -> 22 | I21: =VLOOKUP(Formato_VAL!J18,Tabla!$A$5:$U$534,PANEL!$D$107,0) -> 11 | J21: =VLOOKUP(Formato_VAL!K18,Tabla!$A$5:$U$534,PANEL!$D$107,0) -> 11
B22: Tamizaje en Víctimas de Violencia Política | C22: 0 | D22: 0 | E22: =VLOOKUP(Formato_VAL!F19,Tabla!$A$5:$U$534,PANEL!$D$107,0) -> 0 | F22: =VLOOKUP(Formato_VAL!G19,Tabla!$A$5:$U$534,PANEL!$D$107,0) -> 0 | G22: =VLOOKUP(Formato_VAL!H19,Tabla!$A$5:$U$534,PANEL!$D$107,0) -> 0 | H22: =VLOOKUP(Formato_VAL!I19,Tabla!$A$5:$U$534,PANEL!$D$107,0) -> 0 | I22: =VLOOKUP(Formato_VAL!J19,Tabla!$A$5:$U$534,PANEL!$D$107,0) -> 0 | J22: =VLOOKUP(Formato_VAL!K19,Tabla!$A$5:$U$534,PANEL!$D$107,0) -> 0
A23: Positivos | B23: Violencia Intrafamiliar | C23: 10 | D23: 26 | E23: =VLOOKUP(Formato_VAL!F20,Tabla!$A$5:$U$534,PANEL!$D$107,0) -> 7 | F23: =VLOOKUP(Formato_VAL!G20,Tabla!$A$5:$U$534,PANEL!$D$107,0) -> 14 | G23: =VLOOKUP(Formato_VAL!H20,Tabla!$A$5:$U$534,PANEL!$D$107,0) -> 2 | H23: =VLOOKUP(Formato_VAL!I20,Tabla!$A$5:$U$534,PANEL!$D$107,0) -> 8 | I23: =VLOOKUP(Formato_VAL!J20,Tabla!$A$5:$U$534,PANEL!$D$107,0) -> 1 | J23: =VLOOKUP(Formato_VAL!K20,Tabla!$A$5:$U$534,PANEL!$D$107,0) -> 4
B24: Transtornos Depresivos | C24: 41 | D24: 93 | E24: =VLOOKUP(Formato_VAL!F21,Tabla!$A$5:$U$534,PANEL!$D$107,0) -> 23 | F24: =VLOOKUP(Formato_VAL!G21,Tabla!$A$5:$U$534,PANEL!$D$107,0) -> 53 | G24: =VLOOKUP(Formato_VAL!H21,Tabla!$A$5:$U$534,PANEL!$D$107,0) -> 14 | H24: =VLOOKUP(Formato_VAL!I21,Tabla!$A$5:$U$534,PANEL!$D$107,0) -> 30 | I24: =VLOOKUP(Formato_VAL!J21,Tabla!$A$5:$U$534,PANEL!$D$107,0) -> 4 | J24: =VLOOKUP(Formato_VAL!K21,Tabla!$A$5:$U$534,PANEL!$D$107,0) -> 10
B25: Alcohol y drogas
B26: - Problemas Relacionados con el Uso de Tabaco | C26: 0 | D26: 0 | E26: =VLOOKUP(Formato_VAL!F23,Tabla!$A$5:$U$534,PANEL!$D$107,0) -> 0 | F26: =VLOOKUP(Formato_VAL!G23,Tabla!$A$5:$U$534,PANEL!$D$107,0) -> 0 | G26: =VLOOKUP(Formato_VAL!H23,Tabla!$A$5:$U$534,PANEL!$D$107,0) -> 0 | H26: =VLOOKUP(Formato_VAL!I23,Tabla!$A$5:$U$534,PANEL!$D$107,0) -> 0 | I26: =VLOOKUP(Formato_VAL!J23,Tabla!$A$5:$U$534,PANEL!$D$107,0) -> 0 | J26: =VLOOKUP(Formato_VAL!K23,Tabla!$A$5:$U$534,PANEL!$D$107,0) -> 0
B27: - Problemas Sociales Relacionados con el Uso de Alcohol | C27: 4 | D27: 0 | E27: =VLOOKUP(Formato_VAL!F24,Tabla!$A$5:$U$534,PANEL!$D$107,0) -> 1 | F27: =VLOOKUP(Formato_VAL!G24,Tabla!$A$5:$U$534,PANEL!$D$107,0) -> 0 | G27: =VLOOKUP(Formato_VAL!H24,Tabla!$A$5:$U$534,PANEL!$D$107,0) -> 3 | H27: =VLOOKUP(Formato_VAL!I24,Tabla!$A$5:$U$534,PANEL!$D$107,0) -> 0 | I27: =VLOOKUP(Formato_VAL!J24,Tabla!$A$5:$U$534,PANEL!$D$107,0) -> 0 | J27: =VLOOKUP(Formato_VAL!K24,Tabla!$A$5:$U$534,PANEL!$D$107,0) -> 0
B28: - Problemas Sociales Relacionados con el Uso de drogas | C28: 0 | D28: 0 | E28: =VLOOKUP(Formato_VAL!F25,Tabla!$A$5:$U$534,PANEL!$D$107,0) -> 0 | F28: =VLOOKUP(Formato_VAL!G25,Tabla!$A$5:$U$534,PANEL!$D$107,0) -> 0 | G28: =VLOOKUP(Formato_VAL!H25,Tabla!$A$5:$U$534,PANEL!$D$107,0) -> 0 | H28: =VLOOKUP(Formato_VAL!I25,Tabla!$A$5:$U$534,PANEL!$D$107,0) -> 0 | I28: =VLOOKUP(Formato_VAL!J25,Tabla!$A$5:$U$534,PANEL!$D$107,0) -> 0 | J28: =VLOOKUP(Formato_VAL!K25,Tabla!$A$5:$U$534,PANEL!$D$107,0) -> 0
B29: Episodio Psicótico | C29: 4 | D29: 7 | E29: =VLOOKUP(Formato_VAL!F26,Tabla!$A$5:$U$534,PANEL!$D$107,0) -> 3 | F29: =VLOOKUP(Formato_VAL!G26,Tabla!$A$5:$U$534,PANEL!$D$107,0) -> 3 | G29: =VLOOKUP(Formato_VAL!H26,Tabla!$A$5:$U$534,PANEL!$D$107,0) -> 0 | H29: =VLOOKUP(Formato_VAL!I26,Tabla!$A$5:$U$534,PANEL!$D$107,0) -> 3 | I29: =VLOOKUP(Formato_VAL!J26,Tabla!$A$5:$U$534,PANEL!$D$107,0) -> 1 | J29: =VLOOKUP(Formato_VAL!K26,Tabla!$A$5:$U$534,PANEL!$D$107,0) -> 1
B30: Tamizaje Positivo en Víctimas de Violencia Política | C30: 0 | D30: 0 | E30: =VLOOKUP(Formato_VAL!F27,Tabla!$A$5:$U$534,PANEL!$D$107,0) -> 0 | F30: =VLOOKUP(Formato_VAL!G27,Tabla!$A$5:$U$534,PANEL!$D$107,0) -> 0 | G30: =VLOOKUP(Formato_VAL!H27,Tabla!$A$5:$U$534,PANEL!$D$107,0) -> 0 | H30: =VLOOKUP(Formato_VAL!I27,Tabla!$A$5:$U$534,PANEL!$D$107,0) -> 0 | I30: =VLOOKUP(Formato_VAL!J27,Tabla!$A$5:$U$534,PANEL!$D$107,0) -> 0 | J30: =VLOOKUP(Formato_VAL!K27,Tabla!$A$5:$U$534,PANEL!$D$107,0) -> 0
A31: CLASIFICACIÓN DEL ESTADO NUTRICIONAL DEL ADULTO MAYOR
B32: Índice de Masa Corporal
A33: IMC | B33: Delgadez | C33: 18 | D33: 28 | E33: =VLOOKUP(Formato_VAL!F30,Tabla!$A$5:$U$534,PANEL!$D$107,0) -> 7 | F33: =VLOOKUP(Formato_VAL!G30,Tabla!$A$5:$U$534,PANEL!$D$107,0) -> 9 | G33: =VLOOKUP(Formato_VAL!H30,Tabla!$A$5:$U$534,PANEL!$D$107,0) -> 6 | H33: =VLOOKUP(Formato_VAL!I30,Tabla!$A$5:$U$534,PANEL!$D$107,0) -> 13 | I33: =VLOOKUP(Formato_VAL!J30,Tabla!$A$5:$U$534,PANEL!$D$107,0) -> 5 | J33: =VLOOKUP(Formato_VAL!K30,Tabla!$A$5:$U$534,PANEL!$D$107,0) -> 6
B34: Normal | C34: 203 | D34: 328 | E34: =VLOOKUP(Formato_VAL!F31,Tabla!$A$5:$U$534,PANEL!$D$107,0) -> 82 | F34: =VLOOKUP(Formato_VAL!G31,Tabla!$A$5:$U$534,PANEL!$D$107,0) -> 167 | G34: =VLOOKUP(Formato_VAL!H31,Tabla!$A$5:$U$534,PANEL!$D$107,0) -> 76 | H34: =VLOOKUP(Formato_VAL!I31,Tabla!$A$5:$U$534,PANEL!$D$107,0) -> 113 | I34: =VLOOKUP(Formato_VAL!J31,Tabla!$A$5:$U$534,PANEL!$D$107,0) -> 45 | J34: =VLOOKUP(Formato_VAL!K31,Tabla!$A$5:$U$534,PANEL!$D$107,0) -> 48
B35: Sobrepeso | C35: 64 | D35: 132 | E35: =VLOOKUP(Formato_VAL!F32,Tabla!$A$5:$U$534,PANEL!$D$107,0) -> 35 | F35: =VLOOKUP(Formato_VAL!G32,Tabla!$A$5:$U$534,PANEL!$D$107,0) -> 81 | G35: =VLOOKUP(Formato_VAL!H32,Tabla!$A$5:$U$534,PANEL!$D$107,0) -> 21 | H35: =VLOOKUP(Formato_VAL!I32,Tabla!$A$5:$U$534,PANEL!$D$107,0) -> 42 | I35: =VLOOKUP(Formato_VAL!J32,Tabla!$A$5:$U$534,PANEL!$D$107,0) -> 8 | J35: =VLOOKUP(Formato_VAL!K32,Tabla!$A$5:$U$534,PANEL!$D$107,0) -> 9
B36: Obesidad | C36: 90 | D36: 270 | E36: =VLOOKUP(Formato_VAL!F33,Tabla!$A$5:$U$534,PANEL!$D$107,0) -> 52 | F36: =VLOOKUP(Formato_VAL!G33,Tabla!$A$5:$U$534,PANEL!$D$107,0) -> 178 | G36: =VLOOKUP(Formato_VAL!H33,Tabla!$A$5:$U$534,PANEL!$D$107,0) -> 35 | H36: =VLOOKUP(Formato_VAL!I33,Tabla!$A$5:$U$534,PANEL!$D$107,0) -> 80 | I36: =VLOOKUP(Formato_VAL!J33,Tabla!$A$5:$U$534,PANEL!$D$107,0) -> 3 | J36: =VLOOKUP(Formato_VAL!K33,Tabla!$A$5:$U$534,PANEL!$D$107,0) -> 12
B37: Evaluación del Perímetro Abdominal
A38: PAB | B38: Riesgo Bajo | C38: 13 | D38: 29 | E38: =VLOOKUP(Formato_VAL!F35,Tabla!$A$5:$U$534,PANEL!$D$107,0) -> 4 | F38: =VLOOKUP(Formato_VAL!G35,Tabla!$A$5:$U$534,PANEL!$D$107,0) -> 14 | G38: =VLOOKUP(Formato_VAL!H35,Tabla!$A$5:$U$534,PANEL!$D$107,0) -> 7 | H38: =VLOOKUP(Formato_VAL!I35,Tabla!$A$5:$U$534,PANEL!$D$107,0) -> 12 | I38: =VLOOKUP(Formato_VAL!J35,Tabla!$A$5:$U$534,PANEL!$D$107,0) -> 2 | J38: =VLOOKUP(Formato_VAL!K35,Tabla!$A$5:$U$534,PANEL!$D$107,0) -> 3
B39: Riesgo Alto | C39: 11 | D39: 23 | E39: =VLOOKUP(Formato_VAL!F36,Tabla!$A$5:$U$534,PANEL!$D$107,0) -> 5 | F39: =VLOOKUP(Formato_VAL!G36,Tabla!$A$5:$U$534,PANEL!$D$107,0) -> 10 | G39: =VLOOKUP(Formato_VAL!H36,Tabla!$A$5:$U$534,PANEL!$D$107,0) -> 2 | H39: =VLOOKUP(Formato_VAL!I36,Tabla!$A$5:$U$534,PANEL!$D$107,0) -> 10 | I39: =VLOOKUP(Formato_VAL!J36,Tabla!$A$5:$U$534,PANEL!$D$107,0) -> 4 | J39: =VLOOKUP(Formato_VAL!K36,Tabla!$A$5:$U$534,PANEL!$D$107,0) -> 3
B40: Riesgo Muy Alto | C40: 32 | D40: 128 | E40: =VLOOKUP(Formato_VAL!F37,Tabla!$A$5:$U$534,PANEL!$D$107,0) -> 14 | F40: =VLOOKUP(Formato_VAL!G37,Tabla!$A$5:$U$534,PANEL!$D$107,0) -> 60 | G40: =VLOOKUP(Formato_VAL!H37,Tabla!$A$5:$U$534,PANEL!$D$107,0) -> 14 | H40: =VLOOKUP(Formato_VAL!I37,Tabla!$A$5:$U$534,PANEL!$D$107,0) -> 50 | I40: =VLOOKUP(Formato_VAL!J37,Tabla!$A$5:$U$534,PANEL!$D$107,0) -> 4 | J40: =VLOOKUP(Formato_VAL!K37,Tabla!$A$5:$U$534,PANEL!$D$107,0) -> 18
B41: Mini Valoración Nutricional
A42: MVN | B42: Bien Nutridos | C42: 0 | D42: 2 | E42: =VLOOKUP(Formato_VAL!F39,Tabla!$A$5:$U$534,PANEL!$D$107,0) -> 0 | F42: =VLOOKUP(Formato_VAL!G39,Tabla!$A$5:$U$534,PANEL!$D$107,0) -> 1 | G42: =VLOOKUP(Formato_VAL!H39,Tabla!$A$5:$U$534,PANEL!$D$107,0) -> 0 | H42: =VLOOKUP(Formato_VAL!I39,Tabla!$A$5:$U$534,PANEL!$D$107,0) -> 1 | I42: =VLOOKUP(Formato_VAL!J39,Tabla!$A$5:$U$534,PANEL!$D$107,0) -> 0 | J42: =VLOOKUP(Formato_VAL!K39,Tabla!$A$5:$U$534,PANEL!$D$107,0) -> 0
B43: Riesgo de Desnutrición | C43: 0 | D43: 0 | E43: =VLOOKUP(Formato_VAL!F40,Tabla!$A$5:$U$534,PANEL!$D$107,0) -> 0 | F43: =VLOOKUP(Formato_VAL!G40,Tabla!$A$5:$U$534,PANEL!$D$107,0) -> 0 | G43: =VLOOKUP(Formato_VAL!H40,Tabla!$A$5:$U$534,PANEL!$D$107,0) -> 0 | H43: =VLOOKUP(Formato_VAL!I40,Tabla!$A$5:$U$534,PANEL!$D$107,0) -> 0 | I43: =VLOOKUP(Formato_VAL!J40,Tabla!$A$5:$U$534,PANEL!$D$107,0) -> 0 | J43: =VLOOKUP(Formato_VAL!K40,Tabla!$A$5:$U$534,PANEL!$D$107,0) -> 0
B44: Desnutrido | C44: 0 | D44: 0 | E44: =VLOOKUP(Formato_VAL!F41,Tabla!$A$5:$U$534,PANEL!$D$107,0) -> 0 | F44: =VLOOKUP(Formato_VAL!G41,Tabla!$A$5:$U$534,PANEL!$D$107,0) -> 0 | G44: =VLOOKUP(Formato_VAL!H41,Tabla!$A$5:$U$534,PANEL!$D$107,0) -> 0 | H44: =VLOOKUP(Formato_VAL!I41,Tabla!$A$5:$U$534,PANEL!$D$107,0) -> 0 | I44: =VLOOKUP(Formato_VAL!J41,Tabla!$A$5:$U$534,PANEL!$D$107,0) -> 0 | J44: =VLOOKUP(Formato_VAL!K41,Tabla!$A$5:$U$534,PANEL!$D$107,0) -> 0
B45: Atención en Nutrición
B46: 1º Atención | C46: 54 | D46: 111 | E46: =VLOOKUP(Formato_VAL!F43,Tabla!$A$5:$U$534,PANEL!$D$107,0) -> 19 | F46: =VLOOKUP(Formato_VAL!G43,Tabla!$A$5:$U$534,PANEL!$D$107,0) -> 66 | G46: =VLOOKUP(Formato_VAL!H43,Tabla!$A$5:$U$534,PANEL!$D$107,0) -> 22 | H46: =VLOOKUP(Formato_VAL!I43,Tabla!$A$5:$U$534,PANEL!$D$107,0) -> 39 | I46: =VLOOKUP(Formato_VAL!J43,Tabla!$A$5:$U$534,PANEL!$D$107,0) -> 13 | J46: =VLOOKUP(Formato_VAL!K43,Tabla!$A$5:$U$534,PANEL!$D$107,0) -> 6
B47: 2º Atención | C47: 2 | D47: 4 | E47: =VLOOKUP(Formato_VAL!F44,Tabla!$A$5:$U$534,PANEL!$D$107,0) -> 1 | F47: =VLOOKUP(Formato_VAL!G44,Tabla!$A$5:$U$534,PANEL!$D$107,0) -> 3 | G47: =VLOOKUP(Formato_VAL!H44,Tabla!$A$5:$U$534,PANEL!$D$107,0) -> 1 | H47: =VLOOKUP(Formato_VAL!I44,Tabla!$A$5:$U$534,PANEL!$D$107,0) -> 1 | I47: =VLOOKUP(Formato_VAL!J44,Tabla!$A$5:$U$534,PANEL!$D$107,0) -> 0 | J47: =VLOOKUP(Formato_VAL!K44,Tabla!$A$5:$U$534,PANEL!$D$107,0) -> 0
B48: 3º Atención | C48: 2 | D48: 4 | E48: =VLOOKUP(Formato_VAL!F45,Tabla!$A$5:$U$534,PANEL!$D$107,0) -> 0 | F48: =VLOOKUP(Formato_VAL!G45,Tabla!$A$5:$U$534,PANEL!$D$107,0) -> 2 | G48: =VLOOKUP(Formato_VAL!H45,Tabla!$A$5:$U$534,PANEL!$D$107,0) -> 1 | H48: =VLOOKUP(Formato_VAL!I45,Tabla!$A$5:$U$534,PANEL!$D$107,0) -> 1 | I48: =VLOOKUP(Formato_VAL!J45,Tabla!$A$5:$U$534,PANEL!$D$107,0) -> 1 | J48: =VLOOKUP(Formato_VAL!K45,Tabla!$A$5:$U$534,PANEL!$D$107,0) -> 1
B49: 4º a + Atenciones | C49: 0 | D49: 0 | E49: =VLOOKUP(Formato_VAL!F46,Tabla!$A$5:$U$534,PANEL!$D$107,0) -> 0 | F49: =VLOOKUP(Formato_VAL!G46,Tabla!$A$5:$U$534,PANEL!$D$107,0) -> 0 | G49: =VLOOKUP(Formato_VAL!H46,Tabla!$A$5:$U$534,PANEL!$D$107,0) -> 0 | H49: =VLOOKUP(Formato_VAL!I46,Tabla!$A$5:$U$534,PANEL!$D$107,0) -> 0 | I49: =VLOOKUP(Formato_VAL!J46,Tabla!$A$5:$U$534,PANEL!$D$107,0) -> 0 | J49: =VLOOKUP(Formato_VAL!K46,Tabla!$A$5:$U$534,PANEL!$D$107,0) -> 0
B50: Indicación Nutricional
B51: Recomendación Nutricional | C51: 0 | D51: 0 | E51: =VLOOKUP(Formato_VAL!F48,Tabla!$A$5:$U$534,PANEL!$D$107,0) -> 0 | F51: =VLOOKUP(Formato_VAL!G48,Tabla!$A$5:$U$534,PANEL!$D$107,0) -> 0 | G51: =VLOOKUP(Formato_VAL!H48,Tabla!$A$5:$U$534,PANEL!$D$107,0) -> 0 | H51: =VLOOKUP(Formato_VAL!I48,Tabla!$A$5:$U$534,PANEL!$D$107,0) -> 0 | I51: =VLOOKUP(Formato_VAL!J48,Tabla!$A$5:$U$534,PANEL!$D$107,0) -> 0 | J51: =VLOOKUP(Formato_VAL!K48,Tabla!$A$5:$U$534,PANEL!$D$107,0) -> 0
B52: Prescripción Nutrioterapéutica | C52: 0 | D52: 0 | E52: =VLOOKUP(Formato_VAL!F49,Tabla!$A$5:$U$534,PANEL!$D$107,0) -> 0 | F52: =VLOOKUP(Formato_VAL!G49,Tabla!$A$5:$U$534,PANEL!$D$107,0) -> 0 | G52: =VLOOKUP(Formato_VAL!H49,Tabla!$A$5:$U$534,PANEL!$D$107,0) -> 0 | H52: =VLOOKUP(Formato_VAL!I49,Tabla!$A$5:$U$534,PANEL!$D$107,0) -> 0 | I52: =VLOOKUP(Formato_VAL!J49,Tabla!$A$5:$U$534,PANEL!$D$107,0) -> 0 | J52: =VLOOKUP(Formato_VAL!K49,Tabla!$A$5:$U$534,PANEL!$D$107,0) -> 0
B53: Recomendación Dietética | C53: 0 | D53: 0 | E53: =VLOOKUP(Formato_VAL!F50,Tabla!$A$5:$U$534,PANEL!$D$107,0) -> 0 | F53: =VLOOKUP(Formato_VAL!G50,Tabla!$A$5:$U$534,PANEL!$D$107,0) -> 0 | G53: =VLOOKUP(Formato_VAL!H50,Tabla!$A$5:$U$534,PANEL!$D$107,0) -> 0 | H53: =VLOOKUP(Formato_VAL!I50,Tabla!$A$5:$U$534,PANEL!$D$107,0) -> 0 | I53: =VLOOKUP(Formato_VAL!J50,Tabla!$A$5:$U$534,PANEL!$D$107,0) -> 0 | J53: =VLOOKUP(Formato_VAL!K50,Tabla!$A$5:$U$534,PANEL!$D$107,0) -> 0
B54: Prescripción Dietoterapéutica | C54: 0 | D54: 0 | E54: =VLOOKUP(Formato_VAL!F51,Tabla!$A$5:$U$534,PANEL!$D$107,0) -> 0 | F54: =VLOOKUP(Formato_VAL!G51,Tabla!$A$5:$U$534,PANEL!$D$107,0) -> 0 | G54: =VLOOKUP(Formato_VAL!H51,Tabla!$A$5:$U$534,PANEL!$D$107,0) -> 0 | H54: =VLOOKUP(Formato_VAL!I51,Tabla!$A$5:$U$534,PANEL!$D$107,0) -> 0 | I54: =VLOOKUP(Formato_VAL!J51,Tabla!$A$5:$U$534,PANEL!$D$107,0) -> 0 | J54: =VLOOKUP(Formato_VAL!K51,Tabla!$A$5:$U$534,PANEL!$D$107,0) -> 0
A55: CONSEJERÍAS
A56: Total | B56: Nutricionales | C56: 120 | D56: 174 | E56: =VLOOKUP(Formato_VAL!F53,Tabla!$A$5:$U$534,PANEL!$D$107,0) -> 45 | F56: =VLOOKUP(Formato_VAL!G53,Tabla!$A$5:$U$534,PANEL!$D$107,0) -> 97 | G56: =VLOOKUP(Formato_VAL!H53,Tabla!$A$5:$U$534,PANEL!$D$107,0) -> 46 | H56: =VLOOKUP(Formato_VAL!I53,Tabla!$A$5:$U$534,PANEL!$D$107,0) -> 61 | I56: =VLOOKUP(Formato_VAL!J53,Tabla!$A$5:$U$534,PANEL!$D$107,0) -> 29 | J56: =VLOOKUP(Formato_VAL!K53,Tabla!$A$5:$U$534,PANEL!$D$107,0) -> 16
B57: Integrales | C57: 393 | D57: 623 | E57: =VLOOKUP(Formato_VAL!F54,Tabla!$A$5:$U$534,PANEL!$D$107,0) -> 173 | F57: =VLOOKUP(Formato_VAL!G54,Tabla!$A$5:$U$534,PANEL!$D$107,0) -> 317 | G57: =VLOOKUP(Formato_VAL!H54,Tabla!$A$5:$U$534,PANEL!$D$107,0) -> 152 | H57: =VLOOKUP(Formato_VAL!I54,Tabla!$A$5:$U$534,PANEL!$D$107,0) -> 214 | I57: =VLOOKUP(Formato_VAL!J54,Tabla!$A$5:$U$534,PANEL!$D$107,0) -> 68 | J57: =VLOOKUP(Formato_VAL!K54,Tabla!$A$5:$U$534,PANEL!$D$107,0) -> 92
B58: Salud Mental | C58: 39 | D58: 49 | E58: =VLOOKUP(Formato_VAL!F55,Tabla!$A$5:$U$534,PANEL!$D$107,0) -> 24 | F58: =VLOOKUP(Formato_VAL!G55,Tabla!$A$5:$U$534,PANEL!$D$107,0) -> 31 | G58: =VLOOKUP(Formato_VAL!H55,Tabla!$A$5:$U$534,PANEL!$D$107,0) -> 11 | H58: =VLOOKUP(Formato_VAL!I55,Tabla!$A$5:$U$534,PANEL!$D$107,0) -> 13 | I58: =VLOOKUP(Formato_VAL!J55,Tabla!$A$5:$U$534,PANEL!$D$107,0) -> 4 | J58: =VLOOKUP(Formato_VAL!K55,Tabla!$A$5:$U$534,PANEL!$D$107,0) -> 5
B59: Prevención de Cáncer | C59: 303 | D59: 439 | E59: =VLOOKUP(Formato_VAL!F56,Tabla!$A$5:$U$534,PANEL!$D$107,0) -> 204 | F59: =VLOOKUP(Formato_VAL!G56,Tabla!$A$5:$U$534,PANEL!$D$107,0) -> 345 | G59: =VLOOKUP(Formato_VAL!H56,Tabla!$A$5:$U$534,PANEL!$D$107,0) -> 93 | H59: =VLOOKUP(Formato_VAL!I56,Tabla!$A$5:$U$534,PANEL!$D$107,0) -> 84 | I59: =VLOOKUP(Formato_VAL!J56,Tabla!$A$5:$U$534,PANEL!$D$107,0) -> 6 | J59: =VLOOKUP(Formato_VAL!K56,Tabla!$A$5:$U$534,PANEL!$D$107,0) -> 10
A60: TAMIZAJE DE CÁNCER
A61: Hombre | B61: Examen para Tumor de Prostata
B62: - Evaluación Normal | C62: 0 | E62: =VLOOKUP(Formato_VAL!F59,Tabla!$A$5:$U$534,PANEL!$D$107,0) -> 0 | G62: =VLOOKUP(Formato_VAL!H59,Tabla!$A$5:$U$534,PANEL!$D$107,0) -> 0 | I62: =VLOOKUP(Formato_VAL!J59,Tabla!$A$5:$U$534,PANEL!$D$107,0) -> 0
B63: - Evaluación Anormal | C63: 0 | E63: =VLOOKUP(Formato_VAL!F60,Tabla!$A$5:$U$534,PANEL!$D$107,0) -> 0 | G63: =VLOOKUP(Formato_VAL!H60,Tabla!$A$5:$U$534,PANEL!$D$107,0) -> 0 | I63: =VLOOKUP(Formato_VAL!J60,Tabla!$A$5:$U$534,PANEL!$D$107,0) -> 0
B64: Antigeno Prostatico Especifico (PSA)
B65: - Resultado Normal | C65: 202 | E65: =VLOOKUP(Formato_VAL!F62,Tabla!$A$5:$U$534,PANEL!$D$107,0) -> 127 | G65: =VLOOKUP(Formato_VAL!H62,Tabla!$A$5:$U$534,PANEL!$D$107,0) -> 66 | I65: =VLOOKUP(Formato_VAL!J62,Tabla!$A$5:$U$534,PANEL!$D$107,0) -> 9
B66: - Resultado Anormal | C66: 11 | E66: =VLOOKUP(Formato_VAL!F63,Tabla!$A$5:$U$534,PANEL!$D$107,0) -> 11 | G66: =VLOOKUP(Formato_VAL!H63,Tabla!$A$5:$U$534,PANEL!$D$107,0) -> 0 | I66: =VLOOKUP(Formato_VAL!J63,Tabla!$A$5:$U$534,PANEL!$D$107,0) -> 0
B67: Biopsia de Próstata | C67: 0 | E67: =VLOOKUP(Formato_VAL!F64,Tabla!$A$5:$U$534,PANEL!$D$107,0) -> 0 | G67: =VLOOKUP(Formato_VAL!H64,Tabla!$A$5:$U$534,PANEL!$D$107,0) -> 0 | I67: =VLOOKUP(Formato_VAL!J64,Tabla!$A$5:$U$534,PANEL!$D$107,0) -> 0
A68: Mujer | B68: Papanicolaou
B69: -Toma de PAP | D69: 0 | F69: =VLOOKUP(Formato_VAL!G66,Tabla!$A$5:$U$534,PANEL!$D$107,0) -> 0 | H69: =VLOOKUP(Formato_VAL!I66,Tabla!$A$5:$U$534,PANEL!$D$107,0) -> 0 | J69: =VLOOKUP(Formato_VAL!K66,Tabla!$A$5:$U$534,PANEL!$D$107,0) -> 0
B70: - Resultado PAP | D70: 0 | F70: =VLOOKUP(Formato_VAL!G67,Tabla!$A$5:$U$534,PANEL!$D$107,0) -> 0 | H70: =VLOOKUP(Formato_VAL!I67,Tabla!$A$5:$U$534,PANEL!$D$107,0) -> 0 | J70: =VLOOKUP(Formato_VAL!K67,Tabla!$A$5:$U$534,PANEL!$D$107,0) -> 0
B71: Evaluación de los Resultados de PAP
B72: Lesión Intraepitelial de Bajo Grado – LIEB (NIC I) | D72: 0 | F72: =VLOOKUP(Formato_VAL!G69,Tabla!$A$5:$U$534,PANEL!$D$107,0) -> 0 | H72: =VLOOKUP(Formato_VAL!I69,Tabla!$A$5:$U$534,PANEL!$D$107,0) -> 0 | J72: =VLOOKUP(Formato_VAL!K69,Tabla!$A$5:$U$534,PANEL!$D$107,0) -> 0
B73: Lesión Intraepitelial de Alto Grado – LIEA (NIC II, NIC III) | D73: 0 | F73: =VLOOKUP(Formato_VAL!G70,Tabla!$A$5:$U$534,PANEL!$D$107,0) -> 0 | H73: =VLOOKUP(Formato_VAL!I70,Tabla!$A$5:$U$534,PANEL!$D$107,0) -> 0 | J73: =VLOOKUP(Formato_VAL!K70,Tabla!$A$5:$U$534,PANEL!$D$107,0) -> 0
B74: Carcinoma in Situ | D74: 0 | F74: =VLOOKUP(Formato_VAL!G71,Tabla!$A$5:$U$534,PANEL!$D$107,0) -> 0 | H74: =VLOOKUP(Formato_VAL!I71,Tabla!$A$5:$U$534,PANEL!$D$107,0) -> 0 | J74: =VLOOKUP(Formato_VAL!K71,Tabla!$A$5:$U$534,PANEL!$D$107,0) -> 0
B75: Examen Pélvico
B76: - Evaluación Normal | D76: 0 | F76: =VLOOKUP(Formato_VAL!G73,Tabla!$A$5:$U$534,PANEL!$D$107,0) -> 0 | H76: =VLOOKUP(Formato_VAL!I73,Tabla!$A$5:$U$534,PANEL!$D$107,0) -> 0 | J76: =VLOOKUP(Formato_VAL!K73,Tabla!$A$5:$U$534,PANEL!$D$107,0) -> 0
B77: - Evaluación Anormal | D77: 0 | F77: =VLOOKUP(Formato_VAL!G74,Tabla!$A$5:$U$534,PANEL!$D$107,0) -> 0 | H77: =VLOOKUP(Formato_VAL!I74,Tabla!$A$5:$U$534,PANEL!$D$107,0) -> 0 | J77: =VLOOKUP(Formato_VAL!K74,Tabla!$A$5:$U$534,PANEL!$D$107,0) -> 0
B78: IVVA / IVVAM
B79: - Evaluación Normal | D79: 0 | F79: =VLOOKUP(Formato_VAL!G76,Tabla!$A$5:$U$534,PANEL!$D$107,0) -> 0 | H79: =VLOOKUP(Formato_VAL!I76,Tabla!$A$5:$U$534,PANEL!$D$107,0) -> 0 | J79: =VLOOKUP(Formato_VAL!K76,Tabla!$A$5:$U$534,PANEL!$D$107,0) -> 0
B80: - Evaluación Anormal | D80: 0 | F80: =VLOOKUP(Formato_VAL!G77,Tabla!$A$5:$U$534,PANEL!$D$107,0) -> 0 | H80: =VLOOKUP(Formato_VAL!I77,Tabla!$A$5:$U$534,PANEL!$D$107,0) -> 0 | J80: =VLOOKUP(Formato_VAL!K77,Tabla!$A$5:$U$534,PANEL!$D$107,0) -> 0
B81: Examen Clínico de Mama (ECM)
B82: - Evaluación Normal | D82: =F82+H82+J82 -> 0 | F82: =VLOOKUP(Formato_VAL!G79,Tabla!$A$5:$U$534,PANEL!$D$107,0) -> 0 | H82: =VLOOKUP(Formato_VAL!I79,Tabla!$A$5:$U$534,PANEL!$D$107,0) -> 0 | J82: =VLOOKUP(Formato_VAL!K79,Tabla!$A$5:$U$534,PANEL!$D$107,0) -> 0
B83: - Evaluación Anormal | D83: 0 | F83: =VLOOKUP(Formato_VAL!G80,Tabla!$A$5:$U$534,PANEL!$D$107,0) -> 0 | H83: =VLOOKUP(Formato_VAL!I80,Tabla!$A$5:$U$534,PANEL!$D$107,0) -> 0 | J83: =VLOOKUP(Formato_VAL!K80,Tabla!$A$5:$U$534,PANEL!$D$107,0) -> 0
B84: Mamografía
B85: Mamografía Unilateral | D85: 0 | F85: =VLOOKUP(Formato_VAL!G82,Tabla!$A$5:$U$534,PANEL!$D$107,0) -> 0 | H85: =VLOOKUP(Formato_VAL!I82,Tabla!$A$5:$U$534,PANEL!$D$107,0) -> 0 | J85: =VLOOKUP(Formato_VAL!K82,Tabla!$A$5:$U$534,PANEL!$D$107,0) -> 0
B86: Mamografía Bilateral | D86: 0 | F86: =VLOOKUP(Formato_VAL!G83,Tabla!$A$5:$U$534,PANEL!$D$107,0) -> 0 | H86: =VLOOKUP(Formato_VAL!I83,Tabla!$A$5:$U$534,PANEL!$D$107,0) -> 0 | J86: =VLOOKUP(Formato_VAL!K83,Tabla!$A$5:$U$534,PANEL!$D$107,0) -> 0
B87: Mamografía Screening | D87: =F87+H87+J87 -> 0 | F87: =VLOOKUP(Formato_VAL!G84,Tabla!$A$5:$U$534,PANEL!$D$107,0) -> 0 | H87: =VLOOKUP(Formato_VAL!I84,Tabla!$A$5:$U$534,PANEL!$D$107,0) -> 0 | J87: =VLOOKUP(Formato_VAL!K84,Tabla!$A$5:$U$534,PANEL!$D$107,0) -> 0
B88: Biopsia por Aspiración con Aguja Fina (BAAF) | D88: 0 | F88: =VLOOKUP(Formato_VAL!G85,Tabla!$A$5:$U$534,PANEL!$D$107,0) -> 0 | H88: =VLOOKUP(Formato_VAL!I85,Tabla!$A$5:$U$534,PANEL!$D$107,0) -> 0 | J88: =VLOOKUP(Formato_VAL!K85,Tabla!$A$5:$U$534,PANEL!$D$107,0) -> 0
B89: Entrega de Resultados Biopsia de Mama Positivos | D89: 0 | F89: =VLOOKUP(Formato_VAL!G86,Tabla!$A$5:$U$534,PANEL!$D$107,0) -> 0 | H89: =VLOOKUP(Formato_VAL!I86,Tabla!$A$5:$U$534,PANEL!$D$107,0) -> 0 | J89: =VLOOKUP(Formato_VAL!K86,Tabla!$A$5:$U$534,PANEL!$D$107,0) -> 0
B90: Entrega de Resultados Biopsia de Mama Negativos | D90: 0 | F90: =VLOOKUP(Formato_VAL!G87,Tabla!$A$5:$U$534,PANEL!$D$107,0) -> 0 | H90: =VLOOKUP(Formato_VAL!I87,Tabla!$A$5:$U$534,PANEL!$D$107,0) -> 0 | J90: =VLOOKUP(Formato_VAL!K87,Tabla!$A$5:$U$534,PANEL!$D$107,0) -> 0
A91: IDENTIFICACIÓN DE FACTORES DE RIESGO Y TAMIZAJE LABORATORIAL
A92: DNT | B92: Valoración Clínica de Factores de Riesgo | C92: =E92+G92+I92 -> 0 | D92: 0 | E92: =VLOOKUP(Formato_VAL!F89,Tabla!$A$5:$U$534,PANEL!$D$107,0) -> 0 | F92: =VLOOKUP(Formato_VAL!G89,Tabla!$A$5:$U$534,PANEL!$D$107,0) -> 0 | G92: =VLOOKUP(Formato_VAL!H89,Tabla!$A$5:$U$534,PANEL!$D$107,0) -> 0 | H92: =VLOOKUP(Formato_VAL!I89,Tabla!$A$5:$U$534,PANEL!$D$107,0) -> 0 | I92: =VLOOKUP(Formato_VAL!J89,Tabla!$A$5:$U$534,PANEL!$D$107,0) -> 0 | J92: =VLOOKUP(Formato_VAL!K89,Tabla!$A$5:$U$534,PANEL!$D$107,0) -> 0
A93: ATENCIÓN DEL ADULTO MAYOR EN EL DOMICILIO
A94: VD | B94: Visita de Atención Integral | C94: 0 | D94: 0 | E94: =VLOOKUP(Formato_VAL!F91,Tabla!$A$5:$U$534,PANEL!$D$107,0) -> 0 | F94: =VLOOKUP(Formato_VAL!G91,Tabla!$A$5:$U$534,PANEL!$D$107,0) -> 0 | G94: =VLOOKUP(Formato_VAL!H91,Tabla!$A$5:$U$534,PANEL!$D$107,0) -> 0 | H94: =VLOOKUP(Formato_VAL!I91,Tabla!$A$5:$U$534,PANEL!$D$107,0) -> 0 | I94: =VLOOKUP(Formato_VAL!J91,Tabla!$A$5:$U$534,PANEL!$D$107,0) -> 0 | J94: =VLOOKUP(Formato_VAL!K91,Tabla!$A$5:$U$534,PANEL!$D$107,0) -> 0

Sheet Tabla
B2: SUBREGION | C2: (Todas) | Y2: =VLOOKUP(X6,PANEL!$N$106:$O$303,2,0) -> Valoracion clinica masculino 60-69a. (saludable)
A3: 1 | B3: 2 | C3: 3 | D3: 4 | E3: 5 | F3: 6 | G3: 7 | H3: 8 | I3: 9 | J3: 10 | K3: 11 | L3: 12 | M3: 13 | N3: 14 | O3: 15 | P3: 16 | Q3: 17 | R3: 18 | S3: 19 | T3: 20 | U3: 21 | X3: 1 | Y3: 2 | Z3: 3 | AA3: 4 | AB3: 5 | AC3: 6 | AD3: 7 | AE3: 8 | AF3: 9 | AG3: 10 | AH3: 11 | AI3: 12 | AJ3: 13 | AK3: 14
C4: Etiquetas de columna | Z4: Etiquetas de columna
B5: Valores | C5: 1 | D5: 2 | E5: 3 | F5: 4 | G5: 5 | H5: 6 | I5: 7 | J5: 8 | K5: 9 | L5: 10 | M5: 11 | N5: 12 | O5: Total | P5: I-Trim | Q5: II-Trim | R5: III-Trim | S5: IV-Trim | T5: I-Sem | U5: II-Sem | Y5: Valores | Z5: 1 | AA5: 2 | AB5: 3 | AC5: 4 | AD5: 5 | AE5: 6 | AF5: 7 | AG5: 8 | AH5: 9 | AI5: 10
A6: =MID(B6,9,15) -> A01 | B6: Suma de A01 | C6: 17 | D6: 39 | E6: 38 | F6: 59 | G6: 70 | H6: 65 | I6: 61 | J6: 53 | K6: 42 | L6: 29 | M6: 42 | N6: 13 | O6: =SUM(C6:N6) -> 528 | P6: =SUM(C6:E6) -> 94 | Q6: =SUM(F6:H6) -> 194 | R6: =SUM(I6:K6) -> 156 | S6: =SUM(L6:N6) -> 84 | T6: =SUM(C6:H6) -> 288 | U6: =SUM(I6:N6) -> 240 | X6: =MID(Y6,9,15) -> A01 | Y6: Suma de A01 | Z6: 17 | AA6: 39 | AB6: 38 | AC6: 59 | AD6: 71 | AE6: 65 | AF6: 61 | AG6: 53 | AH6: 42 | AI6: 22
A7: A02 | B7: Suma de A02 | C7: 49 | D7: 81 | E7: 60 | F7: 101 | G7: 114 | H7: 128 | I7: 129 | J7: 109 | K7: 67 | L7: 51 | M7: 44 | N7: 23 | O7: 956 | P7: 190 | Q7: 343 | R7: 305 | S7: 118 | T7: 533 | U7: 423 | X7: =MID(Y7,9,15) -> A02 | Y7: Suma de A02 | Z7: 49 | AA7: 81 | AB7: 60 | AC7: 101 | AD7: 115 | AE7: 128 | AF7: 129 | AG7: 109 | AH7: 67 | AI7: 41
A8: A03 | B8: Suma de A03 | C8: 21 | D8: 53 | E8: 34 | F8: 36 | G8: 41 | H8: 59 | I8: 50 | J8: 49 | K8: 33 | L8: 19 | M8: 31 | N8: 7 | O8: 433 | P8: 108 | Q8: 136 | R8: 132 | S8: 57 | T8: 244 | U8: 189 | X8: A03 | Y8: Suma de A03 | Z8: 21 | AA8: 53 | AB8: 34 | AC8: 36 | AD8: 43 | AE8: 60 | AF8: 50 | AG8: 49 | AH8: 33 | AI8: 16
A9: A04 | B9: Suma de A04 | C9: 31 | D9: 54 | E9: 57 | F9: 69 | G9: 104 | H9: 108 | I9: 71 | J9: 60 | K9: 50 | L9: 49 | M9: 38 | N9: 15 | O9: 706 | P9: 142 | Q9: 281 | R9: 181 | S9: 102 | T9: 423 | U9: 283 | X9: A04 | Y9: Suma de A04 | Z9: 31 | AA9: 54 | AB9: 57 | AC9: 69 | AD9: 104 | AE9: 108 | AF9: 71 | AG9: 60 | AH9: 50 | AI9: 40
A10: A05 | B10: Suma de A05 | C10: 15 | D10: 18 | E10: 5 | F10: 22 | G10: 25 | H10: 27 | I10: 14 | J10: 32 | K10: 11 | L10: 11 | M10: 9 | N10: 7 | O10: 196 | P10: 38 | Q10: 74 | R10: 57 | S10: 27 | T10: 112 | U10: 84 | X10: A05 | Y10: Suma de A05 | Z10: 15 | AA10: 18 | AB10: 5 | AC10: 22 | AD10: 25 | AE10: 27 | AF10: 14 | AG10: 32 | AH10: 11 | AI10: 6
A11: A06 | B11: Suma de A06 | C11: 11 | D11: 21 | E11: 8 | F11: 17 | G11: 14 | H11: 11 | I11: 14 | J11: 19 | K11: 13 | L11: 8 | M11: 13 | N11: 13 | O11: 162 | P11: 40 | Q11: 42 | R11: 46 | S11: 34 | T11: 82 | U11: 80
A12: A07 | B12: Suma de A07 | C12: 43 | D12: 52 | E12: 62 | F12: 71 | G12: 53 | H12: 70 | I12: 58 | J12: 60 | K12: 40 | L12: 34 | M12: 41 | N12: 14 | O12: 598 | P12: 157 | Q12: 194 | R12: 158 | S12: 89 | T12: 351 | U12: 247
A13: A08 | B13: Suma de A08 | C13: 86 | D13: 91 | E13: 103 | F13: 147 | G13: 133 | H13: 151 | I13: 147 | J13: 134 | K13: 91 | L13: 93 | M13: 82 | N13: 35 | O13: 1293 | P13: 280 | Q13: 431 | R13: 372 | S13: 210 | T13: 711 | U13: 582
A14: A09 | B14: Suma de A09 | C14: 42 | D14: 43 | E14: 68 | F14: 63 | G14: 44 | H14: 67 | I14: 83 | J14: 64 | K14: 37 | L14: 29 | M14: 40 | N14: 11 | O14: 591 | P14: 153 | Q14: 174 | R14: 184 | S14: 80 | T14: 327 | U14: 264
A15: A10 | B15: Suma de A10 | C15: 63 | D15: 82 | E15: 96 | F15: 91 | G15: 93 | H15: 121 | I15: 144 | J15: 122 | K15: 56 | L15: 73 | M15: 56 | N15: 25 | O15: 1022 | P15: 241 | Q15: 305 | R15: 322 | S15: 154 | T15: 546 | U15: 476
A16: A11 | B16: Suma de A11 | C16: 17 | D16: 13 | E16: 24 | F16: 40 | G16: 20 | H16: 45 | I16: 37 | J16: 41 | K16: 29 | L16: 19 | M16: 23 | N16: 15 | O16: 323 | P16: 54 | Q16: 105 | R16: 107 | S16: 57 | T16: 159 | U16: 164
A17: A12 | B17: Suma de A12 | C17: 35 | D17: 24 | E17: 33 | F17: 51 | G17: 30 | H17: 54 | I17: 42 | J17: 43 | K17: 25 | L17: 22 | M17: 27 | N17: 19 | O17: 405 | P17: 92 | Q17: 135 | R17: 110 | S17: 68 | T17: 227 | U17: 178
A18: A13 | B18: Suma de A13 | C18: 8 | D18: 4 | E18: 6 | F18: 10 | G18: 24 | H18: 21 | I18: 15 | J18: 37 | K18: 10 | L18: 10 | M18: 29 | N18: 15 | O18: 189 | P18: 18 | Q18: 55 | R18: 62 | S18: 54 | T18: 73 | U18: 116
A19: A14 | B19: Suma de A14 | C19: 15 | D19: 16 | E19: 30 | F19: 23 | G19: 58 | H19: 46 | I19: 35 | J19: 66 | K19: 18 | L19: 30 | M19: 35 | N19: 23 | O19: 395 | P19: 61 | Q19: 127 | R19: 119 | S19: 88 | T19: 188 | U19: 207
A20: A15 | B20: Suma de A15 | C20: 2 | D20: 7 | E20: 9 | F20: 6 | G20: 21 | H20: 15 | I20: 17 | J20: 26 | K20: 10 | L20: 9 | M20: 12 | N20: 13 | O20: 147 | P20: 18 | Q20: 42 | R20: 53 | S20: 34 | T20: 60 | U20: 87
A21: A16 | B21: Suma de A16 | C21: 12 | D21: 14 | E21: 17 | F21: 23 | G21: 56 | H21: 30 | I21: 31 | J21: 33 | K21: 20 | L21: 15 | M21: 23 | N21: 14 | O21: 288 | P21: 43 | Q21: 109 | R21: 84 | S21: 52 | T21: 152 | U21: 136
A22: A17 | B22: Suma de A17 | C22: 2 | D22: 15 | E22: 7 | F22: 9 | G22: 19 | H22: 13 | I22: 12 | J22: 21 | K22: 11 | L22: 13 | M22: 13 | N22: 5 | O22: 140 | P22: 24 | Q22: 41 | R22: 44 | S22: 31 | T22: 65 | U22: 75
A23: A18 | B23: Suma de A18 | C23: 7 | D23: 6 | E23: 11 | F23: 12 | G23: 28 | H23: 20 | I23: 23 | J23: 23 | K23: 14 | L23: 18 | M23: 10 | N23: 9 | O23: 181 | P23: 24 | Q23: 60 | R23: 60 | S23: 37 | T23: 84 | U23: 97
A24: A19 | B24: Suma de A19 | C24: 1 | D24: 0 | E24: 1 | F24: 1 | G24: 2 | H24: 1 | I24: 2 | J24: 1 | K24: 0 | L24: 0 | M24: 8 | N24: 1 | O24: 18 | P24: 2 | Q24: 4 | R24: 3 | S24: 9 | T24: 6 | U24: 12
A25: A20 | B25: Suma de A20 | C25: 2 | D25: 1 | E25: 2 | F25: 0 | G25: 6 | H25: 0 | I25: 1 | J25: 2 | K25: 2 | L25: 0 | M25: 3 | N25: 1 | O25: 20 | P25: 5 | Q25: 6 | R25: 5 | S25: 4 | T25: 11 | U25: 9
A26: A21 | B26: Suma de A21 | C26: 0 | D26: 1 | E26: 4 | F26: 1 | G26: 2 | H26: 2 | I26: 1 | J26: 2 | K26: 4 | L26: 0 | M26: 3 | N26: 1 | O26: 21 | P26: 5 | Q26: 5 | R26: 7 | S26: 4 | T26: 10 | U26: 11
A27: A22 | B27: Suma de A22 | C27: 3 | D27: 1 | E27: 0 | F27: 1 | G27: 0 | H27: 1 | I27: 1 | J27: 0 | K27: 2 | L27: 0 | M27: 5 | N27: 0 | O27: 14 | P27: 4 | Q27: 2 | R27: 3 | S27: 5 | T27: 6 | U27: 8
A28: A23 | B28: Suma de A23 | C28: 0 | D28: 0 | E28: 0 | F28: 2 | G28: 4 | H28: 2 | I28: 1 | J28: 3 | K28: 2 | L28: 1 | M28: 3 | N28: 1 | O28: 19 | P28: 0 | Q28: 8 | R28: 6 | S28: 5 | T28: 8 | U28: 11
A29: A24 | B29: Suma de A24 | C29: 1 | D29: 0 | E29: 2 | F29: 3 | G29: 4 | H29: 1 | I29: 1 | J29: 2 | K29: 3 | L29: 2 | M29: 3 | N29: 3 | O29: 25 | P29: 3 | Q29: 8 | R29: 6 | S29: 8 | T29: 11 | U29: 14
A30: A25 | B30: Suma de A25 | C30: 96 | D30: 82 | E30: 129 | F30: 151 | G30: 132 | H30: 134 | I30: 117 | J30: 132 | K30: 97 | L30: 68 | M30: 100 | N30: 17 | O30: 1255 | P30: 307 | Q30: 417 | R30: 346 | S30: 185 | T30: 724 | U30: 531
A31: A26 | B31: Suma de A26 | C31: 170 | D31: 194 | E31: 225 | F31: 265 | G31: 282 | H31: 302 | I31: 284 | J31: 246 | K31: 142 | L31: 144 | M31: 131 | N31: 68 | O31: 2453 | P31: 589 | Q31: 849 | R31: 672 | S31: 343 | T31: 1438 | U31: 1015
A32: A27 | B32: Suma de A27 | C32: 60 | D32: 68 | E32: 85 | F32: 101 | G32: 100 | H32: 130 | I32: 107 | J32: 100 | K32: 66 | L32: 43 | M32: 70 | N32: 24 | O32: 954 | P32: 213 | Q32: 331 | R32: 273 | S32: 137 | T32: 544 | U32: 410
A33: A28 | B33: Suma de A28 | C33: 120 | D33: 116 | E33: 155 | F33: 158 | G33: 195 | H33: 213 | I33: 195 | J33: 160 | K33: 77 | L33: 80 | M33: 96 | N33: 31 | O33: 1596 | P33: 391 | Q33: 566 | R33: 432 | S33: 207 | T33: 957 | U33: 639
A34: A29 | B34: Suma de A29 | C34: 35 | D34: 32 | E34: 40 | F34: 56 | G34: 57 | H34: 68 | I34: 63 | J34: 62 | K34: 32 | L34: 32 | M34: 28 | N34: 14 | O34: 519 | P34: 107 | Q34: 181 | R34: 157 | S34: 74 | T34: 288 | U34: 231
A35: A30 | B35: Suma de A30 | C35: 49 | D35: 47 | E35: 48 | F35: 57 | G35: 68 | H35: 74 | I35: 61 | J35: 66 | K35: 33 | L35: 40 | M35: 38 | N35: 12 | O35: 593 | P35: 144 | Q35: 199 | R35: 160 | S35: 90 | T35: 343 | U35: 250
A36: A31 | B36: Suma de A31 | C36: 13 | D36: 35 | E36: 25 | F36: 53 | G36: 96 | H36: 90 | I36: 92 | J36: 100 | K36: 58 | L36: 51 | M36: 67 | N36: 35 | O36: 715 | P36: 73 | Q36: 239 | R36: 250 | S36: 153 | T36: 312 | U36: 403
A37: A32 | B37: Suma de A32 | C37: 42 | D37: 72 | E37: 56 | F37: 94 | G37: 184 | H37: 194 | I37: 181 | J37: 194 | K37: 116 | L37: 126 | M37: 103 | N37: 84 | O37: 1446 | P37: 170 | Q37: 472 | R37: 491 | S37: 313 | T37: 642 | U37: 804
A38: =MID(B38,9,15) -> A33 | B38: Suma de A33 | C38: 13 | D38: 30 | E38: 38 | F38: 37 | G38: 56 | H38: 78 | I38: 65 | J38: 88 | K38: 56 | L38: 40 | M38: 35 | N38: 14 | O38: =SUM(C38:N38) -> 550 | P38: =SUM(C38:E38) -> 81 | Q38: =SUM(F38:H38) -> 171 | R38: =SUM(I38:K38) -> 209 | S38: =SUM(L38:N38) -> 89 | T38: =SUM(C38:H38) -> 252 | U38: =SUM(I38:N38) -> 298
A39: A34 | B39: Suma de A34 | C39: 20 | D39: 43 | E39: 49 | F39: 62 | G39: 139 | H39: 180 | I39: 129 | J39: 159 | K39: 75 | L39: 80 | M39: 57 | N39: 50 | O39: 1043 | P39: 112 | Q39: 381 | R39: 363 | S39: 187 | T39: 493 | U39: 550
A40: A35 | B40: Suma de A35 | C40: 2 | D40: 10 | E40: 8 | F40: 18 | G40: 35 | H40: 53 | I40: 25 | J40: 33 | K40: 23 | L40: 24 | M40: 21 | N40: 12 | O40: 264 | P40: 20 | Q40: 106 | R40: 81 | S40: 57 | T40: 126 | U40: 138
A41: A36 | B41: Suma de A36 | C41: 6 | D41: 9 | E41: 12 | F41: 28 | G41: 42 | H41: 48 | I41: 39 | J41: 57 | K41: 40 | L41: 31 | M41: 26 | N41: 30 | O41: 368 | P41: 27 | Q41: 118 | R41: 136 | S41: 87 | T41: 145 | U41: 223
A42: A37 | B42: Suma de A37 | C42: 191 | D42: 218 | E42: 233 | F42: 272 | G42: 213 | H42: 245 | I42: 196 | J42: 188 | K42: 173 | L42: 143 | M42: 176 | N42: 127 | O42: 2375 | P42: 642 | Q42: 730 | R42: 557 | S42: 446 | T42: 1372 | U42: 1003
A43: A38 | B43: Suma de A38 | C43: 471 | D43: 495 | E43: 474 | F43: 542 | G43: 397 | H43: 474 | I43: 409 | J43: 404 | K43: 297 | L43: 315 | M43: 296 | N43: 256 | O43: 4830 | P43: 1440 | Q43: 1413 | R43: 1110 | S43: 867 | T43: 2853 | U43: 1977
A44: A39 | B44: Suma de A39 | C44: 180 | D44: 179 | E44: 156 | F44: 196 | G44: 171 | H44: 188 | I44: 161 | J44: 142 | K44: 112 | L44: 136 | M44: 119 | N44: 91 | O44: 1831 | P44: 515 | Q44: 555 | R44: 415 | S44: 346 | T44: 1070 | U44: 761
A45: A40 | B45: Suma de A40 | C45: 240 | D45: 242 | E45: 232 | F45: 268 | G45: 242 | H45: 269 | I45: 244 | J45: 257 | K45: 161 | L45: 143 | M45: 163 | N45: 121 | O45: 2582 | P45: 714 | Q45: 779 | R45: 662 | S45: 427 | T45: 1493 | U45: 1089
A46: A41 | B46: Suma de A41 | C46: 104 | D46: 85 | E46: 88 | F46: 113 | G46: 85 | H46: 91 | I46: 81 | J46: 85 | K46: 75 | L46: 72 | M46: 78 | N46: 61 | O46: 1018 | P46: 277 | Q46: 289 | R46: 241 | S46: 211 | T46: 566 | U46: 452
A47: A42 | B47: Suma de A42 | C47: 105 | D47: 78 | E47: 112 | F47: 131 | G47: 113 | H47: 86 | I47: 105 | J47: 84 | K47: 61 | L47: 67 | M47: 77 | N47: 63 | O47: 1082 | P47: 295 | Q47: 330 | R47: 250 | S47: 207 | T47: 625 | U47: 457
A48: A43 | B48: Suma de A43 | C48: 95 | D48: 134 | E48: 139 | F48: 128 | G48: 95 | H48: 99 | I48: 86 | J48: 67 | K48: 76 | L48: 69 | M48: 75 | N48: 71 | O48: 1134 | P48: 368 | Q48: 322 | R48: 229 | S48: 215 | T48: 690 | U48: 444
A49: A44 | B49: Suma de A44 | C49: 235 | D49: 305 | E49: 275 | F49: 277 | G49: 236 | H49: 240 | I49: 225 | J49: 180 | K49: 164 | L49: 147 | M49: 161 | N49: 179 | O49: 2624 | P49: 815 | Q49: 753 | R49: 569 | S49: 487 | T49: 1568 | U49: 1056
A50: A45 | B50: Suma de A45 | C50: 69 | D50: 97 | E50: 88 | F50: 94 | G50: 92 | H50: 58 | I50: 82 | J50: 51 | K50: 53 | L50: 48 | M50: 57 | N50: 58 | O50: 847 | P50: 254 | Q50: 244 | R50: 186 | S50: 163 | T50: 498 | U50: 349
A51: A46 | B51: Suma de A46 | C51: 130 | D51: 136 | E51: 162 | F51: 153 | G51: 140 | H51: 118 | I51: 138 | J51: 98 | K51: 87 | L51: 82 | M51: 91 | N51: 83 | O51: 1418 | P51: 428 | Q51: 411 | R51: 323 | S51: 256 | T51: 839 | U51: 579
A52: A47 | B52: Suma de A47 | C52: 27 | D52: 52 | E52: 53 | F52: 44 | G52: 32 | H52: 32 | I52: 27 | J52: 33 | K52: 29 | L52: 26 | M52: 23 | N52: 29 | O52: 407 | P52: 132 | Q52: 108 | R52: 89 | S52: 78 | T52: 240 | U52: 167
A53: A48 | B53: Suma de A48 | C53: 43 | D53: 48 | E53: 48 | F53: 57 | G53: 42 | H53: 40 | I53: 48 | J53: 34 | K53: 32 | L53: 31 | M53: 41 | N53: 44 | O53: 508 | P53: 139 | Q53: 139 | R53: 114 | S53: 116 | T53: 278 | U53: 230
A54: A49 | B54: Suma de A49 | C54: 66 | D54: 75 | E54: 86 | F54: 95 | G54: 67 | H54: 75 | I54: 57 | J54: 65 | K54: 41 | L54: 41 | M54: 43 | N54: 46 | O54: 757 | P54: 227 | Q54: 237 | R54: 163 | S54: 130 | T54: 464 | U54: 293
A55: A50 | B55: Suma de A50 | C55: 75 | D55: 95 | E55: 91 | F55: 124 | G55: 79 | H55: 87 | I55: 82 | J55: 79 | K55: 57 | L55: 56 | M55: 50 | N55: 54 | O55: 929 | P55: 261 | Q55: 290 | R55: 218 | S55: 160 | T55: 551 | U55: 378
A56: A51 | B56: Suma de A51 | C56: 41 | D56: 45 | E56: 47 | F56: 62 | G56: 62 | H56: 40 | I56: 46 | J56: 48 | K56: 27 | L56: 24 | M56: 40 | N56: 34 | O56: 516 | P56: 133 | Q56: 164 | R56: 121 | S56: 98 | T56: 297 | U56: 219
A57: A52 | B57: Suma de A52 | C57: 39 | D57: 49 | E57: 59 | F57: 54 | G57: 41 | H57: 45 | I57: 45 | J57: 34 | K57: 40 | L57: 32 | M57: 26 | N57: 16 | O57: 480 | P57: 147 | Q57: 140 | R57: 119 | S57: 74 | T57: 287 | U57: 193
A58: A53 | B58: Suma de A53 | C58: 15 | D58: 25 | E58: 22 | F58: 26 | G58: 18 | H58: 18 | I58: 19 | J58: 17 | K58: 19 | L58: 13 | M58: 16 | N58: 21 | O58: 229 | P58: 62 | Q58: 62 | R58: 55 | S58: 50 | T58: 124 | U58: 105
A59: A54 | B59: Suma de A54 | C59: 14 | D59: 18 | E59: 16 | F59: 28 | G59: 22 | H59: 12 | I59: 18 | J59: 16 | K59: 10 | L59: 16 | M59: 11 | N59: 21 | O59: 202 | P59: 48 | Q59: 62 | R59: 44 | S59: 48 | T59: 110 | U59: 92
A60: A55 | B60: Suma de A55 | C60: 47 | D60: 36 | E60: 38 | F60: 49 | G60: 38 | H60: 36 | I60: 33 | J60: 28 | K60: 24 | L60: 23 | M60: 18 | N60: 22 | O60: 392 | P60: 121 | Q60: 123 | R60: 85 | S60: 63 | T60: 244 | U60: 148
A61: A56 | B61: Suma de A56 | C61: 67 | D61: 85 | E61: 70 | F61: 95 | G61: 68 | H61: 73 | I61: 64 | J61: 57 | K61: 42 | L61: 54 | M61: 46 | N61: 52 | O61: 773 | P61: 222 | Q61: 236 | R61: 163 | S61: 152 | T61: 458 | U61: 315
A62: A57 | B62: Suma de A57 | C62: 24 | D62: 24 | E62: 22 | F62: 33 | G62: 41 | H62: 26 | I62: 29 | J62: 31 | K62: 15 | L62: 20 | M62: 19 | N62: 20 | O62: 304 | P62: 70 | Q62: 100 | R62: 75 | S62: 59 | T62: 170 | U62: 134
A63: A58 | B63: Suma de A58 | C63: 37 | D63: 37 | E63: 35 | F63: 50 | G63: 30 | H63: 34 | I63: 46 | J63: 36 | K63: 26 | L63: 24 | M63: 22 | N63: 16 | O63: 393 | P63: 109 | Q63: 114 | R63: 108 | S63: 62 | T63: 223 | U63: 170
A64: A59 | B64: Suma de A59 | C64: 9 | D64: 19 | E64: 12 | F64: 18 | G64: 13 | H64: 11 | I64: 12 | J64: 15 | K64: 9 | L64: 12 | M64: 11 | N64: 10 | O64: 151 | P64: 40 | Q64: 42 | R64: 36 | S64: 33 | T64: 82 | U64: 69
A65: A60 | B65: Suma de A60 | C65: 16 | D65: 13 | E65: 11 | F65: 25 | G65: 22 | H65: 8 | I65: 20 | J65: 16 | K65: 9 | L65: 13 | M65: 11 | N65: 16 | O65: 180 | P65: 40 | Q65: 55 | R65: 45 | S65: 40 | T65: 95 | U65: 85
A66: A61 | B66: Suma de A61 | C66: 0 | D66: 0 | E66: 0 | F66: 0 | G66: 0 | H66: 0 | I66: 0 | J66: 0 | K66: 0 | L66: 0 | M66: 0 | N66: 0 | O66: 0 | P66: 0 | Q66: 0 | R66: 0 | S66: 0 | T66: 0 | U66: 0
A67: A62 | B67: Suma de A62 | C67: 0 | D67: 0 | E67: 0 | F67: 0 | G67: 0 | H67: 0 | I67: 0 | J67: 0 | K67: 0 | L67: 0 | M67: 0 | N67: 1 | O67: 1 | P67: 0 | Q67: 0 | R67: 0 | S67: 1 | T67: 0 | U67: 1
A68: A63 | B68: Suma de A63 | C68: 0 | D68: 0 | E68: 0 | F68: 0 | G68: 0 | H68: 0 | I68: 0 | J68: 0 | K68: 0 | L68: 0 | M68: 0 | N68: 1 | O68: 1 | P68: 0 | Q68: 0 | R68: 0 | S68: 1 | T68: 0 | U68: 1
A69: A64 | B69: Suma de A64 | C69: 0 | D69: 0 | E69: 0 | F69: 0 | G69: 0 | H69: 0 | I69: 0 | J69: 0 | K69: 0 | L69: 0 | M69: 0 | N69: 0 | O69: 0 | P69: 0 | Q69: 0 | R69: 0 | S69: 0 | T69: 0 | U69: 0
A70: =MID(B70,9,15) -> A65 | B70: Suma de A65 | C70: 0 | D70: 0 | E70: 0 | F70: 0 | G70: 0 | H70: 0 | I70: 0 | J70: 0 | K70: 0 | L70: 0 | M70: 0 | N70: 0 | O70: =SUM(C70:N70) -> 0 | P70: =SUM(C70:E70) -> 0 | Q70: =SUM(F70:H70) -> 0 | R70: =SUM(I70:K70) -> 0 | S70: =SUM(L70:N70) -> 0 | T70: =SUM(C70:H70) -> 0 | U70: =SUM(I70:N70) -> 0
A71: A66 | B71: Suma de A66 | C71: 0 | D71: 0 | E71: 0 | F71: 0 | G71: 0 | H71: 0 | I71: 0 | J71: 0 | K71: 0 | L71: 0 | M71: 0 | N71: 0 | O71: 0 | P71: 0 | Q71: 0 | R71: 0 | S71: 0 | T71: 0 | U71: 0 | X71: =MID(Y71,9,15) -> 
A72: A67 | B72: Suma de A67 | C72: 4 | D72: 6 | E72: 8 | F72: 8 | G72: 4 | H72: 14 | I72: 3 | J72: 4 | K72: 2 | L72: 2 | M72: 7 | N72: 5 | O72: 67 | P72: 18 | Q72: 26 | R72: 9 | S72: 14 | T72: 44 | U72: 23
A73: A68 | B73: Suma de A68 | C73: 16 | D73: 11 | E73: 22 | F73: 25 | G73: 17 | H73: 19 | I73: 21 | J73: 9 | K73: 7 | L73: 14 | M73: 14 | N73: 14 | O73: 189 | P73: 49 | Q73: 61 | R73: 37 | S73: 42 | T73: 110 | U73: 79
A74: A69 | B74: Suma de A69 | C74: 9 | D74: 6 | E74: 4 | F74: 10 | G74: 4 | H74: 5 | I74: 1 | J74: 4 | K74: 2 | L74: 4 | M74: 2 | N74: 4 | O74: 55 | P74: 19 | Q74: 19 | R74: 7 | S74: 10 | T74: 38 | U74: 17
A75: A70 | B75: Suma de A70 | C75: 5 | D75: 7 | E75: 6 | F75: 13 | G75: 6 | H75: 8 | I75: 7 | J75: 12 | K75: 0 | L75: 5 | M75: 8 | N75: 6 | O75: 83 | P75: 18 | Q75: 27 | R75: 19 | S75: 19 | T75: 45 | U75: 38
A76: A71 | B76: Suma de A71 | C76: 2 | D76: 5 | E76: 3 | F76: 4 | G76: 2 | H76: 5 | I76: 3 | J76: 1 | K76: 2 | L76: 2 | M76: 1 | N76: 1 | O76: 31 | P76: 10 | Q76: 11 | R76: 6 | S76: 4 | T76: 21 | U76: 10
A77: A72 | B77: Suma de A72 | C77: 5 | D77: 5 | E77: 6 | F77: 6 | G77: 5 | H77: 6 | I77: 4 | J77: 1 | K77: 0 | L77: 0 | M77: 4 | N77: 2 | O77: 44 | P77: 16 | Q77: 17 | R77: 5 | S77: 6 | T77: 33 | U77: 11
A78: A73 | B78: Suma de A73 | C78: 24 | D78: 32 | E78: 27 | F78: 20 | G78: 20 | H78: 18 | I78: 21 | J78: 12 | K78: 24 | L78: 28 | M78: 23 | N78: 23 | O78: 272 | P78: 83 | Q78: 58 | R78: 57 | S78: 74 | T78: 141 | U78: 131
A79: A74 | B79: Suma de A74 | C79: 71 | D79: 77 | E79: 83 | F79: 66 | G79: 68 | H79: 58 | I79: 63 | J79: 59 | K79: 68 | L79: 58 | M79: 53 | N79: 78 | O79: 802 | P79: 231 | Q79: 192 | R79: 190 | S79: 189 | T79: 423 | U79: 379
A80: A75 | B80: Suma de A75 | C80: 26 | D80: 12 | E80: 19 | F80: 15 | G80: 22 | H80: 12 | I80: 13 | J80: 8 | K80: 18 | L80: 12 | M80: 14 | N80: 18 | O80: 189 | P80: 57 | Q80: 49 | R80: 39 | S80: 44 | T80: 106 | U80: 83
A81: A76 | B81: Suma de A76 | C81: 50 | D81: 39 | E81: 40 | F81: 43 | G81: 38 | H81: 34 | I81: 47 | J81: 26 | K81: 37 | L81: 34 | M81: 30 | N81: 44 | O81: 462 | P81: 129 | Q81: 115 | R81: 110 | S81: 108 | T81: 244 | U81: 218
A82: A77 | B82: Suma de A77 | C82: 6 | D82: 6 | E82: 12 | F82: 9 | G82: 1 | H82: 11 | I82: 7 | J82: 5 | K82: 14 | L82: 13 | M82: 4 | N82: 12 | O82: 100 | P82: 24 | Q82: 21 | R82: 26 | S82: 29 | T82: 45 | U82: 55
A83: A78 | B83: Suma de A78 | C83: 10 | D83: 9 | E83: 10 | F83: 19 | G83: 4 | H83: 7 | I83: 12 | J83: 7 | K83: 17 | L83: 17 | M83: 10 | N83: 16 | O83: 138 | P83: 29 | Q83: 30 | R83: 36 | S83: 43 | T83: 59 | U83: 79
A84: A79 | B84: Suma de A79 | C84: 0 | D84: 0 | E84: 0 | F84: 1 | G84: 0 | H84: 0 | I84: 0 | J84: 0 | K84: 0 | L84: 0 | M84: 0 | N84: 0 | O84: 1 | P84: 0 | Q84: 1 | R84: 0 | S84: 0 | T84: 1 | U84: 0
A85: A80 | B85: Suma de A80 | C85: 0 | D85: 0 | E85: 0 | F85: 0 | G85: 0 | H85: 0 | I85: 0 | J85: 0 | K85: 0 | L85: 0 | M85: 0 | N85: 0 | O85: 0 | P85: 0 | Q85: 0 | R85: 0 | S85: 0 | T85: 0 | U85: 0
A86: A81 | B86: Suma de A81 | C86: 0 | D86: 0 | E86: 0 | F86: 0 | G86: 0 | H86: 0 | I86: 0 | J86: 0 | K86: 0 | L86: 0 | M86: 0 | N86: 0 | O86: 0 | P86: 0 | Q86: 0 | R86: 0 | S86: 0 | T86: 0 | U86: 0
A87: A82 | B87: Suma de A82 | C87: 0 | D87: 0 | E87: 0 | F87: 0 | G87: 0 | H87: 0 | I87: 0 | J87: 0 | K87: 0 | L87: 0 | M87: 0 | N87: 0 | O87: 0 | P87: 0 | Q87: 0 | R87: 0 | S87: 0 | T87: 0 | U87: 0
A88: A83 | B88: Suma de A83 | C88: 0 | D88: 0 | E88: 0 | F88: 0 | G88: 0 | H88: 0 | I88: 0 | J88: 0 | K88: 0 | L88: 0 | M88: 0 | N88: 0 | O88: 0 | P88: 0 | Q88: 0 | R88: 0 | S88: 0 | T88: 0 | U88: 0
A89: A84 | B89: Suma de A84 | C89: 0 | D89: 0 | E89: 0 | F89: 0 | G89: 0 | H89: 0 | I89: 0 | J89: 0 | K89: 0 | L89: 0 | M89: 0 | N89: 0 | O89: 0 | P89: 0 | Q89: 0 | R89: 0 | S89: 0 | T89: 0 | U89: 0
A90: A85 | B90: Suma de A85 | C90: 2 | D90: 4 | E90: 9 | F90: 1 | G90: 6 | H90: 5 | I90: 5 | J90: 4 | K90: 2 | L90: 0 | M90: 1 | N90: 0 | O90: 39 | P90: 15 | Q90: 12 | R90: 11 | S90: 1 | T90: 27 | U90: 12
A91: A86 | B91: Suma de A86 | C91: 0 | D91: 0 | E91: 1 | F91: 0 | G91: 2 | H91: 0 | I91: 1 | J91: 0 | K91: 1 | L91: 1 | M91: 0 | N91: 0 | O91: 6 | P91: 1 | Q91: 2 | R91: 2 | S91: 1 | T91: 3 | U91: 3
A92: A87 | B92: Suma de A87 | C92: 2 | D92: 3 | E92: 1 | F92: 2 | G92: 2 | H92: 1 | I92: 1 | J92: 3 | K92: 0 | L92: 0 | M92: 3 | N92: 0 | O92: 18 | P92: 6 | Q92: 5 | R92: 4 | S92: 3 | T92: 11 | U92: 7
A93: A88 | B93: Suma de A88 | C93: 0 | D93: 0 | E93: 0 | F93: 0 | G93: 0 | H93: 0 | I93: 2 | J93: 0 | K93: 0 | L93: 0 | M93: 0 | N93: 0 | O93: 2 | P93: 0 | Q93: 0 | R93: 2 | S93: 0 | T93: 0 | U93: 2
A94: A89 | B94: Suma de A89 | C94: 0 | D94: 0 | E94: 0 | F94: 0 | G94: 0 | H94: 0 | I94: 0 | J94: 0 | K94: 1 | L94: 1 | M94: 0 | N94: 0 | O94: 2 | P94: 0 | Q94: 0 | R94: 1 | S94: 1 | T94: 0 | U94: 2
A95: A90 | B95: Suma de A90 | C95: 0 | D95: 0 | E95: 0 | F95: 0 | G95: 0 | H95: 0 | I95: 0 | J95: 0 | K95: 0 | L95: 0 | M95: 0 | N95: 0 | O95: 0 | P95: 0 | Q95: 0 | R95: 0 | S95: 0 | T95: 0 | U95: 0
A96: A91 | B96: Suma de A91 | C96: 0 | D96: 0 | E96: 0 | F96: 0 | G96: 1 | H96: 0 | I96: 0 | J96: 0 | K96: 0 | L96: 0 | M96: 0 | N96: 0 | O96: 1 | P96: 0 | Q96: 1 | R96: 0 | S96: 0 | T96: 1 | U96: 0
A97: A92 | B97: Suma de A92 | C97: 0 | D97: 0 | E97: 0 | F97: 0 | G97: 0 | H97: 1 | I97: 1 | J97: 0 | K97: 0 | L97: 0 | M97: 0 | N97: 0 | O97: 2 | P97: 0 | Q97: 1 | R97: 1 | S97: 0 | T97: 1 | U97: 1
A98: A93 | B98: Suma de A93 | C98: 0 | D98: 0 | E98: 1 | F98: 0 | G98: 0 | H98: 0 | I98: 0 | J98: 0 | K98: 0 | L98: 0 | M98: 0 | N98: 0 | O98: 1 | P98: 1 | Q98: 0 | R98: 0 | S98: 0 | T98: 1 | U98: 0
A99: A94 | B99: Suma de A94 | C99: 0 | D99: 0 | E99: 0 | F99: 0 | G99: 0 | H99: 0 | I99: 0 | J99: 0 | K99: 0 | L99: 0 | M99: 0 | N99: 0 | O99: 0 | P99: 0 | Q99: 0 | R99: 0 | S99: 0 | T99: 0 | U99: 0
A100: A95 | B100: Suma de A95 | C100: 0 | D100: 0 | E100: 0 | F100: 0 | G100: 0 | H100: 0 | I100: 0 | J100: 0 | K100: 0 | L100: 0 | M100: 0 | N100: 0 | O100: 0 | P100: 0 | Q100: 0 | R100: 0 | S100: 0 | T100: 0 | U100: 0
A101: A96 | B101: Suma de A96 | C101: 0 | D101: 0 | E101: 0 | F101: 0 | G101: 0 | H101: 0 | I101: 0 | J101: 0 | K101: 0 | L101: 0 | M101: 0 | N101: 0 | O101: 0 | P101: 0 | Q101: 0 | R101: 0 | S101: 0 | T101: 0 | U101: 0
A102: =MID(B102,9,15) -> A97 | B102: Suma de A97 | C102: 8 | D102: 2 | E102: 2 | F102: 4 | G102: 2 | H102: 0 | I102: 6 | J102: 3 | K102: 1 | L102: 2 | M102: 3 | N102: 2 | O102: =SUM(C102:N102) -> 35 | P102: =SUM(C102:E102) -> 12 | Q102: =SUM(F102:H102) -> 6 | R102: =SUM(I102:K102) -> 10 | S102: =SUM(L102:N102) -> 7 | T102: =SUM(C102:H102) -> 18 | U102: =SUM(I102:N102) -> 17
A103: A98 | B103: Suma de A98 | C103: 9 | D103: 8 | E103: 11 | F103: 8 | G103: 7 | H103: 9 | I103: 9 | J103: 2 | K103: 3 | L103: 6 | M103: 3 | N103: 4 | O103: 79 | P103: 28 | Q103: 24 | R103: 14 | S103: 13 | T103: 52 | U103: 27
A104: A99 | B104: Suma de A99 | C104: 6 | D104: 0 | E104: 2 | F104: 2 | G104: 3 | H104: 3 | I104: 2 | J104: 0 | K104: 0 | L104: 2 | M104: 0 | N104: 1 | O104: 21 | P104: 8 | Q104: 8 | R104: 2 | S104: 3 | T104: 16 | U104: 5
A105: A100 | B105: Suma de A100 | C105: 6 | D105: 5 | E105: 1 | F105: 2 | G105: 1 | H105: 4 | I105: 13 | J105: 5 | K105: 1 | L105: 1 | M105: 3 | N105: 1 | O105: 43 | P105: 12 | Q105: 7 | R105: 19 | S105: 5 | T105: 19 | U105: 24
A106: A101 | B106: Suma de A101 | C106: 1 | D106: 0 | E106: 2 | F106: 1 | G106: 0 | H106: 0 | I106: 2 | J106: 2 | K106: 2 | L106: 4 | M106: 1 | N106: 1 | O106: 16 | P106: 3 | Q106: 1 | R106: 6 | S106: 6 | T106: 4 | U106: 12
A107: A102 | B107: Suma de A102 | C107: 4 | D107: 0 | E107: 0 | F107: 2 | G107: 1 | H107: 0 | I107: 5 | J107: 1 | K107: 2 | L107: 6 | M107: 1 | N107: 1 | O107: 23 | P107: 4 | Q107: 3 | R107: 8 | S107: 8 | T107: 7 | U107: 16
A108: A103 | B108: Suma de A103 | C108: 0 | D108: 0 | E108: 0 | F108: 0 | G108: 0 | H108: 0 | I108: 0 | J108: 0 | K108: 0 | L108: 0 | M108: 0 | N108: 0 | O108: 0 | P108: 0 | Q108: 0 | R108: 0 | S108: 0 | T108: 0 | U108: 0
A109: A104 | B109: Suma de A104 | C109: 0 | D109: 0 | E109: 0 | F109: 0 | G109: 0 | H109: 0 | I109: 0 | J109: 0 | K109: 0 | L109: 0 | M109: 0 | N109: 0 | O109: 0 | P109: 0 | Q109: 0 | R109: 0 | S109: 0 | T109: 0 | U109: 0
A110: A105 | B110: Suma de A105 | C110: 0 | D110: 0 | E110: 0 | F110: 0 | G110: 0 | H110: 0 | I110: 0 | J110: 0 | K110: 0 | L110: 0 | M110: 0 | N110: 0 | O110: 0 | P110: 0 | Q110: 0 | R110: 0 | S110: 0 | T110: 0 | U110: 0
A111: A106 | B111: Suma de A106 | C111: 0 | D111: 0 | E111: 0 | F111: 0 | G111: 0 | H111: 0 | I111: 0 | J111: 0 | K111: 0 | L111: 0 | M111: 0 | N111: 0 | O111: 0 | P111: 0 | Q111: 0 | R111: 0 | S111: 0 | T111: 0 | U111: 0
A112: A107 | B112: Suma de A107 | C112: 0 | D112: 0 | E112: 0 | F112: 0 | G112: 0 | H112: 0 | I112: 0 | J112: 0 | K112: 0 | L112: 0 | M112: 0 | N112: 0 | O112: 0 | P112: 0 | Q112: 0 | R112: 0 | S112: 0 | T112: 0 | U112: 0
A113: A108 | B113: Suma de A108 | C113: 0 | D113: 0 | E113: 0 | F113: 0 | G113: 0 | H113: 0 | I113: 0 | J113: 0 | K113: 0 | L113: 0 | M113: 0 | N113: 0 | O113: 0 | P113: 0 | Q113: 0 | R113: 0 | S113: 0 | T113: 0 | U113: 0
A114: A109 | B114: Suma de A109 | C114: 11 | D114: 14 | E114: 14 | F114: 12 | G114: 15 | H114: 9 | I114: 8 | J114: 8 | K114: 7 | L114: 4 | M114: 7 | N114: 1 | O114: 110 | P114: 39 | Q114: 36 | R114: 23 | S114: 12 | T114: 75 | U114: 35
A115: A110 | B115: Suma de A110 | C115: 23 | D115: 16 | E115: 21 | F115: 28 | G115: 17 | H115: 16 | I115: 25 | J115: 16 | K115: 12 | L115: 6 | M115: 9 | N115: 5 | O115: 194 | P115: 60 | Q115: 61 | R115: 53 | S115: 20 | T115: 121 | U115: 73
A116: A111 | B116: Suma de A111 | C116: 21 | D116: 12 | E116: 17 | F116: 11 | G116: 9 | H116: 14 | I116: 10 | J116: 9 | K116: 8 | L116: 4 | M116: 6 | N116: 0 | O116: 121 | P116: 50 | Q116: 34 | R116: 27 | S116: 10 | T116: 84 | U116: 37
A117: A112 | B117: Suma de A112 | C117: 29 | D117: 25 | E117: 26 | F117: 17 | G117: 28 | H117: 20 | I117: 21 | J117: 21 | K117: 10 | L117: 12 | M117: 13 | N117: 4 | O117: 226 | P117: 80 | Q117: 65 | R117: 52 | S117: 29 | T117: 145 | U117: 81
A118: A113 | B118: Suma de A113 | C118: 10 | D118: 10 | E118: 12 | F118: 7 | G118: 10 | H118: 8 | I118: 3 | J118: 7 | K118: 7 | L118: 8 | M118: 5 | N118: 7 | O118: 94 | P118: 32 | Q118: 25 | R118: 17 | S118: 20 | T118: 57 | U118: 37
A119: A114 | B119: Suma de A114 | C119: 18 | D119: 10 | E119: 7 | F119: 19 | G119: 16 | H119: 10 | I119: 12 | J119: 6 | K119: 7 | L119: 8 | M119: 6 | N119: 4 | O119: 123 | P119: 35 | Q119: 45 | R119: 25 | S119: 18 | T119: 80 | U119: 43
A120: A115 | B120: Suma de A115 | C120: 53 | D120: 80 | E120: 103 | F120: 124 | G120: 101 | H120: 86 | I120: 77 | J120: 89 | K120: 84 | L120: 82 | M120: 82 | N120: 45 | O120: 1006 | P120: 236 | Q120: 311 | R120: 250 | S120: 209 | T120: 547 | U120: 459
A121: A116 | B121: Suma de A116 | C121: 144 | D121: 133 | E121: 170 | F121: 183 | G121: 182 | H121: 138 | I121: 136 | J121: 196 | K121: 127 | L121: 127 | M121: 167 | N121: 101 | O121: 1804 | P121: 447 | Q121: 503 | R121: 459 | S121: 395 | T121: 950 | U121: 854
A122: A117 | B122: Suma de A117 | C122: 52 | D122: 67 | E122: 86 | F122: 89 | G122: 79 | H122: 74 | I122: 86 | J122: 94 | K122: 64 | L122: 71 | M122: 76 | N122: 44 | O122: 882 | P122: 205 | Q122: 242 | R122: 244 | S122: 191 | T122: 447 | U122: 435
A123: A118 | B123: Suma de A118 | C123: 93 | D123: 80 | E123: 111 | F123: 146 | G123: 113 | H123: 109 | I123: 129 | J123: 164 | K123: 92 | L123: 113 | M123: 113 | N123: 67 | O123: 1330 | P123: 284 | Q123: 368 | R123: 385 | S123: 293 | T123: 652 | U123: 678
A124: A119 | B124: Suma de A119 | C124: 37 | D124: 30 | E124: 53 | F124: 54 | G124: 33 | H124: 54 | I124: 37 | J124: 42 | K124: 27 | L124: 37 | M124: 45 | N124: 26 | O124: 475 | P124: 120 | Q124: 141 | R124: 106 | S124: 108 | T124: 261 | U124: 214
A125: A120 | B125: Suma de A120 | C125: 41 | D125: 33 | E125: 45 | F125: 65 | G125: 54 | H125: 55 | I125: 48 | J125: 50 | K125: 43 | L125: 51 | M125: 48 | N125: 37 | O125: 570 | P125: 119 | Q125: 174 | R125: 141 | S125: 136 | T125: 293 | U125: 277
A126: A121 | B126: Suma de A121 | C126: 40 | D126: 47 | E126: 66 | F126: 77 | G126: 61 | H126: 57 | I126: 57 | J126: 73 | K126: 47 | L126: 41 | M126: 35 | N126: 31 | O126: 632 | P126: 153 | Q126: 195 | R126: 177 | S126: 107 | T126: 348 | U126: 284
A127: A122 | B127: Suma de A122 | C127: 92 | D127: 95 | E127: 135 | F127: 134 | G127: 140 | H127: 155 | I127: 125 | J127: 152 | K127: 98 | L127: 83 | M127: 81 | N127: 91 | O127: 1381 | P127: 322 | Q127: 429 | R127: 375 | S127: 255 | T127: 751 | U127: 630
A128: A123 | B128: Suma de A123 | C128: 27 | D128: 34 | E128: 46 | F128: 41 | G128: 48 | H128: 54 | I128: 36 | J128: 67 | K128: 36 | L128: 29 | M128: 21 | N128: 21 | O128: 460 | P128: 107 | Q128: 143 | R128: 139 | S128: 71 | T128: 250 | U128: 210
A129: A124 | B129: Suma de A124 | C129: 47 | D129: 62 | E129: 87 | F129: 70 | G129: 68 | H129: 77 | I129: 63 | J129: 100 | K129: 64 | L129: 56 | M129: 42 | N129: 25 | O129: 761 | P129: 196 | Q129: 215 | R129: 227 | S129: 123 | T129: 411 | U129: 350
A130: A125 | B130: Suma de A125 | C130: 9 | D130: 11 | E130: 11 | F130: 14 | G130: 15 | H130: 18 | I130: 14 | J130: 22 | K130: 8 | L130: 10 | M130: 8 | N130: 5 | O130: 145 | P130: 31 | Q130: 47 | R130: 44 | S130: 23 | T130: 78 | U130: 67
A131: A126 | B131: Suma de A126 | C131: 5 | D131: 13 | E131: 19 | F131: 19 | G131: 16 | H131: 19 | I131: 8 | J131: 28 | K131: 16 | L131: 13 | M131: 9 | N131: 6 | O131: 171 | P131: 37 | Q131: 54 | R131: 52 | S131: 28 | T131: 91 | U131: 80
A132: A127 | B132: Suma de A127 | C132: 80 | D132: 83 | E132: 76 | F132: 95 | G132: 86 | H132: 87 | I132: 82 | J132: 98 | K132: 86 | L132: 64 | M132: 52 | N132: 31 | O132: 920 | P132: 239 | Q132: 268 | R132: 266 | S132: 147 | T132: 507 | U132: 413
A133: A128 | B133: Suma de A128 | C133: 200 | D133: 208 | E133: 228 | F133: 282 | G133: 219 | H133: 279 | I133: 238 | J133: 237 | K133: 204 | L133: 145 | M133: 178 | N133: 116 | O133: 2534 | P133: 636 | Q133: 780 | R133: 679 | S133: 439 | T133: 1416 | U133: 1118
A134: =MID(B134,9,15) -> A129 | B134: Suma de A129 | C134: 50 | D134: 39 | E134: 49 | F134: 54 | G134: 37 | H134: 63 | I134: 52 | J134: 50 | K134: 36 | L134: 29 | M134: 35 | N134: 25 | O134: =SUM(C134:N134) -> 519 | P134: =SUM(C134:E134) -> 138 | Q134: =SUM(F134:H134) -> 154 | R134: =SUM(I134:K134) -> 138 | S134: =SUM(L134:N134) -> 89 | T134: =SUM(C134:H134) -> 292 | U134: =SUM(I134:N134) -> 227
A135: A130 | B135: Suma de A130 | C135: 94 | D135: 98 | E135: 93 | F135: 120 | G135: 106 | H135: 124 | I135: 88 | J135: 110 | K135: 103 | L135: 72 | M135: 80 | N135: 42 | O135: 1130 | P135: 285 | Q135: 350 | R135: 301 | S135: 194 | T135: 635 | U135: 495 | X135: =MID(Y135,9,15) -> 
A136: A131 | B136: Suma de A131 | C136: 15 | D136: 11 | E136: 20 | F136: 21 | G136: 13 | H136: 23 | I136: 9 | J136: 15 | K136: 10 | L136: 11 | M136: 3 | N136: 4 | O136: 155 | P136: 46 | Q136: 57 | R136: 34 | S136: 18 | T136: 103 | U136: 52
A137: A132 | B137: Suma de A132 | C137: 19 | D137: 14 | E137: 23 | F137: 25 | G137: 21 | H137: 23 | I137: 28 | J137: 26 | K137: 16 | L137: 16 | M137: 12 | N137: 15 | O137: 238 | P137: 56 | Q137: 69 | R137: 70 | S137: 43 | T137: 125 | U137: 113
A138: A133 | B138: Suma de A133 | C138: 3 | D138: 1 | E138: 8 | F138: 11 | G138: 17 | H138: 13 | I138: 15 | J138: 17 | K138: 11 | L138: 10 | M138: 4 | N138: 2 | O138: 112 | P138: 12 | Q138: 41 | R138: 43 | S138: 16 | T138: 53 | U138: 59
A139: A134 | B139: Suma de A134 | C139: 9 | D139: 5 | E139: 11 | F139: 23 | G139: 28 | H139: 26 | I139: 18 | J139: 31 | K139: 26 | L139: 16 | M139: 14 | N139: 10 | O139: 217 | P139: 25 | Q139: 77 | R139: 75 | S139: 40 | T139: 102 | U139: 115
A140: A135 | B140: Suma de A135 | C140: 1 | D140: 3 | E140: 5 | F140: 13 | G140: 10 | H140: 15 | I140: 12 | J140: 13 | K140: 6 | L140: 6 | M140: 7 | N140: 5 | O140: 96 | P140: 9 | Q140: 38 | R140: 31 | S140: 18 | T140: 47 | U140: 49
A141: A136 | B141: Suma de A136 | C141: 6 | D141: 6 | E141: 10 | F141: 21 | G141: 24 | H141: 23 | I141: 19 | J141: 21 | K141: 16 | L141: 13 | M141: 12 | N141: 4 | O141: 175 | P141: 22 | Q141: 68 | R141: 56 | S141: 29 | T141: 90 | U141: 85
A142: A137 | B142: Suma de A137 | C142: 4 | D142: 5 | E142: 6 | F142: 13 | G142: 5 | H142: 16 | I142: 7 | J142: 9 | K142: 6 | L142: 8 | M142: 2 | N142: 5 | O142: 86 | P142: 15 | Q142: 34 | R142: 22 | S142: 15 | T142: 49 | U142: 37
A143: A138 | B143: Suma de A138 | C143: 7 | D143: 0 | E143: 3 | F143: 10 | G143: 13 | H143: 11 | I143: 8 | J143: 7 | K143: 9 | L143: 16 | M143: 3 | N143: 7 | O143: 94 | P143: 10 | Q143: 34 | R143: 24 | S143: 26 | T143: 44 | U143: 50
A144: A139 | B144: Suma de A139 | C144: 2 | D144: 3 | E144: 10 | F144: 23 | G144: 14 | H144: 9 | I144: 9 | J144: 9 | K144: 12 | L144: 10 | M144: 5 | N144: 1 | O144: 107 | P144: 15 | Q144: 46 | R144: 30 | S144: 16 | T144: 61 | U144: 46
A145: A140 | B145: Suma de A140 | C145: 13 | D145: 11 | E145: 20 | F145: 24 | G145: 14 | H145: 19 | I145: 13 | J145: 13 | K145: 21 | L145: 8 | M145: 10 | N145: 8 | O145: 174 | P145: 44 | Q145: 57 | R145: 47 | S145: 26 | T145: 101 | U145: 73
A146: A141 | B146: Suma de A141 | C146: 6 | D146: 2 | E146: 1 | F146: 22 | G146: 12 | H146: 9 | I146: 7 | J146: 5 | K146: 4 | L146: 5 | M146: 2 | N146: 4 | O146: 79 | P146: 9 | Q146: 43 | R146: 16 | S146: 11 | T146: 52 | U146: 27
A147: A142 | B147: Suma de A142 | C147: 4 | D147: 8 | E147: 9 | F147: 18 | G147: 17 | H147: 15 | I147: 14 | J147: 12 | K147: 7 | L147: 19 | M147: 10 | N147: 10 | O147: 143 | P147: 21 | Q147: 50 | R147: 33 | S147: 39 | T147: 71 | U147: 72
A148: A143 | B148: Suma de A143 | C148: 0 | D148: 1 | E148: 3 | F148: 9 | G148: 4 | H148: 4 | I148: 3 | J148: 1 | K148: 4 | L148: 3 | M148: 4 | N148: 1 | O148: 37 | P148: 4 | Q148: 17 | R148: 8 | S148: 8 | T148: 21 | U148: 16
A149: A144 | B149: Suma de A144 | C149: 5 | D149: 0 | E149: 3 | F149: 11 | G149: 3 | H149: 6 | I149: 2 | J149: 5 | K149: 4 | L149: 0 | M149: 3 | N149: 1 | O149: 43 | P149: 8 | Q149: 20 | R149: 11 | S149: 4 | T149: 28 | U149: 15
A150: A145 | B150: Suma de A145 | C150: 5 | D150: 10 | E150: 8 | F150: 37 | G150: 26 | H150: 26 | I150: 28 | J150: 15 | K150: 27 | L150: 22 | M150: 14 | N150: 8 | O150: 226 | P150: 23 | Q150: 89 | R150: 70 | S150: 44 | T150: 112 | U150: 114
A151: A146 | B151: Suma de A146 | C151: 23 | D151: 15 | E151: 32 | F151: 93 | G151: 69 | H151: 77 | I151: 84 | J151: 52 | K151: 87 | L151: 65 | M151: 60 | N151: 32 | O151: 689 | P151: 70 | Q151: 239 | R151: 223 | S151: 157 | T151: 309 | U151: 380
A152: A147 | B152: Suma de A147 | C152: 7 | D152: 12 | E152: 4 | F152: 26 | G152: 19 | H152: 14 | I152: 14 | J152: 10 | K152: 12 | L152: 12 | M152: 14 | N152: 3 | O152: 147 | P152: 23 | Q152: 59 | R152: 36 | S152: 29 | T152: 82 | U152: 65
A153: A148 | B153: Suma de A148 | C153: 12 | D153: 10 | E153: 16 | F153: 59 | G153: 38 | H153: 46 | I153: 53 | J153: 28 | K153: 51 | L153: 32 | M153: 50 | N153: 19 | O153: 414 | P153: 38 | Q153: 143 | R153: 132 | S153: 101 | T153: 181 | U153: 233
A154: A149 | B154: Suma de A149 | C154: 2 | D154: 1 | E154: 0 | F154: 14 | G154: 2 | H154: 9 | I154: 11 | J154: 1 | K154: 5 | L154: 5 | M154: 4 | N154: 3 | O154: 57 | P154: 3 | Q154: 25 | R154: 17 | S154: 12 | T154: 28 | U154: 29
A155: A150 | B155: Suma de A150 | C155: 3 | D155: 4 | E155: 3 | F155: 31 | G155: 22 | H155: 21 | I155: 27 | J155: 12 | K155: 25 | L155: 22 | M155: 18 | N155: 8 | O155: 196 | P155: 10 | Q155: 74 | R155: 64 | S155: 48 | T155: 84 | U155: 112
A156: A151 | B156: Suma de A151 | C156: 0 | D156: 0 | E156: 0 | F156: 0 | G156: 0 | H156: 0 | I156: 0 | J156: 0 | K156: 0 | L156: 0 | M156: 0 | N156: 0 | O156: 0 | P156: 0 | Q156: 0 | R156: 0 | S156: 0 | T156: 0 | U156: 0
A157: A152 | B157: Suma de A152 | C157: 0 | D157: 0 | E157: 0 | F157: 0 | G157: 0 | H157: 0 | I157: 0 | J157: 0 | K157: 0 | L157: 2 | M157: 1 | N157: 0 | O157: 3 | P157: 0 | Q157: 0 | R157: 0 | S157: 3 | T157: 0 | U157: 3
A158: A153 | B158: Suma de A153 | C158: 0 | D158: 0 | E158: 0 | F158: 0 | G158: 0 | H158: 0 | I158: 0 | J158: 0 | K158: 1 | L158: 0 | M158: 0 | N158: 0 | O158: 1 | P158: 0 | Q158: 0 | R158: 1 | S158: 0 | T158: 0 | U158: 1
A159: A154 | B159: Suma de A154 | C159: 0 | D159: 0 | E159: 0 | F159: 0 | G159: 0 | H159: 0 | I159: 0 | J159: 0 | K159: 0 | L159: 1 | M159: 1 | N159: 0 | O159: 2 | P159: 0 | Q159: 0 | R159: 0 | S159: 2 | T159: 0 | U159: 2
A160: A155 | B160: Suma de A155 | C160: 0 | D160: 0 | E160: 0 | F160: 0 | G160: 0 | H160: 0 | I160: 0 | J160: 0 | K160: 0 | L160: 0 | M160: 0 | N160: 0 | O160: 0 | P160: 0 | Q160: 0 | R160: 0 | S160: 0 | T160: 0 | U160: 0
A161: A156 | B161: Suma de A156 | C161: 0 | D161: 0 | E161: 0 | F161: 0 | G161: 0 | H161: 0 | I161: 0 | J161: 0 | K161: 0 | L161: 1 | M161: 0 | N161: 0 | O161: 1 | P161: 0 | Q161: 0 | R161: 0 | S161: 1 | T161: 0 | U161: 1
A162: A157 | B162: Suma de A157 | C162: 0 | D162: 0 | E162: 0 | F162: 0 | G162: 0 | H162: 0 | I162: 0 | J162: 0 | K162: 0 | L162: 0 | M162: 0 | N162: 0 | O162: 0 | P162: 0 | Q162: 0 | R162: 0 | S162: 0 | T162: 0 | U162: 0
A163: A158 | B163: Suma de A158 | C163: 0 | D163: 0 | E163: 0 | F163: 0 | G163: 0 | H163: 0 | I163: 0 | J163: 0 | K163: 0 | L163: 0 | M163: 0 | N163: 0 | O163: 0 | P163: 0 | Q163: 0 | R163: 0 | S163: 0 | T163: 0 | U163: 0
A164: A159 | B164: Suma de A159 | C164: 0 | D164: 0 | E164: 0 | F164: 0 | G164: 0 | H164: 0 | I164: 0 | J164: 0 | K164: 0 | L164: 0 | M164: 0 | N164: 0 | O164: 0 | P164: 0 | Q164: 0 | R164: 0 | S164: 0 | T164: 0 | U164: 0
A165: A160 | B165: Suma de A160 | C165: 0 | D165: 0 | E165: 0 | F165: 0 | G165: 0 | H165: 0 | I165: 0 | J165: 0 | K165: 0 | L165: 0 | M165: 0 | N165: 0 | O165: 0 | P165: 0 | Q165: 0 | R165: 0 | S165: 0 | T165: 0 | U165: 0
A166: =MID(B166,9,15) -> A161 | B166: Suma de A161 | C166: 0 | D166: 0 | E166: 0 | F166: 0 | G166: 0 | H166: 0 | I166: 0 | J166: 0 | K166: 0 | L166: 0 | M166: 0 | N166: 0 | O166: =SUM(C166:N166) -> 0 | P166: =SUM(C166:E166) -> 0 | Q166: =SUM(F166:H166) -> 0 | R166: =SUM(I166:K166) -> 0 | S166: =SUM(L166:N166) -> 0 | T166: =SUM(C166:H166) -> 0 | U166: =SUM(I166:N166) -> 0
A167: A162 | B167: Suma de A162 | C167: 0 | D167: 0 | E167: 0 | F167: 0 | G167: 0 | H167: 0 | I167: 0 | J167: 0 | K167: 0 | L167: 0 | M167: 0 | N167: 0 | O167: 0 | P167: 0 | Q167: 0 | R167: 0 | S167: 0 | T167: 0 | U167: 0
A168: A163 | B168: Suma de A163 | C168: 0 | D168: 0 | E168: 0 | F168: 0 | G168: 0 | H168: 0 | I168: 0 | J168: 0 | K168: 0 | L168: 2 | M168: 0 | N168: 0 | O168: 2 | P168: 0 | Q168: 0 | R168: 0 | S168: 2 | T168: 0 | U168: 2
A169: A164 | B169: Suma de A164 | C169: 0 | D169: 0 | E169: 0 | F169: 0 | G169: 0 | H169: 0 | I169: 0 | J169: 0 | K169: 0 | L169: 0 | M169: 0 | N169: 0 | O169: 0 | P169: 0 | Q169: 0 | R169: 0 | S169: 0 | T169: 0 | U169: 0
A170: A165 | B170: Suma de A165 | C170: 0 | D170: 0 | E170: 0 | F170: 0 | G170: 0 | H170: 0 | I170: 0 | J170: 0 | K170: 0 | L170: 0 | M170: 0 | N170: 0 | O170: 0 | P170: 0 | Q170: 0 | R170: 0 | S170: 0 | T170: 0 | U170: 0
A171: A166 | B171: Suma de A166 | C171: 0 | D171: 0 | E171: 0 | F171: 0 | G171: 0 | H171: 0 | I171: 0 | J171: 0 | K171: 0 | L171: 0 | M171: 0 | N171: 0 | O171: 0 | P171: 0 | Q171: 0 | R171: 0 | S171: 0 | T171: 0 | U171: 0
A172: A167 | B172: Suma de A167 | C172: 0 | D172: 0 | E172: 0 | F172: 0 | G172: 0 | H172: 0 | I172: 0 | J172: 0 | K172: 0 | L172: 0 | M172: 0 | N172: 0 | O172: 0 | P172: 0 | Q172: 0 | R172: 0 | S172: 0 | T172: 0 | U172: 0
A173: A168 | B173: Suma de A168 | C173: 0 | D173: 0 | E173: 0 | F173: 0 | G173: 0 | H173: 0 | I173: 0 | J173: 0 | K173: 0 | L173: 1 | M173: 0 | N173: 0 | O173: 1 | P173: 0 | Q173: 0 | R173: 0 | S173: 1 | T173: 0 | U173: 1
A174: A169 | B174: Suma de A169 | C174: 17 | D174: 13 | E174: 18 | F174: 22 | G174: 18 | H174: 10 | I174: 19 | J174: 27 | K174: 31 | L174: 29 | M174: 19 | N174: 18 | O174: 241 | P174: 48 | Q174: 50 | R174: 77 | S174: 66 | T174: 98 | U174: 143
A175: A170 | B175: Suma de A170 | C175: 32 | D175: 37 | E175: 57 | F175: 43 | G175: 33 | H175: 48 | I175: 52 | J175: 65 | K175: 100 | L175: 69 | M175: 66 | N175: 40 | O175: 642 | P175: 126 | Q175: 124 | R175: 217 | S175: 175 | T175: 250 | U175: 392
A176: A171 | B176: Suma de A171 | C176: 17 | D176: 16 | E176: 9 | F176: 12 | G176: 11 | H176: 10 | I176: 14 | J176: 26 | K176: 12 | L176: 19 | M176: 22 | N176: 23 | O176: 191 | P176: 42 | Q176: 33 | R176: 52 | S176: 64 | T176: 75 | U176: 116
A177: A172 | B177: Suma de A172 | C177: 33 | D177: 25 | E177: 21 | F177: 15 | G177: 24 | H177: 26 | I177: 30 | J177: 42 | K177: 55 | L177: 51 | M177: 39 | N177: 28 | O177: 389 | P177: 79 | Q177: 65 | R177: 127 | S177: 118 | T177: 144 | U177: 245
A178: A173 | B178: Suma de A173 | C178: 12 | D178: 2 | E178: 4 | F178: 5 | G178: 4 | H178: 8 | I178: 5 | J178: 10 | K178: 7 | L178: 12 | M178: 13 | N178: 13 | O178: 95 | P178: 18 | Q178: 17 | R178: 22 | S178: 38 | T178: 35 | U178: 60
A179: A174 | B179: Suma de A174 | C179: 14 | D179: 8 | E179: 9 | F179: 12 | G179: 7 | H179: 9 | I179: 14 | J179: 15 | K179: 15 | L179: 24 | M179: 6 | N179: 21 | O179: 154 | P179: 31 | Q179: 28 | R179: 44 | S179: 51 | T179: 59 | U179: 95
A180: A175 | B180: Suma de A175 | C180: 0 | D180: 0 | E180: 0 | F180: 0 | G180: 4 | H180: 2 | I180: 3 | J180: 1 | K180: 3 | L180: 2 | M180: 1 | N180: 2 | O180: 18 | P180: 0 | Q180: 6 | R180: 7 | S180: 5 | T180: 6 | U180: 12
A181: A176 | B181: Suma de A176 | C181: 5 | D181: 0 | E181: 0 | F181: 3 | G181: 10 | H181: 1 | I181: 5 | J181: 8 | K181: 1 | L181: 6 | M181: 3 | N181: 11 | O181: 53 | P181: 5 | Q181: 14 | R181: 14 | S181: 20 | T181: 19 | U181: 34
A182: A177 | B182: Suma de A177 | C182: 0 | D182: 0 | E182: 0 | F182: 1 | G182: 4 | H182: 0 | I182: 2 | J182: 3 | K182: 1 | L182: 2 | M182: 1 | N182: 3 | O182: 17 | P182: 0 | Q182: 5 | R182: 6 | S182: 6 | T182: 5 | U182: 12
A183: A178 | B183: Suma de A178 | C183: 0 | D183: 0 | E183: 0 | F183: 9 | G183: 6 | H183: 1 | I183: 6 | J183: 4 | K183: 1 | L183: 7 | M183: 1 | N183: 1 | O183: 36 | P183: 0 | Q183: 16 | R183: 11 | S183: 9 | T183: 16 | U183: 20
A184: A179 | B184: Suma de A179 | C184: 0 | D184: 0 | E184: 0 | F184: 3 | G184: 4 | H184: 0 | I184: 0 | J184: 2 | K184: 0 | L184: 2 | M184: 0 | N184: 1 | O184: 12 | P184: 0 | Q184: 7 | R184: 2 | S184: 3 | T184: 7 | U184: 5
A185: A180 | B185: Suma de A180 | C185: 0 | D185: 0 | E185: 0 | F185: 3 | G185: 5 | H185: 0 | I185: 3 | J185: 2 | K185: 2 | L185: 1 | M185: 0 | N185: 2 | O185: 18 | P185: 0 | Q185: 8 | R185: 7 | S185: 3 | T185: 8 | U185: 10
A186: A181 | B186: Suma de A181 | C186: 0 | D186: 0 | E186: 0 | F186: 0 | G186: 0 | H186: 0 | I186: 1 | J186: 2 | K186: 0 | L186: 2 | M186: 0 | N186: 5 | O186: 10 | P186: 0 | Q186: 0 | R186: 3 | S186: 7 | T186: 0 | U186: 10
A187: A182 | B187: Suma de A182 | C187: 0 | D187: 2 | E187: 0 | F187: 1 | G187: 0 | H187: 3 | I187: 1 | J187: 2 | K187: 4 | L187: 3 | M187: 2 | N187: 3 | O187: 21 | P187: 2 | Q187: 4 | R187: 7 | S187: 8 | T187: 6 | U187: 15
A188: A183 | B188: Suma de A183 | C188: 0 | D188: 0 | E188: 0 | F188: 0 | G188: 0 | H188: 0 | I188: 0 | J188: 3 | K188: 1 | L188: 2 | M188: 1 | N188: 3 | O188: 10 | P188: 0 | Q188: 0 | R188: 4 | S188: 6 | T188: 0 | U188: 10
A189: A184 | B189: Suma de A184 | C189: 0 | D189: 0 | E189: 0 | F189: 0 | G189: 0 | H189: 2 | I189: 3 | J189: 7 | K189: 1 | L189: 1 | M189: 1 | N189: 3 | O189: 18 | P189: 0 | Q189: 2 | R189: 11 | S189: 5 | T189: 2 | U189: 16
A190: A185 | B190: Suma de A185 | C190: 0 | D190: 0 | E190: 0 | F190: 0 | G190: 0 | H190: 2 | I190: 1 | J190: 2 | K190: 0 | L190: 0 | M190: 1 | N190: 1 | O190: 7 | P190: 0 | Q190: 2 | R190: 3 | S190: 2 | T190: 2 | U190: 5
A191: A186 | B191: Suma de A186 | C191: 0 | D191: 0 | E191: 0 | F191: 0 | G191: 0 | H191: 3 | I191: 0 | J191: 5 | K191: 0 | L191: 1 | M191: 1 | N191: 2 | O191: 12 | P191: 0 | Q191: 3 | R191: 5 | S191: 4 | T191: 3 | U191: 9
A192: A187 | B192: Suma de A187 | C192: 0 | D192: 0 | E192: 0 | F192: 0 | G192: 0 | H192: 0 | I192: 0 | J192: 0 | K192: 0 | L192: 0 | M192: 0 | N192: 0 | O192: 0 | P192: 0 | Q192: 0 | R192: 0 | S192: 0 | T192: 0 | U192: 0
A193: A188 | B193: Suma de A188 | C193: 0 | D193: 0 | E193: 0 | F193: 0 | G193: 0 | H193: 0 | I193: 0 | J193: 0 | K193: 0 | L193: 0 | M193: 0 | N193: 0 | O193: 0 | P193: 0 | Q193: 0 | R193: 0 | S193: 0 | T193: 0 | U193: 0
A194: A189 | B194: Suma de A189 | C194: 0 | D194: 0 | E194: 0 | F194: 0 | G194: 0 | H194: 0 | I194: 0 | J194: 0 | K194: 0 | L194: 0 | M194: 0 | N194: 0 | O194: 0 | P194: 0 | Q194: 0 | R194: 0 | S194: 0 | T194: 0 | U194: 0
A195: A190 | B195: Suma de A190 | C195: 0 | D195: 0 | E195: 0 | F195: 0 | G195: 0 | H195: 0 | I195: 0 | J195: 0 | K195: 0 | L195: 0 | M195: 0 | N195: 0 | O195: 0 | P195: 0 | Q195: 0 | R195: 0 | S195: 0 | T195: 0 | U195: 0
A196: A191 | B196: Suma de A191 | C196: 0 | D196: 0 | E196: 0 | F196: 0 | G196: 0 | H196: 0 | I196: 0 | J196: 0 | K196: 0 | L196: 0 | M196: 0 | N196: 0 | O196: 0 | P196: 0 | Q196: 0 | R196: 0 | S196: 0 | T196: 0 | U196: 0
A197: A192 | B197: Suma de A192 | C197: 0 | D197: 0 | E197: 0 | F197: 0 | G197: 0 | H197: 0 | I197: 0 | J197: 0 | K197: 0 | L197: 0 | M197: 0 | N197: 0 | O197: 0 | P197: 0 | Q197: 0 | R197: 0 | S197: 0 | T197: 0 | U197: 0
A198: =MID(B198,9,15) -> A193 | B198: Suma de A193 | C198: 0 | D198: 0 | E198: 0 | F198: 0 | G198: 0 | H198: 0 | I198: 0 | J198: 0 | K198: 0 | L198: 0 | M198: 0 | N198: 0 | O198: =SUM(C198:N198) -> 0 | P198: =SUM(C198:E198) -> 0 | Q198: =SUM(F198:H198) -> 0 | R198: =SUM(I198:K198) -> 0 | S198: =SUM(L198:N198) -> 0 | T198: =SUM(C198:H198) -> 0 | U198: =SUM(I198:N198) -> 0
A199: A194 | B199: Suma de A194 | C199: 0 | D199: 0 | E199: 0 | F199: 0 | G199: 0 | H199: 0 | I199: 0 | J199: 0 | K199: 0 | L199: 0 | M199: 0 | N199: 0 | O199: 0 | P199: 0 | Q199: 0 | R199: 0 | S199: 0 | T199: 0 | U199: 0 | X199: =MID(Y199,9,15) -> 
A200: A195 | B200: Suma de A195 | C200: 0 | D200: 0 | E200: 0 | F200: 0 | G200: 0 | H200: 0 | I200: 0 | J200: 0 | K200: 0 | L200: 0 | M200: 0 | N200: 0 | O200: 0 | P200: 0 | Q200: 0 | R200: 0 | S200: 0 | T200: 0 | U200: 0
A201: A196 | B201: Suma de A196 | C201: 0 | D201: 0 | E201: 0 | F201: 0 | G201: 0 | H201: 0 | I201: 0 | J201: 0 | K201: 0 | L201: 0 | M201: 0 | N201: 0 | O201: 0 | P201: 0 | Q201: 0 | R201: 0 | S201: 0 | T201: 0 | U201: 0
... 145 more rows

Sheet XPRODUCTO
A13: Valoracion clinica femenino 60-69a. (saludable)
A15: Variable | B15: Total | C15: Ene | D15: Feb | E15: Mar | F15: Abr | G15: May | H15: Jun | I15: Jul | J15: Ago | K15: Sep | L15: Oct | M15: Nov | N15: Dic
A16: =VLOOKUP(A13,PANEL!O106:P303,2,0) -> A02 | B16: =SUM(C16:N16) -> 880 | C16: =VLOOKUP($A$16,Tabla!$X$6:$AK$503,Tabla!Z$3,0) -> 49 | D16: =VLOOKUP($A$16,Tabla!$X$6:$AK$203,Tabla!AA$3,0) -> 81 | E16: =VLOOKUP($A$16,Tabla!$X$6:$AK$203,Tabla!AB$3,0) -> 60 | F16: =VLOOKUP($A$16,Tabla!$X$6:$AK$203,Tabla!AC$3,0) -> 101 | G16: =VLOOKUP($A$16,Tabla!$X$6:$AK$203,Tabla!AD$3,0) -> 115 | H16: =VLOOKUP($A$16,Tabla!$X$6:$AK$203,Tabla!AE$3,0) -> 128 | I16: =VLOOKUP($A$16,Tabla!$X$6:$AK$203,Tabla!AF$3,0) -> 129 | J16: =VLOOKUP($A$16,Tabla!$X$6:$AK$203,Tabla!AG$3,0) -> 109 | K16: =VLOOKUP($A$16,Tabla!$X$6:$AK$203,Tabla!AH$3,0) -> 67 | L16: =VLOOKUP($A$16,Tabla!$X$6:$AK$203,Tabla!AI$3,0) -> 41 | M16: =VLOOKUP($A$16,Tabla!$X$6:$AK$203,Tabla!AJ$3,0) -> 0 | N16: =VLOOKUP($A$16,Tabla!$X$6:$AK$203,Tabla!AK$3,0) -> 0

Sheet DATA2024
A1: SUBREGION | B1: PROVINCIA | C1: UBIGUEO_ESTABLECIMIENTO | D1: IPRESS | E1: CATEGORIA | F1: DISTRITO | G1: CLAS | H1: MICRORED | I1: RED | J1: EJECUTORA | K1: RENAES | L1: Mes | M1: A01 | N1: A02 | O1: A03 | P1: A04 | Q1: A05 | R1: A06 | S1: A07 | T1: A08 | U1: A09 | V1: A10 | W1: A11 | X1: A12 | Y1: A13 | Z1: A14 | AA1: A15 | AB1: A16 | AC1: A17 | AD1: A18 | AE1: A19 | AF1: A20 | AG1: A21 | AH1: A22 | AI1: A23 | AJ1: A24 | AK1: A25 | AL1: A26 | AM1: A27 | AN1: A28 | AO1: A29 | AP1: A30 | AQ1: A31 | AR1: A32 | AS1: A33 | AT1: A34 | AU1: A35 | AV1: A36 | AW1: A37 | AX1: A38 | AY1: A39 | AZ1: A40 | BA1: A41 | BB1: A42 | BC1: A43 | BD1: A44 | BE1: A45 | BF1: A46 | BG1: A47 | BH1: A48 | BI1: A49 | BJ1: A50 | BK1: A51 | BL1: A52 | BM1: A53 | BN1: A54 | BO1: A55 | BP1: A56 | BQ1: A57 | BR1: A58 | BS1: A59 | BT1: A60 | BU1: A61 | BV1: A62 | BW1: A63 | BX1: A64 | BY1: A65 | BZ1: A66 | CA1: A67 | CB1: A68 | CC1: A69 | CD1: A70 | CE1: A71 | CF1: A72 | CG1: A73 | CH1: A74 | CI1: A75 | CJ1: A76 | CK1: A77 | CL1: A78 | CM1: A79 | CN1: A80 | CO1: A81 | CP1: A82 | CQ1: A83 | CR1: A84 | CS1: A85 | CT1: A86 | CU1: A87 | CV1: A88 | CW1: A89 | CX1: A90 | CY1: A91 | CZ1: A92 | DA1: A93 | DB1: A94 | DC1: A95 | DD1: A96 | DE1: A97 | DF1: A98 | DG1: A99 | DH1: A100 | DI1: A101 | DJ1: A102 | DK1: A103 | DL1: A104 | DM1: A105 | DN1: A106 | DO1: A107 | DP1: A108 | DQ1: A109 | DR1: A110 | DS1: A111 | DT1: A112 | DU1: A113 | DV1: A114 | DW1: A115 | DX1: A116 | DY1: A117 | DZ1: A118 | EA1: A119 | EB1: A120 | EC1: A121 | ED1: A122 | EE1: A123 | EF1: A124 | EG1: A125 | EH1: A126 | EI1: A127 | EJ1: A128 | EK1: A129 | EL1: A130 | EM1: A131 | EN1: A132 | EO1: A133 | EP1: A134 | EQ1: A135 | ER1: A136 | ES1: A137 | ET1: A138 | EU1: A139 | EV1: A140 | EW1: A141 | EX1: A142 | EY1: A143 | EZ1: A144 | FA1: A145 | FB1: A146 | FC1: A147 | FD1: A148 | FE1: A149 | FF1: A150 | FG1: A151 | FH1: A152 | FI1: A153 | FJ1: A154 | FK1: A155 | FL1: A156 | FM1: A157 | FN1: A158 | FO1: A159 | FP1: A160 | FQ1: A161 | FR1: A162 | FS1: A163 | FT1: A164 | FU1: A165 | FV1: A166 | FW1: A167 | FX1: A168 | FY1: A169 | FZ1: A170 | GA1: A171 | GB1: A172 | GC1: A173 | GD1: A174 | GE1: A175 | GF1: A176 | GG1: A177 | GH1: A178 | GI1: A179 | GJ1: A180 | GK1: A181 | GL1: A182 | GM1: A183 | GN1: A184 | GO1: A185 | GP1: A186 | GQ1: A187 | GR1: A188 | GS1: A189 | GT1: A190 | GU1: A191 | GV1: A192 | GW1: A193 | GX1: A194 | GY1: A195 | GZ1: A196 | HA1: A197 | HB1: A198 | HC1: A199 | HD1: A200 | HE1: A201 | HF1: A202 | HG1: A203 | HH1: A204 | HI1: A205 | HJ1: A206 | HK1: A207 | HL1: A208 | HM1: A209 | HN1: A210 | HO1: A211 | HP1: A212 | HQ1: A213 | HR1: A214 | HS1: A215 | HT1: A216 | HU1: A217 | HV1: A218 | HW1: A219 | HX1: A220 | HY1: A221 | HZ1: A222 | IA1: A223 | IB1: A224 | IC1: A225 | ID1: A226 | IE1: A227 | IF1: A228 | IG1: A229 | IH1: A230 | II1: A231 | IJ1: A232 | IK1: A233 | IL1: A234 | IM1: A235 | IN1: A236 | IO1: A237 | IP1: A238 | IQ1: A239 | IR1: A240 | IS1: A241 | IT1: A242 | IU1: A243 | IV1: A244 | IW1: A245 | IX1: A246 | IY1: A247 | IZ1: A248 | JA1: A249 | JB1: A250 | JC1: A251 | JD1: A252 | JE1: A253 | JF1: A254 | JG1: A255 | JH1: A256 | JI1: A257 | JJ1: A258 | JK1: A259 | JL1: A260 | JM1: A261 | JN1: A262 | JO1: A263 | JP1: A264 | JQ1: A265 | JR1: A266 | JS1: A267 | JT1: A268 | JU1: A269 | JV1: A270 | JW1: A271 | JX1: A272 | JY1: A273 | JZ1: A274 | KA1: A275 | KB1: A276 | KC1: A277 | KD1: A278 | KE1: A279 | KF1: A280 | KG1: A281 | KH1: A282 | KI1: A283 | KJ1: A284 | KK1: A285 | KL1: A286 | KM1: A287 | KN1: A288 | KO1: A289 | KP1: A290 | KQ1: A291 | KR1: A292 | KS1: A293 | KT1: A294 | KU1: A295 | KV1: A296 | KW1: A297 | KX1: A298 | KY1: A299 | KZ1: A300 | LA1: A301 | LB1: A302 | LC1: A303 | LD1: A304 | LE1: A305 | LF1: A306 | LG1: A307 | LH1: A308 | LI1: A309 | LJ1: A310 | LK1: A311 | LL1: A312 | LM1: A313 | LN1: A314 | LO1: A315 | LP1: A316 | LQ1: A317 | LR1: A318
A2: LUCIANO CASTILLO COLONNA | B2: SULLANA | C2: 200601 | D2: HOSPITAL DE APOYO II - 2, SULLANA | E2: II-2 | F2: SULLANA | G2: NINGUN CLAS | H2: NO PERTENECE A NINGUNA MICRORED | I2: NO PERTENECE A NINGUNA RED | J2: HOSPITAL DE APOYO III SULLANA | K2: 1910 | L2: 12 | M2: 0 | N2: 0 | O2: 0 | P2: 0 | Q2: 0 | R2: 0 | S2: 0 | T2: 0 | U2: 0 | V2: 0 | W2: 0 | X2: 0 | Y2: 0 | Z2: 0 | AA2: 0 | AB2: 0 | AC2: 0 | AD2: 0 | AE2: 0 | AF2: 0 | AG2: 0 | AH2: 0 | AI2: 0 | AJ2: 0 | AK2: 0 | AL2: 0 | AM2: 0 | AN2: 0 | AO2: 0 | AP2: 0 | AQ2: 0 | AR2: 0 | AS2: 0 | AT2: 0 | AU2: 0 | AV2: 0 | AW2: 0 | AX2: 0 | AY2: 0 | AZ2: 0 | BA2: 0 | BB2: 0 | BC2: 0 | BD2: 0 | BE2: 0 | BF2: 1 | BG2: 0 | BH2: 0 | BI2: 0 | BJ2: 0 | BK2: 0 | BL2: 0 | BM2: 0 | BN2: 0 | BO2: 0 | BP2: 0 | BQ2: 0 | BR2: 0 | BS2: 0 | BT2: 0 | BU2: 0 | BV2: 0 | BW2: 0 | BX2: 0 | BY2: 0 | BZ2: 0 | CA2: 0 | CB2: 0 | CC2: 0 | CD2: 0 | CE2: 0 | CF2: 0 | CG2: 0 | CH2: 0 | CI2: 0 | CJ2: 1 | CK2: 0 | CL2: 0 | CM2: 0 | CN2: 0 | CO2: 0 | CP2: 0 | CQ2: 0 | CR2: 0 | CS2: 0 | CT2: 0 | CU2: 0 | CV2: 0 | CW2: 0 | CX2: 0 | CY2: 0 | CZ2: 0 | DA2: 0 | DB2: 0 | DC2: 0 | DD2: 0 | DE2: 0 | DF2: 0 | DG2: 0 | DH2: 0 | DI2: 0 | DJ2: 0 | DK2: 0 | DL2: 0 | DM2: 0 | DN2: 0 | DO2: 0 | DP2: 0 | DQ2: 0 | DR2: 0 | DS2: 0 | DT2: 0 | DU2: 0 | DV2: 0 | DW2: 3 | DX2: 6 | DY2: 3 | DZ2: 6 | EA2: 2 | EB2: 5 | EC2: 0 | ED2: 3 | EE2: 0 | EF2: 0 | EG2: 0 | EH2: 0 | EI2: 5 | EJ2: 10 | EK2: 1 | EL2: 8 | EM2: 0 | EN2: 2 | EO2: 0 | EP2: 0 | EQ2: 0 | ER2: 0 | ES2: 0 | ET2: 0 | EU2: 0 | EV2: 0 | EW2: 0 | EX2: 0 | EY2: 0 | EZ2: 0 | FA2: 0 | FB2: 0 | FC2: 0 | FD2: 0 | FE2: 0 | FF2: 0 | FG2: 0 | FH2: 0 | FI2: 0 | FJ2: 0 | FK2: 0 | FL2: 0 | FM2: 0 | FN2: 0 | FO2: 0 | FP2: 0 | FQ2: 0 | FR2: 0 | FS2: 0 | FT2: 0 | FU2: 0 | FV2: 0 | FW2: 0 | FX2: 0 | FY2: 8 | FZ2: 6 | GA2: 2 | GB2: 7 | GC2: 2 | GD2: 5 | GE2: 0 | GF2: 1 | GG2: 0 | GH2: 0 | GI2: 0 | GJ2: 0 | GK2: 0 | GL2: 0 | GM2: 0 | GN2: 1 | GO2: 0 | GP2: 0 | GQ2: 0 | GR2: 0 | GS2: 0 | GT2: 0 | GU2: 0 | GV2: 0 | GW2: 0 | GX2: 0 | GY2: 0 | GZ2: 0 | HA2: 0 | HB2: 0 | HC2: 0 | HD2: 0 | HE2: 0 | HF2: 0 | HG2: 0 | HH2: 0 | HI2: 0 | HJ2: 0 | HK2: 0 | HL2: 0 | HM2: 0 | HN2: 0 | HO2: 0 | HP2: 0 | HQ2: 0 | HR2: 0 | HS2: 0 | HT2: 0 | HU2: 0 | HV2: 0 | HW2: 0 | HX2: 0 | HY2: 0 | HZ2: 0 | IA2: 0 | IB2: 1 | IC2: 0 | ID2: 0 | IE2: 0 | IF2: 0 | IG2: 0 | IH2: 0 | II2: 0 | IJ2: 0 | IK2: 0 | IL2: 0 | IM2: 1 | IN2: 6 | IO2: 1 | IP2: 2 | IQ2: 1 | IR2: 1 | IS2: 0 | IT2: 0 | IU2: 0 | IV2: 0 | IW2: 0 | IX2: 0 | IY2: 0 | IZ2: 0 | JA2: 0 | JB2: 0 | JC2: 0 | JD2: 0 | JE2: 0 | JF2: 0 | JG2: 0 | JH2: 0 | JI2: 0 | JJ2: 0 | JK2: 0 | JL2: 0 | JM2: 0 | JN2: 0 | JO2: 0 | JP2: 0 | JQ2: 0 | JR2: 0 | JS2: 0 | JT2: 0 | JU2: 0 | JV2: 0 | JW2: 0 | JX2: 0 | JY2: 0 | JZ2: 0 | KA2: 0 | KB2: 0 | KC2: 0 | KD2: 0 | KE2: 0 | KF2: 0 | KG2: 0 | KH2: 0 | KI2: 0 | KJ2: 1 | KK2: 0 | KL2: 0 | KM2: 0 | KN2: 0 | KO2: 0 | KP2: 0 | KQ2: 0 | KR2: 0 | KS2: 0 | KT2: 0 | KU2: 0 | KV2: 0 | KW2: 0 | KX2: 0 | KY2: 0 | KZ2: 0 | LA2: 0 | LB2: 0 | LC2: 0 | LD2: 0 | LE2: 0 | LF2: 0 | LG2: 5 | LH2: 12 | LI2: 5 | LJ2: 9 | LK2: 4 | LL2: 6 | LM2: 0 | LN2: 0 | LO2: 0 | LP2: 0 | LQ2: 0 | LR2: 0
A3: LUCIANO CASTILLO COLONNA | B3: SULLANA | C3: 200601 | D3: HOSPITAL DE APOYO II - 2, SULLANA | E3: II-2 | F3: SULLANA | G3: NINGUN CLAS | H3: NO PERTENECE A NINGUNA MICRORED | I3: NO PERTENECE A NINGUNA RED | J3: HOSPITAL DE APOYO III SULLANA | K3: 1910 | L3: 11 | M3: 0 | N3: 0 | O3: 0 | P3: 0 | Q3: 0 | R3: 0 | S3: 0 | T3: 0 | U3: 0 | V3: 0 | W3: 0 | X3: 0 | Y3: 0 | Z3: 0 | AA3: 0 | AB3: 0 | AC3: 0 | AD3: 0 | AE3: 0 | AF3: 0 | AG3: 0 | AH3: 0 | AI3: 0 | AJ3: 0 | AK3: 0 | AL3: 0 | AM3: 0 | AN3: 0 | AO3: 0 | AP3: 0 | AQ3: 0 | AR3: 0 | AS3: 0 | AT3: 0 | AU3: 0 | AV3: 0 | AW3: 0 | AX3: 0 | AY3: 0 | AZ3: 0 | BA3: 0 | BB3: 0 | BC3: 0 | BD3: 0 | BE3: 0 | BF3: 0 | BG3: 0 | BH3: 0 | BI3: 0 | BJ3: 0 | BK3: 0 | BL3: 0 | BM3: 0 | BN3: 0 | BO3: 0 | BP3: 0 | BQ3: 0 | BR3: 0 | BS3: 0 | BT3: 0 | BU3: 0 | BV3: 0 | BW3: 0 | BX3: 0 | BY3: 0 | BZ3: 0 | CA3: 0 | CB3: 0 | CC3: 0 | CD3: 0 | CE3: 0 | CF3: 0 | CG3: 0 | CH3: 0 | CI3: 0 | CJ3: 0 | CK3: 0 | CL3: 0 | CM3: 0 | CN3: 0 | CO3: 0 | CP3: 0 | CQ3: 0 | CR3: 0 | CS3: 0 | CT3: 0 | CU3: 0 | CV3: 0 | CW3: 0 | CX3: 0 | CY3: 0 | CZ3: 0 | DA3: 0 | DB3: 0 | DC3: 0 | DD3: 0 | DE3: 0 | DF3: 0 | DG3: 0 | DH3: 0 | DI3: 0 | DJ3: 0 | DK3: 0 | DL3: 0 | DM3: 0 | DN3: 0 | DO3: 0 | DP3: 0 | DQ3: 0 | DR3: 0 | DS3: 0 | DT3: 0 | DU3: 0 | DV3: 0 | DW3: 7 | DX3: 5 | DY3: 4 | DZ3: 4 | EA3: 0 | EB3: 0 | EC3: 0 | ED3: 6 | EE3: 0 | EF3: 0 | EG3: 0 | EH3: 0 | EI3: 4 | EJ3: 24 | EK3: 2 | EL3: 12 | EM3: 0 | EN3: 3 | EO3: 0 | EP3: 0 | EQ3: 0 | ER3: 0 | ES3: 0 | ET3: 0 | EU3: 0 | EV3: 0 | EW3: 0 | EX3: 0 | EY3: 0 | EZ3: 0 | FA3: 0 | FB3: 0 | FC3: 0 | FD3: 0 | FE3: 0 | FF3: 0 | FG3: 0 | FH3: 0 | FI3: 0 | FJ3: 0 | FK3: 0 | FL3: 0 | FM3: 0 | FN3: 0 | FO3: 0 | FP3: 0 | FQ3: 0 | FR3: 0 | FS3: 0 | FT3: 0 | FU3: 0 | FV3: 0 | FW3: 0 | FX3: 0 | FY3: 2 | FZ3: 13 | GA3: 0 | GB3: 2 | GC3: 0 | GD3: 0 | GE3: 0 | GF3: 0 | GG3: 0 | GH3: 0 | GI3: 0 | GJ3: 0 | GK3: 0 | GL3: 0 | GM3: 0 | GN3: 0 | GO3: 0 | GP3: 0 | GQ3: 0 | GR3: 0 | GS3: 0 | GT3: 0 | GU3: 0 | GV3: 0 | GW3: 0 | GX3: 0 | GY3: 0 | GZ3: 0 | HA3: 0 | HB3: 0 | HC3: 0 | HD3: 0 | HE3: 0 | HF3: 0 | HG3: 0 | HH3: 0 | HI3: 0 | HJ3: 0 | HK3: 0 | HL3: 0 | HM3: 0 | HN3: 0 | HO3: 0 | HP3: 0 | HQ3: 0 | HR3: 0 | HS3: 0 | HT3: 0 | HU3: 0 | HV3: 0 | HW3: 0 | HX3: 0 | HY3: 0 | HZ3: 0 | IA3: 0 | IB3: 1 | IC3: 0 | ID3: 1 | IE3: 0 | IF3: 0 | IG3: 0 | IH3: 0 | II3: 0 | IJ3: 0 | IK3: 0 | IL3: 0 | IM3: 0 | IN3: 3 | IO3: 0 | IP3: 1 | IQ3: 0 | IR3: 1 | IS3: 0 | IT3: 0 | IU3: 0 | IV3: 0 | IW3: 0 | IX3: 0 | IY3: 0 | IZ3: 0 | JA3: 0 | JB3: 0 | JC3: 0 | JD3: 0 | JE3: 0 | JF3: 0 | JG3: 0 | JH3: 6 | JI3: 0 | JJ3: 0 | JK3: 6 | JL3: 0 | JM3: 0 | JN3: 0 | JO3: 0 | JP3: 0 | JQ3: 0 | JR3: 0 | JS3: 0 | JT3: 0 | JU3: 0 | JV3: 0 | JW3: 0 | JX3: 0 | JY3: 0 | JZ3: 0 | KA3: 0 | KB3: 0 | KC3: 0 | KD3: 0 | KE3: 0 | KF3: 0 | KG3: 0 | KH3: 0 | KI3: 0 | KJ3: 0 | KK3: 0 | KL3: 0 | KM3: 0 | KN3: 0 | KO3: 0 | KP3: 0 | KQ3: 0 | KR3: 0 | KS3: 0 | KT3: 0 | KU3: 0 | KV3: 0 | KW3: 0 | KX3: 0 | KY3: 0 | KZ3: 0 | LA3: 0 | LB3: 0 | LC3: 0 | LD3: 0 | LE3: 0 | LF3: 0 | LG3: 6 | LH3: 12 | LI3: 7 | LJ3: 9 | LK3: 1 | LL3: 3 | LM3: 0 | LN3: 0 | LO3: 0 | LP3: 0 | LQ3: 0 | LR3: 0
A4: LUCIANO CASTILLO COLONNA | B4: SULLANA | C4: 200601 | D4: HOSPITAL DE APOYO II - 2, SULLANA | E4: II-2 | F4: SULLANA | G4: NINGUN CLAS | H4: NO PERTENECE A NINGUNA MICRORED | I4: NO PERTENECE A NINGUNA RED | J4: HOSPITAL DE APOYO III SULLANA | K4: 1910 | L4: 10 | M4: 0 | N4: 0 | O4: 0 | P4: 0 | Q4: 0 | R4: 0 | S4: 0 | T4: 0 | U4: 0 | V4: 0 | W4: 0 | X4: 0 | Y4: 0 | Z4: 0 | AA4: 0 | AB4: 0 | AC4: 0 | AD4: 0 | AE4: 0 | AF4: 0 | AG4: 0 | AH4: 0 | AI4: 0 | AJ4: 0 | AK4: 0 | AL4: 0 | AM4: 0 | AN4: 0 | AO4: 0 | AP4: 0 | AQ4: 0 | AR4: 0 | AS4: 0 | AT4: 0 | AU4: 0 | AV4: 0 | AW4: 0 | AX4: 0 | AY4: 0 | AZ4: 0 | BA4: 0 | BB4: 0 | BC4: 0 | BD4: 0 | BE4: 0 | BF4: 0 | BG4: 0 | BH4: 0 | BI4: 0 | BJ4: 0 | BK4: 0 | BL4: 0 | BM4: 0 | BN4: 0 | BO4: 0 | BP4: 0 | BQ4: 0 | BR4: 0 | BS4: 0 | BT4: 0 | BU4: 0 | BV4: 0 | BW4: 0 | BX4: 0 | BY4: 0 | BZ4: 0 | CA4: 0 | CB4: 0 | CC4: 0 | CD4: 0 | CE4: 0 | CF4: 0 | CG4: 0 | CH4: 0 | CI4: 0 | CJ4: 0 | CK4: 0 | CL4: 0 | CM4: 0 | CN4: 0 | CO4: 0 | CP4: 0 | CQ4: 0 | CR4: 0 | CS4: 0 | CT4: 0 | CU4: 0 | CV4: 0 | CW4: 0 | CX4: 0 | CY4: 0 | CZ4: 0 | DA4: 0 | DB4: 0 | DC4: 0 | DD4: 0 | DE4: 0 | DF4: 0 | DG4: 0 | DH4: 0 | DI4: 0 | DJ4: 0 | DK4: 0 | DL4: 0 | DM4: 0 | DN4: 0 | DO4: 0 | DP4: 0 | DQ4: 0 | DR4: 0 | DS4: 0 | DT4: 0 | DU4: 0 | DV4: 0 | DW4: 3 | DX4: 3 | DY4: 4 | DZ4: 0 | EA4: 0 | EB4: 0 | EC4: 0 | ED4: 1 | EE4: 0 | EF4: 0 | EG4: 0 | EH4: 0 | EI4: 14 | EJ4: 28 | EK4: 6 | EL4: 20 | EM4: 4 | EN4: 2 | EO4: 0 | EP4: 0 | EQ4: 0 | ER4: 0 | ES4: 0 | ET4: 0 | EU4: 0 | EV4: 0 | EW4: 0 | EX4: 0 | EY4: 0 | EZ4: 0 | FA4: 0 | FB4: 0 | FC4: 0 | FD4: 0 | FE4: 0 | FF4: 0 | FG4: 0 | FH4: 0 | FI4: 0 | FJ4: 0 | FK4: 0 | FL4: 0 | FM4: 0 | FN4: 0 | FO4: 0 | FP4: 0 | FQ4: 0 | FR4: 0 | FS4: 0 | FT4: 0 | FU4: 0 | FV4: 0 | FW4: 0 | FX4: 0 | FY4: 2 | FZ4: 7 | GA4: 1 | GB4: 4 | GC4: 0 | GD4: 3 | GE4: 0 | GF4: 0 | GG4: 0 | GH4: 0 | GI4: 0 | GJ4: 0 | GK4: 0 | GL4: 0 | GM4: 0 | GN4: 0 | GO4: 0 | GP4: 0 | GQ4: 0 | GR4: 0 | GS4: 0 | GT4: 0 | GU4: 0 | GV4: 0 | GW4: 0 | GX4: 0 | GY4: 0 | GZ4: 0 | HA4: 0 | HB4: 0 | HC4: 0 | HD4: 0 | HE4: 0 | HF4: 0 | HG4: 0 | HH4: 0 | HI4: 0 | HJ4: 0 | HK4: 0 | HL4: 0 | HM4: 0 | HN4: 0 | HO4: 0 | HP4: 0 | HQ4: 0 | HR4: 0 | HS4: 0 | HT4: 0 | HU4: 0 | HV4: 0 | HW4: 0 | HX4: 0 | HY4: 0 | HZ4: 0 | IA4: 2 | IB4: 2 | IC4: 2 | ID4: 1 | IE4: 1 | IF4: 0 | IG4: 0 | IH4: 0 | II4: 0 | IJ4: 0 | IK4: 0 | IL4: 0 | IM4: 0 | IN4: 0 | IO4: 0 | IP4: 0 | IQ4: 0 | IR4: 0 | IS4: 0 | IT4: 0 | IU4: 0 | IV4: 0 | IW4: 0 | IX4: 0 | IY4: 0 | IZ4: 0 | JA4: 0 | JB4: 0 | JC4: 0 | JD4: 0 | JE4: 0 | JF4: 0 | JG4: 0 | JH4: 0 | JI4: 0 | JJ4: 0 | JK4: 0 | JL4: 0 | JM4: 0 | JN4: 0 | JO4: 0 | JP4: 0 | JQ4: 0 | JR4: 0 | JS4: 0 | JT4: 0 | JU4: 0 | JV4: 0 | JW4: 0 | JX4: 0 | JY4: 0 | JZ4: 0 | KA4: 0 | KB4: 0 | KC4: 0 | KD4: 0 | KE4: 0 | KF4: 0 | KG4: 0 | KH4: 0 | KI4: 0 | KJ4: 0 | KK4: 0 | KL4: 0 | KM4: 0 | KN4: 0 | KO4: 0 | KP4: 0 | KQ4: 0 | KR4: 0 | KS4: 0 | KT4: 0 | KU4: 0 | KV4: 0 | KW4: 0 | KX4: 0 | KY4: 0 | KZ4: 0 | LA4: 0 | LB4: 0 | LC4: 0 | LD4: 0 | LE4: 0 | LF4: 0 | LG4: 12 | LH4: 14 | LI4: 10 | LJ4: 9 | LK4: 5 | LL4: 1 | LM4: 0 | LN4: 0 | LO4: 0 | LP4: 0 | LQ4: 0 | LR4: 0
A5: LUCIANO CASTILLO COLONNA | B5: SULLANA | C5: 200601 | D5: HOSPITAL DE APOYO II - 2, SULLANA | E5: II-2 | F5: SULLANA | G5: NINGUN CLAS | H5: NO PERTENECE A NINGUNA MICRORED | I5: NO PERTENECE A NINGUNA RED | J5: HOSPITAL DE APOYO III SULLANA | K5: 1910 | L5: 9 | M5: 0 | N5: 0 | O5: 0 | P5: 0 | Q5: 0 | R5: 0 | S5: 0 | T5: 0 | U5: 0 | V5: 0 | W5: 0 | X5: 0 | Y5: 0 | Z5: 0 | AA5: 0 | AB5: 0 | AC5: 0 | AD5: 0 | AE5: 0 | AF5: 0 | AG5: 0 | AH5: 0 | AI5: 0 | AJ5: 0 | AK5: 0 | AL5: 0 | AM5: 0 | AN5: 0 | AO5: 0 | AP5: 0 | AQ5: 0 | AR5: 0 | AS5: 0 | AT5: 0 | AU5: 0 | AV5: 0 | AW5: 0 | AX5: 0 | AY5: 0 | AZ5: 0 | BA5: 0 | BB5: 0 | BC5: 0 | BD5: 0 | BE5: 0 | BF5: 0 | BG5: 0 | BH5: 0 | BI5: 0 | BJ5: 0 | BK5: 0 | BL5: 0 | BM5: 0 | BN5: 0 | BO5: 0 | BP5: 0 | BQ5: 0 | BR5: 0 | BS5: 0 | BT5: 0 | BU5: 0 | BV5: 0 | BW5: 0 | BX5: 0 | BY5: 0 | BZ5: 0 | CA5: 0 | CB5: 0 | CC5: 0 | CD5: 0 | CE5: 0 | CF5: 0 | CG5: 0 | CH5: 0 | CI5: 0 | CJ5: 0 | CK5: 0 | CL5: 0 | CM5: 0 | CN5: 0 | CO5: 0 | CP5: 0 | CQ5: 0 | CR5: 0 | CS5: 0 | CT5: 0 | CU5: 0 | CV5: 0 | CW5: 0 | CX5: 0 | CY5: 0 | CZ5: 0 | DA5: 0 | DB5: 0 | DC5: 0 | DD5: 0 | DE5: 0 | DF5: 0 | DG5: 0 | DH5: 0 | DI5: 0 | DJ5: 0 | DK5: 0 | DL5: 0 | DM5: 0 | DN5: 0 | DO5: 0 | DP5: 0 | DQ5: 0 | DR5: 0 | DS5: 0 | DT5: 0 | DU5: 0 | DV5: 0 | DW5: 1 | DX5: 2 | DY5: 3 | DZ5: 3 | EA5: 1 | EB5: 3 | EC5: 1 | ED5: 2 | EE5: 0 | EF5: 2 | EG5: 0 | EH5: 0 | EI5: 12 | EJ5: 26 | EK5: 5 | EL5: 15 | EM5: 4 | EN5: 3 | EO5: 0 | EP5: 0 | EQ5: 0 | ER5: 0 | ES5: 0 | ET5: 0 | EU5: 0 | EV5: 0 | EW5: 0 | EX5: 0 | EY5: 0 | EZ5: 0 | FA5: 0 | FB5: 0 | FC5: 0 | FD5: 0 | FE5: 0 | FF5: 0 | FG5: 0 | FH5: 0 | FI5: 0 | FJ5: 0 | FK5: 0 | FL5: 0 | FM5: 0 | FN5: 0 | FO5: 0 | FP5: 0 | FQ5: 0 | FR5: 0 | FS5: 0 | FT5: 0 | FU5: 0 | FV5: 0 | FW5: 0 | FX5: 0 | FY5: 4 | FZ5: 8 | GA5: 2 | GB5: 4 | GC5: 0 | GD5: 1 | GE5: 0 | GF5: 0 | GG5: 0 | GH5: 0 | GI5: 0 | GJ5: 0 | GK5: 0 | GL5: 0 | GM5: 0 | GN5: 0 | GO5: 0 | GP5: 0 | GQ5: 0 | GR5: 0 | GS5: 0 | GT5: 0 | GU5: 0 | GV5: 0 | GW5: 0 | GX5: 0 | GY5: 0 | GZ5: 0 | HA5: 0 | HB5: 0 | HC5: 0 | HD5: 0 | HE5: 0 | HF5: 0 | HG5: 0 | HH5: 0 | HI5: 0 | HJ5: 0 | HK5: 0 | HL5: 0 | HM5: 0 | HN5: 0 | HO5: 0 | HP5: 0 | HQ5: 0 | HR5: 0 | HS5: 0 | HT5: 0 | HU5: 0 | HV5: 0 | HW5: 0 | HX5: 0 | HY5: 0 | HZ5: 0 | IA5: 4 | IB5: 12 | IC5: 6 | ID5: 8 | IE5: 0 | IF5: 3 | IG5: 0 | IH5: 0 | II5: 0 | IJ5: 0 | IK5: 0 | IL5: 0 | IM5: 0 | IN5: 0 | IO5: 0 | IP5: 0 | IQ5: 0 | IR5: 0 | IS5: 0 | IT5: 0 | IU5: 0 | IV5: 0 | IW5: 0 | IX5: 0 | IY5: 0 | IZ5: 0 | JA5: 0 | JB5: 0 | JC5: 0 | JD5: 0 | JE5: 0 | JF5: 0 | JG5: 0 | JH5: 1 | JI5: 0 | JJ5: 0 | JK5: 1 | JL5: 0 | JM5: 0 | JN5: 0 | JO5: 0 | JP5: 0 | JQ5: 2 | JR5: 0 | JS5: 0 | JT5: 0 | JU5: 0 | JV5: 0 | JW5: 0 | JX5: 0 | JY5: 0 | JZ5: 0 | KA5: 0 | KB5: 0 | KC5: 0 | KD5: 0 | KE5: 0 | KF5: 0 | KG5: 0 | KH5: 0 | KI5: 0 | KJ5: 0 | KK5: 0 | KL5: 0 | KM5: 0 | KN5: 0 | KO5: 0 | KP5: 0 | KQ5: 0 | KR5: 0 | KS5: 0 | KT5: 0 | KU5: 0 | KV5: 0 | KW5: 0 | KX5: 0 | KY5: 0 | KZ5: 0 | LA5: 0 | LB5: 0 | LC5: 0 | LD5: 0 | LE5: 0 | LF5: 0 | LG5: 8 | LH5: 10 | LI5: 9 | LJ5: 14 | LK5: 6 | LL5: 5 | LM5: 0 | LN5: 0 | LO5: 0 | LP5: 0 | LQ5: 0 | LR5: 0
A6: LUCIANO CASTILLO COLONNA | B6: SULLANA | C6: 200601 | D6: HOSPITAL DE APOYO II - 2, SULLANA | E6: II-2 | F6: SULLANA | G6: NINGUN CLAS | H6: NO PERTENECE A NINGUNA MICRORED | I6: NO PERTENECE A NINGUNA RED | J6: HOSPITAL DE APOYO III SULLANA | K6: 1910 | L6: 7 | M6: 0 | N6: 0 | O6: 0 | P6: 0 | Q6: 0 | R6: 0 | S6: 0 | T6: 0 | U6: 0 | V6: 0 | W6: 0 | X6: 0 | Y6: 0 | Z6: 0 | AA6: 0 | AB6: 0 | AC6: 0 | AD6: 0 | AE6: 0 | AF6: 0 | AG6: 0 | AH6: 0 | AI6: 0 | AJ6: 0 | AK6: 0 | AL6: 0 | AM6: 0 | AN6: 0 | AO6: 0 | AP6: 0 | AQ6: 0 | AR6: 0 | AS6: 0 | AT6: 0 | AU6: 0 | AV6: 0 | AW6: 0 | AX6: 0 | AY6: 0 | AZ6: 0 | BA6: 0 | BB6: 0 | BC6: 0 | BD6: 0 | BE6: 0 | BF6: 0 | BG6: 0 | BH6: 0 | BI6: 0 | BJ6: 0 | BK6: 0 | BL6: 0 | BM6: 0 | BN6: 0 | BO6: 0 | BP6: 0 | BQ6: 0 | BR6: 0 | BS6: 0 | BT6: 0 | BU6: 0 | BV6: 0 | BW6: 0 | BX6: 0 | BY6: 0 | BZ6: 0 | CA6: 0 | CB6: 0 | CC6: 0 | CD6: 0 | CE6: 0 | CF6: 0 | CG6: 0 | CH6: 0 | CI6: 0 | CJ6: 0 | CK6: 0 | CL6: 0 | CM6: 0 | CN6: 0 | CO6: 0 | CP6: 0 | CQ6: 0 | CR6: 0 | CS6: 0 | CT6: 0 | CU6: 0 | CV6: 0 | CW6: 0 | CX6: 0 | CY6: 0 | CZ6: 0 | DA6: 0 | DB6: 0 | DC6: 0 | DD6: 0 | DE6: 0 | DF6: 0 | DG6: 0 | DH6: 0 | DI6: 0 | DJ6: 0 | DK6: 0 | DL6: 0 | DM6: 0 | DN6: 0 | DO6: 0 | DP6: 0 | DQ6: 0 | DR6: 0 | DS6: 0 | DT6: 0 | DU6: 0 | DV6: 0 | DW6: 3 | DX6: 1 | DY6: 1 | DZ6: 3 | EA6: 1 | EB6: 2 | EC6: 2 | ED6: 5 | EE6: 0 | EF6: 4 | EG6: 1 | EH6: 0 | EI6: 5 | EJ6: 18 | EK6: 3 | EL6: 8 | EM6: 0 | EN6: 1 | EO6: 0 | EP6: 0 | EQ6: 0 | ER6: 0 | ES6: 0 | ET6: 0 | EU6: 0 | EV6: 0 | EW6: 0 | EX6: 0 | EY6: 0 | EZ6: 0 | FA6: 0 | FB6: 0 | FC6: 0 | FD6: 0 | FE6: 0 | FF6: 0 | FG6: 0 | FH6: 0 | FI6: 0 | FJ6: 0 | FK6: 0 | FL6: 0 | FM6: 0 | FN6: 0 | FO6: 0 | FP6: 0 | FQ6: 0 | FR6: 0 | FS6: 0 | FT6: 0 | FU6: 0 | FV6: 0 | FW6: 0 | FX6: 0 | FY6: 6 | FZ6: 12 | GA6: 1 | GB6: 4 | GC6: 1 | GD6: 1 | GE6: 0 | GF6: 0 | GG6: 0 | GH6: 0 | GI6: 0 | GJ6: 0 | GK6: 0 | GL6: 0 | GM6: 0 | GN6: 0 | GO6: 0 | GP6: 0 | GQ6: 0 | GR6: 0 | GS6: 0 | GT6: 0 | GU6: 0 | GV6: 0 | GW6: 0 | GX6: 0 | GY6: 0 | GZ6: 0 | HA6: 0 | HB6: 0 | HC6: 0 | HD6: 0 | HE6: 0 | HF6: 0 | HG6: 0 | HH6: 0 | HI6: 0 | HJ6: 0 | HK6: 0 | HL6: 0 | HM6: 0 | HN6: 0 | HO6: 0 | HP6: 0 | HQ6: 0 | HR6: 0 | HS6: 0 | HT6: 0 | HU6: 0 | HV6: 0 | HW6: 0 | HX6: 0 | HY6: 0 | HZ6: 0 | IA6: 0 | IB6: 2 | IC6: 0 | ID6: 2 | IE6: 0 | IF6: 1 | IG6: 0 | IH6: 0 | II6: 0 | IJ6: 0 | IK6: 0 | IL6: 0 | IM6: 0 | IN6: 0 | IO6: 0 | IP6: 0 | IQ6: 0 | IR6: 0 | IS6: 0 | IT6: 0 | IU6: 0 | IV6: 0 | IW6: 0 | IX6: 0 | IY6: 0 | IZ6: 0 | JA6: 0 | JB6: 0 | JC6: 0 | JD6: 0 | JE6: 0 | JF6: 0 | JG6: 0 | JH6: 0 | JI6: 0 | JJ6: 0 | JK6: 0 | JL6: 0 | JM6: 0 | JN6: 0 | JO6: 0 | JP6: 0 | JQ6: 0 | JR6: 0 | JS6: 0 | JT6: 0 | JU6: 0 | JV6: 0 | JW6: 0 | JX6: 0 | JY6: 0 | JZ6: 0 | KA6: 0 | KB6: 0 | KC6: 0 | KD6: 0 | KE6: 0 | KF6: 0 | KG6: 0 | KH6: 0 | KI6: 0 | KJ6: 0 | KK6: 0 | KL6: 0 | KM6: 0 | KN6: 0 | KO6: 0 | KP6: 0 | KQ6: 0 | KR6: 0 | KS6: 0 | KT6: 0 | KU6: 0 | KV6: 0 | KW6: 0 | KX6: 0 | KY6: 0 | KZ6: 0 | LA6: 0 | LB6: 0 | LC6: 0 | LD6: 0 | LE6: 0 | LF6: 0 | LG6: 5 | LH6: 7 | LI6: 4 | LJ6: 6 | LK6: 0 | LL6: 4 | LM6: 0 | LN6: 0 | LO6: 0 | LP6: 0 | LQ6: 0 | LR6: 0
A7: LUCIANO CASTILLO COLONNA | B7: SULLANA | C7: 200601 | D7: HOSPITAL DE APOYO II - 2, SULLANA | E7: II-2 | F7: SULLANA | G7: NINGUN CLAS | H7: NO PERTENECE A NINGUNA MICRORED | I7: NO PERTENECE A NINGUNA RED | J7: HOSPITAL DE APOYO III SULLANA | K7: 1910 | L7: 8 | M7: 0 | N7: 0 | O7: 0 | P7: 0 | Q7: 0 | R7: 0 | S7: 0 | T7: 0 | U7: 0 | V7: 0 | W7: 0 | X7: 0 | Y7: 0 | Z7: 0 | AA7: 0 | AB7: 0 | AC7: 0 | AD7: 0 | AE7: 0 | AF7: 0 | AG7: 0 | AH7: 0 | AI7: 0 | AJ7: 0 | AK7: 0 | AL7: 0 | AM7: 0 | AN7: 0 | AO7: 0 | AP7: 0 | AQ7: 0 | AR7: 0 | AS7: 0 | AT7: 0 | AU7: 0 | AV7: 0 | AW7: 0 | AX7: 0 | AY7: 0 | AZ7: 0 | BA7: 0 | BB7: 0 | BC7: 0 | BD7: 1 | BE7: 0 | BF7: 0 | BG7: 0 | BH7: 1 | BI7: 0 | BJ7: 0 | BK7: 0 | BL7: 0 | BM7: 0 | BN7: 0 | BO7: 0 | BP7: 0 | BQ7: 0 | BR7: 0 | BS7: 0 | BT7: 0 | BU7: 0 | BV7: 0 | BW7: 0 | BX7: 0 | BY7: 0 | BZ7: 0 | CA7: 0 | CB7: 0 | CC7: 0 | CD7: 0 | CE7: 0 | CF7: 0 | CG7: 0 | CH7: 0 | CI7: 0 | CJ7: 0 | CK7: 0 | CL7: 0 | CM7: 0 | CN7: 0 | CO7: 0 | CP7: 0 | CQ7: 0 | CR7: 0 | CS7: 0 | CT7: 0 | CU7: 0 | CV7: 0 | CW7: 0 | CX7: 0 | CY7: 0 | CZ7: 0 | DA7: 0 | DB7: 0 | DC7: 0 | DD7: 0 | DE7: 0 | DF7: 0 | DG7: 0 | DH7: 0 | DI7: 0 | DJ7: 0 | DK7: 0 | DL7: 0 | DM7: 0 | DN7: 0 | DO7: 0 | DP7: 0 | DQ7: 0 | DR7: 0 | DS7: 0 | DT7: 0 | DU7: 0 | DV7: 0 | DW7: 7 | DX7: 8 | DY7: 5 | DZ7: 8 | EA7: 2 | EB7: 7 | EC7: 1 | ED7: 4 | EE7: 1 | EF7: 2 | EG7: 1 | EH7: 0 | EI7: 9 | EJ7: 17 | EK7: 5 | EL7: 9 | EM7: 0 | EN7: 3 | EO7: 0 | EP7: 0 | EQ7: 0 | ER7: 0 | ES7: 0 | ET7: 0 | EU7: 0 | EV7: 0 | EW7: 0 | EX7: 0 | EY7: 0 | EZ7: 0 | FA7: 0 | FB7: 0 | FC7: 0 | FD7: 0 | FE7: 0 | FF7: 0 | FG7: 0 | FH7: 0 | FI7: 0 | FJ7: 0 | FK7: 0 | FL7: 0 | FM7: 0 | FN7: 0 | FO7: 0 | FP7: 0 | FQ7: 0 | FR7: 0 | FS7: 0 | FT7: 0 | FU7: 0 | FV7: 0 | FW7: 0 | FX7: 0 | FY7: 3 | FZ7: 7 | GA7: 4 | GB7: 4 | GC7: 0 | GD7: 3 | GE7: 0 | GF7: 2 | GG7: 1 | GH7: 1 | GI7: 0 | GJ7: 0 | GK7: 0 | GL7: 0 | GM7: 0 | GN7: 0 | GO7: 0 | GP7: 0 | GQ7: 0 | GR7: 0 | GS7: 0 | GT7: 0 | GU7: 0 | GV7: 0 | GW7: 0 | GX7: 0 | GY7: 0 | GZ7: 0 | HA7: 0 | HB7: 0 | HC7: 0 | HD7: 0 | HE7: 0 | HF7: 0 | HG7: 0 | HH7: 0 | HI7: 0 | HJ7: 0 | HK7: 0 | HL7: 0 | HM7: 0 | HN7: 0 | HO7: 0 | HP7: 0 | HQ7: 0 | HR7: 0 | HS7: 0 | HT7: 0 | HU7: 0 | HV7: 0 | HW7: 0 | HX7: 0 | HY7: 0 | HZ7: 0 | IA7: 1 | IB7: 2 | IC7: 0 | ID7: 0 | IE7: 0 | IF7: 0 | IG7: 0 | IH7: 0 | II7: 0 | IJ7: 0 | IK7: 0 | IL7: 0 | IM7: 0 | IN7: 0 | IO7: 0 | IP7: 0 | IQ7: 0 | IR7: 0 | IS7: 0 | IT7: 0 | IU7: 0 | IV7: 0 | IW7: 0 | IX7: 0 | IY7: 0 | IZ7: 0 | JA7: 0 | JB7: 0 | JC7: 0 | JD7: 0 | JE7: 1 | JF7: 0 | JG7: 0 | JH7: 0 | JI7: 0 | JJ7: 0 | JK7: 0 | JL7: 0 | JM7: 0 | JN7: 0 | JO7: 0 | JP7: 0 | JQ7: 0 | JR7: 0 | JS7: 0 | JT7: 0 | JU7: 0 | JV7: 0 | JW7: 0 | JX7: 0 | JY7: 0 | JZ7: 0 | KA7: 0 | KB7: 0 | KC7: 0 | KD7: 0 | KE7: 0 | KF7: 0 | KG7: 0 | KH7: 0 | KI7: 0 | KJ7: 0 | KK7: 0 | KL7: 0 | KM7: 0 | KN7: 0 | KO7: 0 | KP7: 0 | KQ7: 0 | KR7: 0 | KS7: 0 | KT7: 0 | KU7: 5 | KV7: 0 | KW7: 0 | KX7: 0 | KY7: 0 | KZ7: 0 | LA7: 0 | LB7: 0 | LC7: 0 | LD7: 0 | LE7: 0 | LF7: 0 | LG7: 6 | LH7: 14 | LI7: 9 | LJ7: 3 | LK7: 2 | LL7: 3 | LM7: 0 | LN7: 0 | LO7: 0 | LP7: 0 | LQ7: 0 | LR7: 0
A8: LUCIANO CASTILLO COLONNA | B8: SULLANA | C8: 200601 | D8: HOSPITAL DE APOYO II - 2, SULLANA | E8: II-2 | F8: SULLANA | G8: NINGUN CLAS | H8: NO PERTENECE A NINGUNA MICRORED | I8: NO PERTENECE A NINGUNA RED | J8: HOSPITAL DE APOYO III SULLANA | K8: 1910 | L8: 5 | M8: 0 | N8: 0 | O8: 0 | P8: 0 | Q8: 0 | R8: 0 | S8: 0 | T8: 0 | U8: 0 | V8: 0 | W8: 0 | X8: 0 | Y8: 0 | Z8: 0 | AA8: 0 | AB8: 0 | AC8: 0 | AD8: 0 | AE8: 0 | AF8: 0 | AG8: 0 | AH8: 0 | AI8: 0 | AJ8: 0 | AK8: 0 | AL8: 0 | AM8: 0 | AN8: 0 | AO8: 0 | AP8: 0 | AQ8: 0 | AR8: 0 | AS8: 0 | AT8: 0 | AU8: 0 | AV8: 0 | AW8: 0 | AX8: 0 | AY8: 0 | AZ8: 0 | BA8: 0 | BB8: 0 | BC8: 0 | BD8: 0 | BE8: 0 | BF8: 0 | BG8: 0 | BH8: 0 | BI8: 0 | BJ8: 0 | BK8: 0 | BL8: 0 | BM8: 0 | BN8: 0 | BO8: 0 | BP8: 0 | BQ8: 0 | BR8: 0 | BS8: 0 | BT8: 0 | BU8: 0 | BV8: 0 | BW8: 0 | BX8: 0 | BY8: 0 | BZ8: 0 | CA8: 0 | CB8: 0 | CC8: 0 | CD8: 0 | CE8: 0 | CF8: 0 | CG8: 0 | CH8: 0 | CI8: 0 | CJ8: 0 | CK8: 0 | CL8: 0 | CM8: 0 | CN8: 0 | CO8: 0 | CP8: 0 | CQ8: 0 | CR8: 0 | CS8: 0 | CT8: 0 | CU8: 0 | CV8: 0 | CW8: 0 | CX8: 0 | CY8: 0 | CZ8: 0 | DA8: 0 | DB8: 0 | DC8: 0 | DD8: 0 | DE8: 0 | DF8: 0 | DG8: 0 | DH8: 0 | DI8: 0 | DJ8: 0 | DK8: 0 | DL8: 0 | DM8: 0 | DN8: 0 | DO8: 0 | DP8: 0 | DQ8: 1 | DR8: 1 | DS8: 0 | DT8: 0 | DU8: 0 | DV8: 0 | DW8: 1 | DX8: 8 | DY8: 1 | DZ8: 1 | EA8: 0 | EB8: 2 | EC8: 0 | ED8: 0 | EE8: 0 | EF8: 0 | EG8: 0 | EH8: 0 | EI8: 8 | EJ8: 15 | EK8: 1 | EL8: 17 | EM8: 1 | EN8: 2 | EO8: 0 | EP8: 0 | EQ8: 0 | ER8: 0 | ES8: 0 | ET8: 0 | EU8: 0 | EV8: 0 | EW8: 0 | EX8: 0 | EY8: 0 | EZ8: 0 | FA8: 0 | FB8: 0 | FC8: 0 | FD8: 0 | FE8: 0 | FF8: 0 | FG8: 0 | FH8: 0 | FI8: 0 | FJ8: 0 | FK8: 0 | FL8: 0 | FM8: 0 | FN8: 0 | FO8: 0 | FP8: 0 | FQ8: 0 | FR8: 0 | FS8: 0 | FT8: 0 | FU8: 0 | FV8: 0 | FW8: 0 | FX8: 0 | FY8: 0 | FZ8: 7 | GA8: 0 | GB8: 3 | GC8: 1 | GD8: 0 | GE8: 0 | GF8: 0 | GG8: 0 | GH8: 0 | GI8: 0 | GJ8: 0 | GK8: 0 | GL8: 0 | GM8: 0 | GN8: 0 | GO8: 0 | GP8: 0 | GQ8: 0 | GR8: 0 | GS8: 0 | GT8: 0 | GU8: 0 | GV8: 0 | GW8: 0 | GX8: 0 | GY8: 0 | GZ8: 0 | HA8: 0 | HB8: 0 | HC8: 0 | HD8: 0 | HE8: 0 | HF8: 0 | HG8: 0 | HH8: 0 | HI8: 0 | HJ8: 0 | HK8: 0 | HL8: 0 | HM8: 0 | HN8: 0 | HO8: 0 | HP8: 0 | HQ8: 0 | HR8: 0 | HS8: 0 | HT8: 0 | HU8: 0 | HV8: 0 | HW8: 0 | HX8: 0 | HY8: 0 | HZ8: 0 | IA8: 1 | IB8: 0 | IC8: 1 | ID8: 0 | IE8: 0 | IF8: 0 | IG8: 0 | IH8: 0 | II8: 0 | IJ8: 0 | IK8: 0 | IL8: 0 | IM8: 1 | IN8: 5 | IO8: 0 | IP8: 3 | IQ8: 0 | IR8: 0 | IS8: 0 | IT8: 0 | IU8: 0 | IV8: 0 | IW8: 0 | IX8: 0 | IY8: 0 | IZ8: 0 | JA8: 0 | JB8: 0 | JC8: 0 | JD8: 0 | JE8: 0 | JF8: 0 | JG8: 0 | JH8: 1 | JI8: 1 | JJ8: 0 | JK8: 1 | JL8: 1 | JM8: 0 | JN8: 0 | JO8: 0 | JP8: 0 | JQ8: 0 | JR8: 0 | JS8: 0 | JT8: 0 | JU8: 0 | JV8: 0 | JW8: 0 | JX8: 0 | JY8: 0 | JZ8: 0 | KA8: 0 | KB8: 0 | KC8: 0 | KD8: 0 | KE8: 0 | KF8: 0 | KG8: 0 | KH8: 0 | KI8: 0 | KJ8: 0 | KK8: 0 | KL8: 0 | KM8: 0 | KN8: 0 | KO8: 0 | KP8: 0 | KQ8: 0 | KR8: 0 | KS8: 0 | KT8: 0 | KU8: 0 | KV8: 0 | KW8: 0 | KX8: 0 | KY8: 0 | KZ8: 0 | LA8: 0 | LB8: 0 | LC8: 0 | LD8: 0 | LE8: 0 | LF8: 0 | LG8: 6 | LH8: 18 | LI8: 3 | LJ8: 10 | LK8: 0 | LL8: 3 | LM8: 0 | LN8: 0 | LO8: 0 | LP8: 0 | LQ8: 0 | LR8: 0
A9: LUCIANO CASTILLO COLONNA | B9: SULLANA | C9: 200601 | D9: HOSPITAL DE APOYO II - 2, SULLANA | E9: II-2 | F9: SULLANA | G9: NINGUN CLAS | H9: NO PERTENECE A NINGUNA MICRORED | I9: NO PERTENECE A NINGUNA RED | J9: HOSPITAL DE APOYO III SULLANA | K9: 1910 | L9: 6 | M9: 0 | N9: 0 | O9: 0 | P9: 0 | Q9: 0 | R9: 0 | S9: 0 | T9: 0 | U9: 0 | V9: 0 | W9: 0 | X9: 0 | Y9: 0 | Z9: 0 | AA9: 0 | AB9: 0 | AC9: 0 | AD9: 0 | AE9: 0 | AF9: 0 | AG9: 0 | AH9: 0 | AI9: 0 | AJ9: 0 | AK9: 0 | AL9: 0 | AM9: 0 | AN9: 0 | AO9: 0 | AP9: 0 | AQ9: 0 | AR9: 0 | AS9: 0 | AT9: 0 | AU9: 0 | AV9: 0 | AW9: 0 | AX9: 0 | AY9: 0 | AZ9: 0 | BA9: 0 | BB9: 0 | BC9: 0 | BD9: 0 | BE9: 0 | BF9: 0 | BG9: 0 | BH9: 0 | BI9: 0 | BJ9: 0 | BK9: 0 | BL9: 0 | BM9: 0 | BN9: 0 | BO9: 0 | BP9: 0 | BQ9: 0 | BR9: 0 | BS9: 0 | BT9: 0 | BU9: 0 | BV9: 0 | BW9: 0 | BX9: 0 | BY9: 0 | BZ9: 0 | CA9: 0 | CB9: 0 | CC9: 0 | CD9: 0 | CE9: 0 | CF9: 0 | CG9: 0 | CH9: 0 | CI9: 0 | CJ9: 0 | CK9: 0 | CL9: 0 | CM9: 0 | CN9: 0 | CO9: 0 | CP9: 0 | CQ9: 0 | CR9: 0 | CS9: 0 | CT9: 0 | CU9: 0 | CV9: 0 | CW9: 0 | CX9: 0 | CY9: 0 | CZ9: 0 | DA9: 0 | DB9: 0 | DC9: 0 | DD9: 0 | DE9: 0 | DF9: 0 | DG9: 0 | DH9: 0 | DI9: 0 | DJ9: 0 | DK9: 0 | DL9: 0 | DM9: 0 | DN9: 0 | DO9: 0 | DP9: 0 | DQ9: 0 | DR9: 0 | DS9: 0 | DT9: 0 | DU9: 0 | DV9: 0 | DW9: 4 | DX9: 1 | DY9: 2 | DZ9: 5 | EA9: 3 | EB9: 0 | EC9: 1 | ED9: 0 | EE9: 0 | EF9: 1 | EG9: 0 | EH9: 0 | EI9: 15 | EJ9: 29 | EK9: 8 | EL9: 14 | EM9: 1 | EN9: 7 | EO9: 0 | EP9: 0 | EQ9: 0 | ER9: 0 | ES9: 0 | ET9: 0 | EU9: 0 | EV9: 0 | EW9: 0 | EX9: 0 | EY9: 0 | EZ9: 0 | FA9: 0 | FB9: 0 | FC9: 0 | FD9: 0 | FE9: 0 | FF9: 0 | FG9: 0 | FH9: 0 | FI9: 0 | FJ9: 0 | FK9: 0 | FL9: 0 | FM9: 0 | FN9: 0 | FO9: 0 | FP9: 0 | FQ9: 0 | FR9: 0 | FS9: 0 | FT9: 0 | FU9: 0 | FV9: 0 | FW9: 0 | FX9: 0 | FY9: 1 | FZ9: 4 | GA9: 0 | GB9: 3 | GC9: 2 | GD9: 1 | GE9: 0 | GF9: 0 | GG9: 0 | GH9: 0 | GI9: 0 | GJ9: 0 | GK9: 0 | GL9: 0 | GM9: 0 | GN9: 0 | GO9: 0 | GP9: 0 | GQ9: 0 | GR9: 0 | GS9: 0 | GT9: 0 | GU9: 0 | GV9: 0 | GW9: 0 | GX9: 0 | GY9: 0 | GZ9: 0 | HA9: 0 | HB9: 0 | HC9: 0 | HD9: 0 | HE9: 0 | HF9: 0 | HG9: 0 | HH9: 0 | HI9: 0 | HJ9: 0 | HK9: 0 | HL9: 0 | HM9: 0 | HN9: 0 | HO9: 0 | HP9: 0 | HQ9: 0 | HR9: 0 | HS9: 0 | HT9: 0 | HU9: 0 | HV9: 0 | HW9: 0 | HX9: 0 | HY9: 0 | HZ9: 0 | IA9: 0 | IB9: 2 | IC9: 0 | ID9: 0 | IE9: 0 | IF9: 0 | IG9: 0 | IH9: 0 | II9: 0 | IJ9: 0 | IK9: 0 | IL9: 0 | IM9: 0 | IN9: 0 | IO9: 0 | IP9: 0 | IQ9: 0 | IR9: 0 | IS9: 0 | IT9: 0 | IU9: 0 | IV9: 0 | IW9: 0 | IX9: 0 | IY9: 0 | IZ9: 0 | JA9: 0 | JB9: 0 | JC9: 0 | JD9: 0 | JE9: 0 | JF9: 0 | JG9: 0 | JH9: 0 | JI9: 0 | JJ9: 0 | JK9: 0 | JL9: 0 | JM9: 0 | JN9: 0 | JO9: 0 | JP9: 0 | JQ9: 0 | JR9: 0 | JS9: 0 | JT9: 0 | JU9: 0 | JV9: 0 | JW9: 0 | JX9: 0 | JY9: 0 | JZ9: 0 | KA9: 0 | KB9: 0 | KC9: 0 | KD9: 0 | KE9: 0 | KF9: 0 | KG9: 0 | KH9: 0 | KI9: 0 | KJ9: 0 | KK9: 0 | KL9: 0 | KM9: 0 | KN9: 0 | KO9: 0 | KP9: 0 | KQ9: 0 | KR9: 0 | KS9: 0 | KT9: 0 | KU9: 0 | KV9: 0 | KW9: 0 | KX9: 0 | KY9: 0 | KZ9: 0 | LA9: 0 | LB9: 0 | LC9: 0 | LD9: 0 | LE9: 0 | LF9: 0 | LG9: 11 | LH9: 7 | LI9: 8 | LJ9: 11 | LK9: 5 | LL9: 6 | LM9: 0 | LN9: 0 | LO9: 0 | LP9: 0 | LQ9: 0 | LR9: 0
A10: LUCIANO CASTILLO COLONNA | B10: SULLANA | C10: 200601 | D10: HOSPITAL DE APOYO II - 2, SULLANA | E10: II-2 | F10: SULLANA | G10: NINGUN CLAS | H10: NO PERTENECE A NINGUNA MICRORED | I10: NO PERTENECE A NINGUNA RED | J10: HOSPITAL DE APOYO III SULLANA | K10: 1910 | L10: 4 | M10: 0 | N10: 0 | O10: 0 | P10: 0 | Q10: 0 | R10: 0 | S10: 0 | T10: 0 | U10: 0 | V10: 0 | W10: 0 | X10: 0 | Y10: 0 | Z10: 0 | AA10: 0 | AB10: 0 | AC10: 0 | AD10: 0 | AE10: 0 | AF10: 0 | AG10: 0 | AH10: 0 | AI10: 0 | AJ10: 0 | AK10: 0 | AL10: 0 | AM10: 0 | AN10: 0 | AO10: 0 | AP10: 0 | AQ10: 0 | AR10: 0 | AS10: 0 | AT10: 0 | AU10: 0 | AV10: 0 | AW10: 0 | AX10: 0 | AY10: 0 | AZ10: 0 | BA10: 0 | BB10: 0 | BC10: 0 | BD10: 0 | BE10: 0 | BF10: 0 | BG10: 0 | BH10: 0 | BI10: 0 | BJ10: 0 | BK10: 0 | BL10: 0 | BM10: 0 | BN10: 0 | BO10: 0 | BP10: 0 | BQ10: 0 | BR10: 0 | BS10: 0 | BT10: 0 | BU10: 0 | BV10: 0 | BW10: 0 | BX10: 0 | BY10: 0 | BZ10: 0 | CA10: 0 | CB10: 0 | CC10: 0 | CD10: 0 | CE10: 0 | CF10: 0 | CG10: 0 | CH10: 0 | CI10: 0 | CJ10: 0 | CK10: 0 | CL10: 0 | CM10: 0 | CN10: 0 | CO10: 0 | CP10: 0 | CQ10: 0 | CR10: 0 | CS10: 0 | CT10: 0 | CU10: 0 | CV10: 0 | CW10: 0 | CX10: 0 | CY10: 0 | CZ10: 0 | DA10: 0 | DB10: 0 | DC10: 0 | DD10: 0 | DE10: 0 | DF10: 0 | DG10: 0 | DH10: 0 | DI10: 0 | DJ10: 0 | DK10: 0 | DL10: 0 | DM10: 0 | DN10: 0 | DO10: 0 | DP10: 0 | DQ10: 0 | DR10: 0 | DS10: 0 | DT10: 0 | DU10: 0 | DV10: 0 | DW10: 7 | DX10: 1 | DY10: 5 | DZ10: 4 | EA10: 0 | EB10: 1 | EC10: 0 | ED10: 1 | EE10: 0 | EF10: 0 | EG10: 0 | EH10: 1 | EI10: 2 | EJ10: 15 | EK10: 1 | EL10: 13 | EM10: 1 | EN10: 4 | EO10: 0 | EP10: 0 | EQ10: 0 | ER10: 0 | ES10: 0 | ET10: 0 | EU10: 0 | EV10: 0 | EW10: 0 | EX10: 0 | EY10: 0 | EZ10: 0 | FA10: 0 | FB10: 0 | FC10: 0 | FD10: 0 | FE10: 0 | FF10: 0 | FG10: 0 | FH10: 0 | FI10: 0 | FJ10: 0 | FK10: 0 | FL10: 0 | FM10: 0 | FN10: 0 | FO10: 0 | FP10: 0 | FQ10: 0 | FR10: 0 | FS10: 0 | FT10: 0 | FU10: 0 | FV10: 0 | FW10: 0 | FX10: 0 | FY10: 5 | FZ10: 1 | GA10: 3 | GB10: 2 | GC10: 0 | GD10: 2 | GE10: 0 | GF10: 0 | GG10: 0 | GH10: 0 | GI10: 0 | GJ10: 0 | GK10: 0 | GL10: 0 | GM10: 0 | GN10: 0 | GO10: 0 | GP10: 0 | GQ10: 0 | GR10: 0 | GS10: 0 | GT10: 0 | GU10: 0 | GV10: 0 | GW10: 0 | GX10: 0 | GY10: 0 | GZ10: 0 | HA10: 0 | HB10: 0 | HC10: 0 | HD10: 0 | HE10: 0 | HF10: 0 | HG10: 0 | HH10: 0 | HI10: 0 | HJ10: 0 | HK10: 0 | HL10: 0 | HM10: 0 | HN10: 0 | HO10: 0 | HP10: 0 | HQ10: 0 | HR10: 0 | HS10: 0 | HT10: 0 | HU10: 0 | HV10: 0 | HW10: 0 | HX10: 0 | HY10: 0 | HZ10: 0 | IA10: 1 | IB10: 0 | IC10: 0 | ID10: 0 | IE10: 0 | IF10: 0 | IG10: 0 | IH10: 0 | II10: 0 | IJ10: 0 | IK10: 0 | IL10: 0 | IM10: 0 | IN10: 1 | IO10: 1 | IP10: 2 | IQ10: 1 | IR10: 0 | IS10: 0 | IT10: 0 | IU10: 0 | IV10: 0 | IW10: 0 | IX10: 0 | IY10: 0 | IZ10: 0 | JA10: 0 | JB10: 0 | JC10: 0 | JD10: 0 | JE10: 0 | JF10: 0 | JG10: 0 | JH10: 0 | JI10: 0 | JJ10: 0 | JK10: 0 | JL10: 0 | JM10: 0 | JN10: 0 | JO10: 0 | JP10: 0 | JQ10: 0 | JR10: 0 | JS10: 0 | JT10: 0 | JU10: 0 | JV10: 0 | JW10: 0 | JX10: 0 | JY10: 0 | JZ10: 0 | KA10: 0 | KB10: 0 | KC10: 0 | KD10: 0 | KE10: 0 | KF10: 0 | KG10: 0 | KH10: 0 | KI10: 0 | KJ10: 0 | KK10: 0 | KL10: 0 | KM10: 0 | KN10: 0 | KO10: 0 | KP10: 0 | KQ10: 0 | KR10: 0 | KS10: 0 | KT10: 0 | KU10: 0 | KV10: 0 | KW10: 0 | KX10: 0 | KY10: 0 | KZ10: 0 | LA10: 0 | LB10: 0 | LC10: 0 | LD10: 0 | LE10: 0 | LF10: 0 | LG10: 5 | LH10: 6 | LI10: 4 | LJ10: 10 | LK10: 0 | LL10: 0 | LM10: 0 | LN10: 0 | LO10: 0 | LP10: 0 | LQ10: 0 | LR10: 0
A11: LUCIANO CASTILLO COLONNA | B11: SULLANA | C11: 200601 | D11: HOSPITAL DE APOYO II - 2, SULLANA | E11: II-2 | F11: SULLANA | G11: NINGUN CLAS | H11: NO PERTENECE A NINGUNA MICRORED | I11: NO PERTENECE A NINGUNA RED | J11: HOSPITAL DE APOYO III SULLANA | K11: 1910 | L11: 1 | M11: 0 | N11: 0 | O11: 0 | P11: 0 | Q11: 0 | R11: 0 | S11: 0 | T11: 0 | U11: 0 | V11: 0 | W11: 0 | X11: 0 | Y11: 0 | Z11: 0 | AA11: 0 | AB11: 0 | AC11: 0 | AD11: 0 | AE11: 0 | AF11: 0 | AG11: 0 | AH11: 0 | AI11: 0 | AJ11: 0 | AK11: 0 | AL11: 0 | AM11: 0 | AN11: 0 | AO11: 0 | AP11: 0 | AQ11: 0 | AR11: 0 | AS11: 0 | AT11: 0 | AU11: 0 | AV11: 0 | AW11: 0 | AX11: 0 | AY11: 0 | AZ11: 0 | BA11: 0 | BB11: 1 | BC11: 5 | BD11: 9 | BE11: 2 | BF11: 8 | BG11: 0 | BH11: 3 | BI11: 0 | BJ11: 0 | BK11: 1 | BL11: 0 | BM11: 0 | BN11: 0 | BO11: 0 | BP11: 0 | BQ11: 0 | BR11: 0 | BS11: 0 | BT11: 0 | BU11: 0 | BV11: 0 | BW11: 0 | BX11: 0 | BY11: 0 | BZ11: 0 | CA11: 0 | CB11: 0 | CC11: 0 | CD11: 0 | CE11: 0 | CF11: 0 | CG11: 4 | CH11: 8 | CI11: 2 | CJ11: 5 | CK11: 0 | CL11: 1 | CM11: 0 | CN11: 0 | CO11: 0 | CP11: 0 | CQ11: 0 | CR11: 0 | CS11: 0 | CT11: 0 | CU11: 1 | CV11: 0 | CW11: 0 | CX11: 0 | CY11: 0 | CZ11: 0 | DA11: 0 | DB11: 0 | DC11: 0 | DD11: 0 | DE11: 0 | DF11: 0 | DG11: 0 | DH11: 0 | DI11: 0 | DJ11: 0 | DK11: 0 | DL11: 0 | DM11: 0 | DN11: 0 | DO11: 0 | DP11: 0 | DQ11: 0 | DR11: 0 | DS11: 0 | DT11: 0 | DU11: 0 | DV11: 0 | DW11: 4 | DX11: 4 | DY11: 0 | DZ11: 4 | EA11: 2 | EB11: 1 | EC11: 1 | ED11: 6 | EE11: 1 | EF11: 1 | EG11: 0 | EH11: 0 | EI11: 7 | EJ11: 12 | EK11: 2 | EL11: 8 | EM11: 1 | EN11: 1 | EO11: 0 | EP11: 0 | EQ11: 0 | ER11: 0 | ES11: 0 | ET11: 0 | EU11: 0 | EV11: 0 | EW11: 0 | EX11: 0 | EY11: 0 | EZ11: 0 | FA11: 0 | FB11: 0 | FC11: 0 | FD11: 0 | FE11: 0 | FF11: 0 | FG11: 0 | FH11: 0 | FI11: 0 | FJ11: 0 | FK11: 0 | FL11: 0 | FM11: 0 | FN11: 0 | FO11: 0 | FP11: 0 | FQ11: 0 | FR11: 0 | FS11: 0 | FT11: 0 | FU11: 0 | FV11: 0 | FW11: 0 | FX11: 0 | FY11: 0 | FZ11: 0 | GA11: 0 | GB11: 0 | GC11: 0 | GD11: 0 | GE11: 0 | GF11: 0 | GG11: 0 | GH11: 0 | GI11: 0 | GJ11: 0 | GK11: 0 | GL11: 0 | GM11: 0 | GN11: 0 | GO11: 0 | GP11: 0 | GQ11: 0 | GR11: 0 | GS11: 0 | GT11: 0 | GU11: 0 | GV11: 0 | GW11: 0 | GX11: 0 | GY11: 0 | GZ11: 0 | HA11: 0 | HB11: 0 | HC11: 0 | HD11: 0 | HE11: 0 | HF11: 0 | HG11: 0 | HH11: 0 | HI11: 0 | HJ11: 0 | HK11: 0 | HL11: 0 | HM11: 0 | HN11: 0 | HO11: 0 | HP11: 0 | HQ11: 0 | HR11: 0 | HS11: 0 | HT11: 0 | HU11: 0 | HV11: 0 | HW11: 0 | HX11: 0 | HY11: 0 | HZ11: 0 | IA11: 5 | IB11: 14 | IC11: 4 | ID11: 8 | IE11: 3 | IF11: 0 | IG11: 0 | IH11: 0 | II11: 0 | IJ11: 0 | IK11: 0 | IL11: 0 | IM11: 0 | IN11: 0 | IO11: 0 | IP11: 1 | IQ11: 0 | IR11: 0 | IS11: 0 | IT11: 0 | IU11: 0 | IV11: 0 | IW11: 0 | IX11: 0 | IY11: 0 | IZ11: 0 | JA11: 0 | JB11: 0 | JC11: 0 | JD11: 0 | JE11: 0 | JF11: 0 | JG11: 0 | JH11: 0 | JI11: 0 | JJ11: 0 | JK11: 0 | JL11: 0 | JM11: 0 | JN11: 0 | JO11: 0 | JP11: 0 | JQ11: 2 | JR11: 0 | JS11: 0 | JT11: 0 | JU11: 0 | JV11: 0 | JW11: 0 | JX11: 0 | JY11: 0 | JZ11: 0 | KA11: 0 | KB11: 0 | KC11: 0 | KD11: 0 | KE11: 0 | KF11: 0 | KG11: 0 | KH11: 0 | KI11: 0 | KJ11: 0 | KK11: 0 | KL11: 0 | KM11: 0 | KN11: 0 | KO11: 0 | KP11: 0 | KQ11: 0 | KR11: 0 | KS11: 0 | KT11: 0 | KU11: 3 | KV11: 0 | KW11: 0 | KX11: 0 | KY11: 0 | KZ11: 0 | LA11: 0 | LB11: 0 | LC11: 0 | LD11: 0 | LE11: 0 | LF11: 0 | LG11: 8 | LH11: 14 | LI11: 4 | LJ11: 9 | LK11: 5 | LL11: 3 | LM11: 0 | LN11: 0 | LO11: 0 | LP11: 0 | LQ11: 0 | LR11: 0
A12: LUCIANO CASTILLO COLONNA | B12: SULLANA | C12: 200601 | D12: HOSPITAL DE APOYO II - 2, SULLANA | E12: II-2 | F12: SULLANA | G12: NINGUN CLAS | H12: NO PERTENECE A NINGUNA MICRORED | I12: NO PERTENECE A NINGUNA RED | J12: HOSPITAL DE APOYO III SULLANA | K12: 1910 | L12: 2 | M12: 0 | N12: 0 | O12: 0 | P12: 0 | Q12: 0 | R12: 0 | S12: 0 | T12: 0 | U12: 0 | V12: 0 | W12: 0 | X12: 0 | Y12: 0 | Z12: 0 | AA12: 0 | AB12: 0 | AC12: 0 | AD12: 0 | AE12: 0 | AF12: 0 | AG12: 0 | AH12: 0 | AI12: 0 | AJ12: 0 | AK12: 0 | AL12: 0 | AM12: 0 | AN12: 0 | AO12: 0 | AP12: 0 | AQ12: 0 | AR12: 0 | AS12: 0 | AT12: 0 | AU12: 0 | AV12: 0 | AW12: 0 | AX12: 1 | AY12: 0 | AZ12: 0 | BA12: 0 | BB12: 0 | BC12: 3 | BD12: 7 | BE12: 3 | BF12: 1 | BG12: 0 | BH12: 1 | BI12: 0 | BJ12: 0 | BK12: 2 | BL12: 0 | BM12: 0 | BN12: 0 | BO12: 0 | BP12: 0 | BQ12: 0 | BR12: 0 | BS12: 0 | BT12: 0 | BU12: 0 | BV12: 0 | BW12: 0 | BX12: 0 | BY12: 0 | BZ12: 0 | CA12: 0 | CB12: 0 | CC12: 0 | CD12: 0 | CE12: 0 | CF12: 0 | CG12: 1 | CH12: 5 | CI12: 1 | CJ12: 1 | CK12: 0 | CL12: 1 | CM12: 0 | CN12: 0 | CO12: 0 | CP12: 0 | CQ12: 0 | CR12: 0 | CS12: 0 | CT12: 0 | CU12: 2 | CV12: 0 | CW12: 0 | CX12: 0 | CY12: 0 | CZ12: 0 | DA12: 0 | DB12: 0 | DC12: 0 | DD12: 0 | DE12: 0 | DF12: 0 | DG12: 0 | DH12: 0 | DI12: 0 | DJ12: 0 | DK12: 0 | DL12: 0 | DM12: 0 | DN12: 0 | DO12: 0 | DP12: 0 | DQ12: 0 | DR12: 0 | DS12: 0 | DT12: 0 | DU12: 1 | DV12: 0 | DW12: 1 | DX12: 0 | DY12: 1 | DZ12: 0 | EA12: 0 | EB12: 0 | EC12: 2 | ED12: 4 | EE12: 0 | EF12: 1 | EG12: 0 | EH12: 0 | EI12: 6 | EJ12: 15 | EK12: 3 | EL12: 7 | EM12: 3 | EN12: 1 | EO12: 0 | EP12: 0 | EQ12: 0 | ER12: 0 | ES12: 0 | ET12: 0 | EU12: 0 | EV12: 0 | EW12: 0 | EX12: 0 | EY12: 0 | EZ12: 0 | FA12: 0 | FB12: 0 | FC12: 0 | FD12: 0 | FE12: 0 | FF12: 0 | FG12: 0 | FH12: 0 | FI12: 0 | FJ12: 0 | FK12: 0 | FL12: 0 | FM12: 0 | FN12: 0 | FO12: 0 | FP12: 0 | FQ12: 0 | FR12: 0 | FS12: 0 | FT12: 0 | FU12: 0 | FV12: 0 | FW12: 0 | FX12: 0 | FY12: 0 | FZ12: 0 | GA12: 0 | GB12: 0 | GC12: 0 | GD12: 0 | GE12: 0 | GF12: 0 | GG12: 0 | GH12: 0 | GI12: 0 | GJ12: 0 | GK12: 0 | GL12: 0 | GM12: 0 | GN12: 0 | GO12: 0 | GP12: 0 | GQ12: 0 | GR12: 0 | GS12: 0 | GT12: 0 | GU12: 0 | GV12: 0 | GW12: 0 | GX12: 0 | GY12: 0 | GZ12: 0 | HA12: 0 | HB12: 0 | HC12: 0 | HD12: 0 | HE12: 0 | HF12: 0 | HG12: 0 | HH12: 0 | HI12: 0 | HJ12: 0 | HK12: 0 | HL12: 0 | HM12: 0 | HN12: 0 | HO12: 0 | HP12: 0 | HQ12: 0 | HR12: 0 | HS12: 0 | HT12: 0 | HU12: 0 | HV12: 0 | HW12: 0 | HX12: 0 | HY12: 0 | HZ12: 0 | IA12: 3 | IB12: 2 | IC12: 4 | ID12: 2 | IE12: 0 | IF12: 2 | IG12: 0 | IH12: 0 | II12: 0 | IJ12: 0 | IK12: 0 | IL12: 0 | IM12: 1 | IN12: 1 | IO12: 1 | IP12: 0 | IQ12: 0 | IR12: 0 | IS12: 0 | IT12: 0 | IU12: 0 | IV12: 0 | IW12: 0 | IX12: 0 | IY12: 0 | IZ12: 0 | JA12: 0 | JB12: 0 | JC12: 0 | JD12: 0 | JE12: 0 | JF12: 0 | JG12: 0 | JH12: 0 | JI12: 0 | JJ12: 0 | JK12: 0 | JL12: 0 | JM12: 0 | JN12: 0 | JO12: 0 | JP12: 0 | JQ12: 0 | JR12: 0 | JS12: 0 | JT12: 0 | JU12: 0 | JV12: 0 | JW12: 0 | JX12: 0 | JY12: 0 | JZ12: 0 | KA12: 0 | KB12: 0 | KC12: 0 | KD12: 0 | KE12: 0 | KF12: 0 | KG12: 0 | KH12: 0 | KI12: 1 | KJ12: 0 | KK12: 0 | KL12: 0 | KM12: 0 | KN12: 0 | KO12: 0 | KP12: 0 | KQ12: 0 | KR12: 0 | KS12: 0 | KT12: 0 | KU12: 0 | KV12: 0 | KW12: 0 | KX12: 0 | KY12: 0 | KZ12: 0 | LA12: 0 | LB12: 0 | LC12: 0 | LD12: 0 | LE12: 0 | LF12: 0 | LG12: 3 | LH12: 6 | LI12: 2 | LJ12: 7 | LK12: 3 | LL12: 1 | LM12: 0 | LN12: 0 | LO12: 0 | LP12: 0 | LQ12: 0 | LR12: 0
A13: LUCIANO CASTILLO COLONNA | B13: SULLANA | C13: 200601 | D13: HOSPITAL DE APOYO II - 2, SULLANA | E13: II-2 | F13: SULLANA | G13: NINGUN CLAS | H13: NO PERTENECE A NINGUNA MICRORED | I13: NO PERTENECE A NINGUNA RED | J13: HOSPITAL DE APOYO III SULLANA | K13: 1910 | L13: 3 | M13: 0 | N13: 0 | O13: 0 | P13: 0 | Q13: 0 | R13: 0 | S13: 0 | T13: 0 | U13: 0 | V13: 0 | W13: 0 | X13: 0 | Y13: 0 | Z13: 0 | AA13: 0 | AB13: 0 | AC13: 0 | AD13: 0 | AE13: 0 | AF13: 0 | AG13: 0 | AH13: 0 | AI13: 0 | AJ13: 0 | AK13: 0 | AL13: 0 | AM13: 0 | AN13: 0 | AO13: 0 | AP13: 0 | AQ13: 0 | AR13: 0 | AS13: 0 | AT13: 0 | AU13: 0 | AV13: 0 | AW13: 0 | AX13: 0 | AY13: 0 | AZ13: 0 | BA13: 0 | BB13: 0 | BC13: 9 | BD13: 10 | BE13: 4 | BF13: 5 | BG13: 1 | BH13: 1 | BI13: 1 | BJ13: 0 | BK13: 0 | BL13: 0 | BM13: 0 | BN13: 0 | BO13: 0 | BP13: 0 | BQ13: 0 | BR13: 0 | BS13: 0 | BT13: 0 | BU13: 0 | BV13: 0 | BW13: 0 | BX13: 0 | BY13: 0 | BZ13: 0 | CA13: 0 | CB13: 0 | CC13: 0 | CD13: 0 | CE13: 0 | CF13: 0 | CG13: 6 | CH13: 6 | CI13: 1 | CJ13: 3 | CK13: 1 | CL13: 0 | CM13: 0 | CN13: 0 | CO13: 0 | CP13: 0 | CQ13: 0 | CR13: 0 | CS13: 1 | CT13: 0 | CU13: 0 | CV13: 0 | CW13: 0 | CX13: 0 | CY13: 0 | CZ13: 0 | DA13: 0 | DB13: 0 | DC13: 0 | DD13: 0 | DE13: 0 | DF13: 0 | DG13: 0 | DH13: 0 | DI13: 0 | DJ13: 0 | DK13: 0 | DL13: 0 | DM13: 0 | DN13: 0 | DO13: 0 | DP13: 0 | DQ13: 0 | DR13: 0 | DS13: 0 | DT13: 0 | DU13: 0 | DV13: 0 | DW13: 5 | DX13: 6 | DY13: 6 | DZ13: 4 | EA13: 1 | EB13: 2 | EC13: 0 | ED13: 0 | EE13: 0 | EF13: 0 | EG13: 0 | EH13: 0 | EI13: 3 | EJ13: 10 | EK13: 3 | EL13: 3 | EM13: 0 | EN13: 1 | EO13: 0 | EP13: 0 | EQ13: 0 | ER13: 0 | ES13: 0 | ET13: 0 | EU13: 0 | EV13: 0 | EW13: 0 | EX13: 0 | EY13: 0 | EZ13: 0 | FA13: 0 | FB13: 0 | FC13: 0 | FD13: 0 | FE13: 0 | FF13: 0 | FG13: 0 | FH13: 0 | FI13: 0 | FJ13: 0 | FK13: 0 | FL13: 0 | FM13: 0 | FN13: 0 | FO13: 0 | FP13: 0 | FQ13: 0 | FR13: 0 | FS13: 0 | FT13: 0 | FU13: 0 | FV13: 0 | FW13: 0 | FX13: 0 | FY13: 2 | FZ13: 1 | GA13: 1 | GB13: 0 | GC13: 0 | GD13: 0 | GE13: 0 | GF13: 0 | GG13: 0 | GH13: 0 | GI13: 0 | GJ13: 0 | GK13: 0 | GL13: 0 | GM13: 0 | GN13: 0 | GO13: 0 | GP13: 0 | GQ13: 0 | GR13: 0 | GS13: 0 | GT13: 0 | GU13: 0 | GV13: 0 | GW13: 0 | GX13: 0 | GY13: 0 | GZ13: 0 | HA13: 0 | HB13: 0 | HC13: 0 | HD13: 0 | HE13: 0 | HF13: 0 | HG13: 0 | HH13: 0 | HI13: 0 | HJ13: 0 | HK13: 0 | HL13: 0 | HM13: 0 | HN13: 0 | HO13: 0 | HP13: 0 | HQ13: 0 | HR13: 0 | HS13: 0 | HT13: 0 | HU13: 0 | HV13: 0 | HW13: 0 | HX13: 0 | HY13: 0 | HZ13: 0 | IA13: 0 | IB13: 0 | IC13: 1 | ID13: 0 | IE13: 0 | IF13: 0 | IG13: 0 | IH13: 0 | II13: 0 | IJ13: 0 | IK13: 0 | IL13: 0 | IM13: 1 | IN13: 5 | IO13: 2 | IP13: 2 | IQ13: 0 | IR13: 1 | IS13: 0 | IT13: 0 | IU13: 0 | IV13: 0 | IW13: 0 | IX13: 0 | IY13: 0 | IZ13: 0 | JA13: 0 | JB13: 0 | JC13: 0 | JD13: 0 | JE13: 0 | JF13: 0 | JG13: 0 | JH13: 1 | JI13: 0 | JJ13: 0 | JK13: 3 | JL13: 1 | JM13: 0 | JN13: 0 | JO13: 0 | JP13: 0 | JQ13: 0 | JR13: 0 | JS13: 0 | JT13: 0 | JU13: 0 | JV13: 0 | JW13: 0 | JX13: 0 | JY13: 0 | JZ13: 0 | KA13: 0 | KB13: 0 | KC13: 0 | KD13: 0 | KE13: 0 | KF13: 0 | KG13: 0 | KH13: 0 | KI13: 0 | KJ13: 0 | KK13: 0 | KL13: 0 | KM13: 0 | KN13: 0 | KO13: 0 | KP13: 0 | KQ13: 0 | KR13: 0 | KS13: 0 | KT13: 0 | KU13: 0 | KV13: 0 | KW13: 0 | KX13: 0 | KY13: 0 | KZ13: 0 | LA13: 0 | LB13: 0 | LC13: 0 | LD13: 0 | LE13: 0 | LF13: 0 | LG13: 7 | LH13: 10 | LI13: 7 | LJ13: 2 | LK13: 3 | LL13: 4 | LM13: 0 | LN13: 0 | LO13: 0 | LP13: 0 | LQ13: 0 | LR13: 0
A14: LUCIANO CASTILLO COLONNA | B14: AYABACA | C14: 200201 | D14: AYABACA | E14: I-4 | F14: AYABACA | G14: NINGUN CLAS | H14: AYABACA | I14: AYABACA | J14: SALUD LUCIANO CASTILLO COLONNA | K14: 1911 | L14: 3 | M14: 0 | N14: 0 | O14: 0 | P14: 0 | Q14: 0 | R14: 0 | S14: 0 | T14: 2 | U14: 0 | V14: 0 | W14: 2 | X14: 2 | Y14: 0 | Z14: 0 | AA14: 0 | AB14: 0 | AC14: 0 | AD14: 0 | AE14: 0 | AF14: 0 | AG14: 0 | AH14: 0 | AI14: 0 | AJ14: 0 | AK14: 0 | AL14: 0 | AM14: 0 | AN14: 0 | AO14: 0 | AP14: 0 | AQ14: 0 | AR14: 0 | AS14: 0 | AT14: 0 | AU14: 0 | AV14: 0 | AW14: 0 | AX14: 1 | AY14: 0 | AZ14: 0 | BA14: 2 | BB14: 1 | BC14: 1 | BD14: 4 | BE14: 0 | BF14: 3 | BG14: 3 | BH14: 4 | BI14: 2 | BJ14: 0 | BK14: 4 | BL14: 0 | BM14: 0 | BN14: 0 | BO14: 0 | BP14: 0 | BQ14: 0 | BR14: 0 | BS14: 0 | BT14: 0 | BU14: 0 | BV14: 0 | BW14: 0 | BX14: 0 | BY14: 0 | BZ14: 0 | CA14: 0 | CB14: 0 | CC14: 0 | CD14: 0 | CE14: 0 | CF14: 0 | CG14: 1 | CH14: 3 | CI14: 0 | CJ14: 3 | CK14: 2 | CL14: 3 | CM14: 0 | CN14: 0 | CO14: 0 | CP14: 0 | CQ14: 0 | CR14: 0 | CS14: 0 | CT14: 0 | CU14: 0 | CV14: 0 | CW14: 0 | CX14: 0 | CY14: 0 | CZ14: 0 | DA14: 0 | DB14: 0 | DC14: 0 | DD14: 0 | DE14: 0 | DF14: 0 | DG14: 0 | DH14: 0 | DI14: 0 | DJ14: 0 | DK14: 0 | DL14: 0 | DM14: 0 | DN14: 0 | DO14: 0 | DP14: 0 | DQ14: 0 | DR14: 0 | DS14: 0 | DT14: 1 | DU14: 0 | DV14: 0 | DW14: 0 | DX14: 0 | DY14: 0 | DZ14: 0 | EA14: 0 | EB14: 0 | EC14: 0 | ED14: 0 | EE14: 1 | EF14: 0 | EG14: 0 | EH14: 1 | EI14: 0 | EJ14: 0 | EK14: 1 | EL14: 0 | EM14: 0 | EN14: 0 | EO14: 0 | EP14: 0 | EQ14: 0 | ER14: 0 | ES14: 0 | ET14: 0 | EU14: 0 | EV14: 0 | EW14: 0 | EX14: 0 | EY14: 0 | EZ14: 0 | FA14: 0 | FB14: 0 | FC14: 0 | FD14: 0 | FE14: 0 | FF14: 0 | FG14: 0 | FH14: 0 | FI14: 0 | FJ14: 0 | FK14: 0 | FL14: 0 | FM14: 0 | FN14: 0 | FO14: 0 | FP14: 0 | FQ14: 0 | FR14: 0 | FS14: 0 | FT14: 0 | FU14: 0 | FV14: 0 | FW14: 0 | FX14: 0 | FY14: 0 | FZ14: 0 | GA14: 0 | GB14: 0 | GC14: 0 | GD14: 0 | GE14: 0 | GF14: 0 | GG14: 0 | GH14: 0 | GI14: 0 | GJ14: 0 | GK14: 0 | GL14: 0 | GM14: 0 | GN14: 0 | GO14: 0 | GP14: 0 | GQ14: 0 | GR14: 0 | GS14: 0 | GT14: 0 | GU14: 0 | GV14: 0 | GW14: 0 | GX14: 0 | GY14: 0 | GZ14: 0 | HA14: 0 | HB14: 0 | HC14: 0 | HD14: 0 | HE14: 0 | HF14: 0 | HG14: 0 | HH14: 0 | HI14: 0 | HJ14: 0 | HK14: 0 | HL14: 0 | HM14: 0 | HN14: 0 | HO14: 0 | HP14: 0 | HQ14: 0 | HR14: 0 | HS14: 0 | HT14: 0 | HU14: 0 | HV14: 0 | HW14: 0 | HX14: 0 | HY14: 0 | HZ14: 0 | IA14: 0 | IB14: 2 | IC14: 0 | ID14: 0 | IE14: 3 | IF14: 2 | IG14: 0 | IH14: 0 | II14: 0 | IJ14: 0 | IK14: 0 | IL14: 0 | IM14: 5 | IN14: 4 | IO14: 2 | IP14: 3 | IQ14: 0 | IR14: 0 | IS14: 0 | IT14: 0 | IU14: 0 | IV14: 0 | IW14: 0 | IX14: 0 | IY14: 0 | IZ14: 0 | JA14: 0 | JB14: 0 | JC14: 0 | JD14: 0 | JE14: 0 | JF14: 0 | JG14: 0 | JH14: 0 | JI14: 0 | JJ14: 0 | JK14: 0 | JL14: 0 | JM14: 0 | JN14: 0 | JO14: 0 | JP14: 0 | JQ14: 0 | JR14: 0 | JS14: 0 | JT14: 0 | JU14: 0 | JV14: 0 | JW14: 0 | JX14: 0 | JY14: 0 | JZ14: 0 | KA14: 0 | KB14: 0 | KC14: 0 | KD14: 0 | KE14: 0 | KF14: 0 | KG14: 0 | KH14: 0 | KI14: 1 | KJ14: 0 | KK14: 0 | KL14: 0 | KM14: 0 | KN14: 0 | KO14: 0 | KP14: 0 | KQ14: 0 | KR14: 0 | KS14: 0 | KT14: 0 | KU14: 0 | KV14: 0 | KW14: 0 | KX14: 0 | KY14: 0 | KZ14: 0 | LA14: 0 | LB14: 0 | LC14: 0 | LD14: 0 | LE14: 0 | LF14: 0 | LG14: 5 | LH14: 5 | LI14: 4 | LJ14: 0 | LK14: 4 | LL14: 0 | LM14: 1 | LN14: 2 | LO14: 0 | LP14: 0 | LQ14: 0 | LR14: 0
A15: LUCIANO CASTILLO COLONNA | B15: AYABACA | C15: 200201 | D15: AYABACA | E15: I-4 | F15: AYABACA | G15: NINGUN CLAS | H15: AYABACA | I15: AYABACA | J15: SALUD LUCIANO CASTILLO COLONNA | K15: 1911 | L15: 2 | M15: 2 | N15: 5 | O15: 3 | P15: 6 | Q15: 2 | R15: 4 | S15: 1 | T15: 2 | U15: 2 | V15: 6 | W15: 0 | X15: 2 | Y15: 0 | Z15: 0 | AA15: 0 | AB15: 0 | AC15: 0 | AD15: 0 | AE15: 0 | AF15: 0 | AG15: 0 | AH15: 0 | AI15: 0 | AJ15: 0 | AK15: 0 | AL15: 0 | AM15: 0 | AN15: 0 | AO15: 0 | AP15: 0 | AQ15: 0 | AR15: 0 | AS15: 0 | AT15: 0 | AU15: 0 | AV15: 0 | AW15: 2 | AX15: 3 | AY15: 0 | AZ15: 1 | BA15: 0 | BB15: 0 | BC15: 1 | BD15: 3 | BE15: 1 | BF15: 1 | BG15: 0 | BH15: 0 | BI15: 0 | BJ15: 0 | BK15: 0 | BL15: 0 | BM15: 0 | BN15: 0 | BO15: 0 | BP15: 0 | BQ15: 0 | BR15: 0 | BS15: 0 | BT15: 0 | BU15: 0 | BV15: 0 | BW15: 0 | BX15: 0 | BY15: 0 | BZ15: 0 | CA15: 0 | CB15: 0 | CC15: 0 | CD15: 0 | CE15: 0 | CF15: 0 | CG15: 0 | CH15: 0 | CI15: 0 | CJ15: 0 | CK15: 0 | CL15: 0 | CM15: 0 | CN15: 0 | CO15: 0 | CP15: 0 | CQ15: 0 | CR15: 0 | CS15: 0 | CT15: 0 | CU15: 0 | CV15: 0 | CW15: 0 | CX15: 0 | CY15: 0 | CZ15: 0 | DA15: 0 | DB15: 0 | DC15: 0 | DD15: 0 | DE15: 0 | DF15: 0 | DG15: 0 | DH15: 0 | DI15: 0 | DJ15: 0 | DK15: 0 | DL15: 0 | DM15: 0 | DN15: 0 | DO15: 0 | DP15: 0 | DQ15: 1 | DR15: 0 | DS15: 0 | DT15: 1 | DU15: 0 | DV15: 0 | DW15: 0 | DX15: 0 | DY15: 0 | DZ15: 0 | EA15: 0 | EB15: 0 | EC15: 0 | ED15: 0 | EE15: 0 | EF15: 0 | EG15: 0 | EH15: 0 | EI15: 0 | EJ15: 0 | EK15: 0 | EL15: 0 | EM15: 0 | EN15: 0 | EO15: 0 | EP15: 0 | EQ15: 0 | ER15: 0 | ES15: 0 | ET15: 0 | EU15: 0 | EV15: 0 | EW15: 0 | EX15: 0 | EY15: 0 | EZ15: 0 | FA15: 0 | FB15: 0 | FC15: 0 | FD15: 0 | FE15: 0 | FF15: 0 | FG15: 0 | FH15: 0 | FI15: 0 | FJ15: 0 | FK15: 0 | FL15: 0 | FM15: 0 | FN15: 0 | FO15: 0 | FP15: 0 | FQ15: 0 | FR15: 0 | FS15: 0 | FT15: 0 | FU15: 0 | FV15: 0 | FW15: 0 | FX15: 0 | FY15: 0 | FZ15: 0 | GA15: 0 | GB15: 0 | GC15: 0 | GD15: 0 | GE15: 0 | GF15: 0 | GG15: 0 | GH15: 0 | GI15: 0 | GJ15: 0 | GK15: 0 | GL15: 0 | GM15: 0 | GN15: 0 | GO15: 0 | GP15: 0 | GQ15: 0 | GR15: 0 | GS15: 0 | GT15: 0 | GU15: 0 | GV15: 0 | GW15: 0 | GX15: 0 | GY15: 0 | GZ15: 0 | HA15: 0 | HB15: 0 | HC15: 0 | HD15: 0 | HE15: 0 | HF15: 0 | HG15: 0 | HH15: 0 | HI15: 0 | HJ15: 0 | HK15: 0 | HL15: 0 | HM15: 0 | HN15: 0 | HO15: 0 | HP15: 0 | HQ15: 0 | HR15: 0 | HS15: 0 | HT15: 0 | HU15: 0 | HV15: 0 | HW15: 0 | HX15: 0 | HY15: 0 | HZ15: 0 | IA15: 3 | IB15: 6 | IC15: 3 | ID15: 7 | IE15: 2 | IF15: 5 | IG15: 0 | IH15: 0 | II15: 0 | IJ15: 0 | IK15: 0 | IL15: 0 | IM15: 4 | IN15: 3 | IO15: 0 | IP15: 1 | IQ15: 0 | IR15: 0 | IS15: 0 | IT15: 0 | IU15: 0 | IV15: 0 | IW15: 0 | IX15: 0 | IY15: 0 | IZ15: 0 | JA15: 0 | JB15: 0 | JC15: 0 | JD15: 0 | JE15: 0 | JF15: 0 | JG15: 0 | JH15: 0 | JI15: 0 | JJ15: 0 | JK15: 0 | JL15: 0 | JM15: 0 | JN15: 0 | JO15: 0 | JP15: 0 | JQ15: 0 | JR15: 0 | JS15: 0 | JT15: 0 | JU15: 0 | JV15: 0 | JW15: 0 | JX15: 0 | JY15: 0 | JZ15: 0 | KA15: 0 | KB15: 0 | KC15: 0 | KD15: 0 | KE15: 0 | KF15: 0 | KG15: 0 | KH15: 0 | KI15: 3 | KJ15: 0 | KK15: 0 | KL15: 0 | KM15: 0 | KN15: 0 | KO15: 0 | KP15: 0 | KQ15: 0 | KR15: 0 | KS15: 0 | KT15: 0 | KU15: 0 | KV15: 0 | KW15: 0 | KX15: 0 | KY15: 0 | KZ15: 0 | LA15: 0 | LB15: 0 | LC15: 0 | LD15: 0 | LE15: 0 | LF15: 0 | LG15: 5 | LH15: 4 | LI15: 1 | LJ15: 8 | LK15: 6 | LL15: 5 | LM15: 0 | LN15: 0 | LO15: 0 | LP15: 1 | LQ15: 0 | LR15: 0
A16: LUCIANO CASTILLO COLONNA | B16: AYABACA | C16: 200201 | D16: AYABACA | E16: I-4 | F16: AYABACA | G16: NINGUN CLAS | H16: AYABACA | I16: AYABACA | J16: SALUD LUCIANO CASTILLO COLONNA | K16: 1911 | L16: 1 | M16: 0 | N16: 0 | O16: 0 | P16: 0 | Q16: 0 | R16: 0 | S16: 0 | T16: 0 | U16: 0 | V16: 0 | W16: 0 | X16: 0 | Y16: 0 | Z16: 0 | AA16: 0 | AB16: 0 | AC16: 0 | AD16: 0 | AE16: 0 | AF16: 0 | AG16: 0 | AH16: 0 | AI16: 0 | AJ16: 0 | AK16: 0 | AL16: 0 | AM16: 0 | AN16: 0 | AO16: 0 | AP16: 0 | AQ16: 0 | AR16: 0 | AS16: 0 | AT16: 0 | AU16: 0 | AV16: 0 | AW16: 0 | AX16: 0 | AY16: 0 | AZ16: 0 | BA16: 0 | BB16: 0 | BC16: 0 | BD16: 0 | BE16: 0 | BF16: 0 | BG16: 0 | BH16: 0 | BI16: 2 | BJ16: 0 | BK16: 0 | BL16: 0 | BM16: 0 | BN16: 0 | BO16: 0 | BP16: 0 | BQ16: 0 | BR16: 0 | BS16: 0 | BT16: 0 | BU16: 0 | BV16: 0 | BW16: 0 | BX16: 0 | BY16: 0 | BZ16: 0 | CA16: 0 | CB16: 0 | CC16: 0 | CD16: 0 | CE16: 0 | CF16: 0 | CG16: 0 | CH16: 0 | CI16: 0 | CJ16: 0 | CK16: 0 | CL16: 0 | CM16: 0 | CN16: 0 | CO16: 0 | CP16: 0 | CQ16: 0 | CR16: 0 | CS16: 0 | CT16: 0 | CU16: 0 | CV16: 0 | CW16: 0 | CX16: 0 | CY16: 0 | CZ16: 0 | DA16: 0 | DB16: 0 | DC16: 0 | DD16: 0 | DE16: 0 | DF16: 0 | DG16: 0 | DH16: 0 | DI16: 0 | DJ16: 0 | DK16: 0 | DL16: 0 | DM16: 0 | DN16: 0 | DO16: 0 | DP16: 0 | DQ16: 0 | DR16: 0 | DS16: 0 | DT16: 1 | DU16: 0 | DV16: 0 | DW16: 0 | DX16: 0 | DY16: 0 | DZ16: 0 | EA16: 0 | EB16: 0 | EC16: 0 | ED16: 0 | EE16: 0 | EF16: 0 | EG16: 0 | EH16: 0 | EI16: 0 | EJ16: 2 | EK16: 0 | EL16: 0 | EM16: 0 | EN16: 2 | EO16: 0 | EP16: 0 | EQ16: 0 | ER16: 0 | ES16: 0 | ET16: 0 | EU16: 0 | EV16: 0 | EW16: 0 | EX16: 0 | EY16: 0 | EZ16: 0 | FA16: 0 | FB16: 0 | FC16: 0 | FD16: 0 | FE16: 0 | FF16: 0 | FG16: 0 | FH16: 0 | FI16: 0 | FJ16: 0 | FK16: 0 | FL16: 0 | FM16: 0 | FN16: 0 | FO16: 0 | FP16: 0 | FQ16: 0 | FR16: 0 | FS16: 0 | FT16: 0 | FU16: 0 | FV16: 0 | FW16: 0 | FX16: 0 | FY16: 0 | FZ16: 0 | GA16: 0 | GB16: 0 | GC16: 0 | GD16: 0 | GE16: 0 | GF16: 0 | GG16: 0 | GH16: 0 | GI16: 0 | GJ16: 0 | GK16: 0 | GL16: 0 | GM16: 0 | GN16: 0 | GO16: 0 | GP16: 0 | GQ16: 0 | GR16: 0 | GS16: 0 | GT16: 0 | GU16: 0 | GV16: 0 | GW16: 0 | GX16: 0 | GY16: 0 | GZ16: 0 | HA16: 0 | HB16: 0 | HC16: 0 | HD16: 0 | HE16: 0 | HF16: 0 | HG16: 0 | HH16: 0 | HI16: 0 | HJ16: 0 | HK16: 0 | HL16: 0 | HM16: 0 | HN16: 0 | HO16: 0 | HP16: 0 | HQ16: 0 | HR16: 0 | HS16: 0 | HT16: 0 | HU16: 0 | HV16: 0 | HW16: 0 | HX16: 0 | HY16: 0 | HZ16: 0 | IA16: 0 | IB16: 0 | IC16: 0 | ID16: 0 | IE16: 0 | IF16: 0 | IG16: 0 | IH16: 0 | II16: 0 | IJ16: 0 | IK16: 0 | IL16: 0 | IM16: 0 | IN16: 2 | IO16: 0 | IP16: 0 | IQ16: 0 | IR16: 0 | IS16: 0 | IT16: 0 | IU16: 0 | IV16: 0 | IW16: 0 | IX16: 0 | IY16: 0 | IZ16: 0 | JA16: 0 | JB16: 0 | JC16: 0 | JD16: 0 | JE16: 0 | JF16: 0 | JG16: 0 | JH16: 1 | JI16: 0 | JJ16: 0 | JK16: 1 | JL16: 0 | JM16: 0 | JN16: 0 | JO16: 0 | JP16: 0 | JQ16: 0 | JR16: 0 | JS16: 0 | JT16: 0 | JU16: 0 | JV16: 0 | JW16: 1 | JX16: 0 | JY16: 0 | JZ16: 0 | KA16: 0 | KB16: 0 | KC16: 0 | KD16: 0 | KE16: 0 | KF16: 0 | KG16: 0 | KH16: 0 | KI16: 3 | KJ16: 0 | KK16: 0 | KL16: 0 | KM16: 0 | KN16: 0 | KO16: 0 | KP16: 0 | KQ16: 0 | KR16: 0 | KS16: 0 | KT16: 0 | KU16: 0 | KV16: 0 | KW16: 0 | KX16: 0 | KY16: 0 | KZ16: 0 | LA16: 0 | LB16: 0 | LC16: 0 | LD16: 0 | LE16: 0 | LF16: 0 | LG16: 1 | LH16: 6 | LI16: 1 | LJ16: 3 | LK16: 4 | LL16: 4 | LM16: 0 | LN16: 0 | LO16: 0 | LP16: 0 | LQ16: 0 | LR16: 0
A17: LUCIANO CASTILLO COLONNA | B17: AYABACA | C17: 200201 | D17: AYABACA | E17: I-4 | F17: AYABACA | G17: NINGUN CLAS | H17: AYABACA | I17: AYABACA | J17: SALUD LUCIANO CASTILLO COLONNA | K17: 1911 | L17: 4 | M17: 0 | N17: 1 | O17: 0 | P17: 0 | Q17: 0 | R17: 1 | S17: 3 | T17: 2 | U17: 1 | V17: 2 | W17: 6 | X17: 5 | Y17: 0 | Z17: 0 | AA17: 0 | AB17: 0 | AC17: 0 | AD17: 0 | AE17: 0 | AF17: 0 | AG17: 0 | AH17: 0 | AI17: 0 | AJ17: 0 | AK17: 0 | AL17: 0 | AM17: 0 | AN17: 0 | AO17: 0 | AP17: 0 | AQ17: 0 | AR17: 0 | AS17: 0 | AT17: 0 | AU17: 0 | AV17: 0 | AW17: 0 | AX17: 2 | AY17: 0 | AZ17: 1 | BA17: 1 | BB17: 0 | BC17: 1 | BD17: 6 | BE17: 0 | BF17: 2 | BG17: 0 | BH17: 3 | BI17: 4 | BJ17: 1 | BK17: 0 | BL17: 0 | BM17: 1 | BN17: 0 | BO17: 0 | BP17: 0 | BQ17: 0 | BR17: 0 | BS17: 0 | BT17: 0 | BU17: 0 | BV17: 0 | BW17: 0 | BX17: 0 | BY17: 0 | BZ17: 0 | CA17: 0 | CB17: 0 | CC17: 0 | CD17: 0 | CE17: 0 | CF17: 0 | CG17: 0 | CH17: 4 | CI17: 0 | CJ17: 2 | CK17: 0 | CL17: 3 | CM17: 0 | CN17: 0 | CO17: 0 | CP17: 0 | CQ17: 0 | CR17: 0 | CS17: 0 | CT17: 0 | CU17: 0 | CV17: 0 | CW17: 0 | CX17: 0 | CY17: 0 | CZ17: 0 | DA17: 0 | DB17: 0 | DC17: 0 | DD17: 0 | DE17: 0 | DF17: 0 | DG17: 0 | DH17: 0 | DI17: 0 | DJ17: 0 | DK17: 0 | DL17: 0 | DM17: 0 | DN17: 0 | DO17: 0 | DP17: 0 | DQ17: 0 | DR17: 0 | DS17: 0 | DT17: 2 | DU17: 0 | DV17: 1 | DW17: 0 | DX17: 0 | DY17: 0 | DZ17: 0 | EA17: 0 | EB17: 0 | EC17: 0 | ED17: 0 | EE17: 0 | EF17: 0 | EG17: 0 | EH17: 0 | EI17: 0 | EJ17: 0 | EK17: 0 | EL17: 0 | EM17: 0 | EN17: 0 | EO17: 0 | EP17: 0 | EQ17: 0 | ER17: 0 | ES17: 0 | ET17: 0 | EU17: 0 | EV17: 0 | EW17: 0 | EX17: 0 | EY17: 0 | EZ17: 0 | FA17: 0 | FB17: 0 | FC17: 0 | FD17: 0 | FE17: 0 | FF17: 0 | FG17: 0 | FH17: 0 | FI17: 0 | FJ17: 0 | FK17: 0 | FL17: 0 | FM17: 0 | FN17: 0 | FO17: 0 | FP17: 0 | FQ17: 0 | FR17: 0 | FS17: 0 | FT17: 0 | FU17: 0 | FV17: 0 | FW17: 0 | FX17: 0 | FY17: 0 | FZ17: 0 | GA17: 0 | GB17: 0 | GC17: 0 | GD17: 0 | GE17: 0 | GF17: 0 | GG17: 0 | GH17: 0 | GI17: 0 | GJ17: 0 | GK17: 0 | GL17: 0 | GM17: 0 | GN17: 0 | GO17: 0 | GP17: 0 | GQ17: 0 | GR17: 0 | GS17: 0 | GT17: 0 | GU17: 0 | GV17: 0 | GW17: 0 | GX17: 0 | GY17: 0 | GZ17: 0 | HA17: 0 | HB17: 0 | HC17: 0 | HD17: 0 | HE17: 0 | HF17: 0 | HG17: 0 | HH17: 0 | HI17: 0 | HJ17: 0 | HK17: 0 | HL17: 0 | HM17: 0 | HN17: 0 | HO17: 0 | HP17: 0 | HQ17: 0 | HR17: 0 | HS17: 0 | HT17: 0 | HU17: 0 | HV17: 0 | HW17: 0 | HX17: 0 | HY17: 0 | HZ17: 0 | IA17: 3 | IB17: 3 | IC17: 0 | ID17: 3 | IE17: 6 | IF17: 3 | IG17: 0 | IH17: 0 | II17: 0 | IJ17: 0 | IK17: 0 | IL17: 0 | IM17: 11 | IN17: 13 | IO17: 1 | IP17: 2 | IQ17: 0 | IR17: 0 | IS17: 0 | IT17: 0 | IU17: 0 | IV17: 0 | IW17: 0 | IX17: 0 | IY17: 0 | IZ17: 0 | JA17: 0 | JB17: 0 | JC17: 0 | JD17: 0 | JE17: 0 | JF17: 0 | JG17: 0 | JH17: 0 | JI17: 0 | JJ17: 0 | JK17: 0 | JL17: 0 | JM17: 0 | JN17: 0 | JO17: 0 | JP17: 0 | JQ17: 0 | JR17: 0 | JS17: 0 | JT17: 0 | JU17: 0 | JV17: 0 | JW17: 0 | JX17: 0 | JY17: 0 | JZ17: 0 | KA17: 0 | KB17: 0 | KC17: 0 | KD17: 0 | KE17: 0 | KF17: 0 | KG17: 0 | KH17: 0 | KI17: 6 | KJ17: 1 | KK17: 0 | KL17: 0 | KM17: 0 | KN17: 0 | KO17: 0 | KP17: 0 | KQ17: 0 | KR17: 0 | KS17: 0 | KT17: 0 | KU17: 0 | KV17: 0 | KW17: 0 | KX17: 0 | KY17: 0 | KZ17: 0 | LA17: 0 | LB17: 0 | LC17: 0 | LD17: 0 | LE17: 0 | LF17: 0 | LG17: 0 | LH17: 0 | LI17: 0 | LJ17: 1 | LK17: 0 | LL17: 1 | LM17: 0 | LN17: 0 | LO17: 0 | LP17: 0 | LQ17: 0 | LR17: 0
A18: LUCIANO CASTILLO COLONNA | B18: AYABACA | C18: 200201 | D18: AYABACA | E18: I-4 | F18: AYABACA | G18: NINGUN CLAS | H18: AYABACA | I18: AYABACA | J18: SALUD LUCIANO CASTILLO COLONNA | K18: 1911 | L18: 6 | M18: 0 | N18: 0 | O18: 0 | P18: 0 | Q18: 0 | R18: 0 | S18: 0 | T18: 0 | U18: 0 | V18: 0 | W18: 0 | X18: 0 | Y18: 0 | Z18: 0 | AA18: 0 | AB18: 0 | AC18: 0 | AD18: 0 | AE18: 0 | AF18: 0 | AG18: 0 | AH18: 0 | AI18: 0 | AJ18: 0 | AK18: 0 | AL18: 0 | AM18: 0 | AN18: 0 | AO18: 0 | AP18: 0 | AQ18: 0 | AR18: 0 | AS18: 0 | AT18: 0 | AU18: 0 | AV18: 0 | AW18: 1 | AX18: 4 | AY18: 1 | AZ18: 4 | BA18: 0 | BB18: 3 | BC18: 2 | BD18: 4 | BE18: 1 | BF18: 4 | BG18: 0 | BH18: 3 | BI18: 1 | BJ18: 0 | BK18: 0 | BL18: 1 | BM18: 0 | BN18: 0 | BO18: 0 | BP18: 0 | BQ18: 0 | BR18: 0 | BS18: 0 | BT18: 0 | BU18: 0 | BV18: 0 | BW18: 0 | BX18: 0 | BY18: 0 | BZ18: 0 | CA18: 0 | CB18: 0 | CC18: 0 | CD18: 0 | CE18: 0 | CF18: 0 | CG18: 0 | CH18: 0 | CI18: 0 | CJ18: 0 | CK18: 0 | CL18: 0 | CM18: 0 | CN18: 0 | CO18: 0 | CP18: 0 | CQ18: 0 | CR18: 0 | CS18: 0 | CT18: 0 | CU18: 0 | CV18: 0 | CW18: 0 | CX18: 0 | CY18: 0 | CZ18: 0 | DA18: 0 | DB18: 0 | DC18: 0 | DD18: 0 | DE18: 0 | DF18: 0 | DG18: 0 | DH18: 0 | DI18: 0 | DJ18: 0 | DK18: 0 | DL18: 0 | DM18: 0 | DN18: 0 | DO18: 0 | DP18: 0 | DQ18: 0 | DR18: 0 | DS18: 1 | DT18: 0 | DU18: 0 | DV18: 0 | DW18: 0 | DX18: 0 | DY18: 0 | DZ18: 0 | EA18: 0 | EB18: 0 | EC18: 0 | ED18: 0 | EE18: 1 | EF18: 0 | EG18: 0 | EH18: 0 | EI18: 0 | EJ18: 0 | EK18: 0 | EL18: 0 | EM18: 0 | EN18: 0 | EO18: 0 | EP18: 0 | EQ18: 0 | ER18: 0 | ES18: 0 | ET18: 0 | EU18: 0 | EV18: 0 | EW18: 0 | EX18: 0 | EY18: 0 | EZ18: 0 | FA18: 0 | FB18: 0 | FC18: 0 | FD18: 0 | FE18: 0 | FF18: 0 | FG18: 0 | FH18: 0 | FI18: 0 | FJ18: 0 | FK18: 0 | FL18: 0 | FM18: 0 | FN18: 0 | FO18: 0 | FP18: 0 | FQ18: 0 | FR18: 0 | FS18: 0 | FT18: 0 | FU18: 0 | FV18: 0 | FW18: 0 | FX18: 0 | FY18: 0 | FZ18: 0 | GA18: 0 | GB18: 0 | GC18: 0 | GD18: 0 | GE18: 0 | GF18: 0 | GG18: 0 | GH18: 0 | GI18: 0 | GJ18: 0 | GK18: 0 | GL18: 0 | GM18: 0 | GN18: 0 | GO18: 0 | GP18: 0 | GQ18: 0 | GR18: 0 | GS18: 0 | GT18: 0 | GU18: 0 | GV18: 0 | GW18: 0 | GX18: 0 | GY18: 0 | GZ18: 0 | HA18: 0 | HB18: 0 | HC18: 0 | HD18: 0 | HE18: 0 | HF18: 0 | HG18: 0 | HH18: 0 | HI18: 0 | HJ18: 0 | HK18: 0 | HL18: 0 | HM18: 0 | HN18: 0 | HO18: 0 | HP18: 0 | HQ18: 0 | HR18: 0 | HS18: 0 | HT18: 0 | HU18: 0 | HV18: 0 | HW18: 0 | HX18: 0 | HY18: 0 | HZ18: 0 | IA18: 0 | IB18: 0 | IC18: 0 | ID18: 0 | IE18: 0 | IF18: 0 | IG18: 0 | IH18: 0 | II18: 0 | IJ18: 0 | IK18: 0 | IL18: 0 | IM18: 1 | IN18: 4 | IO18: 1 | IP18: 0 | IQ18: 0 | IR18: 0 | IS18: 0 | IT18: 0 | IU18: 0 | IV18: 0 | IW18: 0 | IX18: 0 | IY18: 0 | IZ18: 0 | JA18: 0 | JB18: 0 | JC18: 0 | JD18: 0 | JE18: 0 | JF18: 0 | JG18: 0 | JH18: 1 | JI18: 1 | JJ18: 0 | JK18: 0 | JL18: 0 | JM18: 0 | JN18: 0 | JO18: 0 | JP18: 0 | JQ18: 0 | JR18: 0 | JS18: 0 | JT18: 0 | JU18: 0 | JV18: 0 | JW18: 0 | JX18: 0 | JY18: 0 | JZ18: 0 | KA18: 0 | KB18: 0 | KC18: 0 | KD18: 0 | KE18: 0 | KF18: 0 | KG18: 0 | KH18: 0 | KI18: 4 | KJ18: 0 | KK18: 0 | KL18: 0 | KM18: 0 | KN18: 0 | KO18: 0 | KP18: 0 | KQ18: 0 | KR18: 0 | KS18: 0 | KT18: 0 | KU18: 0 | KV18: 0 | KW18: 0 | KX18: 0 | KY18: 0 | KZ18: 0 | LA18: 0 | LB18: 0 | LC18: 0 | LD18: 0 | LE18: 0 | LF18: 0 | LG18: 0 | LH18: 0 | LI18: 1 | LJ18: 0 | LK18: 0 | LL18: 0 | LM18: 0 | LN18: 0 | LO18: 0 | LP18: 0 | LQ18: 0 | LR18: 0
A19: LUCIANO CASTILLO COLONNA | B19: AYABACA | C19: 200201 | D19: AYABACA | E19: I-4 | F19: AYABACA | G19: NINGUN CLAS | H19: AYABACA | I19: AYABACA | J19: SALUD LUCIANO CASTILLO COLONNA | K19: 1911 | L19: 5 | M19: 0 | N19: 2 | O19: 1 | P19: 4 | Q19: 0 | R19: 0 | S19: 0 | T19: 3 | U19: 1 | V19: 3 | W19: 1 | X19: 0 | Y19: 0 | Z19: 0 | AA19: 0 | AB19: 0 | AC19: 0 | AD19: 0 | AE19: 0 | AF19: 0 | AG19: 0 | AH19: 0 | AI19: 0 | AJ19: 0 | AK19: 0 | AL19: 0 | AM19: 0 | AN19: 0 | AO19: 0 | AP19: 0 | AQ19: 0 | AR19: 0 | AS19: 0 | AT19: 0 | AU19: 0 | AV19: 0 | AW19: 1 | AX19: 2 | AY19: 3 | AZ19: 1 | BA19: 2 | BB19: 1 | BC19: 1 | BD19: 1 | BE19: 2 | BF19: 1 | BG19: 0 | BH19: 0 | BI19: 0 | BJ19: 0 | BK19: 2 | BL19: 1 | BM19: 1 | BN19: 1 | BO19: 0 | BP19: 0 | BQ19: 0 | BR19: 0 | BS19: 0 | BT19: 0 | BU19: 0 | BV19: 0 | BW19: 0 | BX19: 0 | BY19: 0 | BZ19: 0 | CA19: 0 | CB19: 0 | CC19: 0 | CD19: 0 | CE19: 0 | CF19: 0 | CG19: 0 | CH19: 0 | CI19: 0 | CJ19: 0 | CK19: 0 | CL19: 0 | CM19: 0 | CN19: 0 | CO19: 0 | CP19: 0 | CQ19: 0 | CR19: 0 | CS19: 0 | CT19: 0 | CU19: 0 | CV19: 0 | CW19: 0 | CX19: 0 | CY19: 0 | CZ19: 0 | DA19: 0 | DB19: 0 | DC19: 0 | DD19: 0 | DE19: 0 | DF19: 0 | DG19: 0 | DH19: 0 | DI19: 0 | DJ19: 0 | DK19: 0 | DL19: 0 | DM19: 0 | DN19: 0 | DO19: 0 | DP19: 0 | DQ19: 0 | DR19: 0 | DS19: 0 | DT19: 1 | DU19: 1 | DV19: 0 | DW19: 0 | DX19: 3 | DY19: 1 | DZ19: 4 | EA19: 0 | EB19: 0 | EC19: 0 | ED19: 3 | EE19: 0 | EF19: 1 | EG19: 0 | EH19: 0 | EI19: 0 | EJ19: 0 | EK19: 1 | EL19: 0 | EM19: 0 | EN19: 0 | EO19: 0 | EP19: 0 | EQ19: 0 | ER19: 0 | ES19: 0 | ET19: 0 | EU19: 0 | EV19: 0 | EW19: 0 | EX19: 0 | EY19: 0 | EZ19: 0 | FA19: 0 | FB19: 0 | FC19: 0 | FD19: 0 | FE19: 0 | FF19: 0 | FG19: 0 | FH19: 0 | FI19: 0 | FJ19: 0 | FK19: 0 | FL19: 0 | FM19: 0 | FN19: 0 | FO19: 0 | FP19: 0 | FQ19: 0 | FR19: 0 | FS19: 0 | FT19: 0 | FU19: 0 | FV19: 0 | FW19: 0 | FX19: 0 | FY19: 0 | FZ19: 0 | GA19: 0 | GB19: 0 | GC19: 0 | GD19: 0 | GE19: 0 | GF19: 0 | GG19: 0 | GH19: 0 | GI19: 0 | GJ19: 0 | GK19: 0 | GL19: 0 | GM19: 0 | GN19: 0 | GO19: 0 | GP19: 0 | GQ19: 0 | GR19: 0 | GS19: 0 | GT19: 0 | GU19: 0 | GV19: 0 | GW19: 0 | GX19: 0 | GY19: 0 | GZ19: 0 | HA19: 0 | HB19: 0 | HC19: 0 | HD19: 0 | HE19: 0 | HF19: 0 | HG19: 0 | HH19: 0 | HI19: 0 | HJ19: 0 | HK19: 0 | HL19: 0 | HM19: 0 | HN19: 0 | HO19: 0 | HP19: 0 | HQ19: 0 | HR19: 0 | HS19: 0 | HT19: 0 | HU19: 0 | HV19: 4 | HW19: 1 | HX19: 5 | HY19: 0 | HZ19: 0 | IA19: 0 | IB19: 5 | IC19: 2 | ID19: 7 | IE19: 1 | IF19: 0 | IG19: 0 | IH19: 0 | II19: 0 | IJ19: 0 | IK19: 0 | IL19: 0 | IM19: 6 | IN19: 5 | IO19: 5 | IP19: 1 | IQ19: 2 | IR19: 0 | IS19: 0 | IT19: 0 | IU19: 0 | IV19: 0 | IW19: 0 | IX19: 0 | IY19: 4 | IZ19: 0 | JA19: 0 | JB19: 2 | JC19: 4 | JD19: 3 | JE19: 0 | JF19: 0 | JG19: 0 | JH19: 2 | JI19: 0 | JJ19: 0 | JK19: 0 | JL19: 0 | JM19: 0 | JN19: 0 | JO19: 0 | JP19: 0 | JQ19: 0 | JR19: 0 | JS19: 0 | JT19: 0 | JU19: 0 | JV19: 0 | JW19: 0 | JX19: 0 | JY19: 0 | JZ19: 0 | KA19: 0 | KB19: 0 | KC19: 0 | KD19: 0 | KE19: 0 | KF19: 0 | KG19: 0 | KH19: 0 | KI19: 2 | KJ19: 0 | KK19: 0 | KL19: 0 | KM19: 0 | KN19: 0 | KO19: 0 | KP19: 0 | KQ19: 0 | KR19: 0 | KS19: 0 | KT19: 0 | KU19: 0 | KV19: 0 | KW19: 0 | KX19: 0 | KY19: 0 | KZ19: 0 | LA19: 0 | LB19: 0 | LC19: 0 | LD19: 0 | LE19: 0 | LF19: 0 | LG19: 0 | LH19: 0 | LI19: 0 | LJ19: 0 | LK19: 0 | LL19: 0 | LM19: 0 | LN19: 1 | LO19: 0 | LP19: 1 | LQ19: 0 | LR19: 0
A20: LUCIANO CASTILLO COLONNA | B20: AYABACA | C20: 200201 | D20: AYABACA | E20: I-4 | F20: AYABACA | G20: NINGUN CLAS | H20: AYABACA | I20: AYABACA | J20: SALUD LUCIANO CASTILLO COLONNA | K20: 1911 | L20: 8 | M20: 0 | N20: 0 | O20: 0 | P20: 0 | Q20: 0 | R20: 0 | S20: 0 | T20: 0 | U20: 0 | V20: 0 | W20: 0 | X20: 0 | Y20: 0 | Z20: 0 | AA20: 0 | AB20: 0 | AC20: 0 | AD20: 0 | AE20: 0 | AF20: 0 | AG20: 0 | AH20: 0 | AI20: 0 | AJ20: 0 | AK20: 0 | AL20: 0 | AM20: 0 | AN20: 0 | AO20: 0 | AP20: 0 | AQ20: 0 | AR20: 0 | AS20: 0 | AT20: 0 | AU20: 0 | AV20: 0 | AW20: 1 | AX20: 2 | AY20: 1 | AZ20: 1 | BA20: 0 | BB20: 0 | BC20: 1 | BD20: 1 | BE20: 0 | BF20: 0 | BG20: 0 | BH20: 0 | BI20: 1 | BJ20: 0 | BK20: 0 | BL20: 0 | BM20: 0 | BN20: 0 | BO20: 0 | BP20: 0 | BQ20: 0 | BR20: 0 | BS20: 0 | BT20: 0 | BU20: 0 | BV20: 0 | BW20: 0 | BX20: 0 | BY20: 0 | BZ20: 0 | CA20: 0 | CB20: 0 | CC20: 0 | CD20: 0 | CE20: 0 | CF20: 0 | CG20: 0 | CH20: 0 | CI20: 0 | CJ20: 0 | CK20: 0 | CL20: 0 | CM20: 0 | CN20: 0 | CO20: 0 | CP20: 0 | CQ20: 0 | CR20: 0 | CS20: 0 | CT20: 0 | CU20: 0 | CV20: 0 | CW20: 0 | CX20: 0 | CY20: 0 | CZ20: 0 | DA20: 0 | DB20: 0 | DC20: 0 | DD20: 0 | DE20: 0 | DF20: 0 | DG20: 0 | DH20: 0 | DI20: 0 | DJ20: 0 | DK20: 0 | DL20: 0 | DM20: 0 | DN20: 0 | DO20: 0 | DP20: 0 | DQ20: 0 | DR20: 0 | DS20: 0 | DT20: 0 | DU20: 0 | DV20: 0 | DW20: 0 | DX20: 0 | DY20: 0 | DZ20: 0 | EA20: 0 | EB20: 0 | EC20: 0 | ED20: 0 | EE20: 0 | EF20: 0 | EG20: 0 | EH20: 0 | EI20: 0 | EJ20: 0 | EK20: 0 | EL20: 0 | EM20: 0 | EN20: 0 | EO20: 0 | EP20: 0 | EQ20: 0 | ER20: 0 | ES20: 0 | ET20: 0 | EU20: 0 | EV20: 0 | EW20: 0 | EX20: 0 | EY20: 0 | EZ20: 0 | FA20: 0 | FB20: 0 | FC20: 0 | FD20: 0 | FE20: 0 | FF20: 0 | FG20: 0 | FH20: 0 | FI20: 0 | FJ20: 0 | FK20: 0 | FL20: 0 | FM20: 0 | FN20: 0 | FO20: 0 | FP20: 0 | FQ20: 0 | FR20: 0 | FS20: 0 | FT20: 0 | FU20: 0 | FV20: 0 | FW20: 0 | FX20: 0 | FY20: 0 | FZ20: 0 | GA20: 0 | GB20: 0 | GC20: 0 | GD20: 0 | GE20: 0 | GF20: 0 | GG20: 0 | GH20: 0 | GI20: 0 | GJ20: 0 | GK20: 0 | GL20: 0 | GM20: 0 | GN20: 0 | GO20: 0 | GP20: 0 | GQ20: 0 | GR20: 0 | GS20: 0 | GT20: 0 | GU20: 0 | GV20: 0 | GW20: 0 | GX20: 0 | GY20: 0 | GZ20: 0 | HA20: 0 | HB20: 0 | HC20: 0 | HD20: 0 | HE20: 0 | HF20: 0 | HG20: 0 | HH20: 0 | HI20: 0 | HJ20: 0 | HK20: 0 | HL20: 0 | HM20: 0 | HN20: 0 | HO20: 0 | HP20: 0 | HQ20: 0 | HR20: 0 | HS20: 0 | HT20: 0 | HU20: 0 | HV20: 0 | HW20: 0 | HX20: 0 | HY20: 0 | HZ20: 0 | IA20: 0 | IB20: 0 | IC20: 0 | ID20: 0 | IE20: 0 | IF20: 0 | IG20: 0 | IH20: 0 | II20: 0 | IJ20: 0 | IK20: 0 | IL20: 0 | IM20: 0 | IN20: 1 | IO20: 1 | IP20: 0 | IQ20: 0 | IR20: 0 | IS20: 0 | IT20: 0 | IU20: 0 | IV20: 0 | IW20: 0 | IX20: 0 | IY20: 0 | IZ20: 0 | JA20: 0 | JB20: 0 | JC20: 0 | JD20: 0 | JE20: 0 | JF20: 0 | JG20: 0 | JH20: 0 | JI20: 0 | JJ20: 0 | JK20: 2 | JL20: 0 | JM20: 0 | JN20: 0 | JO20: 0 | JP20: 0 | JQ20: 0 | JR20: 0 | JS20: 0 | JT20: 0 | JU20: 0 | JV20: 0 | JW20: 0 | JX20: 0 | JY20: 0 | JZ20: 0 | KA20: 0 | KB20: 0 | KC20: 0 | KD20: 0 | KE20: 0 | KF20: 0 | KG20: 0 | KH20: 0 | KI20: 0 | KJ20: 0 | KK20: 0 | KL20: 0 | KM20: 0 | KN20: 0 | KO20: 0 | KP20: 0 | KQ20: 0 | KR20: 0 | KS20: 0 | KT20: 0 | KU20: 0 | KV20: 0 | KW20: 0 | KX20: 0 | KY20: 0 | KZ20: 0 | LA20: 0 | LB20: 0 | LC20: 0 | LD20: 0 | LE20: 0 | LF20: 0 | LG20: 0 | LH20: 0 | LI20: 0 | LJ20: 0 | LK20: 0 | LL20: 0 | LM20: 0 | LN20: 0 | LO20: 0 | LP20: 0 | LQ20: 0 | LR20: 0
A21: LUCIANO CASTILLO COLONNA | B21: AYABACA | C21: 200201 | D21: AYABACA | E21: I-4 | F21: AYABACA | G21: NINGUN CLAS | H21: AYABACA | I21: AYABACA | J21: SALUD LUCIANO CASTILLO COLONNA | K21: 1911 | L21: 7 | M21: 0 | N21: 0 | O21: 0 | P21: 0 | Q21: 0 | R21: 0 | S21: 0 | T21: 0 | U21: 0 | V21: 0 | W21: 0 | X21: 0 | Y21: 0 | Z21: 0 | AA21: 0 | AB21: 0 | AC21: 0 | AD21: 0 | AE21: 0 | AF21: 0 | AG21: 0 | AH21: 0 | AI21: 0 | AJ21: 0 | AK21: 0 | AL21: 0 | AM21: 0 | AN21: 0 | AO21: 0 | AP21: 0 | AQ21: 0 | AR21: 0 | AS21: 0 | AT21: 0 | AU21: 0 | AV21: 0 | AW21: 0 | AX21: 7 | AY21: 1 | AZ21: 2 | BA21: 0 | BB21: 2 | BC21: 0 | BD21: 8 | BE21: 1 | BF21: 2 | BG21: 0 | BH21: 2 | BI21: 0 | BJ21: 1 | BK21: 0 | BL21: 0 | BM21: 0 | BN21: 0 | BO21: 0 | BP21: 0 | BQ21: 0 | BR21: 0 | BS21: 0 | BT21: 0 | BU21: 0 | BV21: 0 | BW21: 0 | BX21: 0 | BY21: 0 | BZ21: 0 | CA21: 0 | CB21: 0 | CC21: 0 | CD21: 0 | CE21: 0 | CF21: 0 | CG21: 0 | CH21: 0 | CI21: 0 | CJ21: 0 | CK21: 0 | CL21: 0 | CM21: 0 | CN21: 0 | CO21: 0 | CP21: 0 | CQ21: 0 | CR21: 0 | CS21: 0 | CT21: 0 | CU21: 0 | CV21: 0 | CW21: 0 | CX21: 0 | CY21: 0 | CZ21: 0 | DA21: 0 | DB21: 0 | DC21: 0 | DD21: 0 | DE21: 0 | DF21: 0 | DG21: 0 | DH21: 0 | DI21: 0 | DJ21: 0 | DK21: 0 | DL21: 0 | DM21: 0 | DN21: 0 | DO21: 0 | DP21: 0 | DQ21: 0 | DR21: 0 | DS21: 0 | DT21: 0 | DU21: 0 | DV21: 0 | DW21: 0 | DX21: 0 | DY21: 0 | DZ21: 0 | EA21: 0 | EB21: 0 | EC21: 0 | ED21: 0 | EE21: 0 | EF21: 0 | EG21: 0 | EH21: 0 | EI21: 0 | EJ21: 0 | EK21: 0 | EL21: 0 | EM21: 0 | EN21: 0 | EO21: 0 | EP21: 0 | EQ21: 0 | ER21: 0 | ES21: 0 | ET21: 0 | EU21: 0 | EV21: 0 | EW21: 0 | EX21: 0 | EY21: 0 | EZ21: 0 | FA21: 0 | FB21: 0 | FC21: 0 | FD21: 0 | FE21: 0 | FF21: 0 | FG21: 0 | FH21: 0 | FI21: 0 | FJ21: 0 | FK21: 0 | FL21: 0 | FM21: 0 | FN21: 0 | FO21: 0 | FP21: 0 | FQ21: 0 | FR21: 0 | FS21: 0 | FT21: 0 | FU21: 0 | FV21: 0 | FW21: 0 | FX21: 0 | FY21: 0 | FZ21: 0 | GA21: 0 | GB21: 0 | GC21: 0 | GD21: 0 | GE21: 0 | GF21: 0 | GG21: 0 | GH21: 0 | GI21: 0 | GJ21: 0 | GK21: 0 | GL21: 0 | GM21: 0 | GN21: 0 | GO21: 0 | GP21: 0 | GQ21: 0 | GR21: 0 | GS21: 0 | GT21: 0 | GU21: 0 | GV21: 0 | GW21: 0 | GX21: 0 | GY21: 0 | GZ21: 0 | HA21: 0 | HB21: 0 | HC21: 0 | HD21: 0 | HE21: 0 | HF21: 0 | HG21: 0 | HH21: 0 | HI21: 0 | HJ21: 0 | HK21: 0 | HL21: 0 | HM21: 0 | HN21: 0 | HO21: 0 | HP21: 0 | HQ21: 0 | HR21: 0 | HS21: 0 | HT21: 0 | HU21: 1 | HV21: 1 | HW21: 1 | HX21: 0 | HY21: 0 | HZ21: 0 | IA21: 1 | IB21: 1 | IC21: 1 | ID21: 0 | IE21: 0 | IF21: 0 | IG21: 0 | IH21: 0 | II21: 0 | IJ21: 0 | IK21: 0 | IL21: 0 | IM21: 0 | IN21: 0 | IO21: 0 | IP21: 0 | IQ21: 0 | IR21: 0 | IS21: 0 | IT21: 0 | IU21: 0 | IV21: 0 | IW21: 0 | IX21: 0 | IY21: 0 | IZ21: 0 | JA21: 0 | JB21: 0 | JC21: 0 | JD21: 0 | JE21: 0 | JF21: 0 | JG21: 0 | JH21: 0 | JI21: 0 | JJ21: 0 | JK21: 0 | JL21: 0 | JM21: 0 | JN21: 0 | JO21: 0 | JP21: 0 | JQ21: 0 | JR21: 0 | JS21: 0 | JT21: 0 | JU21: 0 | JV21: 0 | JW21: 0 | JX21: 0 | JY21: 0 | JZ21: 0 | KA21: 0 | KB21: 0 | KC21: 0 | KD21: 0 | KE21: 0 | KF21: 0 | KG21: 0 | KH21: 0 | KI21: 0 | KJ21: 0 | KK21: 0 | KL21: 0 | KM21: 0 | KN21: 0 | KO21: 0 | KP21: 0 | KQ21: 0 | KR21: 0 | KS21: 0 | KT21: 0 | KU21: 0 | KV21: 0 | KW21: 0 | KX21: 0 | KY21: 0 | KZ21: 0 | LA21: 0 | LB21: 0 | LC21: 0 | LD21: 0 | LE21: 0 | LF21: 0 | LG21: 0 | LH21: 0 | LI21: 0 | LJ21: 0 | LK21: 0 | LL21: 0 | LM21: 0 | LN21: 1 | LO21: 0 | LP21: 0 | LQ21: 0 | LR21: 0
A22: LUCIANO CASTILLO COLONNA | B22: AYABACA | C22: 200201 | D22: AYABACA | E22: I-4 | F22: AYABACA | G22: NINGUN CLAS | H22: AYABACA | I22: AYABACA | J22: SALUD LUCIANO CASTILLO COLONNA | K22: 1911 | L22: 9 | M22: 0 | N22: 0 | O22: 0 | P22: 0 | Q22: 0 | R22: 0 | S22: 0 | T22: 0 | U22: 0 | V22: 0 | W22: 0 | X22: 0 | Y22: 0 | Z22: 0 | AA22: 0 | AB22: 0 | AC22: 1 | AD22: 1 | AE22: 0 | AF22: 0 | AG22: 0 | AH22: 0 | AI22: 0 | AJ22: 0 | AK22: 0 | AL22: 0 | AM22: 0 | AN22: 0 | AO22: 1 | AP22: 1 | AQ22: 0 | AR22: 0 | AS22: 0 | AT22: 0 | AU22: 0 | AV22: 0 | AW22: 1 | AX22: 2 | AY22: 2 | AZ22: 0 | BA22: 0 | BB22: 0 | BC22: 1 | BD22: 0 | BE22: 1 | BF22: 0 | BG22: 0 | BH22: 1 | BI22: 0 | BJ22: 0 | BK22: 0 | BL22: 0 | BM22: 0 | BN22: 0 | BO22: 0 | BP22: 0 | BQ22: 0 | BR22: 0 | BS22: 0 | BT22: 0 | BU22: 0 | BV22: 0 | BW22: 0 | BX22: 0 | BY22: 0 | BZ22: 0 | CA22: 0 | CB22: 0 | CC22: 0 | CD22: 0 | CE22: 0 | CF22: 0 | CG22: 0 | CH22: 0 | CI22: 0 | CJ22: 0 | CK22: 0 | CL22: 0 | CM22: 0 | CN22: 0 | CO22: 0 | CP22: 0 | CQ22: 0 | CR22: 0 | CS22: 0 | CT22: 0 | CU22: 0 | CV22: 0 | CW22: 0 | CX22: 0 | CY22: 0 | CZ22: 0 | DA22: 0 | DB22: 0 | DC22: 0 | DD22: 0 | DE22: 0 | DF22: 0 | DG22: 0 | DH22: 0 | DI22: 0 | DJ22: 0 | DK22: 0 | DL22: 0 | DM22: 0 | DN22: 0 | DO22: 0 | DP22: 0 | DQ22: 0 | DR22: 0 | DS22: 0 | DT22: 0 | DU22: 0 | DV22: 0 | DW22: 0 | DX22: 0 | DY22: 0 | DZ22: 0 | EA22: 0 | EB22: 0 | EC22: 0 | ED22: 0 | EE22: 0 | EF22: 0 | EG22: 0 | EH22: 0 | EI22: 0 | EJ22: 0 | EK22: 0 | EL22: 0 | EM22: 0 | EN22: 0 | EO22: 0 | EP22: 0 | EQ22: 0 | ER22: 0 | ES22: 0 | ET22: 0 | EU22: 0 | EV22: 0 | EW22: 0 | EX22: 0 | EY22: 0 | EZ22: 0 | FA22: 0 | FB22: 0 | FC22: 0 | FD22: 0 | FE22: 0 | FF22: 0 | FG22: 0 | FH22: 0 | FI22: 0 | FJ22: 0 | FK22: 0 | FL22: 0 | FM22: 0 | FN22: 0 | FO22: 0 | FP22: 0 | FQ22: 0 | FR22: 0 | FS22: 0 | FT22: 0 | FU22: 0 | FV22: 0 | FW22: 0 | FX22: 0 | FY22: 0 | FZ22: 0 | GA22: 0 | GB22: 0 | GC22: 0 | GD22: 0 | GE22: 0 | GF22: 0 | GG22: 0 | GH22: 0 | GI22: 0 | GJ22: 0 | GK22: 0 | GL22: 0 | GM22: 0 | GN22: 0 | GO22: 0 | GP22: 0 | GQ22: 0 | GR22: 0 | GS22: 0 | GT22: 0 | GU22: 0 | GV22: 0 | GW22: 0 | GX22: 0 | GY22: 0 | GZ22: 0 | HA22: 0 | HB22: 0 | HC22: 0 | HD22: 0 | HE22: 0 | HF22: 0 | HG22: 0 | HH22: 0 | HI22: 0 | HJ22: 0 | HK22: 0 | HL22: 0 | HM22: 0 | HN22: 0 | HO22: 0 | HP22: 0 | HQ22: 0 | HR22: 0 | HS22: 0 | HT22: 0 | HU22: 0 | HV22: 0 | HW22: 0 | HX22: 0 | HY22: 0 | HZ22: 0 | IA22: 0 | IB22: 0 | IC22: 0 | ID22: 0 | IE22: 1 | IF22: 1 | IG22: 0 | IH22: 0 | II22: 0 | IJ22: 0 | IK22: 0 | IL22: 0 | IM22: 0 | IN22: 0 | IO22: 0 | IP22: 1 | IQ22: 0 | IR22: 0 | IS22: 0 | IT22: 0 | IU22: 0 | IV22: 0 | IW22: 0 | IX22: 0 | IY22: 0 | IZ22: 0 | JA22: 0 | JB22: 0 | JC22: 0 | JD22: 0 | JE22: 0 | JF22: 0 | JG22: 0 | JH22: 0 | JI22: 1 | JJ22: 0 | JK22: 1 | JL22: 0 | JM22: 0 | JN22: 0 | JO22: 0 | JP22: 0 | JQ22: 0 | JR22: 0 | JS22: 0 | JT22: 0 | JU22: 0 | JV22: 0 | JW22: 0 | JX22: 0 | JY22: 0 | JZ22: 0 | KA22: 0 | KB22: 0 | KC22: 0 | KD22: 0 | KE22: 0 | KF22: 0 | KG22: 0 | KH22: 0 | KI22: 0 | KJ22: 1 | KK22: 0 | KL22: 0 | KM22: 0 | KN22: 0 | KO22: 0 | KP22: 0 | KQ22: 0 | KR22: 0 | KS22: 0 | KT22: 0 | KU22: 0 | KV22: 0 | KW22: 0 | KX22: 0 | KY22: 0 | KZ22: 0 | LA22: 0 | LB22: 0 | LC22: 0 | LD22: 0 | LE22: 0 | LF22: 0 | LG22: 0 | LH22: 0 | LI22: 0 | LJ22: 0 | LK22: 0 | LL22: 0 | LM22: 0 | LN22: 1 | LO22: 0 | LP22: 0 | LQ22: 0 | LR22: 0
A23: LUCIANO CASTILLO COLONNA | B23: AYABACA | C23: 200201 | D23: AYABACA | E23: I-4 | F23: AYABACA | G23: NINGUN CLAS | H23: AYABACA | I23: AYABACA | J23: SALUD LUCIANO CASTILLO COLONNA | K23: 1911 | L23: 10 | M23: 0 | N23: 0 | O23: 0 | P23: 0 | Q23: 0 | R23: 0 | S23: 0 | T23: 0 | U23: 0 | V23: 0 | W23: 0 | X23: 0 | Y23: 0 | Z23: 0 | AA23: 0 | AB23: 0 | AC23: 0 | AD23: 0 | AE23: 0 | AF23: 0 | AG23: 0 | AH23: 0 | AI23: 0 | AJ23: 0 | AK23: 0 | AL23: 0 | AM23: 0 | AN23: 0 | AO23: 0 | AP23: 0 | AQ23: 0 | AR23: 0 | AS23: 0 | AT23: 0 | AU23: 0 | AV23: 0 | AW23: 2 | AX23: 4 | AY23: 1 | AZ23: 3 | BA23: 0 | BB23: 0 | BC23: 0 | BD23: 2 | BE23: 2 | BF23: 0 | BG23: 0 | BH23: 0 | BI23: 0 | BJ23: 0 | BK23: 0 | BL23: 0 | BM23: 0 | BN23: 0 | BO23: 0 | BP23: 0 | BQ23: 0 | BR23: 0 | BS23: 0 | BT23: 0 | BU23: 0 | BV23: 0 | BW23: 0 | BX23: 0 | BY23: 0 | BZ23: 0 | CA23: 0 | CB23: 0 | CC23: 0 | CD23: 0 | CE23: 0 | CF23: 0 | CG23: 0 | CH23: 0 | CI23: 0 | CJ23: 0 | CK23: 0 | CL23: 0 | CM23: 0 | CN23: 0 | CO23: 0 | CP23: 0 | CQ23: 0 | CR23: 0 | CS23: 0 | CT23: 0 | CU23: 0 | CV23: 0 | CW23: 0 | CX23: 0 | CY23: 0 | CZ23: 0 | DA23: 0 | DB23: 0 | DC23: 0 | DD23: 0 | DE23: 0 | DF23: 0 | DG23: 0 | DH23: 0 | DI23: 0 | DJ23: 0 | DK23: 0 | DL23: 0 | DM23: 0 | DN23: 0 | DO23: 0 | DP23: 0 | DQ23: 0 | DR23: 0 | DS23: 0 | DT23: 0 | DU23: 0 | DV23: 0 | DW23: 1 | DX23: 0 | DY23: 0 | DZ23: 0 | EA23: 0 | EB23: 0 | EC23: 0 | ED23: 0 | EE23: 0 | EF23: 0 | EG23: 0 | EH23: 0 | EI23: 0 | EJ23: 0 | EK23: 0 | EL23: 0 | EM23: 0 | EN23: 0 | EO23: 0 | EP23: 0 | EQ23: 0 | ER23: 0 | ES23: 0 | ET23: 0 | EU23: 0 | EV23: 0 | EW23: 0 | EX23: 0 | EY23: 0 | EZ23: 0 | FA23: 0 | FB23: 0 | FC23: 0 | FD23: 0 | FE23: 0 | FF23: 0 | FG23: 0 | FH23: 0 | FI23: 0 | FJ23: 0 | FK23: 0 | FL23: 0 | FM23: 0 | FN23: 0 | FO23: 0 | FP23: 0 | FQ23: 0 | FR23: 0 | FS23: 0 | FT23: 0 | FU23: 0 | FV23: 0 | FW23: 0 | FX23: 0 | FY23: 0 | FZ23: 0 | GA23: 0 | GB23: 0 | GC23: 0 | GD23: 0 | GE23: 0 | GF23: 0 | GG23: 0 | GH23: 0 | GI23: 0 | GJ23: 0 | GK23: 0 | GL23: 0 | GM23: 0 | GN23: 0 | GO23: 0 | GP23: 0 | GQ23: 0 | GR23: 0 | GS23: 0 | GT23: 0 | GU23: 0 | GV23: 0 | GW23: 0 | GX23: 0 | GY23: 0 | GZ23: 0 | HA23: 0 | HB23: 0 | HC23: 0 | HD23: 0 | HE23: 0 | HF23: 0 | HG23: 0 | HH23: 0 | HI23: 0 | HJ23: 0 | HK23: 0 | HL23: 0 | HM23: 0 | HN23: 0 | HO23: 0 | HP23: 0 | HQ23: 0 | HR23: 0 | HS23: 0 | HT23: 0 | HU23: 0 | HV23: 0 | HW23: 0 | HX23: 0 | HY23: 0 | HZ23: 0 | IA23: 0 | IB23: 0 | IC23: 0 | ID23: 0 | IE23: 0 | IF23: 0 | IG23: 0 | IH23: 0 | II23: 0 | IJ23: 0 | IK23: 0 | IL23: 0 | IM23: 0 | IN23: 0 | IO23: 1 | IP23: 0 | IQ23: 0 | IR23: 0 | IS23: 0 | IT23: 0 | IU23: 0 | IV23: 0 | IW23: 0 | IX23: 0 | IY23: 0 | IZ23: 0 | JA23: 0 | JB23: 0 | JC23: 0 | JD23: 0 | JE23: 0 | JF23: 0 | JG23: 0 | JH23: 0 | JI23: 0 | JJ23: 0 | JK23: 1 | JL23: 0 | JM23: 0 | JN23: 0 | JO23: 0 | JP23: 0 | JQ23: 0 | JR23: 0 | JS23: 0 | JT23: 0 | JU23: 0 | JV23: 0 | JW23: 0 | JX23: 0 | JY23: 0 | JZ23: 0 | KA23: 0 | KB23: 0 | KC23: 0 | KD23: 0 | KE23: 0 | KF23: 0 | KG23: 0 | KH23: 0 | KI23: 0 | KJ23: 0 | KK23: 0 | KL23: 0 | KM23: 0 | KN23: 0 | KO23: 0 | KP23: 0 | KQ23: 0 | KR23: 0 | KS23: 0 | KT23: 0 | KU23: 0 | KV23: 0 | KW23: 0 | KX23: 0 | KY23: 0 | KZ23: 0 | LA23: 0 | LB23: 0 | LC23: 0 | LD23: 0 | LE23: 0 | LF23: 0 | LG23: 0 | LH23: 0 | LI23: 1 | LJ23: 0 | LK23: 0 | LL23: 0 | LM23: 0 | LN23: 0 | LO23: 0 | LP23: 0 | LQ23: 0 | LR23: 0
A24: LUCIANO CASTILLO COLONNA | B24: AYABACA | C24: 200201 | D24: AYABACA | E24: I-4 | F24: AYABACA | G24: NINGUN CLAS | H24: AYABACA | I24: AYABACA | J24: SALUD LUCIANO CASTILLO COLONNA | K24: 1911 | L24: 12 | M24: 0 | N24: 0 | O24: 0 | P24: 0 | Q24: 0 | R24: 0 | S24: 0 | T24: 0 | U24: 0 | V24: 0 | W24: 0 | X24: 0 | Y24: 0 | Z24: 0 | AA24: 0 | AB24: 0 | AC24: 0 | AD24: 0 | AE24: 0 | AF24: 0 | AG24: 0 | AH24: 0 | AI24: 0 | AJ24: 0 | AK24: 0 | AL24: 0 | AM24: 0 | AN24: 0 | AO24: 0 | AP24: 0 | AQ24: 0 | AR24: 0 | AS24: 0 | AT24: 0 | AU24: 0 | AV24: 0 | AW24: 0 | AX24: 2 | AY24: 1 | AZ24: 3 | BA24: 0 | BB24: 2 | BC24: 0 | BD24: 0 | BE24: 0 | BF24: 0 | BG24: 0 | BH24: 0 | BI24: 0 | BJ24: 0 | BK24: 1 | BL24: 0 | BM24: 0 | BN24: 0 | BO24: 0 | BP24: 0 | BQ24: 0 | BR24: 0 | BS24: 0 | BT24: 0 | BU24: 0 | BV24: 0 | BW24: 0 | BX24: 0 | BY24: 0 | BZ24: 0 | CA24: 0 | CB24: 0 | CC24: 0 | CD24: 0 | CE24: 0 | CF24: 0 | CG24: 0 | CH24: 0 | CI24: 0 | CJ24: 0 | CK24: 0 | CL24: 0 | CM24: 0 | CN24: 0 | CO24: 0 | CP24: 0 | CQ24: 0 | CR24: 0 | CS24: 0 | CT24: 0 | CU24: 0 | CV24: 0 | CW24: 0 | CX24: 0 | CY24: 0 | CZ24: 0 | DA24: 0 | DB24: 0 | DC24: 0 | DD24: 0 | DE24: 0 | DF24: 0 | DG24: 0 | DH24: 0 | DI24: 0 | DJ24: 0 | DK24: 0 | DL24: 0 | DM24: 0 | DN24: 0 | DO24: 0 | DP24: 0 | DQ24: 0 | DR24: 0 | DS24: 0 | DT24: 0 | DU24: 0 | DV24: 0 | DW24: 0 | DX24: 0 | DY24: 0 | DZ24: 0 | EA24: 0 | EB24: 0 | EC24: 0 | ED24: 0 | EE24: 0 | EF24: 0 | EG24: 0 | EH24: 0 | EI24: 0 | EJ24: 0 | EK24: 0 | EL24: 0 | EM24: 0 | EN24: 0 | EO24: 0 | EP24: 0 | EQ24: 0 | ER24: 0 | ES24: 0 | ET24: 0 | EU24: 0 | EV24: 0 | EW24: 0 | EX24: 0 | EY24: 0 | EZ24: 0 | FA24: 0 | FB24: 0 | FC24: 0 | FD24: 0 | FE24: 0 | FF24: 0 | FG24: 0 | FH24: 0 | FI24: 0 | FJ24: 0 | FK24: 0 | FL24: 0 | FM24: 0 | FN24: 0 | FO24: 0 | FP24: 0 | FQ24: 0 | FR24: 0 | FS24: 0 | FT24: 0 | FU24: 0 | FV24: 0 | FW24: 0 | FX24: 0 | FY24: 0 | FZ24: 0 | GA24: 0 | GB24: 0 | GC24: 0 | GD24: 0 | GE24: 0 | GF24: 0 | GG24: 0 | GH24: 0 | GI24: 0 | GJ24: 0 | GK24: 0 | GL24: 0 | GM24: 0 | GN24: 0 | GO24: 0 | GP24: 0 | GQ24: 0 | GR24: 0 | GS24: 0 | GT24: 0 | GU24: 0 | GV24: 0 | GW24: 0 | GX24: 0 | GY24: 0 | GZ24: 0 | HA24: 0 | HB24: 0 | HC24: 0 | HD24: 0 | HE24: 0 | HF24: 0 | HG24: 0 | HH24: 0 | HI24: 0 | HJ24: 0 | HK24: 0 | HL24: 0 | HM24: 0 | HN24: 0 | HO24: 0 | HP24: 0 | HQ24: 0 | HR24: 0 | HS24: 0 | HT24: 0 | HU24: 0 | HV24: 0 | HW24: 0 | HX24: 0 | HY24: 0 | HZ24: 0 | IA24: 0 | IB24: 0 | IC24: 0 | ID24: 0 | IE24: 0 | IF24: 0 | IG24: 0 | IH24: 0 | II24: 0 | IJ24: 0 | IK24: 0 | IL24: 0 | IM24: 0 | IN24: 0 | IO24: 0 | IP24: 0 | IQ24: 0 | IR24: 0 | IS24: 0 | IT24: 0 | IU24: 0 | IV24: 0 | IW24: 0 | IX24: 0 | IY24: 0 | IZ24: 0 | JA24: 0 | JB24: 0 | JC24: 0 | JD24: 0 | JE24: 0 | JF24: 0 | JG24: 0 | JH24: 0 | JI24: 0 | JJ24: 0 | JK24: 0 | JL24: 0 | JM24: 0 | JN24: 0 | JO24: 0 | JP24: 0 | JQ24: 0 | JR24: 0 | JS24: 0 | JT24: 0 | JU24: 0 | JV24: 0 | JW24: 0 | JX24: 0 | JY24: 0 | JZ24: 0 | KA24: 0 | KB24: 0 | KC24: 0 | KD24: 0 | KE24: 0 | KF24: 0 | KG24: 0 | KH24: 0 | KI24: 0 | KJ24: 0 | KK24: 0 | KL24: 0 | KM24: 0 | KN24: 0 | KO24: 0 | KP24: 0 | KQ24: 0 | KR24: 0 | KS24: 0 | KT24: 0 | KU24: 0 | KV24: 0 | KW24: 0 | KX24: 0 | KY24: 0 | KZ24: 0 | LA24: 0 | LB24: 0 | LC24: 0 | LD24: 0 | LE24: 0 | LF24: 0 | LG24: 0 | LH24: 0 | LI24: 0 | LJ24: 0 | LK24: 0 | LL24: 0 | LM24: 1 | LN24: 0 | LO24: 0 | LP24: 3 | LQ24: 2 | LR24: 0
A25: LUCIANO CASTILLO COLONNA | B25: AYABACA | C25: 200201 | D25: AYABACA | E25: I-4 | F25: AYABACA | G25: NINGUN CLAS | H25: AYABACA | I25: AYABACA | J25: SALUD LUCIANO CASTILLO COLONNA | K25: 1911 | L25: 11 | M25: 0 | N25: 0 | O25: 0 | P25: 0 | Q25: 0 | R25: 0 | S25: 0 | T25: 0 | U25: 0 | V25: 0 | W25: 0 | X25: 0 | Y25: 0 | Z25: 0 | AA25: 0 | AB25: 0 | AC25: 0 | AD25: 0 | AE25: 0 | AF25: 0 | AG25: 0 | AH25: 0 | AI25: 0 | AJ25: 0 | AK25: 0 | AL25: 0 | AM25: 0 | AN25: 0 | AO25: 0 | AP25: 0 | AQ25: 0 | AR25: 0 | AS25: 0 | AT25: 0 | AU25: 0 | AV25: 0 | AW25: 0 | AX25: 1 | AY25: 0 | AZ25: 0 | BA25: 1 | BB25: 0 | BC25: 1 | BD25: 0 | BE25: 0 | BF25: 0 | BG25: 0 | BH25: 0 | BI25: 0 | BJ25: 0 | BK25: 0 | BL25: 0 | BM25: 0 | BN25: 0 | BO25: 0 | BP25: 0 | BQ25: 0 | BR25: 0 | BS25: 0 | BT25: 0 | BU25: 0 | BV25: 0 | BW25: 0 | BX25: 0 | BY25: 0 | BZ25: 0 | CA25: 0 | CB25: 0 | CC25: 0 | CD25: 0 | CE25: 0 | CF25: 0 | CG25: 1 | CH25: 0 | CI25: 0 | CJ25: 0 | CK25: 0 | CL25: 0 | CM25: 0 | CN25: 0 | CO25: 0 | CP25: 0 | CQ25: 0 | CR25: 0 | CS25: 0 | CT25: 0 | CU25: 0 | CV25: 0 | CW25: 0 | CX25: 0 | CY25: 0 | CZ25: 0 | DA25: 0 | DB25: 0 | DC25: 0 | DD25: 0 | DE25: 0 | DF25: 0 | DG25: 0 | DH25: 0 | DI25: 0 | DJ25: 0 | DK25: 0 | DL25: 0 | DM25: 0 | DN25: 0 | DO25: 0 | DP25: 0 | DQ25: 0 | DR25: 0 | DS25: 0 | DT25: 0 | DU25: 0 | DV25: 0 | DW25: 0 | DX25: 0 | DY25: 0 | DZ25: 0 | EA25: 0 | EB25: 0 | EC25: 0 | ED25: 0 | EE25: 0 | EF25: 0 | EG25: 0 | EH25: 0 | EI25: 0 | EJ25: 0 | EK25: 0 | EL25: 0 | EM25: 0 | EN25: 0 | EO25: 0 | EP25: 0 | EQ25: 0 | ER25: 0 | ES25: 0 | ET25: 0 | EU25: 0 | EV25: 0 | EW25: 0 | EX25: 0 | EY25: 0 | EZ25: 0 | FA25: 0 | FB25: 0 | FC25: 0 | FD25: 0 | FE25: 0 | FF25: 0 | FG25: 0 | FH25: 0 | FI25: 0 | FJ25: 0 | FK25: 0 | FL25: 0 | FM25: 0 | FN25: 0 | FO25: 0 | FP25: 0 | FQ25: 0 | FR25: 0 | FS25: 0 | FT25: 0 | FU25: 0 | FV25: 0 | FW25: 0 | FX25: 0 | FY25: 0 | FZ25: 0 | GA25: 0 | GB25: 0 | GC25: 0 | GD25: 0 | GE25: 0 | GF25: 0 | GG25: 0 | GH25: 0 | GI25: 0 | GJ25: 0 | GK25: 0 | GL25: 0 | GM25: 0 | GN25: 0 | GO25: 0 | GP25: 0 | GQ25: 0 | GR25: 0 | GS25: 0 | GT25: 0 | GU25: 0 | GV25: 0 | GW25: 0 | GX25: 0 | GY25: 0 | GZ25: 0 | HA25: 0 | HB25: 0 | HC25: 0 | HD25: 0 | HE25: 0 | HF25: 0 | HG25: 0 | HH25: 0 | HI25: 0 | HJ25: 0 | HK25: 0 | HL25: 0 | HM25: 0 | HN25: 0 | HO25: 0 | HP25: 0 | HQ25: 0 | HR25: 0 | HS25: 0 | HT25: 0 | HU25: 0 | HV25: 0 | HW25: 0 | HX25: 0 | HY25: 0 | HZ25: 0 | IA25: 0 | IB25: 0 | IC25: 0 | ID25: 0 | IE25: 0 | IF25: 0 | IG25: 0 | IH25: 0 | II25: 0 | IJ25: 0 | IK25: 0 | IL25: 0 | IM25: 0 | IN25: 0 | IO25: 0 | IP25: 0 | IQ25: 0 | IR25: 0 | IS25: 0 | IT25: 0 | IU25: 0 | IV25: 0 | IW25: 0 | IX25: 0 | IY25: 0 | IZ25: 0 | JA25: 0 | JB25: 1 | JC25: 1 | JD25: 0 | JE25: 0 | JF25: 0 | JG25: 0 | JH25: 0 | JI25: 0 | JJ25: 0 | JK25: 0 | JL25: 0 | JM25: 0 | JN25: 0 | JO25: 0 | JP25: 0 | JQ25: 0 | JR25: 0 | JS25: 0 | JT25: 0 | JU25: 0 | JV25: 0 | JW25: 0 | JX25: 0 | JY25: 0 | JZ25: 0 | KA25: 0 | KB25: 0 | KC25: 0 | KD25: 0 | KE25: 0 | KF25: 0 | KG25: 0 | KH25: 0 | KI25: 0 | KJ25: 0 | KK25: 0 | KL25: 0 | KM25: 0 | KN25: 0 | KO25: 0 | KP25: 0 | KQ25: 0 | KR25: 0 | KS25: 0 | KT25: 0 | KU25: 0 | KV25: 0 | KW25: 0 | KX25: 0 | KY25: 0 | KZ25: 0 | LA25: 0 | LB25: 0 | LC25: 0 | LD25: 0 | LE25: 0 | LF25: 0 | LG25: 0 | LH25: 0 | LI25: 0 | LJ25: 0 | LK25: 0 | LL25: 0 | LM25: 2 | LN25: 1 | LO25: 0 | LP25: 0 | LQ25: 0 | LR25: 0
A26: LUCIANO CASTILLO COLONNA | B26: AYABACA | C26: 200201 | D26: TAPAL | E26: I-2 | F26: AYABACA | G26: NINGUN CLAS | H26: AYABACA | I26: AYABACA | J26: SALUD LUCIANO CASTILLO COLONNA | K26: 1912 | L26: 12 | M26: 0 | N26: 0 | O26: 0 | P26: 0 | Q26: 0 | R26: 0 | S26: 0 | T26: 0 | U26: 0 | V26: 0 | W26: 0 | X26: 0 | Y26: 0 | Z26: 0 | AA26: 0 | AB26: 0 | AC26: 0 | AD26: 0 | AE26: 0 | AF26: 0 | AG26: 0 | AH26: 0 | AI26: 0 | AJ26: 0 | AK26: 0 | AL26: 0 | AM26: 0 | AN26: 0 | AO26: 0 | AP26: 0 | AQ26: 0 | AR26: 0 | AS26: 0 | AT26: 0 | AU26: 0 | AV26: 0 | AW26: 0 | AX26: 0 | AY26: 0 | AZ26: 0 | BA26: 0 | BB26: 0 | BC26: 0 | BD26: 0 | BE26: 0 | BF26: 0 | BG26: 0 | BH26: 0 | BI26: 0 | BJ26: 0 | BK26: 0 | BL26: 0 | BM26: 0 | BN26: 0 | BO26: 0 | BP26: 0 | BQ26: 0 | BR26: 0 | BS26: 0 | BT26: 0 | BU26: 0 | BV26: 0 | BW26: 0 | BX26: 0 | BY26: 0 | BZ26: 0 | CA26: 0 | CB26: 0 | CC26: 0 | CD26: 0 | CE26: 0 | CF26: 0 | CG26: 0 | CH26: 0 | CI26: 0 | CJ26: 0 | CK26: 0 | CL26: 0 | CM26: 0 | CN26: 0 | CO26: 0 | CP26: 0 | CQ26: 0 | CR26: 0 | CS26: 0 | CT26: 0 | CU26: 0 | CV26: 0 | CW26: 0 | CX26: 0 | CY26: 0 | CZ26: 0 | DA26: 0 | DB26: 0 | DC26: 0 | DD26: 0 | DE26: 0 | DF26: 0 | DG26: 0 | DH26: 0 | DI26: 0 | DJ26: 0 | DK26: 0 | DL26: 0 | DM26: 0 | DN26: 0 | DO26: 0 | DP26: 0 | DQ26: 0 | DR26: 0 | DS26: 0 | DT26: 0 | DU26: 0 | DV26: 0 | DW26: 0 | DX26: 0 | DY26: 0 | DZ26: 0 | EA26: 0 | EB26: 0 | EC26: 0 | ED26: 0 | EE26: 0 | EF26: 0 | EG26: 0 | EH26: 0 | EI26: 0 | EJ26: 0 | EK26: 0 | EL26: 0 | EM26: 0 | EN26: 0 | EO26: 0 | EP26: 0 | EQ26: 0 | ER26: 0 | ES26: 0 | ET26: 0 | EU26: 0 | EV26: 0 | EW26: 0 | EX26: 0 | EY26: 0 | EZ26: 0 | FA26: 0 | FB26: 0 | FC26: 0 | FD26: 0 | FE26: 0 | FF26: 0 | FG26: 0 | FH26: 0 | FI26: 0 | FJ26: 0 | FK26: 0 | FL26: 0 | FM26: 0 | FN26: 0 | FO26: 0 | FP26: 0 | FQ26: 0 | FR26: 0 | FS26: 0 | FT26: 0 | FU26: 0 | FV26: 0 | FW26: 0 | FX26: 0 | FY26: 0 | FZ26: 0 | GA26: 0 | GB26: 0 | GC26: 0 | GD26: 0 | GE26: 0 | GF26: 0 | GG26: 0 | GH26: 0 | GI26: 0 | GJ26: 0 | GK26: 0 | GL26: 0 | GM26: 0 | GN26: 0 | GO26: 0 | GP26: 0 | GQ26: 0 | GR26: 0 | GS26: 0 | GT26: 0 | GU26: 0 | GV26: 0 | GW26: 0 | GX26: 0 | GY26: 0 | GZ26: 0 | HA26: 0 | HB26: 0 | HC26: 0 | HD26: 0 | HE26: 0 | HF26: 0 | HG26: 0 | HH26: 0 | HI26: 0 | HJ26: 0 | HK26: 0 | HL26: 0 | HM26: 0 | HN26: 0 | HO26: 0 | HP26: 0 | HQ26: 0 | HR26: 0 | HS26: 0 | HT26: 0 | HU26: 0 | HV26: 0 | HW26: 0 | HX26: 0 | HY26: 0 | HZ26: 0 | IA26: 0 | IB26: 0 | IC26: 0 | ID26: 0 | IE26: 0 | IF26: 0 | IG26: 0 | IH26: 0 | II26: 0 | IJ26: 0 | IK26: 0 | IL26: 0 | IM26: 0 | IN26: 0 | IO26: 0 | IP26: 0 | IQ26: 0 | IR26: 0 | IS26: 0 | IT26: 0 | IU26: 0 | IV26: 0 | IW26: 0 | IX26: 0 | IY26: 0 | IZ26: 0 | JA26: 0 | JB26: 0 | JC26: 0 | JD26: 0 | JE26: 0 | JF26: 0 | JG26: 0 | JH26: 0 | JI26: 0 | JJ26: 0 | JK26: 0 | JL26: 0 | JM26: 0 | JN26: 0 | JO26: 0 | JP26: 0 | JQ26: 0 | JR26: 0 | JS26: 0 | JT26: 0 | JU26: 0 | JV26: 0 | JW26: 0 | JX26: 0 | JY26: 0 | JZ26: 0 | KA26: 0 | KB26: 0 | KC26: 0 | KD26: 0 | KE26: 0 | KF26: 0 | KG26: 0 | KH26: 0 | KI26: 0 | KJ26: 0 | KK26: 0 | KL26: 0 | KM26: 0 | KN26: 0 | KO26: 0 | KP26: 0 | KQ26: 0 | KR26: 0 | KS26: 0 | KT26: 0 | KU26: 0 | KV26: 0 | KW26: 0 | KX26: 0 | KY26: 0 | KZ26: 0 | LA26: 0 | LB26: 0 | LC26: 0 | LD26: 0 | LE26: 0 | LF26: 0 | LG26: 0 | LH26: 0 | LI26: 0 | LJ26: 0 | LK26: 0 | LL26: 0 | LM26: 0 | LN26: 0 | LO26: 0 | LP26: 0 | LQ26: 0 | LR26: 0
A27: LUCIANO CASTILLO COLONNA | B27: AYABACA | C27: 200201 | D27: TAPAL | E27: I-2 | F27: AYABACA | G27: NINGUN CLAS | H27: AYABACA | I27: AYABACA | J27: SALUD LUCIANO CASTILLO COLONNA | K27: 1912 | L27: 10 | M27: 0 | N27: 0 | O27: 0 | P27: 0 | Q27: 0 | R27: 0 | S27: 0 | T27: 0 | U27: 0 | V27: 0 | W27: 0 | X27: 0 | Y27: 0 | Z27: 0 | AA27: 0 | AB27: 0 | AC27: 0 | AD27: 0 | AE27: 0 | AF27: 0 | AG27: 0 | AH27: 0 | AI27: 0 | AJ27: 0 | AK27: 0 | AL27: 0 | AM27: 0 | AN27: 0 | AO27: 0 | AP27: 0 | AQ27: 0 | AR27: 0 | AS27: 0 | AT27: 0 | AU27: 0 | AV27: 0 | AW27: 0 | AX27: 0 | AY27: 1 | AZ27: 0 | BA27: 0 | BB27: 0 | BC27: 0 | BD27: 0 | BE27: 0 | BF27: 0 | BG27: 0 | BH27: 0 | BI27: 0 | BJ27: 0 | BK27: 0 | BL27: 0 | BM27: 0 | BN27: 0 | BO27: 0 | BP27: 0 | BQ27: 0 | BR27: 0 | BS27: 0 | BT27: 0 | BU27: 0 | BV27: 0 | BW27: 0 | BX27: 0 | BY27: 0 | BZ27: 0 | CA27: 0 | CB27: 0 | CC27: 0 | CD27: 0 | CE27: 0 | CF27: 0 | CG27: 0 | CH27: 0 | CI27: 0 | CJ27: 0 | CK27: 0 | CL27: 0 | CM27: 0 | CN27: 0 | CO27: 0 | CP27: 0 | CQ27: 0 | CR27: 0 | CS27: 0 | CT27: 0 | CU27: 0 | CV27: 0 | CW27: 0 | CX27: 0 | CY27: 0 | CZ27: 0 | DA27: 0 | DB27: 0 | DC27: 0 | DD27: 0 | DE27: 0 | DF27: 0 | DG27: 0 | DH27: 0 | DI27: 0 | DJ27: 0 | DK27: 0 | DL27: 0 | DM27: 0 | DN27: 0 | DO27: 0 | DP27: 0 | DQ27: 0 | DR27: 0 | DS27: 0 | DT27: 0 | DU27: 0 | DV27: 0 | DW27: 0 | DX27: 0 | DY27: 0 | DZ27: 0 | EA27: 0 | EB27: 0 | EC27: 0 | ED27: 0 | EE27: 0 | EF27: 0 | EG27: 0 | EH27: 0 | EI27: 0 | EJ27: 0 | EK27: 0 | EL27: 0 | EM27: 0 | EN27: 0 | EO27: 0 | EP27: 0 | EQ27: 0 | ER27: 0 | ES27: 0 | ET27: 0 | EU27: 0 | EV27: 0 | EW27: 0 | EX27: 0 | EY27: 0 | EZ27: 0 | FA27: 0 | FB27: 0 | FC27: 0 | FD27: 0 | FE27: 0 | FF27: 0 | FG27: 0 | FH27: 0 | FI27: 0 | FJ27: 0 | FK27: 0 | FL27: 0 | FM27: 0 | FN27: 0 | FO27: 0 | FP27: 0 | FQ27: 0 | FR27: 0 | FS27: 0 | FT27: 0 | FU27: 0 | FV27: 0 | FW27: 0 | FX27: 0 | FY27: 0 | FZ27: 0 | GA27: 0 | GB27: 0 | GC27: 0 | GD27: 0 | GE27: 0 | GF27: 0 | GG27: 0 | GH27: 0 | GI27: 0 | GJ27: 0 | GK27: 0 | GL27: 0 | GM27: 0 | GN27: 0 | GO27: 0 | GP27: 0 | GQ27: 0 | GR27: 0 | GS27: 0 | GT27: 0 | GU27: 0 | GV27: 0 | GW27: 0 | GX27: 0 | GY27: 0 | GZ27: 0 | HA27: 0 | HB27: 0 | HC27: 0 | HD27: 0 | HE27: 0 | HF27: 0 | HG27: 0 | HH27: 0 | HI27: 0 | HJ27: 0 | HK27: 0 | HL27: 0 | HM27: 0 | HN27: 0 | HO27: 0 | HP27: 0 | HQ27: 0 | HR27: 0 | HS27: 0 | HT27: 0 | HU27: 0 | HV27: 0 | HW27: 0 | HX27: 0 | HY27: 0 | HZ27: 0 | IA27: 0 | IB27: 0 | IC27: 0 | ID27: 1 | IE27: 0 | IF27: 0 | IG27: 0 | IH27: 0 | II27: 0 | IJ27: 0 | IK27: 0 | IL27: 0 | IM27: 0 | IN27: 0 | IO27: 0 | IP27: 0 | IQ27: 0 | IR27: 0 | IS27: 0 | IT27: 0 | IU27: 0 | IV27: 0 | IW27: 0 | IX27: 0 | IY27: 0 | IZ27: 0 | JA27: 0 | JB27: 0 | JC27: 0 | JD27: 0 | JE27: 0 | JF27: 0 | JG27: 0 | JH27: 0 | JI27: 0 | JJ27: 0 | JK27: 0 | JL27: 0 | JM27: 0 | JN27: 0 | JO27: 0 | JP27: 0 | JQ27: 0 | JR27: 0 | JS27: 0 | JT27: 0 | JU27: 0 | JV27: 0 | JW27: 0 | JX27: 0 | JY27: 0 | JZ27: 0 | KA27: 0 | KB27: 0 | KC27: 0 | KD27: 0 | KE27: 0 | KF27: 0 | KG27: 0 | KH27: 0 | KI27: 0 | KJ27: 0 | KK27: 0 | KL27: 0 | KM27: 0 | KN27: 0 | KO27: 0 | KP27: 0 | KQ27: 0 | KR27: 0 | KS27: 0 | KT27: 0 | KU27: 0 | KV27: 0 | KW27: 0 | KX27: 0 | KY27: 0 | KZ27: 0 | LA27: 0 | LB27: 0 | LC27: 0 | LD27: 0 | LE27: 0 | LF27: 0 | LG27: 0 | LH27: 0 | LI27: 0 | LJ27: 0 | LK27: 0 | LL27: 0 | LM27: 0 | LN27: 0 | LO27: 0 | LP27: 0 | LQ27: 0 | LR27: 0
A28: LUCIANO CASTILLO COLONNA | B28: AYABACA | C28: 200201 | D28: TAPAL | E28: I-2 | F28: AYABACA | G28: NINGUN CLAS | H28: AYABACA | I28: AYABACA | J28: SALUD LUCIANO CASTILLO COLONNA | K28: 1912 | L28: 11 | M28: 0 | N28: 0 | O28: 0 | P28: 0 | Q28: 0 | R28: 0 | S28: 0 | T28: 0 | U28: 0 | V28: 0 | W28: 0 | X28: 0 | Y28: 0 | Z28: 0 | AA28: 0 | AB28: 0 | AC28: 0 | AD28: 0 | AE28: 0 | AF28: 0 | AG28: 0 | AH28: 0 | AI28: 0 | AJ28: 0 | AK28: 0 | AL28: 0 | AM28: 0 | AN28: 0 | AO28: 0 | AP28: 0 | AQ28: 0 | AR28: 0 | AS28: 0 | AT28: 0 | AU28: 0 | AV28: 0 | AW28: 0 | AX28: 0 | AY28: 0 | AZ28: 0 | BA28: 0 | BB28: 0 | BC28: 0 | BD28: 0 | BE28: 0 | BF28: 0 | BG28: 0 | BH28: 0 | BI28: 0 | BJ28: 0 | BK28: 0 | BL28: 0 | BM28: 0 | BN28: 0 | BO28: 0 | BP28: 0 | BQ28: 0 | BR28: 0 | BS28: 0 | BT28: 0 | BU28: 0 | BV28: 0 | BW28: 0 | BX28: 0 | BY28: 0 | BZ28: 0 | CA28: 0 | CB28: 0 | CC28: 0 | CD28: 0 | CE28: 0 | CF28: 0 | CG28: 0 | CH28: 0 | CI28: 0 | CJ28: 0 | CK28: 0 | CL28: 0 | CM28: 0 | CN28: 0 | CO28: 0 | CP28: 0 | CQ28: 0 | CR28: 0 | CS28: 0 | CT28: 0 | CU28: 0 | CV28: 0 | CW28: 0 | CX28: 0 | CY28: 0 | CZ28: 0 | DA28: 0 | DB28: 0 | DC28: 0 | DD28: 0 | DE28: 0 | DF28: 0 | DG28: 0 | DH28: 0 | DI28: 0 | DJ28: 0 | DK28: 0 | DL28: 0 | DM28: 0 | DN28: 0 | DO28: 0 | DP28: 0 | DQ28: 0 | DR28: 0 | DS28: 0 | DT28: 0 | DU28: 0 | DV28: 0 | DW28: 0 | DX28: 0 | DY28: 0 | DZ28: 0 | EA28: 0 | EB28: 0 | EC28: 0 | ED28: 0 | EE28: 0 | EF28: 0 | EG28: 0 | EH28: 0 | EI28: 0 | EJ28: 0 | EK28: 0 | EL28: 0 | EM28: 0 | EN28: 0 | EO28: 0 | EP28: 0 | EQ28: 0 | ER28: 0 | ES28: 0 | ET28: 0 | EU28: 0 | EV28: 0 | EW28: 0 | EX28: 0 | EY28: 0 | EZ28: 0 | FA28: 0 | FB28: 0 | FC28: 0 | FD28: 0 | FE28: 0 | FF28: 0 | FG28: 0 | FH28: 0 | FI28: 0 | FJ28: 0 | FK28: 0 | FL28: 0 | FM28: 0 | FN28: 0 | FO28: 0 | FP28: 0 | FQ28: 0 | FR28: 0 | FS28: 0 | FT28: 0 | FU28: 0 | FV28: 0 | FW28: 0 | FX28: 0 | FY28: 0 | FZ28: 0 | GA28: 0 | GB28: 0 | GC28: 0 | GD28: 0 | GE28: 0 | GF28: 0 | GG28: 0 | GH28: 0 | GI28: 0 | GJ28: 0 | GK28: 0 | GL28: 0 | GM28: 0 | GN28: 0 | GO28: 0 | GP28: 0 | GQ28: 0 | GR28: 0 | GS28: 0 | GT28: 0 | GU28: 0 | GV28: 0 | GW28: 0 | GX28: 0 | GY28: 0 | GZ28: 0 | HA28: 0 | HB28: 0 | HC28: 0 | HD28: 0 | HE28: 0 | HF28: 0 | HG28: 0 | HH28: 0 | HI28: 0 | HJ28: 0 | HK28: 0 | HL28: 0 | HM28: 0 | HN28: 0 | HO28: 0 | HP28: 0 | HQ28: 0 | HR28: 0 | HS28: 0 | HT28: 0 | HU28: 0 | HV28: 0 | HW28: 0 | HX28: 0 | HY28: 0 | HZ28: 0 | IA28: 0 | IB28: 0 | IC28: 0 | ID28: 1 | IE28: 0 | IF28: 0 | IG28: 0 | IH28: 0 | II28: 0 | IJ28: 0 | IK28: 0 | IL28: 0 | IM28: 0 | IN28: 0 | IO28: 0 | IP28: 0 | IQ28: 0 | IR28: 0 | IS28: 0 | IT28: 0 | IU28: 0 | IV28: 0 | IW28: 0 | IX28: 0 | IY28: 0 | IZ28: 0 | JA28: 0 | JB28: 0 | JC28: 0 | JD28: 0 | JE28: 0 | JF28: 0 | JG28: 0 | JH28: 0 | JI28: 0 | JJ28: 0 | JK28: 0 | JL28: 0 | JM28: 0 | JN28: 0 | JO28: 0 | JP28: 0 | JQ28: 0 | JR28: 0 | JS28: 0 | JT28: 0 | JU28: 0 | JV28: 0 | JW28: 0 | JX28: 0 | JY28: 0 | JZ28: 0 | KA28: 0 | KB28: 0 | KC28: 0 | KD28: 0 | KE28: 0 | KF28: 0 | KG28: 0 | KH28: 0 | KI28: 0 | KJ28: 0 | KK28: 0 | KL28: 0 | KM28: 0 | KN28: 0 | KO28: 0 | KP28: 0 | KQ28: 0 | KR28: 0 | KS28: 0 | KT28: 0 | KU28: 0 | KV28: 0 | KW28: 0 | KX28: 0 | KY28: 0 | KZ28: 0 | LA28: 0 | LB28: 0 | LC28: 0 | LD28: 0 | LE28: 0 | LF28: 0 | LG28: 0 | LH28: 0 | LI28: 0 | LJ28: 0 | LK28: 0 | LL28: 0 | LM28: 0 | LN28: 0 | LO28: 0 | LP28: 0 | LQ28: 0 | LR28: 0
A29: LUCIANO CASTILLO COLONNA | B29: AYABACA | C29: 200201 | D29: TAPAL | E29: I-2 | F29: AYABACA | G29: NINGUN CLAS | H29: AYABACA | I29: AYABACA | J29: SALUD LUCIANO CASTILLO COLONNA | K29: 1912 | L29: 9 | M29: 0 | N29: 0 | O29: 0 | P29: 0 | Q29: 0 | R29: 0 | S29: 0 | T29: 0 | U29: 0 | V29: 0 | W29: 0 | X29: 0 | Y29: 0 | Z29: 0 | AA29: 0 | AB29: 0 | AC29: 0 | AD29: 0 | AE29: 0 | AF29: 0 | AG29: 0 | AH29: 0 | AI29: 0 | AJ29: 0 | AK29: 0 | AL29: 0 | AM29: 0 | AN29: 0 | AO29: 0 | AP29: 0 | AQ29: 0 | AR29: 0 | AS29: 0 | AT29: 0 | AU29: 0 | AV29: 0 | AW29: 0 | AX29: 0 | AY29: 0 | AZ29: 0 | BA29: 0 | BB29: 0 | BC29: 2 | BD29: 3 | BE29: 5 | BF29: 3 | BG29: 0 | BH29: 0 | BI29: 0 | BJ29: 0 | BK29: 0 | BL29: 0 | BM29: 0 | BN29: 0 | BO29: 0 | BP29: 0 | BQ29: 0 | BR29: 0 | BS29: 0 | BT29: 0 | BU29: 0 | BV29: 0 | BW29: 0 | BX29: 0 | BY29: 0 | BZ29: 0 | CA29: 0 | CB29: 0 | CC29: 0 | CD29: 0 | CE29: 0 | CF29: 0 | CG29: 0 | CH29: 0 | CI29: 0 | CJ29: 0 | CK29: 0 | CL29: 0 | CM29: 0 | CN29: 0 | CO29: 0 | CP29: 0 | CQ29: 0 | CR29: 0 | CS29: 0 | CT29: 0 | CU29: 0 | CV29: 0 | CW29: 0 | CX29: 0 | CY29: 0 | CZ29: 0 | DA29: 0 | DB29: 0 | DC29: 0 | DD29: 0 | DE29: 0 | DF29: 0 | DG29: 0 | DH29: 0 | DI29: 0 | DJ29: 0 | DK29: 0 | DL29: 0 | DM29: 0 | DN29: 0 | DO29: 0 | DP29: 0 | DQ29: 0 | DR29: 0 | DS29: 0 | DT29: 0 | DU29: 0 | DV29: 0 | DW29: 2 | DX29: 2 | DY29: 1 | DZ29: 3 | EA29: 0 | EB29: 0 | EC29: 0 | ED29: 0 | EE29: 1 | EF29: 0 | EG29: 0 | EH29: 0 | EI29: 0 | EJ29: 1 | EK29: 2 | EL29: 1 | EM29: 0 | EN29: 0 | EO29: 0 | EP29: 0 | EQ29: 0 | ER29: 0 | ES29: 0 | ET29: 0 | EU29: 0 | EV29: 0 | EW29: 0 | EX29: 0 | EY29: 0 | EZ29: 0 | FA29: 0 | FB29: 0 | FC29: 0 | FD29: 0 | FE29: 0 | FF29: 0 | FG29: 0 | FH29: 0 | FI29: 0 | FJ29: 0 | FK29: 0 | FL29: 0 | FM29: 0 | FN29: 0 | FO29: 0 | FP29: 0 | FQ29: 0 | FR29: 0 | FS29: 0 | FT29: 0 | FU29: 0 | FV29: 0 | FW29: 0 | FX29: 0 | FY29: 0 | FZ29: 0 | GA29: 0 | GB29: 0 | GC29: 0 | GD29: 0 | GE29: 0 | GF29: 0 | GG29: 0 | GH29: 0 | GI29: 0 | GJ29: 0 | GK29: 0 | GL29: 0 | GM29: 0 | GN29: 0 | GO29: 0 | GP29: 0 | GQ29: 0 | GR29: 0 | GS29: 0 | GT29: 0 | GU29: 0 | GV29: 0 | GW29: 0 | GX29: 0 | GY29: 0 | GZ29: 0 | HA29: 0 | HB29: 0 | HC29: 0 | HD29: 0 | HE29: 0 | HF29: 0 | HG29: 0 | HH29: 0 | HI29: 0 | HJ29: 0 | HK29: 0 | HL29: 0 | HM29: 0 | HN29: 0 | HO29: 0 | HP29: 0 | HQ29: 0 | HR29: 0 | HS29: 0 | HT29: 0 | HU29: 0 | HV29: 0 | HW29: 0 | HX29: 0 | HY29: 0 | HZ29: 0 | IA29: 0 | IB29: 0 | IC29: 0 | ID29: 0 | IE29: 0 | IF29: 1 | IG29: 0 | IH29: 0 | II29: 0 | IJ29: 0 | IK29: 0 | IL29: 0 | IM29: 0 | IN29: 0 | IO29: 0 | IP29: 0 | IQ29: 0 | IR29: 0 | IS29: 0 | IT29: 0 | IU29: 0 | IV29: 0 | IW29: 0 | IX29: 0 | IY29: 0 | IZ29: 0 | JA29: 0 | JB29: 0 | JC29: 0 | JD29: 0 | JE29: 0 | JF29: 0 | JG29: 0 | JH29: 0 | JI29: 0 | JJ29: 0 | JK29: 0 | JL29: 0 | JM29: 0 | JN29: 0 | JO29: 0 | JP29: 0 | JQ29: 0 | JR29: 0 | JS29: 0 | JT29: 0 | JU29: 0 | JV29: 0 | JW29: 0 | JX29: 0 | JY29: 0 | JZ29: 0 | KA29: 0 | KB29: 0 | KC29: 0 | KD29: 0 | KE29: 0 | KF29: 0 | KG29: 0 | KH29: 0 | KI29: 0 | KJ29: 0 | KK29: 0 | KL29: 0 | KM29: 0 | KN29: 0 | KO29: 0 | KP29: 0 | KQ29: 0 | KR29: 0 | KS29: 0 | KT29: 0 | KU29: 0 | KV29: 0 | KW29: 0 | KX29: 0 | KY29: 0 | KZ29: 0 | LA29: 0 | LB29: 0 | LC29: 0 | LD29: 0 | LE29: 0 | LF29: 0 | LG29: 1 | LH29: 4 | LI29: 4 | LJ29: 3 | LK29: 0 | LL29: 0 | LM29: 0 | LN29: 0 | LO29: 0 | LP29: 0 | LQ29: 0 | LR29: 0
A30: LUCIANO CASTILLO COLONNA | B30: AYABACA | C30: 200201 | D30: TAPAL | E30: I-2 | F30: AYABACA | G30: NINGUN CLAS | H30: AYABACA | I30: AYABACA | J30: SALUD LUCIANO CASTILLO COLONNA | K30: 1912 | L30: 8 | M30: 0 | N30: 0 | O30: 0 | P30: 0 | Q30: 0 | R30: 0 | S30: 0 | T30: 0 | U30: 0 | V30: 0 | W30: 0 | X30: 0 | Y30: 0 | Z30: 0 | AA30: 0 | AB30: 0 | AC30: 0 | AD30: 0 | AE30: 0 | AF30: 0 | AG30: 0 | AH30: 0 | AI30: 0 | AJ30: 0 | AK30: 0 | AL30: 0 | AM30: 0 | AN30: 0 | AO30: 0 | AP30: 0 | AQ30: 0 | AR30: 0 | AS30: 0 | AT30: 0 | AU30: 0 | AV30: 0 | AW30: 0 | AX30: 0 | AY30: 0 | AZ30: 0 | BA30: 0 | BB30: 0 | BC30: 2 | BD30: 2 | BE30: 2 | BF30: 1 | BG30: 0 | BH30: 1 | BI30: 0 | BJ30: 0 | BK30: 0 | BL30: 0 | BM30: 0 | BN30: 0 | BO30: 0 | BP30: 0 | BQ30: 0 | BR30: 0 | BS30: 0 | BT30: 0 | BU30: 0 | BV30: 0 | BW30: 0 | BX30: 0 | BY30: 0 | BZ30: 0 | CA30: 0 | CB30: 0 | CC30: 0 | CD30: 0 | CE30: 0 | CF30: 0 | CG30: 0 | CH30: 0 | CI30: 0 | CJ30: 0 | CK30: 0 | CL30: 0 | CM30: 0 | CN30: 0 | CO30: 0 | CP30: 0 | CQ30: 0 | CR30: 0 | CS30: 0 | CT30: 0 | CU30: 0 | CV30: 0 | CW30: 0 | CX30: 0 | CY30: 0 | CZ30: 0 | DA30: 0 | DB30: 0 | DC30: 0 | DD30: 0 | DE30: 0 | DF30: 0 | DG30: 0 | DH30: 0 | DI30: 0 | DJ30: 0 | DK30: 0 | DL30: 0 | DM30: 0 | DN30: 0 | DO30: 0 | DP30: 0 | DQ30: 0 | DR30: 0 | DS30: 0 | DT30: 0 | DU30: 0 | DV30: 0 | DW30: 0 | DX30: 2 | DY30: 0 | DZ30: 2 | EA30: 0 | EB30: 1 | EC30: 0 | ED30: 0 | EE30: 1 | EF30: 0 | EG30: 0 | EH30: 0 | EI30: 0 | EJ30: 0 | EK30: 0 | EL30: 0 | EM30: 0 | EN30: 0 | EO30: 0 | EP30: 0 | EQ30: 0 | ER30: 0 | ES30: 0 | ET30: 0 | EU30: 0 | EV30: 0 | EW30: 0 | EX30: 0 | EY30: 0 | EZ30: 0 | FA30: 0 | FB30: 0 | FC30: 0 | FD30: 0 | FE30: 0 | FF30: 0 | FG30: 0 | FH30: 0 | FI30: 0 | FJ30: 0 | FK30: 0 | FL30: 0 | FM30: 0 | FN30: 0 | FO30: 0 | FP30: 0 | FQ30: 0 | FR30: 0 | FS30: 0 | FT30: 0 | FU30: 0 | FV30: 0 | FW30: 0 | FX30: 0 | FY30: 0 | FZ30: 0 | GA30: 0 | GB30: 0 | GC30: 0 | GD30: 0 | GE30: 0 | GF30: 0 | GG30: 0 | GH30: 0 | GI30: 0 | GJ30: 0 | GK30: 0 | GL30: 0 | GM30: 0 | GN30: 0 | GO30: 0 | GP30: 0 | GQ30: 0 | GR30: 0 | GS30: 0 | GT30: 0 | GU30: 0 | GV30: 0 | GW30: 0 | GX30: 0 | GY30: 0 | GZ30: 0 | HA30: 0 | HB30: 0 | HC30: 0 | HD30: 0 | HE30: 0 | HF30: 0 | HG30: 0 | HH30: 0 | HI30: 0 | HJ30: 0 | HK30: 0 | HL30: 0 | HM30: 0 | HN30: 0 | HO30: 0 | HP30: 0 | HQ30: 0 | HR30: 0 | HS30: 0 | HT30: 0 | HU30: 0 | HV30: 0 | HW30: 0 | HX30: 0 | HY30: 0 | HZ30: 0 | IA30: 1 | IB30: 0 | IC30: 1 | ID30: 3 | IE30: 0 | IF30: 1 | IG30: 0 | IH30: 0 | II30: 0 | IJ30: 0 | IK30: 0 | IL30: 0 | IM30: 0 | IN30: 0 | IO30: 0 | IP30: 0 | IQ30: 0 | IR30: 0 | IS30: 0 | IT30: 0 | IU30: 0 | IV30: 0 | IW30: 0 | IX30: 0 | IY30: 0 | IZ30: 0 | JA30: 0 | JB30: 0 | JC30: 0 | JD30: 0 | JE30: 0 | JF30: 0 | JG30: 0 | JH30: 0 | JI30: 0 | JJ30: 0 | JK30: 0 | JL30: 0 | JM30: 0 | JN30: 0 | JO30: 0 | JP30: 0 | JQ30: 0 | JR30: 0 | JS30: 0 | JT30: 0 | JU30: 0 | JV30: 0 | JW30: 0 | JX30: 0 | JY30: 0 | JZ30: 0 | KA30: 0 | KB30: 0 | KC30: 0 | KD30: 0 | KE30: 0 | KF30: 0 | KG30: 0 | KH30: 0 | KI30: 0 | KJ30: 0 | KK30: 0 | KL30: 0 | KM30: 0 | KN30: 0 | KO30: 0 | KP30: 0 | KQ30: 0 | KR30: 0 | KS30: 0 | KT30: 0 | KU30: 0 | KV30: 0 | KW30: 0 | KX30: 0 | KY30: 0 | KZ30: 0 | LA30: 0 | LB30: 0 | LC30: 0 | LD30: 0 | LE30: 0 | LF30: 0 | LG30: 1 | LH30: 3 | LI30: 2 | LJ30: 1 | LK30: 0 | LL30: 1 | LM30: 0 | LN30: 0 | LO30: 0 | LP30: 0 | LQ30: 0 | LR30: 0
A31: LUCIANO CASTILLO COLONNA | B31: AYABACA | C31: 200201 | D31: TAPAL | E31: I-2 | F31: AYABACA | G31: NINGUN CLAS | H31: AYABACA | I31: AYABACA | J31: SALUD LUCIANO CASTILLO COLONNA | K31: 1912 | L31: 7 | M31: 0 | N31: 0 | O31: 0 | P31: 0 | Q31: 0 | R31: 0 | S31: 0 | T31: 0 | U31: 0 | V31: 0 | W31: 0 | X31: 0 | Y31: 0 | Z31: 0 | AA31: 0 | AB31: 0 | AC31: 0 | AD31: 0 | AE31: 0 | AF31: 0 | AG31: 0 | AH31: 0 | AI31: 0 | AJ31: 0 | AK31: 0 | AL31: 0 | AM31: 0 | AN31: 0 | AO31: 0 | AP31: 0 | AQ31: 0 | AR31: 0 | AS31: 0 | AT31: 0 | AU31: 0 | AV31: 0 | AW31: 0 | AX31: 1 | AY31: 0 | AZ31: 0 | BA31: 0 | BB31: 0 | BC31: 0 | BD31: 0 | BE31: 0 | BF31: 0 | BG31: 0 | BH31: 0 | BI31: 0 | BJ31: 0 | BK31: 0 | BL31: 0 | BM31: 0 | BN31: 0 | BO31: 0 | BP31: 0 | BQ31: 0 | BR31: 0 | BS31: 0 | BT31: 0 | BU31: 0 | BV31: 0 | BW31: 0 | BX31: 0 | BY31: 0 | BZ31: 0 | CA31: 0 | CB31: 0 | CC31: 0 | CD31: 0 | CE31: 0 | CF31: 0 | CG31: 0 | CH31: 0 | CI31: 0 | CJ31: 0 | CK31: 0 | CL31: 0 | CM31: 0 | CN31: 0 | CO31: 0 | CP31: 0 | CQ31: 0 | CR31: 0 | CS31: 0 | CT31: 0 | CU31: 0 | CV31: 0 | CW31: 0 | CX31: 0 | CY31: 0 | CZ31: 0 | DA31: 0 | DB31: 0 | DC31: 0 | DD31: 0 | DE31: 0 | DF31: 0 | DG31: 0 | DH31: 0 | DI31: 0 | DJ31: 0 | DK31: 0 | DL31: 0 | DM31: 0 | DN31: 0 | DO31: 0 | DP31: 0 | DQ31: 0 | DR31: 0 | DS31: 0 | DT31: 0 | DU31: 0 | DV31: 0 | DW31: 1 | DX31: 2 | DY31: 0 | DZ31: 2 | EA31: 0 | EB31: 1 | EC31: 0 | ED31: 0 | EE31: 0 | EF31: 0 | EG31: 0 | EH31: 0 | EI31: 0 | EJ31: 0 | EK31: 0 | EL31: 0 | EM31: 0 | EN31: 0 | EO31: 0 | EP31: 0 | EQ31: 0 | ER31: 0 | ES31: 0 | ET31: 0 | EU31: 0 | EV31: 0 | EW31: 0 | EX31: 0 | EY31: 0 | EZ31: 0 | FA31: 0 | FB31: 0 | FC31: 0 | FD31: 0 | FE31: 0 | FF31: 0 | FG31: 0 | FH31: 0 | FI31: 0 | FJ31: 0 | FK31: 0 | FL31: 0 | FM31: 0 | FN31: 0 | FO31: 0 | FP31: 0 | FQ31: 0 | FR31: 0 | FS31: 0 | FT31: 0 | FU31: 0 | FV31: 0 | FW31: 0 | FX31: 0 | FY31: 0 | FZ31: 0 | GA31: 0 | GB31: 0 | GC31: 0 | GD31: 0 | GE31: 0 | GF31: 0 | GG31: 0 | GH31: 0 | GI31: 0 | GJ31: 0 | GK31: 0 | GL31: 0 | GM31: 0 | GN31: 0 | GO31: 0 | GP31: 0 | GQ31: 0 | GR31: 0 | GS31: 0 | GT31: 0 | GU31: 0 | GV31: 0 | GW31: 0 | GX31: 0 | GY31: 0 | GZ31: 0 | HA31: 0 | HB31: 0 | HC31: 0 | HD31: 0 | HE31: 0 | HF31: 0 | HG31: 0 | HH31: 0 | HI31: 0 | HJ31: 0 | HK31: 0 | HL31: 0 | HM31: 0 | HN31: 0 | HO31: 0 | HP31: 0 | HQ31: 0 | HR31: 0 | HS31: 0 | HT31: 0 | HU31: 0 | HV31: 0 | HW31: 0 | HX31: 0 | HY31: 0 | HZ31: 0 | IA31: 2 | IB31: 3 | IC31: 2 | ID31: 1 | IE31: 1 | IF31: 0 | IG31: 0 | IH31: 0 | II31: 0 | IJ31: 0 | IK31: 0 | IL31: 0 | IM31: 0 | IN31: 0 | IO31: 0 | IP31: 0 | IQ31: 0 | IR31: 0 | IS31: 0 | IT31: 0 | IU31: 0 | IV31: 0 | IW31: 0 | IX31: 0 | IY31: 0 | IZ31: 0 | JA31: 0 | JB31: 0 | JC31: 0 | JD31: 0 | JE31: 0 | JF31: 0 | JG31: 0 | JH31: 0 | JI31: 0 | JJ31: 0 | JK31: 0 | JL31: 0 | JM31: 0 | JN31: 0 | JO31: 0 | JP31: 0 | JQ31: 0 | JR31: 0 | JS31: 0 | JT31: 0 | JU31: 0 | JV31: 0 | JW31: 0 | JX31: 0 | JY31: 0 | JZ31: 0 | KA31: 0 | KB31: 0 | KC31: 0 | KD31: 0 | KE31: 0 | KF31: 0 | KG31: 0 | KH31: 0 | KI31: 0 | KJ31: 0 | KK31: 0 | KL31: 0 | KM31: 0 | KN31: 0 | KO31: 0 | KP31: 0 | KQ31: 0 | KR31: 0 | KS31: 0 | KT31: 0 | KU31: 0 | KV31: 0 | KW31: 0 | KX31: 0 | KY31: 0 | KZ31: 0 | LA31: 0 | LB31: 0 | LC31: 0 | LD31: 0 | LE31: 0 | LF31: 0 | LG31: 1 | LH31: 1 | LI31: 0 | LJ31: 1 | LK31: 0 | LL31: 1 | LM31: 0 | LN31: 0 | LO31: 0 | LP31: 0 | LQ31: 0 | LR31: 0
A32: LUCIANO CASTILLO COLONNA | B32: AYABACA | C32: 200201 | D32: TAPAL | E32: I-2 | F32: AYABACA | G32: NINGUN CLAS | H32: AYABACA | I32: AYABACA | J32: SALUD LUCIANO CASTILLO COLONNA | K32: 1912 | L32: 5 | M32: 0 | N32: 0 | O32: 0 | P32: 0 | Q32: 0 | R32: 0 | S32: 0 | T32: 0 | U32: 0 | V32: 0 | W32: 0 | X32: 0 | Y32: 0 | Z32: 0 | AA32: 0 | AB32: 0 | AC32: 0 | AD32: 0 | AE32: 0 | AF32: 0 | AG32: 0 | AH32: 0 | AI32: 0 | AJ32: 0 | AK32: 0 | AL32: 0 | AM32: 0 | AN32: 0 | AO32: 0 | AP32: 0 | AQ32: 0 | AR32: 0 | AS32: 0 | AT32: 0 | AU32: 0 | AV32: 0 | AW32: 0 | AX32: 0 | AY32: 0 | AZ32: 0 | BA32: 0 | BB32: 0 | BC32: 0 | BD32: 0 | BE32: 0 | BF32: 0 | BG32: 0 | BH32: 0 | BI32: 0 | BJ32: 0 | BK32: 0 | BL32: 0 | BM32: 0 | BN32: 0 | BO32: 0 | BP32: 0 | BQ32: 0 | BR32: 0 | BS32: 0 | BT32: 0 | BU32: 0 | BV32: 0 | BW32: 0 | BX32: 0 | BY32: 0 | BZ32: 0 | CA32: 0 | CB32: 0 | CC32: 0 | CD32: 0 | CE32: 0 | CF32: 0 | CG32: 0 | CH32: 0 | CI32: 0 | CJ32: 0 | CK32: 0 | CL32: 0 | CM32: 0 | CN32: 0 | CO32: 0 | CP32: 0 | CQ32: 0 | CR32: 0 | CS32: 0 | CT32: 0 | CU32: 0 | CV32: 0 | CW32: 0 | CX32: 0 | CY32: 0 | CZ32: 0 | DA32: 0 | DB32: 0 | DC32: 0 | DD32: 0 | DE32: 0 | DF32: 0 | DG32: 0 | DH32: 0 | DI32: 0 | DJ32: 0 | DK32: 0 | DL32: 0 | DM32: 0 | DN32: 0 | DO32: 0 | DP32: 0 | DQ32: 0 | DR32: 0 | DS32: 0 | DT32: 0 | DU32: 0 | DV32: 0 | DW32: 0 | DX32: 0 | DY32: 0 | DZ32: 0 | EA32: 0 | EB32: 0 | EC32: 0 | ED32: 0 | EE32: 0 | EF32: 0 | EG32: 0 | EH32: 0 | EI32: 0 | EJ32: 0 | EK32: 0 | EL32: 0 | EM32: 0 | EN32: 0 | EO32: 0 | EP32: 0 | EQ32: 0 | ER32: 0 | ES32: 0 | ET32: 0 | EU32: 0 | EV32: 0 | EW32: 0 | EX32: 0 | EY32: 0 | EZ32: 0 | FA32: 0 | FB32: 0 | FC32: 0 | FD32: 0 | FE32: 0 | FF32: 0 | FG32: 0 | FH32: 0 | FI32: 0 | FJ32: 0 | FK32: 0 | FL32: 0 | FM32: 0 | FN32: 0 | FO32: 0 | FP32: 0 | FQ32: 0 | FR32: 0 | FS32: 0 | FT32: 0 | FU32: 0 | FV32: 0 | FW32: 0 | FX32: 0 | FY32: 0 | FZ32: 0 | GA32: 0 | GB32: 0 | GC32: 0 | GD32: 0 | GE32: 0 | GF32: 0 | GG32: 0 | GH32: 0 | GI32: 0 | GJ32: 0 | GK32: 0 | GL32: 0 | GM32: 0 | GN32: 0 | GO32: 0 | GP32: 0 | GQ32: 0 | GR32: 0 | GS32: 0 | GT32: 0 | GU32: 0 | GV32: 0 | GW32: 0 | GX32: 0 | GY32: 0 | GZ32: 0 | HA32: 0 | HB32: 0 | HC32: 0 | HD32: 0 | HE32: 0 | HF32: 0 | HG32: 0 | HH32: 0 | HI32: 0 | HJ32: 0 | HK32: 0 | HL32: 0 | HM32: 0 | HN32: 0 | HO32: 0 | HP32: 0 | HQ32: 0 | HR32: 0 | HS32: 0 | HT32: 0 | HU32: 0 | HV32: 0 | HW32: 0 | HX32: 0 | HY32: 0 | HZ32: 0 | IA32: 1 | IB32: 2 | IC32: 0 | ID32: 0 | IE32: 0 | IF32: 0 | IG32: 0 | IH32: 0 | II32: 0 | IJ32: 0 | IK32: 0 | IL32: 0 | IM32: 0 | IN32: 0 | IO32: 0 | IP32: 0 | IQ32: 0 | IR32: 0 | IS32: 0 | IT32: 0 | IU32: 0 | IV32: 0 | IW32: 0 | IX32: 0 | IY32: 0 | IZ32: 0 | JA32: 0 | JB32: 0 | JC32: 0 | JD32: 0 | JE32: 0 | JF32: 0 | JG32: 0 | JH32: 0 | JI32: 0 | JJ32: 0 | JK32: 0 | JL32: 0 | JM32: 0 | JN32: 0 | JO32: 0 | JP32: 0 | JQ32: 0 | JR32: 0 | JS32: 0 | JT32: 0 | JU32: 0 | JV32: 0 | JW32: 0 | JX32: 0 | JY32: 0 | JZ32: 0 | KA32: 0 | KB32: 0 | KC32: 0 | KD32: 0 | KE32: 0 | KF32: 0 | KG32: 0 | KH32: 0 | KI32: 0 | KJ32: 0 | KK32: 0 | KL32: 0 | KM32: 0 | KN32: 0 | KO32: 0 | KP32: 0 | KQ32: 0 | KR32: 0 | KS32: 0 | KT32: 0 | KU32: 0 | KV32: 0 | KW32: 0 | KX32: 0 | KY32: 0 | KZ32: 0 | LA32: 0 | LB32: 0 | LC32: 0 | LD32: 0 | LE32: 0 | LF32: 0 | LG32: 0 | LH32: 0 | LI32: 0 | LJ32: 0 | LK32: 0 | LL32: 0 | LM32: 0 | LN32: 0 | LO32: 0 | LP32: 0 | LQ32: 0 | LR32: 0
A33: LUCIANO CASTILLO COLONNA | B33: AYABACA | C33: 200201 | D33: TAPAL | E33: I-2 | F33: AYABACA | G33: NINGUN CLAS | H33: AYABACA | I33: AYABACA | J33: SALUD LUCIANO CASTILLO COLONNA | K33: 1912 | L33: 6 | M33: 0 | N33: 0 | O33: 0 | P33: 0 | Q33: 0 | R33: 0 | S33: 0 | T33: 0 | U33: 0 | V33: 0 | W33: 0 | X33: 0 | Y33: 0 | Z33: 0 | AA33: 0 | AB33: 0 | AC33: 0 | AD33: 0 | AE33: 0 | AF33: 0 | AG33: 0 | AH33: 0 | AI33: 0 | AJ33: 0 | AK33: 0 | AL33: 0 | AM33: 0 | AN33: 0 | AO33: 0 | AP33: 0 | AQ33: 0 | AR33: 0 | AS33: 0 | AT33: 2 | AU33: 0 | AV33: 0 | AW33: 0 | AX33: 0 | AY33: 0 | AZ33: 0 | BA33: 0 | BB33: 0 | BC33: 0 | BD33: 0 | BE33: 0 | BF33: 0 | BG33: 0 | BH33: 0 | BI33: 0 | BJ33: 0 | BK33: 0 | BL33: 0 | BM33: 0 | BN33: 0 | BO33: 0 | BP33: 0 | BQ33: 0 | BR33: 0 | BS33: 0 | BT33: 0 | BU33: 0 | BV33: 0 | BW33: 0 | BX33: 0 | BY33: 0 | BZ33: 0 | CA33: 0 | CB33: 0 | CC33: 0 | CD33: 0 | CE33: 0 | CF33: 0 | CG33: 0 | CH33: 0 | CI33: 0 | CJ33: 0 | CK33: 0 | CL33: 0 | CM33: 0 | CN33: 0 | CO33: 0 | CP33: 0 | CQ33: 0 | CR33: 0 | CS33: 0 | CT33: 0 | CU33: 0 | CV33: 0 | CW33: 0 | CX33: 0 | CY33: 0 | CZ33: 0 | DA33: 0 | DB33: 0 | DC33: 0 | DD33: 0 | DE33: 0 | DF33: 0 | DG33: 0 | DH33: 0 | DI33: 0 | DJ33: 0 | DK33: 0 | DL33: 0 | DM33: 0 | DN33: 0 | DO33: 0 | DP33: 0 | DQ33: 0 | DR33: 0 | DS33: 0 | DT33: 0 | DU33: 0 | DV33: 0 | DW33: 0 | DX33: 0 | DY33: 0 | DZ33: 0 | EA33: 0 | EB33: 0 | EC33: 0 | ED33: 0 | EE33: 0 | EF33: 0 | EG33: 0 | EH33: 0 | EI33: 0 | EJ33: 0 | EK33: 0 | EL33: 0 | EM33: 0 | EN33: 0 | EO33: 0 | EP33: 0 | EQ33: 0 | ER33: 0 | ES33: 0 | ET33: 0 | EU33: 0 | EV33: 0 | EW33: 0 | EX33: 0 | EY33: 0 | EZ33: 0 | FA33: 0 | FB33: 0 | FC33: 0 | FD33: 0 | FE33: 0 | FF33: 0 | FG33: 0 | FH33: 0 | FI33: 0 | FJ33: 0 | FK33: 0 | FL33: 0 | FM33: 0 | FN33: 0 | FO33: 0 | FP33: 0 | FQ33: 0 | FR33: 0 | FS33: 0 | FT33: 0 | FU33: 0 | FV33: 0 | FW33: 0 | FX33: 0 | FY33: 0 | FZ33: 0 | GA33: 0 | GB33: 0 | GC33: 0 | GD33: 0 | GE33: 0 | GF33: 0 | GG33: 0 | GH33: 0 | GI33: 0 | GJ33: 0 | GK33: 0 | GL33: 0 | GM33: 0 | GN33: 0 | GO33: 0 | GP33: 0 | GQ33: 0 | GR33: 0 | GS33: 0 | GT33: 0 | GU33: 0 | GV33: 0 | GW33: 0 | GX33: 0 | GY33: 0 | GZ33: 0 | HA33: 0 | HB33: 0 | HC33: 0 | HD33: 0 | HE33: 0 | HF33: 0 | HG33: 0 | HH33: 0 | HI33: 0 | HJ33: 0 | HK33: 0 | HL33: 0 | HM33: 0 | HN33: 0 | HO33: 0 | HP33: 0 | HQ33: 0 | HR33: 0 | HS33: 0 | HT33: 0 | HU33: 0 | HV33: 0 | HW33: 0 | HX33: 0 | HY33: 0 | HZ33: 0 | IA33: 0 | IB33: 0 | IC33: 0 | ID33: 0 | IE33: 0 | IF33: 0 | IG33: 0 | IH33: 0 | II33: 0 | IJ33: 0 | IK33: 0 | IL33: 0 | IM33: 0 | IN33: 0 | IO33: 0 | IP33: 0 | IQ33: 0 | IR33: 0 | IS33: 0 | IT33: 0 | IU33: 0 | IV33: 0 | IW33: 0 | IX33: 0 | IY33: 0 | IZ33: 0 | JA33: 0 | JB33: 0 | JC33: 0 | JD33: 0 | JE33: 0 | JF33: 0 | JG33: 0 | JH33: 0 | JI33: 0 | JJ33: 0 | JK33: 0 | JL33: 0 | JM33: 0 | JN33: 0 | JO33: 0 | JP33: 0 | JQ33: 0 | JR33: 0 | JS33: 0 | JT33: 0 | JU33: 0 | JV33: 0 | JW33: 0 | JX33: 0 | JY33: 0 | JZ33: 0 | KA33: 0 | KB33: 0 | KC33: 0 | KD33: 0 | KE33: 0 | KF33: 0 | KG33: 0 | KH33: 0 | KI33: 0 | KJ33: 0 | KK33: 0 | KL33: 0 | KM33: 0 | KN33: 0 | KO33: 0 | KP33: 0 | KQ33: 0 | KR33: 0 | KS33: 0 | KT33: 0 | KU33: 0 | KV33: 0 | KW33: 0 | KX33: 0 | KY33: 0 | KZ33: 0 | LA33: 0 | LB33: 0 | LC33: 0 | LD33: 0 | LE33: 0 | LF33: 0 | LG33: 0 | LH33: 0 | LI33: 0 | LJ33: 0 | LK33: 0 | LL33: 0 | LM33: 0 | LN33: 0 | LO33: 0 | LP33: 0 | LQ33: 0 | LR33: 0
A34: LUCIANO CASTILLO COLONNA | B34: AYABACA | C34: 200201 | D34: TAPAL | E34: I-2 | F34: AYABACA | G34: NINGUN CLAS | H34: AYABACA | I34: AYABACA | J34: SALUD LUCIANO CASTILLO COLONNA | K34: 1912 | L34: 4 | M34: 0 | N34: 0 | O34: 0 | P34: 0 | Q34: 0 | R34: 0 | S34: 0 | T34: 0 | U34: 0 | V34: 0 | W34: 0 | X34: 0 | Y34: 0 | Z34: 0 | AA34: 0 | AB34: 0 | AC34: 0 | AD34: 0 | AE34: 0 | AF34: 0 | AG34: 0 | AH34: 0 | AI34: 0 | AJ34: 0 | AK34: 0 | AL34: 0 | AM34: 0 | AN34: 0 | AO34: 0 | AP34: 0 | AQ34: 0 | AR34: 0 | AS34: 0 | AT34: 0 | AU34: 0 | AV34: 0 | AW34: 2 | AX34: 0 | AY34: 0 | AZ34: 1 | BA34: 0 | BB34: 0 | BC34: 0 | BD34: 0 | BE34: 0 | BF34: 0 | BG34: 0 | BH34: 0 | BI34: 0 | BJ34: 0 | BK34: 0 | BL34: 0 | BM34: 0 | BN34: 0 | BO34: 0 | BP34: 0 | BQ34: 0 | BR34: 0 | BS34: 0 | BT34: 0 | BU34: 0 | BV34: 0 | BW34: 0 | BX34: 0 | BY34: 0 | BZ34: 0 | CA34: 0 | CB34: 0 | CC34: 0 | CD34: 0 | CE34: 0 | CF34: 0 | CG34: 0 | CH34: 0 | CI34: 0 | CJ34: 0 | CK34: 0 | CL34: 0 | CM34: 0 | CN34: 0 | CO34: 0 | CP34: 0 | CQ34: 0 | CR34: 0 | CS34: 0 | CT34: 0 | CU34: 0 | CV34: 0 | CW34: 0 | CX34: 0 | CY34: 0 | CZ34: 0 | DA34: 0 | DB34: 0 | DC34: 0 | DD34: 0 | DE34: 0 | DF34: 0 | DG34: 0 | DH34: 0 | DI34: 0 | DJ34: 0 | DK34: 0 | DL34: 0 | DM34: 0 | DN34: 0 | DO34: 0 | DP34: 0 | DQ34: 0 | DR34: 0 | DS34: 0 | DT34: 0 | DU34: 0 | DV34: 0 | DW34: 0 | DX34: 0 | DY34: 0 | DZ34: 1 | EA34: 0 | EB34: 0 | EC34: 0 | ED34: 0 | EE34: 0 | EF34: 0 | EG34: 0 | EH34: 0 | EI34: 0 | EJ34: 0 | EK34: 0 | EL34: 0 | EM34: 0 | EN34: 0 | EO34: 0 | EP34: 0 | EQ34: 0 | ER34: 0 | ES34: 0 | ET34: 0 | EU34: 0 | EV34: 0 | EW34: 0 | EX34: 0 | EY34: 0 | EZ34: 0 | FA34: 0 | FB34: 0 | FC34: 0 | FD34: 0 | FE34: 0 | FF34: 0 | FG34: 0 | FH34: 0 | FI34: 0 | FJ34: 0 | FK34: 0 | FL34: 0 | FM34: 0 | FN34: 0 | FO34: 0 | FP34: 0 | FQ34: 0 | FR34: 0 | FS34: 0 | FT34: 0 | FU34: 0 | FV34: 0 | FW34: 0 | FX34: 0 | FY34: 0 | FZ34: 0 | GA34: 0 | GB34: 0 | GC34: 0 | GD34: 0 | GE34: 0 | GF34: 0 | GG34: 0 | GH34: 0 | GI34: 0 | GJ34: 0 | GK34: 0 | GL34: 0 | GM34: 0 | GN34: 0 | GO34: 0 | GP34: 0 | GQ34: 0 | GR34: 0 | GS34: 0 | GT34: 0 | GU34: 0 | GV34: 0 | GW34: 0 | GX34: 0 | GY34: 0 | GZ34: 0 | HA34: 0 | HB34: 0 | HC34: 0 | HD34: 0 | HE34: 0 | HF34: 0 | HG34: 0 | HH34: 0 | HI34: 0 | HJ34: 0 | HK34: 0 | HL34: 0 | HM34: 0 | HN34: 0 | HO34: 0 | HP34: 0 | HQ34: 0 | HR34: 0 | HS34: 0 | HT34: 0 | HU34: 1 | HV34: 1 | HW34: 0 | HX34: 0 | HY34: 1 | HZ34: 0 | IA34: 0 | IB34: 0 | IC34: 0 | ID34: 0 | IE34: 0 | IF34: 0 | IG34: 0 | IH34: 0 | II34: 0 | IJ34: 0 | IK34: 0 | IL34: 0 | IM34: 0 | IN34: 0 | IO34: 0 | IP34: 0 | IQ34: 0 | IR34: 0 | IS34: 0 | IT34: 0 | IU34: 0 | IV34: 0 | IW34: 0 | IX34: 0 | IY34: 0 | IZ34: 0 | JA34: 0 | JB34: 0 | JC34: 0 | JD34: 0 | JE34: 0 | JF34: 0 | JG34: 0 | JH34: 0 | JI34: 0 | JJ34: 0 | JK34: 2 | JL34: 0 | JM34: 0 | JN34: 0 | JO34: 0 | JP34: 0 | JQ34: 0 | JR34: 0 | JS34: 0 | JT34: 0 | JU34: 0 | JV34: 0 | JW34: 0 | JX34: 0 | JY34: 0 | JZ34: 0 | KA34: 0 | KB34: 0 | KC34: 0 | KD34: 0 | KE34: 0 | KF34: 0 | KG34: 0 | KH34: 0 | KI34: 0 | KJ34: 0 | KK34: 0 | KL34: 0 | KM34: 0 | KN34: 0 | KO34: 0 | KP34: 0 | KQ34: 0 | KR34: 0 | KS34: 0 | KT34: 0 | KU34: 0 | KV34: 0 | KW34: 0 | KX34: 0 | KY34: 0 | KZ34: 0 | LA34: 0 | LB34: 0 | LC34: 0 | LD34: 0 | LE34: 0 | LF34: 0 | LG34: 0 | LH34: 1 | LI34: 1 | LJ34: 2 | LK34: 0 | LL34: 0 | LM34: 0 | LN34: 0 | LO34: 0 | LP34: 0 | LQ34: 0 | LR34: 0
A35: LUCIANO CASTILLO COLONNA | B35: AYABACA | C35: 200201 | D35: TAPAL | E35: I-2 | F35: AYABACA | G35: NINGUN CLAS | H35: AYABACA | I35: AYABACA | J35: SALUD LUCIANO CASTILLO COLONNA | K35: 1912 | L35: 1 | M35: 0 | N35: 0 | O35: 0 | P35: 0 | Q35: 0 | R35: 0 | S35: 0 | T35: 0 | U35: 0 | V35: 0 | W35: 0 | X35: 0 | Y35: 0 | Z35: 0 | AA35: 0 | AB35: 0 | AC35: 0 | AD35: 0 | AE35: 0 | AF35: 0 | AG35: 0 | AH35: 0 | AI35: 0 | AJ35: 0 | AK35: 0 | AL35: 0 | AM35: 0 | AN35: 0 | AO35: 0 | AP35: 0 | AQ35: 0 | AR35: 0 | AS35: 0 | AT35: 0 | AU35: 0 | AV35: 0 | AW35: 0 | AX35: 0 | AY35: 0 | AZ35: 0 | BA35: 0 | BB35: 0 | BC35: 1 | BD35: 3 | BE35: 0 | BF35: 0 | BG35: 0 | BH35: 0 | BI35: 0 | BJ35: 0 | BK35: 0 | BL35: 0 | BM35: 0 | BN35: 0 | BO35: 0 | BP35: 0 | BQ35: 0 | BR35: 0 | BS35: 0 | BT35: 0 | BU35: 0 | BV35: 0 | BW35: 0 | BX35: 0 | BY35: 0 | BZ35: 0 | CA35: 0 | CB35: 0 | CC35: 0 | CD35: 0 | CE35: 0 | CF35: 0 | CG35: 0 | CH35: 0 | CI35: 0 | CJ35: 0 | CK35: 0 | CL35: 0 | CM35: 0 | CN35: 0 | CO35: 0 | CP35: 0 | CQ35: 0 | CR35: 0 | CS35: 0 | CT35: 0 | CU35: 0 | CV35: 0 | CW35: 0 | CX35: 0 | CY35: 0 | CZ35: 0 | DA35: 0 | DB35: 0 | DC35: 0 | DD35: 0 | DE35: 0 | DF35: 0 | DG35: 0 | DH35: 0 | DI35: 0 | DJ35: 0 | DK35: 0 | DL35: 0 | DM35: 0 | DN35: 0 | DO35: 0 | DP35: 0 | DQ35: 0 | DR35: 0 | DS35: 0 | DT35: 0 | DU35: 0 | DV35: 0 | DW35: 0 | DX35: 0 | DY35: 0 | DZ35: 0 | EA35: 0 | EB35: 0 | EC35: 0 | ED35: 0 | EE35: 0 | EF35: 0 | EG35: 0 | EH35: 0 | EI35: 0 | EJ35: 0 | EK35: 0 | EL35: 0 | EM35: 0 | EN35: 0 | EO35: 0 | EP35: 0 | EQ35: 0 | ER35: 0 | ES35: 0 | ET35: 0 | EU35: 0 | EV35: 0 | EW35: 0 | EX35: 0 | EY35: 0 | EZ35: 0 | FA35: 0 | FB35: 0 | FC35: 0 | FD35: 0 | FE35: 0 | FF35: 0 | FG35: 0 | FH35: 0 | FI35: 0 | FJ35: 0 | FK35: 0 | FL35: 0 | FM35: 0 | FN35: 0 | FO35: 0 | FP35: 0 | FQ35: 0 | FR35: 0 | FS35: 0 | FT35: 0 | FU35: 0 | FV35: 0 | FW35: 0 | FX35: 0 | FY35: 0 | FZ35: 0 | GA35: 0 | GB35: 0 | GC35: 0 | GD35: 0 | GE35: 0 | GF35: 0 | GG35: 0 | GH35: 0 | GI35: 0 | GJ35: 0 | GK35: 0 | GL35: 0 | GM35: 0 | GN35: 0 | GO35: 0 | GP35: 0 | GQ35: 0 | GR35: 0 | GS35: 0 | GT35: 0 | GU35: 0 | GV35: 0 | GW35: 0 | GX35: 0 | GY35: 0 | GZ35: 0 | HA35: 0 | HB35: 0 | HC35: 0 | HD35: 0 | HE35: 0 | HF35: 0 | HG35: 0 | HH35: 0 | HI35: 0 | HJ35: 0 | HK35: 0 | HL35: 0 | HM35: 0 | HN35: 0 | HO35: 0 | HP35: 0 | HQ35: 0 | HR35: 0 | HS35: 0 | HT35: 0 | HU35: 0 | HV35: 1 | HW35: 0 | HX35: 0 | HY35: 0 | HZ35: 0 | IA35: 0 | IB35: 1 | IC35: 0 | ID35: 1 | IE35: 0 | IF35: 0 | IG35: 0 | IH35: 0 | II35: 0 | IJ35: 0 | IK35: 0 | IL35: 0 | IM35: 0 | IN35: 0 | IO35: 0 | IP35: 0 | IQ35: 0 | IR35: 0 | IS35: 0 | IT35: 0 | IU35: 0 | IV35: 0 | IW35: 0 | IX35: 0 | IY35: 0 | IZ35: 0 | JA35: 0 | JB35: 0 | JC35: 0 | JD35: 0 | JE35: 0 | JF35: 0 | JG35: 0 | JH35: 0 | JI35: 0 | JJ35: 0 | JK35: 0 | JL35: 0 | JM35: 0 | JN35: 0 | JO35: 0 | JP35: 0 | JQ35: 0 | JR35: 0 | JS35: 0 | JT35: 0 | JU35: 0 | JV35: 0 | JW35: 0 | JX35: 0 | JY35: 0 | JZ35: 0 | KA35: 0 | KB35: 0 | KC35: 0 | KD35: 0 | KE35: 0 | KF35: 0 | KG35: 0 | KH35: 0 | KI35: 0 | KJ35: 0 | KK35: 0 | KL35: 0 | KM35: 0 | KN35: 0 | KO35: 0 | KP35: 0 | KQ35: 0 | KR35: 0 | KS35: 0 | KT35: 0 | KU35: 0 | KV35: 0 | KW35: 0 | KX35: 0 | KY35: 0 | KZ35: 0 | LA35: 0 | LB35: 0 | LC35: 0 | LD35: 0 | LE35: 0 | LF35: 0 | LG35: 0 | LH35: 0 | LI35: 0 | LJ35: 0 | LK35: 0 | LL35: 1 | LM35: 0 | LN35: 0 | LO35: 0 | LP35: 0 | LQ35: 0 | LR35: 0
A36: LUCIANO CASTILLO COLONNA | B36: AYABACA | C36: 200201 | D36: TAPAL | E36: I-2 | F36: AYABACA | G36: NINGUN CLAS | H36: AYABACA | I36: AYABACA | J36: SALUD LUCIANO CASTILLO COLONNA | K36: 1912 | L36: 2 | M36: 0 | N36: 0 | O36: 0 | P36: 0 | Q36: 0 | R36: 0 | S36: 0 | T36: 0 | U36: 0 | V36: 0 | W36: 0 | X36: 0 | Y36: 0 | Z36: 0 | AA36: 0 | AB36: 0 | AC36: 0 | AD36: 0 | AE36: 0 | AF36: 0 | AG36: 0 | AH36: 0 | AI36: 0 | AJ36: 0 | AK36: 0 | AL36: 0 | AM36: 0 | AN36: 0 | AO36: 0 | AP36: 0 | AQ36: 0 | AR36: 0 | AS36: 0 | AT36: 0 | AU36: 0 | AV36: 0 | AW36: 0 | AX36: 1 | AY36: 0 | AZ36: 0 | BA36: 0 | BB36: 0 | BC36: 0 | BD36: 0 | BE36: 0 | BF36: 1 | BG36: 0 | BH36: 0 | BI36: 0 | BJ36: 0 | BK36: 0 | BL36: 0 | BM36: 0 | BN36: 0 | BO36: 0 | BP36: 0 | BQ36: 0 | BR36: 0 | BS36: 0 | BT36: 0 | BU36: 0 | BV36: 0 | BW36: 0 | BX36: 0 | BY36: 0 | BZ36: 0 | CA36: 0 | CB36: 0 | CC36: 0 | CD36: 0 | CE36: 0 | CF36: 0 | CG36: 0 | CH36: 0 | CI36: 0 | CJ36: 0 | CK36: 0 | CL36: 0 | CM36: 0 | CN36: 0 | CO36: 0 | CP36: 0 | CQ36: 0 | CR36: 0 | CS36: 0 | CT36: 0 | CU36: 0 | CV36: 0 | CW36: 0 | CX36: 0 | CY36: 0 | CZ36: 0 | DA36: 0 | DB36: 0 | DC36: 0 | DD36: 0 | DE36: 0 | DF36: 0 | DG36: 0 | DH36: 0 | DI36: 0 | DJ36: 0 | DK36: 0 | DL36: 0 | DM36: 0 | DN36: 0 | DO36: 0 | DP36: 0 | DQ36: 0 | DR36: 0 | DS36: 0 | DT36: 0 | DU36: 0 | DV36: 0 | DW36: 0 | DX36: 0 | DY36: 0 | DZ36: 0 | EA36: 0 | EB36: 0 | EC36: 0 | ED36: 0 | EE36: 0 | EF36: 0 | EG36: 0 | EH36: 0 | EI36: 0 | EJ36: 0 | EK36: 0 | EL36: 0 | EM36: 0 | EN36: 0 | EO36: 0 | EP36: 0 | EQ36: 0 | ER36: 0 | ES36: 0 | ET36: 0 | EU36: 0 | EV36: 0 | EW36: 0 | EX36: 0 | EY36: 0 | EZ36: 0 | FA36: 0 | FB36: 0 | FC36: 0 | FD36: 0 | FE36: 0 | FF36: 0 | FG36: 0 | FH36: 0 | FI36: 0 | FJ36: 0 | FK36: 0 | FL36: 0 | FM36: 0 | FN36: 0 | FO36: 0 | FP36: 0 | FQ36: 0 | FR36: 0 | FS36: 0 | FT36: 0 | FU36: 0 | FV36: 0 | FW36: 0 | FX36: 0 | FY36: 0 | FZ36: 0 | GA36: 0 | GB36: 0 | GC36: 0 | GD36: 0 | GE36: 0 | GF36: 0 | GG36: 0 | GH36: 0 | GI36: 0 | GJ36: 0 | GK36: 0 | GL36: 0 | GM36: 0 | GN36: 0 | GO36: 0 | GP36: 0 | GQ36: 0 | GR36: 0 | GS36: 0 | GT36: 0 | GU36: 0 | GV36: 0 | GW36: 0 | GX36: 0 | GY36: 0 | GZ36: 0 | HA36: 0 | HB36: 0 | HC36: 0 | HD36: 0 | HE36: 0 | HF36: 0 | HG36: 0 | HH36: 0 | HI36: 0 | HJ36: 0 | HK36: 0 | HL36: 0 | HM36: 0 | HN36: 0 | HO36: 0 | HP36: 0 | HQ36: 0 | HR36: 0 | HS36: 0 | HT36: 0 | HU36: 0 | HV36: 0 | HW36: 0 | HX36: 0 | HY36: 0 | HZ36: 0 | IA36: 0 | IB36: 0 | IC36: 0 | ID36: 0 | IE36: 0 | IF36: 0 | IG36: 0 | IH36: 0 | II36: 0 | IJ36: 0 | IK36: 0 | IL36: 0 | IM36: 0 | IN36: 0 | IO36: 0 | IP36: 0 | IQ36: 0 | IR36: 0 | IS36: 0 | IT36: 0 | IU36: 0 | IV36: 0 | IW36: 0 | IX36: 0 | IY36: 0 | IZ36: 0 | JA36: 0 | JB36: 0 | JC36: 0 | JD36: 0 | JE36: 0 | JF36: 0 | JG36: 0 | JH36: 0 | JI36: 0 | JJ36: 0 | JK36: 0 | JL36: 0 | JM36: 0 | JN36: 0 | JO36: 0 | JP36: 0 | JQ36: 0 | JR36: 0 | JS36: 0 | JT36: 0 | JU36: 0 | JV36: 0 | JW36: 0 | JX36: 0 | JY36: 0 | JZ36: 0 | KA36: 0 | KB36: 0 | KC36: 0 | KD36: 0 | KE36: 0 | KF36: 0 | KG36: 0 | KH36: 0 | KI36: 0 | KJ36: 0 | KK36: 0 | KL36: 0 | KM36: 0 | KN36: 0 | KO36: 0 | KP36: 0 | KQ36: 0 | KR36: 0 | KS36: 0 | KT36: 0 | KU36: 0 | KV36: 0 | KW36: 0 | KX36: 0 | KY36: 0 | KZ36: 0 | LA36: 0 | LB36: 0 | LC36: 0 | LD36: 0 | LE36: 0 | LF36: 0 | LG36: 0 | LH36: 1 | LI36: 1 | LJ36: 1 | LK36: 0 | LL36: 1 | LM36: 0 | LN36: 0 | LO36: 0 | LP36: 0 | LQ36: 0 | LR36: 0
A37: LUCIANO CASTILLO COLONNA | B37: AYABACA | C37: 200201 | D37: TAPAL | E37: I-2 | F37: AYABACA | G37: NINGUN CLAS | H37: AYABACA | I37: AYABACA | J37: SALUD LUCIANO CASTILLO COLONNA | K37: 1912 | L37: 3 | M37: 0 | N37: 0 | O37: 0 | P37: 0 | Q37: 0 | R37: 0 | S37: 0 | T37: 0 | U37: 0 | V37: 0 | W37: 0 | X37: 0 | Y37: 0 | Z37: 0 | AA37: 0 | AB37: 0 | AC37: 0 | AD37: 0 | AE37: 0 | AF37: 0 | AG37: 0 | AH37: 0 | AI37: 0 | AJ37: 0 | AK37: 0 | AL37: 0 | AM37: 0 | AN37: 0 | AO37: 0 | AP37: 0 | AQ37: 0 | AR37: 0 | AS37: 0 | AT37: 0 | AU37: 0 | AV37: 0 | AW37: 0 | AX37: 0 | AY37: 0 | AZ37: 0 | BA37: 0 | BB37: 0 | BC37: 0 | BD37: 0 | BE37: 0 | BF37: 0 | BG37: 0 | BH37: 0 | BI37: 0 | BJ37: 0 | BK37: 0 | BL37: 0 | BM37: 0 | BN37: 0 | BO37: 0 | BP37: 0 | BQ37: 0 | BR37: 0 | BS37: 0 | BT37: 0 | BU37: 0 | BV37: 0 | BW37: 0 | BX37: 0 | BY37: 0 | BZ37: 0 | CA37: 0 | CB37: 0 | CC37: 0 | CD37: 0 | CE37: 0 | CF37: 0 | CG37: 0 | CH37: 0 | CI37: 0 | CJ37: 0 | CK37: 0 | CL37: 0 | CM37: 0 | CN37: 0 | CO37: 0 | CP37: 0 | CQ37: 0 | CR37: 0 | CS37: 0 | CT37: 0 | CU37: 0 | CV37: 0 | CW37: 0 | CX37: 0 | CY37: 0 | CZ37: 0 | DA37: 0 | DB37: 0 | DC37: 0 | DD37: 0 | DE37: 0 | DF37: 0 | DG37: 0 | DH37: 0 | DI37: 0 | DJ37: 0 | DK37: 0 | DL37: 0 | DM37: 0 | DN37: 0 | DO37: 0 | DP37: 0 | DQ37: 0 | DR37: 0 | DS37: 0 | DT37: 0 | DU37: 0 | DV37: 0 | DW37: 0 | DX37: 0 | DY37: 0 | DZ37: 0 | EA37: 0 | EB37: 0 | EC37: 0 | ED37: 0 | EE37: 0 | EF37: 0 | EG37: 0 | EH37: 0 | EI37: 0 | EJ37: 0 | EK37: 0 | EL37: 0 | EM37: 0 | EN37: 0 | EO37: 0 | EP37: 0 | EQ37: 0 | ER37: 0 | ES37: 0 | ET37: 0 | EU37: 0 | EV37: 0 | EW37: 0 | EX37: 0 | EY37: 0 | EZ37: 0 | FA37: 0 | FB37: 0 | FC37: 0 | FD37: 0 | FE37: 0 | FF37: 0 | FG37: 0 | FH37: 0 | FI37: 0 | FJ37: 0 | FK37: 0 | FL37: 0 | FM37: 0 | FN37: 0 | FO37: 0 | FP37: 0 | FQ37: 0 | FR37: 0 | FS37: 0 | FT37: 0 | FU37: 0 | FV37: 0 | FW37: 0 | FX37: 0 | FY37: 0 | FZ37: 0 | GA37: 0 | GB37: 0 | GC37: 0 | GD37: 0 | GE37: 0 | GF37: 0 | GG37: 0 | GH37: 0 | GI37: 0 | GJ37: 0 | GK37: 0 | GL37: 0 | GM37: 0 | GN37: 0 | GO37: 0 | GP37: 0 | GQ37: 0 | GR37: 0 | GS37: 0 | GT37: 0 | GU37: 0 | GV37: 0 | GW37: 0 | GX37: 0 | GY37: 0 | GZ37: 0 | HA37: 0 | HB37: 0 | HC37: 0 | HD37: 0 | HE37: 0 | HF37: 0 | HG37: 0 | HH37: 0 | HI37: 0 | HJ37: 0 | HK37: 0 | HL37: 0 | HM37: 0 | HN37: 0 | HO37: 0 | HP37: 0 | HQ37: 0 | HR37: 0 | HS37: 0 | HT37: 0 | HU37: 0 | HV37: 0 | HW37: 0 | HX37: 0 | HY37: 0 | HZ37: 0 | IA37: 0 | IB37: 0 | IC37: 0 | ID37: 0 | IE37: 0 | IF37: 0 | IG37: 0 | IH37: 0 | II37: 0 | IJ37: 0 | IK37: 0 | IL37: 0 | IM37: 0 | IN37: 0 | IO37: 0 | IP37: 0 | IQ37: 0 | IR37: 0 | IS37: 0 | IT37: 0 | IU37: 0 | IV37: 0 | IW37: 0 | IX37: 0 | IY37: 0 | IZ37: 0 | JA37: 0 | JB37: 0 | JC37: 0 | JD37: 0 | JE37: 0 | JF37: 0 | JG37: 0 | JH37: 0 | JI37: 0 | JJ37: 0 | JK37: 0 | JL37: 0 | JM37: 0 | JN37: 0 | JO37: 0 | JP37: 0 | JQ37: 0 | JR37: 0 | JS37: 0 | JT37: 0 | JU37: 0 | JV37: 0 | JW37: 0 | JX37: 0 | JY37: 0 | JZ37: 0 | KA37: 0 | KB37: 0 | KC37: 0 | KD37: 0 | KE37: 0 | KF37: 0 | KG37: 0 | KH37: 0 | KI37: 0 | KJ37: 0 | KK37: 0 | KL37: 0 | KM37: 0 | KN37: 0 | KO37: 0 | KP37: 0 | KQ37: 0 | KR37: 0 | KS37: 0 | KT37: 0 | KU37: 0 | KV37: 0 | KW37: 0 | KX37: 0 | KY37: 0 | KZ37: 0 | LA37: 0 | LB37: 0 | LC37: 0 | LD37: 0 | LE37: 0 | LF37: 0 | LG37: 0 | LH37: 0 | LI37: 0 | LJ37: 0 | LK37: 0 | LL37: 0 | LM37: 0 | LN37: 0 | LO37: 0 | LP37: 0 | LQ37: 0 | LR37: 0
A38: LUCIANO CASTILLO COLONNA | B38: AYABACA | C38: 200201 | D38: CHINCHIN | E38: I-1 | F38: AYABACA | G38: NINGUN CLAS | H38: AYABACA | I38: AYABACA | J38: SALUD LUCIANO CASTILLO COLONNA | K38: 1913 | L38: 3 | M38: 0 | N38: 0 | O38: 0 | P38: 0 | Q38: 0 | R38: 0 | S38: 0 | T38: 0 | U38: 0 | V38: 0 | W38: 0 | X38: 0 | Y38: 0 | Z38: 0 | AA38: 0 | AB38: 0 | AC38: 0 | AD38: 0 | AE38: 0 | AF38: 0 | AG38: 0 | AH38: 0 | AI38: 0 | AJ38: 0 | AK38: 0 | AL38: 0 | AM38: 0 | AN38: 0 | AO38: 0 | AP38: 0 | AQ38: 0 | AR38: 0 | AS38: 0 | AT38: 0 | AU38: 0 | AV38: 0 | AW38: 0 | AX38: 0 | AY38: 0 | AZ38: 1 | BA38: 0 | BB38: 0 | BC38: 0 | BD38: 0 | BE38: 0 | BF38: 0 | BG38: 0 | BH38: 0 | BI38: 0 | BJ38: 0 | BK38: 0 | BL38: 0 | BM38: 0 | BN38: 0 | BO38: 0 | BP38: 0 | BQ38: 0 | BR38: 0 | BS38: 0 | BT38: 0 | BU38: 0 | BV38: 0 | BW38: 0 | BX38: 0 | BY38: 0 | BZ38: 0 | CA38: 0 | CB38: 0 | CC38: 0 | CD38: 0 | CE38: 0 | CF38: 0 | CG38: 0 | CH38: 0 | CI38: 0 | CJ38: 0 | CK38: 0 | CL38: 0 | CM38: 0 | CN38: 0 | CO38: 0 | CP38: 0 | CQ38: 0 | CR38: 0 | CS38: 0 | CT38: 0 | CU38: 0 | CV38: 0 | CW38: 0 | CX38: 0 | CY38: 0 | CZ38: 0 | DA38: 0 | DB38: 0 | DC38: 0 | DD38: 0 | DE38: 0 | DF38: 0 | DG38: 0 | DH38: 0 | DI38: 0 | DJ38: 0 | DK38: 0 | DL38: 0 | DM38: 0 | DN38: 0 | DO38: 0 | DP38: 0 | DQ38: 0 | DR38: 0 | DS38: 0 | DT38: 0 | DU38: 0 | DV38: 0 | DW38: 0 | DX38: 0 | DY38: 0 | DZ38: 0 | EA38: 0 | EB38: 0 | EC38: 0 | ED38: 0 | EE38: 0 | EF38: 0 | EG38: 0 | EH38: 0 | EI38: 0 | EJ38: 0 | EK38: 0 | EL38: 0 | EM38: 0 | EN38: 0 | EO38: 0 | EP38: 0 | EQ38: 0 | ER38: 0 | ES38: 0 | ET38: 0 | EU38: 0 | EV38: 0 | EW38: 0 | EX38: 0 | EY38: 0 | EZ38: 0 | FA38: 0 | FB38: 0 | FC38: 0 | FD38: 0 | FE38: 0 | FF38: 0 | FG38: 0 | FH38: 0 | FI38: 0 | FJ38: 0 | FK38: 0 | FL38: 0 | FM38: 0 | FN38: 0 | FO38: 0 | FP38: 0 | FQ38: 0 | FR38: 0 | FS38: 0 | FT38: 0 | FU38: 0 | FV38: 0 | FW38: 0 | FX38: 0 | FY38: 0 | FZ38: 0 | GA38: 0 | GB38: 0 | GC38: 0 | GD38: 0 | GE38: 0 | GF38: 0 | GG38: 0 | GH38: 0 | GI38: 0 | GJ38: 0 | GK38: 0 | GL38: 0 | GM38: 0 | GN38: 0 | GO38: 0 | GP38: 0 | GQ38: 0 | GR38: 0 | GS38: 0 | GT38: 0 | GU38: 0 | GV38: 0 | GW38: 0 | GX38: 0 | GY38: 0 | GZ38: 0 | HA38: 0 | HB38: 0 | HC38: 0 | HD38: 0 | HE38: 0 | HF38: 0 | HG38: 0 | HH38: 0 | HI38: 0 | HJ38: 0 | HK38: 0 | HL38: 0 | HM38: 0 | HN38: 0 | HO38: 0 | HP38: 0 | HQ38: 0 | HR38: 0 | HS38: 0 | HT38: 0 | HU38: 0 | HV38: 0 | HW38: 0 | HX38: 0 | HY38: 0 | HZ38: 0 | IA38: 0 | IB38: 0 | IC38: 0 | ID38: 0 | IE38: 0 | IF38: 0 | IG38: 0 | IH38: 0 | II38: 0 | IJ38: 0 | IK38: 0 | IL38: 0 | IM38: 0 | IN38: 0 | IO38: 0 | IP38: 0 | IQ38: 0 | IR38: 0 | IS38: 0 | IT38: 0 | IU38: 0 | IV38: 0 | IW38: 0 | IX38: 0 | IY38: 0 | IZ38: 0 | JA38: 0 | JB38: 0 | JC38: 0 | JD38: 0 | JE38: 0 | JF38: 0 | JG38: 0 | JH38: 0 | JI38: 0 | JJ38: 0 | JK38: 0 | JL38: 0 | JM38: 0 | JN38: 0 | JO38: 0 | JP38: 0 | JQ38: 0 | JR38: 0 | JS38: 0 | JT38: 0 | JU38: 0 | JV38: 0 | JW38: 0 | JX38: 0 | JY38: 0 | JZ38: 0 | KA38: 0 | KB38: 0 | KC38: 0 | KD38: 0 | KE38: 0 | KF38: 0 | KG38: 0 | KH38: 0 | KI38: 0 | KJ38: 0 | KK38: 0 | KL38: 0 | KM38: 0 | KN38: 0 | KO38: 0 | KP38: 0 | KQ38: 0 | KR38: 0 | KS38: 0 | KT38: 0 | KU38: 0 | KV38: 0 | KW38: 0 | KX38: 0 | KY38: 0 | KZ38: 0 | LA38: 0 | LB38: 0 | LC38: 0 | LD38: 0 | LE38: 0 | LF38: 0 | LG38: 0 | LH38: 0 | LI38: 0 | LJ38: 0 | LK38: 0 | LL38: 0 | LM38: 0 | LN38: 0 | LO38: 0 | LP38: 0 | LQ38: 0 | LR38: 0
A39: LUCIANO CASTILLO COLONNA | B39: AYABACA | C39: 200201 | D39: CHINCHIN | E39: I-1 | F39: AYABACA | G39: NINGUN CLAS | H39: AYABACA | I39: AYABACA | J39: SALUD LUCIANO CASTILLO COLONNA | K39: 1913 | L39: 2 | M39: 0 | N39: 0 | O39: 0 | P39: 0 | Q39: 0 | R39: 0 | S39: 0 | T39: 0 | U39: 0 | V39: 0 | W39: 0 | X39: 0 | Y39: 0 | Z39: 0 | AA39: 0 | AB39: 0 | AC39: 0 | AD39: 0 | AE39: 0 | AF39: 0 | AG39: 0 | AH39: 0 | AI39: 0 | AJ39: 0 | AK39: 0 | AL39: 0 | AM39: 0 | AN39: 0 | AO39: 0 | AP39: 0 | AQ39: 0 | AR39: 0 | AS39: 0 | AT39: 0 | AU39: 0 | AV39: 0 | AW39: 2 | AX39: 3 | AY39: 0 | AZ39: 2 | BA39: 1 | BB39: 1 | BC39: 0 | BD39: 0 | BE39: 0 | BF39: 0 | BG39: 0 | BH39: 0 | BI39: 0 | BJ39: 0 | BK39: 0 | BL39: 0 | BM39: 0 | BN39: 0 | BO39: 0 | BP39: 0 | BQ39: 0 | BR39: 0 | BS39: 0 | BT39: 0 | BU39: 0 | BV39: 0 | BW39: 0 | BX39: 0 | BY39: 0 | BZ39: 0 | CA39: 0 | CB39: 0 | CC39: 0 | CD39: 0 | CE39: 0 | CF39: 0 | CG39: 0 | CH39: 0 | CI39: 0 | CJ39: 0 | CK39: 0 | CL39: 0 | CM39: 0 | CN39: 0 | CO39: 0 | CP39: 0 | CQ39: 0 | CR39: 0 | CS39: 0 | CT39: 0 | CU39: 0 | CV39: 0 | CW39: 0 | CX39: 0 | CY39: 0 | CZ39: 0 | DA39: 0 | DB39: 0 | DC39: 0 | DD39: 0 | DE39: 0 | DF39: 0 | DG39: 0 | DH39: 0 | DI39: 0 | DJ39: 0 | DK39: 0 | DL39: 0 | DM39: 0 | DN39: 0 | DO39: 0 | DP39: 0 | DQ39: 0 | DR39: 0 | DS39: 0 | DT39: 0 | DU39: 0 | DV39: 0 | DW39: 0 | DX39: 0 | DY39: 0 | DZ39: 0 | EA39: 0 | EB39: 0 | EC39: 0 | ED39: 0 | EE39: 0 | EF39: 0 | EG39: 0 | EH39: 0 | EI39: 0 | EJ39: 0 | EK39: 0 | EL39: 0 | EM39: 0 | EN39: 0 | EO39: 0 | EP39: 0 | EQ39: 0 | ER39: 0 | ES39: 0 | ET39: 0 | EU39: 0 | EV39: 0 | EW39: 0 | EX39: 0 | EY39: 0 | EZ39: 0 | FA39: 0 | FB39: 0 | FC39: 0 | FD39: 0 | FE39: 0 | FF39: 0 | FG39: 0 | FH39: 0 | FI39: 0 | FJ39: 0 | FK39: 0 | FL39: 0 | FM39: 0 | FN39: 0 | FO39: 0 | FP39: 0 | FQ39: 0 | FR39: 0 | FS39: 0 | FT39: 0 | FU39: 0 | FV39: 0 | FW39: 0 | FX39: 0 | FY39: 0 | FZ39: 0 | GA39: 0 | GB39: 0 | GC39: 0 | GD39: 0 | GE39: 0 | GF39: 0 | GG39: 0 | GH39: 0 | GI39: 0 | GJ39: 0 | GK39: 0 | GL39: 0 | GM39: 0 | GN39: 0 | GO39: 0 | GP39: 0 | GQ39: 0 | GR39: 0 | GS39: 0 | GT39: 0 | GU39: 0 | GV39: 0 | GW39: 0 | GX39: 0 | GY39: 0 | GZ39: 0 | HA39: 0 | HB39: 0 | HC39: 0 | HD39: 0 | HE39: 0 | HF39: 0 | HG39: 0 | HH39: 0 | HI39: 0 | HJ39: 0 | HK39: 0 | HL39: 0 | HM39: 0 | HN39: 0 | HO39: 0 | HP39: 0 | HQ39: 0 | HR39: 0 | HS39: 0 | HT39: 0 | HU39: 0 | HV39: 0 | HW39: 0 | HX39: 0 | HY39: 0 | HZ39: 0 | IA39: 0 | IB39: 0 | IC39: 0 | ID39: 0 | IE39: 0 | IF39: 0 | IG39: 0 | IH39: 0 | II39: 0 | IJ39: 0 | IK39: 0 | IL39: 0 | IM39: 0 | IN39: 0 | IO39: 0 | IP39: 0 | IQ39: 0 | IR39: 0 | IS39: 0 | IT39: 0 | IU39: 0 | IV39: 0 | IW39: 0 | IX39: 0 | IY39: 0 | IZ39: 0 | JA39: 0 | JB39: 0 | JC39: 0 | JD39: 0 | JE39: 0 | JF39: 0 | JG39: 0 | JH39: 0 | JI39: 0 | JJ39: 0 | JK39: 0 | JL39: 0 | JM39: 0 | JN39: 0 | JO39: 0 | JP39: 0 | JQ39: 0 | JR39: 0 | JS39: 0 | JT39: 0 | JU39: 0 | JV39: 0 | JW39: 0 | JX39: 0 | JY39: 0 | JZ39: 0 | KA39: 0 | KB39: 0 | KC39: 0 | KD39: 0 | KE39: 0 | KF39: 0 | KG39: 0 | KH39: 0 | KI39: 0 | KJ39: 0 | KK39: 0 | KL39: 0 | KM39: 0 | KN39: 0 | KO39: 0 | KP39: 0 | KQ39: 0 | KR39: 0 | KS39: 0 | KT39: 0 | KU39: 0 | KV39: 0 | KW39: 0 | KX39: 0 | KY39: 0 | KZ39: 0 | LA39: 0 | LB39: 0 | LC39: 0 | LD39: 0 | LE39: 0 | LF39: 0 | LG39: 0 | LH39: 0 | LI39: 0 | LJ39: 0 | LK39: 0 | LL39: 0 | LM39: 0 | LN39: 0 | LO39: 0 | LP39: 0 | LQ39: 0 | LR39: 0
A40: LUCIANO CASTILLO COLONNA | B40: AYABACA | C40: 200201 | D40: CHINCHIN | E40: I-1 | F40: AYABACA | G40: NINGUN CLAS | H40: AYABACA | I40: AYABACA | J40: SALUD LUCIANO CASTILLO COLONNA | K40: 1913 | L40: 1 | M40: 0 | N40: 0 | O40: 0 | P40: 0 | Q40: 0 | R40: 0 | S40: 0 | T40: 0 | U40: 0 | V40: 0 | W40: 0 | X40: 0 | Y40: 0 | Z40: 0 | AA40: 0 | AB40: 0 | AC40: 0 | AD40: 0 | AE40: 0 | AF40: 0 | AG40: 0 | AH40: 0 | AI40: 0 | AJ40: 0 | AK40: 0 | AL40: 0 | AM40: 0 | AN40: 0 | AO40: 0 | AP40: 0 | AQ40: 0 | AR40: 0 | AS40: 0 | AT40: 0 | AU40: 0 | AV40: 0 | AW40: 0 | AX40: 0 | AY40: 0 | AZ40: 0 | BA40: 0 | BB40: 0 | BC40: 0 | BD40: 0 | BE40: 0 | BF40: 0 | BG40: 0 | BH40: 0 | BI40: 0 | BJ40: 0 | BK40: 0 | BL40: 0 | BM40: 0 | BN40: 0 | BO40: 0 | BP40: 0 | BQ40: 0 | BR40: 0 | BS40: 0 | BT40: 0 | BU40: 0 | BV40: 0 | BW40: 0 | BX40: 0 | BY40: 0 | BZ40: 0 | CA40: 0 | CB40: 0 | CC40: 0 | CD40: 0 | CE40: 0 | CF40: 0 | CG40: 0 | CH40: 0 | CI40: 0 | CJ40: 0 | CK40: 0 | CL40: 0 | CM40: 0 | CN40: 0 | CO40: 0 | CP40: 0 | CQ40: 0 | CR40: 0 | CS40: 0 | CT40: 0 | CU40: 0 | CV40: 0 | CW40: 0 | CX40: 0 | CY40: 0 | CZ40: 0 | DA40: 0 | DB40: 0 | DC40: 0 | DD40: 0 | DE40: 0 | DF40: 0 | DG40: 0 | DH40: 0 | DI40: 0 | DJ40: 0 | DK40: 0 | DL40: 0 | DM40: 0 | DN40: 0 | DO40: 0 | DP40: 0 | DQ40: 0 | DR40: 0 | DS40: 0 | DT40: 0 | DU40: 0 | DV40: 0 | DW40: 0 | DX40: 0 | DY40: 0 | DZ40: 0 | EA40: 0 | EB40: 0 | EC40: 0 | ED40: 0 | EE40: 0 | EF40: 0 | EG40: 0 | EH40: 0 | EI40: 0 | EJ40: 0 | EK40: 0 | EL40: 0 | EM40: 0 | EN40: 0 | EO40: 0 | EP40: 0 | EQ40: 0 | ER40: 0 | ES40: 0 | ET40: 0 | EU40: 0 | EV40: 0 | EW40: 0 | EX40: 0 | EY40: 0 | EZ40: 0 | FA40: 0 | FB40: 0 | FC40: 0 | FD40: 0 | FE40: 0 | FF40: 0 | FG40: 0 | FH40: 0 | FI40: 0 | FJ40: 0 | FK40: 0 | FL40: 0 | FM40: 0 | FN40: 0 | FO40: 0 | FP40: 0 | FQ40: 0 | FR40: 0 | FS40: 0 | FT40: 0 | FU40: 0 | FV40: 0 | FW40: 0 | FX40: 0 | FY40: 0 | FZ40: 0 | GA40: 0 | GB40: 0 | GC40: 0 | GD40: 0 | GE40: 0 | GF40: 0 | GG40: 0 | GH40: 0 | GI40: 0 | GJ40: 0 | GK40: 0 | GL40: 0 | GM40: 0 | GN40: 0 | GO40: 0 | GP40: 0 | GQ40: 0 | GR40: 0 | GS40: 0 | GT40: 0 | GU40: 0 | GV40: 0 | GW40: 0 | GX40: 0 | GY40: 0 | GZ40: 0 | HA40: 0 | HB40: 0 | HC40: 0 | HD40: 0 | HE40: 0 | HF40: 0 | HG40: 0 | HH40: 0 | HI40: 0 | HJ40: 0 | HK40: 0 | HL40: 0 | HM40: 0 | HN40: 0 | HO40: 0 | HP40: 0 | HQ40: 0 | HR40: 0 | HS40: 0 | HT40: 0 | HU40: 0 | HV40: 0 | HW40: 0 | HX40: 0 | HY40: 0 | HZ40: 0 | IA40: 0 | IB40: 0 | IC40: 0 | ID40: 0 | IE40: 0 | IF40: 0 | IG40: 0 | IH40: 0 | II40: 0 | IJ40: 0 | IK40: 0 | IL40: 0 | IM40: 0 | IN40: 0 | IO40: 0 | IP40: 0 | IQ40: 0 | IR40: 0 | IS40: 0 | IT40: 0 | IU40: 0 | IV40: 0 | IW40: 0 | IX40: 0 | IY40: 0 | IZ40: 0 | JA40: 0 | JB40: 0 | JC40: 0 | JD40: 0 | JE40: 0 | JF40: 0 | JG40: 0 | JH40: 0 | JI40: 0 | JJ40: 0 | JK40: 0 | JL40: 0 | JM40: 0 | JN40: 0 | JO40: 0 | JP40: 0 | JQ40: 0 | JR40: 0 | JS40: 0 | JT40: 0 | JU40: 0 | JV40: 0 | JW40: 0 | JX40: 0 | JY40: 0 | JZ40: 0 | KA40: 0 | KB40: 0 | KC40: 0 | KD40: 0 | KE40: 0 | KF40: 0 | KG40: 0 | KH40: 0 | KI40: 0 | KJ40: 0 | KK40: 0 | KL40: 0 | KM40: 0 | KN40: 0 | KO40: 0 | KP40: 0 | KQ40: 0 | KR40: 0 | KS40: 0 | KT40: 0 | KU40: 0 | KV40: 0 | KW40: 0 | KX40: 0 | KY40: 0 | KZ40: 0 | LA40: 0 | LB40: 0 | LC40: 0 | LD40: 0 | LE40: 0 | LF40: 0 | LG40: 0 | LH40: 0 | LI40: 0 | LJ40: 0 | LK40: 0 | LL40: 0 | LM40: 0 | LN40: 0 | LO40: 0 | LP40: 0 | LQ40: 0 | LR40: 0
A41: LUCIANO CASTILLO COLONNA | B41: AYABACA | C41: 200201 | D41: CHINCHIN | E41: I-1 | F41: AYABACA | G41: NINGUN CLAS | H41: AYABACA | I41: AYABACA | J41: SALUD LUCIANO CASTILLO COLONNA | K41: 1913 | L41: 4 | M41: 0 | N41: 0 | O41: 0 | P41: 0 | Q41: 0 | R41: 0 | S41: 0 | T41: 0 | U41: 0 | V41: 0 | W41: 0 | X41: 0 | Y41: 0 | Z41: 0 | AA41: 0 | AB41: 0 | AC41: 0 | AD41: 0 | AE41: 0 | AF41: 0 | AG41: 0 | AH41: 0 | AI41: 0 | AJ41: 0 | AK41: 0 | AL41: 0 | AM41: 0 | AN41: 0 | AO41: 0 | AP41: 0 | AQ41: 0 | AR41: 0 | AS41: 0 | AT41: 0 | AU41: 0 | AV41: 0 | AW41: 0 | AX41: 0 | AY41: 0 | AZ41: 0 | BA41: 0 | BB41: 0 | BC41: 0 | BD41: 0 | BE41: 0 | BF41: 0 | BG41: 0 | BH41: 0 | BI41: 0 | BJ41: 0 | BK41: 0 | BL41: 0 | BM41: 0 | BN41: 0 | BO41: 0 | BP41: 0 | BQ41: 0 | BR41: 0 | BS41: 0 | BT41: 0 | BU41: 0 | BV41: 0 | BW41: 0 | BX41: 0 | BY41: 0 | BZ41: 0 | CA41: 0 | CB41: 0 | CC41: 0 | CD41: 0 | CE41: 0 | CF41: 0 | CG41: 0 | CH41: 0 | CI41: 0 | CJ41: 0 | CK41: 0 | CL41: 0 | CM41: 0 | CN41: 0 | CO41: 0 | CP41: 0 | CQ41: 0 | CR41: 0 | CS41: 0 | CT41: 0 | CU41: 0 | CV41: 0 | CW41: 0 | CX41: 0 | CY41: 0 | CZ41: 0 | DA41: 0 | DB41: 0 | DC41: 0 | DD41: 0 | DE41: 0 | DF41: 0 | DG41: 0 | DH41: 0 | DI41: 0 | DJ41: 0 | DK41: 0 | DL41: 0 | DM41: 0 | DN41: 0 | DO41: 0 | DP41: 0 | DQ41: 0 | DR41: 0 | DS41: 0 | DT41: 0 | DU41: 0 | DV41: 0 | DW41: 0 | DX41: 0 | DY41: 0 | DZ41: 0 | EA41: 0 | EB41: 0 | EC41: 0 | ED41: 0 | EE41: 0 | EF41: 0 | EG41: 0 | EH41: 0 | EI41: 0 | EJ41: 0 | EK41: 0 | EL41: 0 | EM41: 0 | EN41: 0 | EO41: 0 | EP41: 0 | EQ41: 0 | ER41: 0 | ES41: 0 | ET41: 0 | EU41: 0 | EV41: 0 | EW41: 0 | EX41: 0 | EY41: 0 | EZ41: 0 | FA41: 0 | FB41: 0 | FC41: 0 | FD41: 0 | FE41: 0 | FF41: 0 | FG41: 0 | FH41: 0 | FI41: 0 | FJ41: 0 | FK41: 0 | FL41: 0 | FM41: 0 | FN41: 0 | FO41: 0 | FP41: 0 | FQ41: 0 | FR41: 0 | FS41: 0 | FT41: 0 | FU41: 0 | FV41: 0 | FW41: 0 | FX41: 0 | FY41: 0 | FZ41: 0 | GA41: 0 | GB41: 0 | GC41: 0 | GD41: 0 | GE41: 0 | GF41: 0 | GG41: 0 | GH41: 0 | GI41: 0 | GJ41: 0 | GK41: 0 | GL41: 0 | GM41: 0 | GN41: 0 | GO41: 0 | GP41: 0 | GQ41: 0 | GR41: 0 | GS41: 0 | GT41: 0 | GU41: 0 | GV41: 0 | GW41: 0 | GX41: 0 | GY41: 0 | GZ41: 0 | HA41: 0 | HB41: 0 | HC41: 0 | HD41: 0 | HE41: 0 | HF41: 0 | HG41: 0 | HH41: 0 | HI41: 0 | HJ41: 0 | HK41: 0 | HL41: 0 | HM41: 0 | HN41: 0 | HO41: 0 | HP41: 0 | HQ41: 0 | HR41: 0 | HS41: 0 | HT41: 0 | HU41: 0 | HV41: 0 | HW41: 0 | HX41: 0 | HY41: 0 | HZ41: 0 | IA41: 0 | IB41: 0 | IC41: 0 | ID41: 0 | IE41: 0 | IF41: 0 | IG41: 0 | IH41: 0 | II41: 0 | IJ41: 0 | IK41: 0 | IL41: 0 | IM41: 0 | IN41: 0 | IO41: 0 | IP41: 0 | IQ41: 0 | IR41: 0 | IS41: 0 | IT41: 0 | IU41: 0 | IV41: 0 | IW41: 0 | IX41: 0 | IY41: 0 | IZ41: 0 | JA41: 0 | JB41: 0 | JC41: 0 | JD41: 0 | JE41: 0 | JF41: 0 | JG41: 0 | JH41: 0 | JI41: 0 | JJ41: 0 | JK41: 0 | JL41: 0 | JM41: 0 | JN41: 0 | JO41: 0 | JP41: 0 | JQ41: 0 | JR41: 0 | JS41: 0 | JT41: 0 | JU41: 0 | JV41: 0 | JW41: 0 | JX41: 0 | JY41: 0 | JZ41: 0 | KA41: 0 | KB41: 0 | KC41: 0 | KD41: 0 | KE41: 0 | KF41: 0 | KG41: 0 | KH41: 0 | KI41: 0 | KJ41: 0 | KK41: 0 | KL41: 0 | KM41: 0 | KN41: 0 | KO41: 0 | KP41: 0 | KQ41: 0 | KR41: 0 | KS41: 0 | KT41: 0 | KU41: 0 | KV41: 0 | KW41: 0 | KX41: 0 | KY41: 0 | KZ41: 0 | LA41: 0 | LB41: 0 | LC41: 0 | LD41: 0 | LE41: 0 | LF41: 0 | LG41: 0 | LH41: 0 | LI41: 0 | LJ41: 0 | LK41: 0 | LL41: 0 | LM41: 0 | LN41: 0 | LO41: 0 | LP41: 0 | LQ41: 0 | LR41: 0
A42: LUCIANO CASTILLO COLONNA | B42: AYABACA | C42: 200201 | D42: CHINCHIN | E42: I-1 | F42: AYABACA | G42: NINGUN CLAS | H42: AYABACA | I42: AYABACA | J42: SALUD LUCIANO CASTILLO COLONNA | K42: 1913 | L42: 5 | M42: 0 | N42: 0 | O42: 0 | P42: 0 | Q42: 0 | R42: 0 | S42: 0 | T42: 0 | U42: 0 | V42: 0 | W42: 0 | X42: 0 | Y42: 0 | Z42: 0 | AA42: 0 | AB42: 0 | AC42: 0 | AD42: 0 | AE42: 0 | AF42: 0 | AG42: 0 | AH42: 0 | AI42: 0 | AJ42: 0 | AK42: 0 | AL42: 0 | AM42: 0 | AN42: 0 | AO42: 0 | AP42: 0 | AQ42: 0 | AR42: 0 | AS42: 0 | AT42: 0 | AU42: 0 | AV42: 0 | AW42: 1 | AX42: 0 | AY42: 1 | AZ42: 1 | BA42: 1 | BB42: 0 | BC42: 0 | BD42: 0 | BE42: 0 | BF42: 0 | BG42: 0 | BH42: 0 | BI42: 0 | BJ42: 0 | BK42: 0 | BL42: 0 | BM42: 0 | BN42: 0 | BO42: 0 | BP42: 0 | BQ42: 0 | BR42: 0 | BS42: 0 | BT42: 0 | BU42: 0 | BV42: 0 | BW42: 0 | BX42: 0 | BY42: 0 | BZ42: 0 | CA42: 0 | CB42: 0 | CC42: 0 | CD42: 0 | CE42: 0 | CF42: 0 | CG42: 0 | CH42: 0 | CI42: 0 | CJ42: 0 | CK42: 0 | CL42: 0 | CM42: 0 | CN42: 0 | CO42: 0 | CP42: 0 | CQ42: 0 | CR42: 0 | CS42: 0 | CT42: 0 | CU42: 0 | CV42: 0 | CW42: 0 | CX42: 0 | CY42: 0 | CZ42: 0 | DA42: 0 | DB42: 0 | DC42: 0 | DD42: 0 | DE42: 0 | DF42: 0 | DG42: 0 | DH42: 0 | DI42: 0 | DJ42: 0 | DK42: 0 | DL42: 0 | DM42: 0 | DN42: 0 | DO42: 0 | DP42: 0 | DQ42: 0 | DR42: 0 | DS42: 0 | DT42: 0 | DU42: 0 | DV42: 0 | DW42: 0 | DX42: 0 | DY42: 0 | DZ42: 0 | EA42: 0 | EB42: 0 | EC42: 0 | ED42: 0 | EE42: 0 | EF42: 0 | EG42: 0 | EH42: 0 | EI42: 0 | EJ42: 0 | EK42: 0 | EL42: 0 | EM42: 0 | EN42: 0 | EO42: 0 | EP42: 0 | EQ42: 0 | ER42: 0 | ES42: 0 | ET42: 0 | EU42: 0 | EV42: 0 | EW42: 0 | EX42: 0 | EY42: 0 | EZ42: 0 | FA42: 0 | FB42: 0 | FC42: 0 | FD42: 0 | FE42: 0 | FF42: 0 | FG42: 0 | FH42: 0 | FI42: 0 | FJ42: 0 | FK42: 0 | FL42: 0 | FM42: 0 | FN42: 0 | FO42: 0 | FP42: 0 | FQ42: 0 | FR42: 0 | FS42: 0 | FT42: 0 | FU42: 0 | FV42: 0 | FW42: 0 | FX42: 0 | FY42: 0 | FZ42: 0 | GA42: 0 | GB42: 0 | GC42: 0 | GD42: 0 | GE42: 0 | GF42: 0 | GG42: 0 | GH42: 0 | GI42: 0 | GJ42: 0 | GK42: 0 | GL42: 0 | GM42: 0 | GN42: 0 | GO42: 0 | GP42: 0 | GQ42: 0 | GR42: 0 | GS42: 0 | GT42: 0 | GU42: 0 | GV42: 0 | GW42: 0 | GX42: 0 | GY42: 0 | GZ42: 0 | HA42: 0 | HB42: 0 | HC42: 0 | HD42: 0 | HE42: 0 | HF42: 0 | HG42: 0 | HH42: 0 | HI42: 0 | HJ42: 0 | HK42: 0 | HL42: 0 | HM42: 0 | HN42: 0 | HO42: 0 | HP42: 0 | HQ42: 0 | HR42: 0 | HS42: 0 | HT42: 0 | HU42: 0 | HV42: 0 | HW42: 0 | HX42: 0 | HY42: 0 | HZ42: 0 | IA42: 0 | IB42: 0 | IC42: 0 | ID42: 0 | IE42: 0 | IF42: 0 | IG42: 0 | IH42: 0 | II42: 0 | IJ42: 0 | IK42: 0 | IL42: 0 | IM42: 0 | IN42: 0 | IO42: 0 | IP42: 0 | IQ42: 0 | IR42: 0 | IS42: 0 | IT42: 0 | IU42: 0 | IV42: 0 | IW42: 0 | IX42: 0 | IY42: 0 | IZ42: 0 | JA42: 0 | JB42: 0 | JC42: 0 | JD42: 0 | JE42: 0 | JF42: 0 | JG42: 0 | JH42: 0 | JI42: 0 | JJ42: 0 | JK42: 0 | JL42: 0 | JM42: 0 | JN42: 0 | JO42: 0 | JP42: 0 | JQ42: 0 | JR42: 0 | JS42: 0 | JT42: 0 | JU42: 0 | JV42: 0 | JW42: 0 | JX42: 0 | JY42: 0 | JZ42: 0 | KA42: 0 | KB42: 0 | KC42: 0 | KD42: 0 | KE42: 0 | KF42: 0 | KG42: 0 | KH42: 0 | KI42: 0 | KJ42: 0 | KK42: 0 | KL42: 0 | KM42: 0 | KN42: 0 | KO42: 0 | KP42: 0 | KQ42: 0 | KR42: 0 | KS42: 0 | KT42: 0 | KU42: 0 | KV42: 0 | KW42: 0 | KX42: 0 | KY42: 0 | KZ42: 0 | LA42: 0 | LB42: 0 | LC42: 0 | LD42: 0 | LE42: 0 | LF42: 0 | LG42: 0 | LH42: 0 | LI42: 0 | LJ42: 0 | LK42: 0 | LL42: 0 | LM42: 0 | LN42: 0 | LO42: 0 | LP42: 0 | LQ42: 0 | LR42: 0
A43: LUCIANO CASTILLO COLONNA | B43: AYABACA | C43: 200201 | D43: CHINCHIN | E43: I-1 | F43: AYABACA | G43: NINGUN CLAS | H43: AYABACA | I43: AYABACA | J43: SALUD LUCIANO CASTILLO COLONNA | K43: 1913 | L43: 7 | M43: 0 | N43: 0 | O43: 0 | P43: 0 | Q43: 0 | R43: 0 | S43: 0 | T43: 0 | U43: 0 | V43: 0 | W43: 0 | X43: 0 | Y43: 0 | Z43: 0 | AA43: 0 | AB43: 0 | AC43: 0 | AD43: 0 | AE43: 0 | AF43: 0 | AG43: 0 | AH43: 0 | AI43: 0 | AJ43: 0 | AK43: 0 | AL43: 0 | AM43: 0 | AN43: 0 | AO43: 0 | AP43: 0 | AQ43: 0 | AR43: 0 | AS43: 0 | AT43: 0 | AU43: 0 | AV43: 0 | AW43: 3 | AX43: 1 | AY43: 0 | AZ43: 1 | BA43: 1 | BB43: 3 | BC43: 0 | BD43: 0 | BE43: 0 | BF43: 0 | BG43: 0 | BH43: 0 | BI43: 0 | BJ43: 0 | BK43: 0 | BL43: 0 | BM43: 0 | BN43: 0 | BO43: 0 | BP43: 0 | BQ43: 0 | BR43: 0 | BS43: 0 | BT43: 0 | BU43: 0 | BV43: 0 | BW43: 0 | BX43: 0 | BY43: 0 | BZ43: 0 | CA43: 0 | CB43: 0 | CC43: 0 | CD43: 0 | CE43: 0 | CF43: 0 | CG43: 0 | CH43: 0 | CI43: 0 | CJ43: 0 | CK43: 0 | CL43: 0 | CM43: 0 | CN43: 0 | CO43: 0 | CP43: 0 | CQ43: 0 | CR43: 0 | CS43: 0 | CT43: 0 | CU43: 0 | CV43: 0 | CW43: 0 | CX43: 0 | CY43: 0 | CZ43: 0 | DA43: 0 | DB43: 0 | DC43: 0 | DD43: 0 | DE43: 0 | DF43: 0 | DG43: 0 | DH43: 0 | DI43: 0 | DJ43: 0 | DK43: 0 | DL43: 0 | DM43: 0 | DN43: 0 | DO43: 0 | DP43: 0 | DQ43: 0 | DR43: 0 | DS43: 0 | DT43: 0 | DU43: 0 | DV43: 0 | DW43: 0 | DX43: 0 | DY43: 0 | DZ43: 0 | EA43: 0 | EB43: 0 | EC43: 0 | ED43: 0 | EE43: 0 | EF43: 0 | EG43: 0 | EH43: 0 | EI43: 0 | EJ43: 0 | EK43: 0 | EL43: 0 | EM43: 0 | EN43: 0 | EO43: 0 | EP43: 0 | EQ43: 0 | ER43: 0 | ES43: 0 | ET43: 0 | EU43: 0 | EV43: 0 | EW43: 0 | EX43: 0 | EY43: 0 | EZ43: 0 | FA43: 0 | FB43: 0 | FC43: 0 | FD43: 0 | FE43: 0 | FF43: 0 | FG43: 0 | FH43: 0 | FI43: 0 | FJ43: 0 | FK43: 0 | FL43: 0 | FM43: 0 | FN43: 0 | FO43: 0 | FP43: 0 | FQ43: 0 | FR43: 0 | FS43: 0 | FT43: 0 | FU43: 0 | FV43: 0 | FW43: 0 | FX43: 0 | FY43: 0 | FZ43: 0 | GA43: 0 | GB43: 0 | GC43: 0 | GD43: 0 | GE43: 0 | GF43: 0 | GG43: 0 | GH43: 0 | GI43: 0 | GJ43: 0 | GK43: 0 | GL43: 0 | GM43: 0 | GN43: 0 | GO43: 0 | GP43: 0 | GQ43: 0 | GR43: 0 | GS43: 0 | GT43: 0 | GU43: 0 | GV43: 0 | GW43: 0 | GX43: 0 | GY43: 0 | GZ43: 0 | HA43: 0 | HB43: 0 | HC43: 0 | HD43: 0 | HE43: 0 | HF43: 0 | HG43: 0 | HH43: 0 | HI43: 0 | HJ43: 0 | HK43: 0 | HL43: 0 | HM43: 0 | HN43: 0 | HO43: 0 | HP43: 0 | HQ43: 0 | HR43: 0 | HS43: 0 | HT43: 0 | HU43: 0 | HV43: 0 | HW43: 0 | HX43: 0 | HY43: 0 | HZ43: 0 | IA43: 0 | IB43: 0 | IC43: 0 | ID43: 0 | IE43: 0 | IF43: 0 | IG43: 0 | IH43: 0 | II43: 0 | IJ43: 0 | IK43: 0 | IL43: 0 | IM43: 0 | IN43: 0 | IO43: 0 | IP43: 0 | IQ43: 0 | IR43: 0 | IS43: 0 | IT43: 0 | IU43: 0 | IV43: 0 | IW43: 0 | IX43: 0 | IY43: 0 | IZ43: 0 | JA43: 0 | JB43: 0 | JC43: 0 | JD43: 0 | JE43: 0 | JF43: 0 | JG43: 0 | JH43: 0 | JI43: 0 | JJ43: 0 | JK43: 0 | JL43: 0 | JM43: 0 | JN43: 0 | JO43: 0 | JP43: 0 | JQ43: 0 | JR43: 0 | JS43: 0 | JT43: 0 | JU43: 0 | JV43: 0 | JW43: 0 | JX43: 0 | JY43: 0 | JZ43: 0 | KA43: 0 | KB43: 0 | KC43: 0 | KD43: 0 | KE43: 0 | KF43: 0 | KG43: 0 | KH43: 0 | KI43: 0 | KJ43: 0 | KK43: 0 | KL43: 0 | KM43: 0 | KN43: 0 | KO43: 0 | KP43: 0 | KQ43: 0 | KR43: 0 | KS43: 0 | KT43: 0 | KU43: 0 | KV43: 0 | KW43: 0 | KX43: 0 | KY43: 0 | KZ43: 0 | LA43: 0 | LB43: 0 | LC43: 0 | LD43: 0 | LE43: 0 | LF43: 0 | LG43: 0 | LH43: 0 | LI43: 0 | LJ43: 0 | LK43: 0 | LL43: 0 | LM43: 0 | LN43: 0 | LO43: 0 | LP43: 0 | LQ43: 0 | LR43: 0
A44: LUCIANO CASTILLO COLONNA | B44: AYABACA | C44: 200201 | D44: CHINCHIN | E44: I-1 | F44: AYABACA | G44: NINGUN CLAS | H44: AYABACA | I44: AYABACA | J44: SALUD LUCIANO CASTILLO COLONNA | K44: 1913 | L44: 8 | M44: 0 | N44: 0 | O44: 0 | P44: 0 | Q44: 0 | R44: 0 | S44: 0 | T44: 0 | U44: 0 | V44: 0 | W44: 0 | X44: 0 | Y44: 0 | Z44: 0 | AA44: 0 | AB44: 0 | AC44: 0 | AD44: 0 | AE44: 0 | AF44: 0 | AG44: 0 | AH44: 0 | AI44: 0 | AJ44: 0 | AK44: 0 | AL44: 0 | AM44: 0 | AN44: 0 | AO44: 0 | AP44: 0 | AQ44: 0 | AR44: 0 | AS44: 0 | AT44: 0 | AU44: 0 | AV44: 0 | AW44: 0 | AX44: 0 | AY44: 0 | AZ44: 0 | BA44: 0 | BB44: 0 | BC44: 0 | BD44: 0 | BE44: 0 | BF44: 0 | BG44: 0 | BH44: 0 | BI44: 0 | BJ44: 0 | BK44: 0 | BL44: 0 | BM44: 0 | BN44: 0 | BO44: 0 | BP44: 0 | BQ44: 0 | BR44: 0 | BS44: 0 | BT44: 0 | BU44: 0 | BV44: 0 | BW44: 0 | BX44: 0 | BY44: 0 | BZ44: 0 | CA44: 0 | CB44: 0 | CC44: 0 | CD44: 0 | CE44: 0 | CF44: 0 | CG44: 0 | CH44: 0 | CI44: 0 | CJ44: 0 | CK44: 0 | CL44: 0 | CM44: 0 | CN44: 0 | CO44: 0 | CP44: 0 | CQ44: 0 | CR44: 0 | CS44: 0 | CT44: 0 | CU44: 0 | CV44: 0 | CW44: 0 | CX44: 0 | CY44: 0 | CZ44: 0 | DA44: 0 | DB44: 0 | DC44: 0 | DD44: 0 | DE44: 0 | DF44: 0 | DG44: 0 | DH44: 0 | DI44: 0 | DJ44: 0 | DK44: 0 | DL44: 0 | DM44: 0 | DN44: 0 | DO44: 0 | DP44: 0 | DQ44: 0 | DR44: 0 | DS44: 0 | DT44: 0 | DU44: 0 | DV44: 0 | DW44: 0 | DX44: 0 | DY44: 0 | DZ44: 0 | EA44: 0 | EB44: 0 | EC44: 0 | ED44: 0 | EE44: 0 | EF44: 0 | EG44: 0 | EH44: 0 | EI44: 0 | EJ44: 0 | EK44: 0 | EL44: 0 | EM44: 0 | EN44: 0 | EO44: 0 | EP44: 0 | EQ44: 0 | ER44: 0 | ES44: 0 | ET44: 0 | EU44: 0 | EV44: 0 | EW44: 0 | EX44: 0 | EY44: 0 | EZ44: 0 | FA44: 0 | FB44: 0 | FC44: 0 | FD44: 0 | FE44: 0 | FF44: 0 | FG44: 0 | FH44: 0 | FI44: 0 | FJ44: 0 | FK44: 0 | FL44: 0 | FM44: 0 | FN44: 0 | FO44: 0 | FP44: 0 | FQ44: 0 | FR44: 0 | FS44: 0 | FT44: 0 | FU44: 0 | FV44: 0 | FW44: 0 | FX44: 0 | FY44: 0 | FZ44: 0 | GA44: 0 | GB44: 0 | GC44: 0 | GD44: 0 | GE44: 0 | GF44: 0 | GG44: 0 | GH44: 0 | GI44: 0 | GJ44: 0 | GK44: 0 | GL44: 0 | GM44: 0 | GN44: 0 | GO44: 0 | GP44: 0 | GQ44: 0 | GR44: 0 | GS44: 0 | GT44: 0 | GU44: 0 | GV44: 0 | GW44: 0 | GX44: 0 | GY44: 0 | GZ44: 0 | HA44: 0 | HB44: 0 | HC44: 0 | HD44: 0 | HE44: 0 | HF44: 0 | HG44: 0 | HH44: 0 | HI44: 0 | HJ44: 0 | HK44: 0 | HL44: 0 | HM44: 0 | HN44: 0 | HO44: 0 | HP44: 0 | HQ44: 0 | HR44: 0 | HS44: 0 | HT44: 0 | HU44: 0 | HV44: 4 | HW44: 0 | HX44: 1 | HY44: 0 | HZ44: 0 | IA44: 0 | IB44: 0 | IC44: 0 | ID44: 0 | IE44: 0 | IF44: 0 | IG44: 0 | IH44: 0 | II44: 0 | IJ44: 0 | IK44: 0 | IL44: 0 | IM44: 0 | IN44: 0 | IO44: 0 | IP44: 0 | IQ44: 0 | IR44: 0 | IS44: 0 | IT44: 0 | IU44: 0 | IV44: 0 | IW44: 0 | IX44: 0 | IY44: 0 | IZ44: 0 | JA44: 0 | JB44: 0 | JC44: 0 | JD44: 0 | JE44: 0 | JF44: 0 | JG44: 0 | JH44: 0 | JI44: 0 | JJ44: 0 | JK44: 0 | JL44: 0 | JM44: 0 | JN44: 0 | JO44: 0 | JP44: 0 | JQ44: 0 | JR44: 0 | JS44: 0 | JT44: 0 | JU44: 0 | JV44: 0 | JW44: 0 | JX44: 0 | JY44: 0 | JZ44: 0 | KA44: 0 | KB44: 0 | KC44: 0 | KD44: 0 | KE44: 0 | KF44: 0 | KG44: 0 | KH44: 0 | KI44: 0 | KJ44: 0 | KK44: 0 | KL44: 0 | KM44: 0 | KN44: 0 | KO44: 0 | KP44: 0 | KQ44: 0 | KR44: 0 | KS44: 0 | KT44: 0 | KU44: 0 | KV44: 0 | KW44: 0 | KX44: 0 | KY44: 0 | KZ44: 0 | LA44: 0 | LB44: 0 | LC44: 0 | LD44: 0 | LE44: 0 | LF44: 0 | LG44: 0 | LH44: 0 | LI44: 0 | LJ44: 1 | LK44: 0 | LL44: 0 | LM44: 0 | LN44: 0 | LO44: 0 | LP44: 0 | LQ44: 0 | LR44: 0
A45: LUCIANO CASTILLO COLONNA | B45: AYABACA | C45: 200201 | D45: CHINCHIN | E45: I-1 | F45: AYABACA | G45: NINGUN CLAS | H45: AYABACA | I45: AYABACA | J45: SALUD LUCIANO CASTILLO COLONNA | K45: 1913 | L45: 6 | M45: 0 | N45: 0 | O45: 0 | P45: 0 | Q45: 0 | R45: 0 | S45: 0 | T45: 0 | U45: 0 | V45: 0 | W45: 0 | X45: 0 | Y45: 0 | Z45: 0 | AA45: 0 | AB45: 0 | AC45: 0 | AD45: 0 | AE45: 0 | AF45: 0 | AG45: 0 | AH45: 0 | AI45: 0 | AJ45: 0 | AK45: 0 | AL45: 0 | AM45: 0 | AN45: 0 | AO45: 0 | AP45: 0 | AQ45: 0 | AR45: 0 | AS45: 0 | AT45: 0 | AU45: 0 | AV45: 0 | AW45: 0 | AX45: 1 | AY45: 0 | AZ45: 0 | BA45: 0 | BB45: 3 | BC45: 0 | BD45: 0 | BE45: 0 | BF45: 0 | BG45: 0 | BH45: 0 | BI45: 0 | BJ45: 0 | BK45: 0 | BL45: 0 | BM45: 0 | BN45: 0 | BO45: 0 | BP45: 0 | BQ45: 0 | BR45: 0 | BS45: 0 | BT45: 0 | BU45: 0 | BV45: 0 | BW45: 0 | BX45: 0 | BY45: 0 | BZ45: 0 | CA45: 0 | CB45: 0 | CC45: 0 | CD45: 0 | CE45: 0 | CF45: 0 | CG45: 0 | CH45: 0 | CI45: 0 | CJ45: 0 | CK45: 0 | CL45: 0 | CM45: 0 | CN45: 0 | CO45: 0 | CP45: 0 | CQ45: 0 | CR45: 0 | CS45: 0 | CT45: 0 | CU45: 0 | CV45: 0 | CW45: 0 | CX45: 0 | CY45: 0 | CZ45: 0 | DA45: 0 | DB45: 0 | DC45: 0 | DD45: 0 | DE45: 0 | DF45: 0 | DG45: 0 | DH45: 0 | DI45: 0 | DJ45: 0 | DK45: 0 | DL45: 0 | DM45: 0 | DN45: 0 | DO45: 0 | DP45: 0 | DQ45: 0 | DR45: 0 | DS45: 0 | DT45: 0 | DU45: 0 | DV45: 0 | DW45: 0 | DX45: 0 | DY45: 0 | DZ45: 0 | EA45: 0 | EB45: 0 | EC45: 0 | ED45: 0 | EE45: 0 | EF45: 0 | EG45: 0 | EH45: 0 | EI45: 0 | EJ45: 0 | EK45: 0 | EL45: 0 | EM45: 0 | EN45: 0 | EO45: 0 | EP45: 0 | EQ45: 0 | ER45: 0 | ES45: 0 | ET45: 0 | EU45: 0 | EV45: 0 | EW45: 0 | EX45: 0 | EY45: 0 | EZ45: 0 | FA45: 0 | FB45: 0 | FC45: 0 | FD45: 0 | FE45: 0 | FF45: 0 | FG45: 0 | FH45: 0 | FI45: 0 | FJ45: 0 | FK45: 0 | FL45: 0 | FM45: 0 | FN45: 0 | FO45: 0 | FP45: 0 | FQ45: 0 | FR45: 0 | FS45: 0 | FT45: 0 | FU45: 0 | FV45: 0 | FW45: 0 | FX45: 0 | FY45: 0 | FZ45: 0 | GA45: 0 | GB45: 0 | GC45: 0 | GD45: 0 | GE45: 0 | GF45: 0 | GG45: 0 | GH45: 0 | GI45: 0 | GJ45: 0 | GK45: 0 | GL45: 0 | GM45: 0 | GN45: 0 | GO45: 0 | GP45: 0 | GQ45: 0 | GR45: 0 | GS45: 0 | GT45: 0 | GU45: 0 | GV45: 0 | GW45: 0 | GX45: 0 | GY45: 0 | GZ45: 0 | HA45: 0 | HB45: 0 | HC45: 0 | HD45: 0 | HE45: 0 | HF45: 0 | HG45: 0 | HH45: 0 | HI45: 0 | HJ45: 0 | HK45: 0 | HL45: 0 | HM45: 0 | HN45: 0 | HO45: 0 | HP45: 0 | HQ45: 0 | HR45: 0 | HS45: 0 | HT45: 0 | HU45: 0 | HV45: 0 | HW45: 0 | HX45: 0 | HY45: 0 | HZ45: 0 | IA45: 0 | IB45: 0 | IC45: 0 | ID45: 0 | IE45: 0 | IF45: 0 | IG45: 0 | IH45: 0 | II45: 0 | IJ45: 0 | IK45: 0 | IL45: 0 | IM45: 0 | IN45: 0 | IO45: 0 | IP45: 0 | IQ45: 0 | IR45: 0 | IS45: 0 | IT45: 0 | IU45: 0 | IV45: 0 | IW45: 0 | IX45: 0 | IY45: 0 | IZ45: 0 | JA45: 0 | JB45: 0 | JC45: 0 | JD45: 0 | JE45: 0 | JF45: 0 | JG45: 0 | JH45: 0 | JI45: 0 | JJ45: 0 | JK45: 0 | JL45: 0 | JM45: 0 | JN45: 0 | JO45: 0 | JP45: 0 | JQ45: 0 | JR45: 0 | JS45: 0 | JT45: 0 | JU45: 0 | JV45: 0 | JW45: 0 | JX45: 0 | JY45: 0 | JZ45: 0 | KA45: 0 | KB45: 0 | KC45: 0 | KD45: 0 | KE45: 0 | KF45: 0 | KG45: 0 | KH45: 0 | KI45: 0 | KJ45: 0 | KK45: 0 | KL45: 0 | KM45: 0 | KN45: 0 | KO45: 0 | KP45: 0 | KQ45: 0 | KR45: 0 | KS45: 0 | KT45: 0 | KU45: 0 | KV45: 0 | KW45: 0 | KX45: 0 | KY45: 0 | KZ45: 0 | LA45: 0 | LB45: 0 | LC45: 0 | LD45: 0 | LE45: 0 | LF45: 0 | LG45: 0 | LH45: 1 | LI45: 0 | LJ45: 0 | LK45: 0 | LL45: 0 | LM45: 0 | LN45: 0 | LO45: 0 | LP45: 0 | LQ45: 0 | LR45: 0
A46: LUCIANO CASTILLO COLONNA | B46: AYABACA | C46: 200201 | D46: CHINCHIN | E46: I-1 | F46: AYABACA | G46: NINGUN CLAS | H46: AYABACA | I46: AYABACA | J46: SALUD LUCIANO CASTILLO COLONNA | K46: 1913 | L46: 9 | M46: 0 | N46: 0 | O46: 0 | P46: 0 | Q46: 0 | R46: 0 | S46: 0 | T46: 0 | U46: 0 | V46: 0 | W46: 0 | X46: 0 | Y46: 0 | Z46: 0 | AA46: 0 | AB46: 0 | AC46: 0 | AD46: 0 | AE46: 0 | AF46: 0 | AG46: 0 | AH46: 0 | AI46: 0 | AJ46: 0 | AK46: 0 | AL46: 0 | AM46: 0 | AN46: 0 | AO46: 0 | AP46: 0 | AQ46: 0 | AR46: 0 | AS46: 0 | AT46: 0 | AU46: 0 | AV46: 0 | AW46: 0 | AX46: 0 | AY46: 0 | AZ46: 0 | BA46: 0 | BB46: 0 | BC46: 0 | BD46: 0 | BE46: 0 | BF46: 0 | BG46: 0 | BH46: 0 | BI46: 0 | BJ46: 0 | BK46: 0 | BL46: 0 | BM46: 0 | BN46: 0 | BO46: 0 | BP46: 0 | BQ46: 0 | BR46: 0 | BS46: 0 | BT46: 0 | BU46: 0 | BV46: 0 | BW46: 0 | BX46: 0 | BY46: 0 | BZ46: 0 | CA46: 0 | CB46: 0 | CC46: 0 | CD46: 0 | CE46: 0 | CF46: 0 | CG46: 0 | CH46: 0 | CI46: 0 | CJ46: 0 | CK46: 0 | CL46: 0 | CM46: 0 | CN46: 0 | CO46: 0 | CP46: 0 | CQ46: 0 | CR46: 0 | CS46: 0 | CT46: 0 | CU46: 0 | CV46: 0 | CW46: 0 | CX46: 0 | CY46: 0 | CZ46: 0 | DA46: 0 | DB46: 0 | DC46: 0 | DD46: 0 | DE46: 0 | DF46: 0 | DG46: 0 | DH46: 0 | DI46: 0 | DJ46: 0 | DK46: 0 | DL46: 0 | DM46: 0 | DN46: 0 | DO46: 0 | DP46: 0 | DQ46: 0 | DR46: 0 | DS46: 0 | DT46: 0 | DU46: 0 | DV46: 0 | DW46: 0 | DX46: 0 | DY46: 0 | DZ46: 0 | EA46: 0 | EB46: 0 | EC46: 0 | ED46: 0 | EE46: 0 | EF46: 0 | EG46: 0 | EH46: 0 | EI46: 0 | EJ46: 0 | EK46: 0 | EL46: 0 | EM46: 0 | EN46: 0 | EO46: 0 | EP46: 0 | EQ46: 0 | ER46: 0 | ES46: 0 | ET46: 0 | EU46: 0 | EV46: 0 | EW46: 0 | EX46: 0 | EY46: 0 | EZ46: 0 | FA46: 0 | FB46: 0 | FC46: 0 | FD46: 0 | FE46: 0 | FF46: 0 | FG46: 0 | FH46: 0 | FI46: 0 | FJ46: 0 | FK46: 0 | FL46: 0 | FM46: 0 | FN46: 0 | FO46: 0 | FP46: 0 | FQ46: 0 | FR46: 0 | FS46: 0 | FT46: 0 | FU46: 0 | FV46: 0 | FW46: 0 | FX46: 0 | FY46: 0 | FZ46: 0 | GA46: 0 | GB46: 0 | GC46: 0 | GD46: 0 | GE46: 0 | GF46: 0 | GG46: 0 | GH46: 0 | GI46: 0 | GJ46: 0 | GK46: 0 | GL46: 0 | GM46: 0 | GN46: 0 | GO46: 0 | GP46: 0 | GQ46: 0 | GR46: 0 | GS46: 0 | GT46: 0 | GU46: 0 | GV46: 0 | GW46: 0 | GX46: 0 | GY46: 0 | GZ46: 0 | HA46: 0 | HB46: 0 | HC46: 0 | HD46: 0 | HE46: 0 | HF46: 0 | HG46: 0 | HH46: 0 | HI46: 0 | HJ46: 0 | HK46: 0 | HL46: 0 | HM46: 0 | HN46: 0 | HO46: 0 | HP46: 0 | HQ46: 0 | HR46: 0 | HS46: 0 | HT46: 0 | HU46: 1 | HV46: 1 | HW46: 1 | HX46: 2 | HY46: 2 | HZ46: 1 | IA46: 0 | IB46: 0 | IC46: 0 | ID46: 0 | IE46: 0 | IF46: 0 | IG46: 0 | IH46: 0 | II46: 0 | IJ46: 0 | IK46: 0 | IL46: 0 | IM46: 0 | IN46: 0 | IO46: 0 | IP46: 0 | IQ46: 0 | IR46: 0 | IS46: 0 | IT46: 0 | IU46: 0 | IV46: 0 | IW46: 0 | IX46: 0 | IY46: 0 | IZ46: 0 | JA46: 0 | JB46: 0 | JC46: 0 | JD46: 0 | JE46: 0 | JF46: 0 | JG46: 0 | JH46: 0 | JI46: 0 | JJ46: 0 | JK46: 0 | JL46: 0 | JM46: 0 | JN46: 0 | JO46: 0 | JP46: 0 | JQ46: 0 | JR46: 0 | JS46: 0 | JT46: 0 | JU46: 0 | JV46: 0 | JW46: 0 | JX46: 0 | JY46: 0 | JZ46: 0 | KA46: 0 | KB46: 0 | KC46: 0 | KD46: 0 | KE46: 0 | KF46: 0 | KG46: 0 | KH46: 0 | KI46: 0 | KJ46: 0 | KK46: 0 | KL46: 0 | KM46: 0 | KN46: 0 | KO46: 0 | KP46: 0 | KQ46: 0 | KR46: 0 | KS46: 0 | KT46: 0 | KU46: 0 | KV46: 0 | KW46: 0 | KX46: 0 | KY46: 0 | KZ46: 0 | LA46: 0 | LB46: 0 | LC46: 0 | LD46: 0 | LE46: 0 | LF46: 0 | LG46: 0 | LH46: 0 | LI46: 0 | LJ46: 0 | LK46: 0 | LL46: 0 | LM46: 0 | LN46: 0 | LO46: 0 | LP46: 0 | LQ46: 0 | LR46: 0
A47: LUCIANO CASTILLO COLONNA | B47: AYABACA | C47: 200201 | D47: CHINCHIN | E47: I-1 | F47: AYABACA | G47: NINGUN CLAS | H47: AYABACA | I47: AYABACA | J47: SALUD LUCIANO CASTILLO COLONNA | K47: 1913 | L47: 11 | M47: 0 | N47: 0 | O47: 0 | P47: 0 | Q47: 0 | R47: 0 | S47: 0 | T47: 0 | U47: 0 | V47: 0 | W47: 0 | X47: 0 | Y47: 0 | Z47: 0 | AA47: 0 | AB47: 0 | AC47: 0 | AD47: 0 | AE47: 0 | AF47: 0 | AG47: 0 | AH47: 0 | AI47: 0 | AJ47: 0 | AK47: 0 | AL47: 0 | AM47: 0 | AN47: 0 | AO47: 0 | AP47: 0 | AQ47: 0 | AR47: 0 | AS47: 0 | AT47: 0 | AU47: 0 | AV47: 0 | AW47: 0 | AX47: 0 | AY47: 0 | AZ47: 0 | BA47: 0 | BB47: 0 | BC47: 0 | BD47: 0 | BE47: 0 | BF47: 0 | BG47: 0 | BH47: 0 | BI47: 0 | BJ47: 0 | BK47: 0 | BL47: 0 | BM47: 0 | BN47: 0 | BO47: 0 | BP47: 0 | BQ47: 0 | BR47: 0 | BS47: 0 | BT47: 0 | BU47: 0 | BV47: 0 | BW47: 0 | BX47: 0 | BY47: 0 | BZ47: 0 | CA47: 0 | CB47: 0 | CC47: 0 | CD47: 0 | CE47: 0 | CF47: 0 | CG47: 0 | CH47: 0 | CI47: 0 | CJ47: 0 | CK47: 0 | CL47: 0 | CM47: 0 | CN47: 0 | CO47: 0 | CP47: 0 | CQ47: 0 | CR47: 0 | CS47: 0 | CT47: 0 | CU47: 0 | CV47: 0 | CW47: 0 | CX47: 0 | CY47: 0 | CZ47: 0 | DA47: 0 | DB47: 0 | DC47: 0 | DD47: 0 | DE47: 0 | DF47: 0 | DG47: 0 | DH47: 0 | DI47: 0 | DJ47: 0 | DK47: 0 | DL47: 0 | DM47: 0 | DN47: 0 | DO47: 0 | DP47: 0 | DQ47: 0 | DR47: 0 | DS47: 0 | DT47: 0 | DU47: 0 | DV47: 0 | DW47: 0 | DX47: 0 | DY47: 0 | DZ47: 0 | EA47: 0 | EB47: 0 | EC47: 0 | ED47: 0 | EE47: 0 | EF47: 0 | EG47: 0 | EH47: 0 | EI47: 0 | EJ47: 0 | EK47: 0 | EL47: 0 | EM47: 0 | EN47: 0 | EO47: 0 | EP47: 0 | EQ47: 0 | ER47: 0 | ES47: 0 | ET47: 0 | EU47: 0 | EV47: 0 | EW47: 0 | EX47: 0 | EY47: 0 | EZ47: 0 | FA47: 0 | FB47: 0 | FC47: 0 | FD47: 0 | FE47: 0 | FF47: 0 | FG47: 0 | FH47: 0 | FI47: 0 | FJ47: 0 | FK47: 0 | FL47: 0 | FM47: 0 | FN47: 0 | FO47: 0 | FP47: 0 | FQ47: 0 | FR47: 0 | FS47: 0 | FT47: 0 | FU47: 0 | FV47: 0 | FW47: 0 | FX47: 0 | FY47: 0 | FZ47: 0 | GA47: 0 | GB47: 0 | GC47: 0 | GD47: 0 | GE47: 0 | GF47: 0 | GG47: 0 | GH47: 0 | GI47: 0 | GJ47: 0 | GK47: 0 | GL47: 0 | GM47: 0 | GN47: 0 | GO47: 0 | GP47: 0 | GQ47: 0 | GR47: 0 | GS47: 0 | GT47: 0 | GU47: 0 | GV47: 0 | GW47: 0 | GX47: 0 | GY47: 0 | GZ47: 0 | HA47: 0 | HB47: 0 | HC47: 0 | HD47: 0 | HE47: 0 | HF47: 0 | HG47: 0 | HH47: 0 | HI47: 0 | HJ47: 0 | HK47: 0 | HL47: 0 | HM47: 0 | HN47: 0 | HO47: 0 | HP47: 0 | HQ47: 0 | HR47: 0 | HS47: 0 | HT47: 0 | HU47: 0 | HV47: 3 | HW47: 0 | HX47: 1 | HY47: 0 | HZ47: 1 | IA47: 0 | IB47: 0 | IC47: 0 | ID47: 0 | IE47: 0 | IF47: 0 | IG47: 0 | IH47: 0 | II47: 0 | IJ47: 0 | IK47: 0 | IL47: 0 | IM47: 0 | IN47: 0 | IO47: 0 | IP47: 0 | IQ47: 0 | IR47: 0 | IS47: 0 | IT47: 0 | IU47: 0 | IV47: 0 | IW47: 0 | IX47: 0 | IY47: 0 | IZ47: 0 | JA47: 0 | JB47: 0 | JC47: 0 | JD47: 0 | JE47: 0 | JF47: 0 | JG47: 0 | JH47: 0 | JI47: 0 | JJ47: 0 | JK47: 0 | JL47: 0 | JM47: 0 | JN47: 0 | JO47: 0 | JP47: 0 | JQ47: 0 | JR47: 0 | JS47: 0 | JT47: 0 | JU47: 0 | JV47: 0 | JW47: 0 | JX47: 0 | JY47: 0 | JZ47: 0 | KA47: 0 | KB47: 0 | KC47: 0 | KD47: 0 | KE47: 0 | KF47: 0 | KG47: 0 | KH47: 0 | KI47: 0 | KJ47: 0 | KK47: 0 | KL47: 0 | KM47: 0 | KN47: 0 | KO47: 0 | KP47: 0 | KQ47: 0 | KR47: 0 | KS47: 0 | KT47: 0 | KU47: 0 | KV47: 0 | KW47: 0 | KX47: 0 | KY47: 0 | KZ47: 0 | LA47: 0 | LB47: 0 | LC47: 0 | LD47: 0 | LE47: 0 | LF47: 0 | LG47: 0 | LH47: 0 | LI47: 0 | LJ47: 0 | LK47: 0 | LL47: 0 | LM47: 0 | LN47: 0 | LO47: 0 | LP47: 0 | LQ47: 0 | LR47: 0
A48: LUCIANO CASTILLO COLONNA | B48: AYABACA | C48: 200201 | D48: CHINCHIN | E48: I-1 | F48: AYABACA | G48: NINGUN CLAS | H48: AYABACA | I48: AYABACA | J48: SALUD LUCIANO CASTILLO COLONNA | K48: 1913 | L48: 10 | M48: 0 | N48: 0 | O48: 0 | P48: 0 | Q48: 0 | R48: 0 | S48: 0 | T48: 0 | U48: 0 | V48: 0 | W48: 0 | X48: 0 | Y48: 0 | Z48: 0 | AA48: 0 | AB48: 0 | AC48: 0 | AD48: 0 | AE48: 0 | AF48: 0 | AG48: 0 | AH48: 0 | AI48: 0 | AJ48: 0 | AK48: 0 | AL48: 0 | AM48: 0 | AN48: 0 | AO48: 0 | AP48: 0 | AQ48: 0 | AR48: 0 | AS48: 0 | AT48: 0 | AU48: 0 | AV48: 0 | AW48: 0 | AX48: 0 | AY48: 0 | AZ48: 0 | BA48: 0 | BB48: 0 | BC48: 0 | BD48: 0 | BE48: 0 | BF48: 0 | BG48: 0 | BH48: 0 | BI48: 0 | BJ48: 0 | BK48: 0 | BL48: 0 | BM48: 0 | BN48: 0 | BO48: 0 | BP48: 0 | BQ48: 0 | BR48: 0 | BS48: 0 | BT48: 0 | BU48: 0 | BV48: 0 | BW48: 0 | BX48: 0 | BY48: 0 | BZ48: 0 | CA48: 0 | CB48: 0 | CC48: 0 | CD48: 0 | CE48: 0 | CF48: 0 | CG48: 0 | CH48: 0 | CI48: 0 | CJ48: 0 | CK48: 0 | CL48: 0 | CM48: 0 | CN48: 0 | CO48: 0 | CP48: 0 | CQ48: 0 | CR48: 0 | CS48: 0 | CT48: 0 | CU48: 0 | CV48: 0 | CW48: 0 | CX48: 0 | CY48: 0 | CZ48: 0 | DA48: 0 | DB48: 0 | DC48: 0 | DD48: 0 | DE48: 0 | DF48: 0 | DG48: 0 | DH48: 0 | DI48: 0 | DJ48: 0 | DK48: 0 | DL48: 0 | DM48: 0 | DN48: 0 | DO48: 0 | DP48: 0 | DQ48: 0 | DR48: 0 | DS48: 0 | DT48: 0 | DU48: 0 | DV48: 0 | DW48: 0 | DX48: 0 | DY48: 0 | DZ48: 0 | EA48: 0 | EB48: 0 | EC48: 0 | ED48: 0 | EE48: 0 | EF48: 0 | EG48: 0 | EH48: 0 | EI48: 0 | EJ48: 0 | EK48: 0 | EL48: 0 | EM48: 0 | EN48: 0 | EO48: 0 | EP48: 0 | EQ48: 0 | ER48: 0 | ES48: 0 | ET48: 0 | EU48: 0 | EV48: 0 | EW48: 0 | EX48: 0 | EY48: 0 | EZ48: 0 | FA48: 0 | FB48: 0 | FC48: 0 | FD48: 0 | FE48: 0 | FF48: 0 | FG48: 0 | FH48: 0 | FI48: 0 | FJ48: 0 | FK48: 0 | FL48: 0 | FM48: 0 | FN48: 0 | FO48: 0 | FP48: 0 | FQ48: 0 | FR48: 0 | FS48: 0 | FT48: 0 | FU48: 0 | FV48: 0 | FW48: 0 | FX48: 0 | FY48: 0 | FZ48: 0 | GA48: 0 | GB48: 0 | GC48: 0 | GD48: 0 | GE48: 0 | GF48: 0 | GG48: 0 | GH48: 0 | GI48: 0 | GJ48: 0 | GK48: 0 | GL48: 0 | GM48: 0 | GN48: 0 | GO48: 0 | GP48: 0 | GQ48: 0 | GR48: 0 | GS48: 0 | GT48: 0 | GU48: 0 | GV48: 0 | GW48: 0 | GX48: 0 | GY48: 0 | GZ48: 0 | HA48: 0 | HB48: 0 | HC48: 0 | HD48: 0 | HE48: 0 | HF48: 0 | HG48: 0 | HH48: 0 | HI48: 0 | HJ48: 0 | HK48: 0 | HL48: 0 | HM48: 0 | HN48: 0 | HO48: 0 | HP48: 0 | HQ48: 0 | HR48: 0 | HS48: 0 | HT48: 0 | HU48: 0 | HV48: 2 | HW48: 0 | HX48: 2 | HY48: 0 | HZ48: 0 | IA48: 0 | IB48: 0 | IC48: 0 | ID48: 0 | IE48: 0 | IF48: 0 | IG48: 0 | IH48: 0 | II48: 0 | IJ48: 0 | IK48: 0 | IL48: 0 | IM48: 0 | IN48: 0 | IO48: 0 | IP48: 0 | IQ48: 0 | IR48: 0 | IS48: 0 | IT48: 0 | IU48: 0 | IV48: 0 | IW48: 0 | IX48: 0 | IY48: 0 | IZ48: 0 | JA48: 0 | JB48: 0 | JC48: 0 | JD48: 0 | JE48: 0 | JF48: 0 | JG48: 0 | JH48: 0 | JI48: 0 | JJ48: 0 | JK48: 0 | JL48: 0 | JM48: 0 | JN48: 0 | JO48: 0 | JP48: 0 | JQ48: 0 | JR48: 0 | JS48: 0 | JT48: 0 | JU48: 0 | JV48: 0 | JW48: 0 | JX48: 0 | JY48: 0 | JZ48: 0 | KA48: 0 | KB48: 0 | KC48: 0 | KD48: 0 | KE48: 0 | KF48: 0 | KG48: 0 | KH48: 0 | KI48: 0 | KJ48: 0 | KK48: 0 | KL48: 0 | KM48: 0 | KN48: 0 | KO48: 0 | KP48: 0 | KQ48: 0 | KR48: 0 | KS48: 0 | KT48: 0 | KU48: 0 | KV48: 0 | KW48: 0 | KX48: 0 | KY48: 0 | KZ48: 0 | LA48: 0 | LB48: 0 | LC48: 0 | LD48: 0 | LE48: 0 | LF48: 0 | LG48: 0 | LH48: 0 | LI48: 0 | LJ48: 0 | LK48: 0 | LL48: 0 | LM48: 0 | LN48: 0 | LO48: 0 | LP48: 0 | LQ48: 0 | LR48: 0
A49: LUCIANO CASTILLO COLONNA | B49: AYABACA | C49: 200201 | D49: CHINCHIN | E49: I-1 | F49: AYABACA | G49: NINGUN CLAS | H49: AYABACA | I49: AYABACA | J49: SALUD LUCIANO CASTILLO COLONNA | K49: 1913 | L49: 12 | M49: 0 | N49: 0 | O49: 0 | P49: 0 | Q49: 0 | R49: 0 | S49: 0 | T49: 0 | U49: 0 | V49: 0 | W49: 0 | X49: 0 | Y49: 0 | Z49: 0 | AA49: 0 | AB49: 0 | AC49: 0 | AD49: 0 | AE49: 0 | AF49: 0 | AG49: 0 | AH49: 0 | AI49: 0 | AJ49: 0 | AK49: 0 | AL49: 0 | AM49: 0 | AN49: 0 | AO49: 0 | AP49: 0 | AQ49: 0 | AR49: 0 | AS49: 0 | AT49: 0 | AU49: 0 | AV49: 0 | AW49: 0 | AX49: 0 | AY49: 0 | AZ49: 0 | BA49: 0 | BB49: 0 | BC49: 0 | BD49: 0 | BE49: 0 | BF49: 0 | BG49: 0 | BH49: 0 | BI49: 0 | BJ49: 0 | BK49: 0 | BL49: 0 | BM49: 0 | BN49: 0 | BO49: 0 | BP49: 0 | BQ49: 0 | BR49: 0 | BS49: 0 | BT49: 0 | BU49: 0 | BV49: 0 | BW49: 0 | BX49: 0 | BY49: 0 | BZ49: 0 | CA49: 0 | CB49: 0 | CC49: 0 | CD49: 0 | CE49: 0 | CF49: 0 | CG49: 0 | CH49: 0 | CI49: 0 | CJ49: 0 | CK49: 0 | CL49: 0 | CM49: 0 | CN49: 0 | CO49: 0 | CP49: 0 | CQ49: 0 | CR49: 0 | CS49: 0 | CT49: 0 | CU49: 0 | CV49: 0 | CW49: 0 | CX49: 0 | CY49: 0 | CZ49: 0 | DA49: 0 | DB49: 0 | DC49: 0 | DD49: 0 | DE49: 0 | DF49: 0 | DG49: 0 | DH49: 0 | DI49: 0 | DJ49: 0 | DK49: 0 | DL49: 0 | DM49: 0 | DN49: 0 | DO49: 0 | DP49: 0 | DQ49: 0 | DR49: 0 | DS49: 0 | DT49: 0 | DU49: 0 | DV49: 0 | DW49: 0 | DX49: 0 | DY49: 0 | DZ49: 0 | EA49: 0 | EB49: 0 | EC49: 0 | ED49: 0 | EE49: 0 | EF49: 0 | EG49: 0 | EH49: 0 | EI49: 0 | EJ49: 0 | EK49: 0 | EL49: 0 | EM49: 0 | EN49: 0 | EO49: 0 | EP49: 0 | EQ49: 0 | ER49: 0 | ES49: 0 | ET49: 0 | EU49: 0 | EV49: 0 | EW49: 0 | EX49: 0 | EY49: 0 | EZ49: 0 | FA49: 0 | FB49: 0 | FC49: 0 | FD49: 0 | FE49: 0 | FF49: 0 | FG49: 0 | FH49: 0 | FI49: 0 | FJ49: 0 | FK49: 0 | FL49: 0 | FM49: 0 | FN49: 0 | FO49: 0 | FP49: 0 | FQ49: 0 | FR49: 0 | FS49: 0 | FT49: 0 | FU49: 0 | FV49: 0 | FW49: 0 | FX49: 0 | FY49: 0 | FZ49: 0 | GA49: 0 | GB49: 0 | GC49: 0 | GD49: 0 | GE49: 0 | GF49: 0 | GG49: 0 | GH49: 0 | GI49: 0 | GJ49: 0 | GK49: 0 | GL49: 0 | GM49: 0 | GN49: 0 | GO49: 0 | GP49: 0 | GQ49: 0 | GR49: 0 | GS49: 0 | GT49: 0 | GU49: 0 | GV49: 0 | GW49: 0 | GX49: 0 | GY49: 0 | GZ49: 0 | HA49: 0 | HB49: 0 | HC49: 0 | HD49: 0 | HE49: 0 | HF49: 0 | HG49: 0 | HH49: 0 | HI49: 0 | HJ49: 0 | HK49: 0 | HL49: 0 | HM49: 0 | HN49: 0 | HO49: 0 | HP49: 0 | HQ49: 0 | HR49: 0 | HS49: 0 | HT49: 0 | HU49: 0 | HV49: 4 | HW49: 0 | HX49: 2 | HY49: 0 | HZ49: 0 | IA49: 0 | IB49: 0 | IC49: 0 | ID49: 0 | IE49: 0 | IF49: 0 | IG49: 0 | IH49: 0 | II49: 0 | IJ49: 0 | IK49: 0 | IL49: 0 | IM49: 0 | IN49: 0 | IO49: 0 | IP49: 0 | IQ49: 0 | IR49: 0 | IS49: 0 | IT49: 0 | IU49: 0 | IV49: 0 | IW49: 0 | IX49: 0 | IY49: 0 | IZ49: 0 | JA49: 0 | JB49: 0 | JC49: 0 | JD49: 0 | JE49: 0 | JF49: 0 | JG49: 0 | JH49: 0 | JI49: 0 | JJ49: 0 | JK49: 0 | JL49: 0 | JM49: 0 | JN49: 0 | JO49: 0 | JP49: 0 | JQ49: 0 | JR49: 0 | JS49: 0 | JT49: 0 | JU49: 0 | JV49: 0 | JW49: 0 | JX49: 0 | JY49: 0 | JZ49: 0 | KA49: 0 | KB49: 0 | KC49: 0 | KD49: 0 | KE49: 0 | KF49: 0 | KG49: 0 | KH49: 0 | KI49: 0 | KJ49: 0 | KK49: 0 | KL49: 0 | KM49: 0 | KN49: 0 | KO49: 0 | KP49: 0 | KQ49: 0 | KR49: 0 | KS49: 0 | KT49: 0 | KU49: 0 | KV49: 0 | KW49: 0 | KX49: 0 | KY49: 0 | KZ49: 0 | LA49: 0 | LB49: 0 | LC49: 0 | LD49: 0 | LE49: 0 | LF49: 0 | LG49: 0 | LH49: 0 | LI49: 0 | LJ49: 0 | LK49: 0 | LL49: 0 | LM49: 0 | LN49: 0 | LO49: 0 | LP49: 0 | LQ49: 0 | LR49: 0
A50: LUCIANO CASTILLO COLONNA | B50: AYABACA | C50: 200201 | D50: OLLEROS | E50: I-2 | F50: AYABACA | G50: NINGUN CLAS | H50: AYABACA | I50: AYABACA | J50: SALUD LUCIANO CASTILLO COLONNA | K50: 1914 | L50: 12 | M50: 0 | N50: 0 | O50: 0 | P50: 0 | Q50: 0 | R50: 0 | S50: 0 | T50: 0 | U50: 0 | V50: 0 | W50: 0 | X50: 0 | Y50: 0 | Z50: 0 | AA50: 0 | AB50: 0 | AC50: 0 | AD50: 0 | AE50: 0 | AF50: 0 | AG50: 0 | AH50: 0 | AI50: 0 | AJ50: 0 | AK50: 0 | AL50: 0 | AM50: 0 | AN50: 0 | AO50: 0 | AP50: 0 | AQ50: 0 | AR50: 0 | AS50: 0 | AT50: 0 | AU50: 0 | AV50: 0 | AW50: 3 | AX50: 2 | AY50: 0 | AZ50: 2 | BA50: 0 | BB50: 0 | BC50: 0 | BD50: 0 | BE50: 0 | BF50: 0 | BG50: 0 | BH50: 0 | BI50: 0 | BJ50: 0 | BK50: 0 | BL50: 0 | BM50: 0 | BN50: 0 | BO50: 0 | BP50: 0 | BQ50: 0 | BR50: 0 | BS50: 0 | BT50: 0 | BU50: 0 | BV50: 0 | BW50: 0 | BX50: 0 | BY50: 0 | BZ50: 0 | CA50: 0 | CB50: 0 | CC50: 0 | CD50: 0 | CE50: 0 | CF50: 0 | CG50: 0 | CH50: 0 | CI50: 0 | CJ50: 0 | CK50: 0 | CL50: 0 | CM50: 0 | CN50: 0 | CO50: 0 | CP50: 0 | CQ50: 0 | CR50: 0 | CS50: 0 | CT50: 0 | CU50: 0 | CV50: 0 | CW50: 0 | CX50: 0 | CY50: 0 | CZ50: 0 | DA50: 0 | DB50: 0 | DC50: 0 | DD50: 0 | DE50: 0 | DF50: 0 | DG50: 0 | DH50: 0 | DI50: 0 | DJ50: 0 | DK50: 0 | DL50: 0 | DM50: 0 | DN50: 0 | DO50: 0 | DP50: 0 | DQ50: 0 | DR50: 0 | DS50: 0 | DT50: 0 | DU50: 0 | DV50: 0 | DW50: 0 | DX50: 0 | DY50: 0 | DZ50: 0 | EA50: 0 | EB50: 0 | EC50: 0 | ED50: 0 | EE50: 0 | EF50: 0 | EG50: 0 | EH50: 0 | EI50: 0 | EJ50: 0 | EK50: 0 | EL50: 0 | EM50: 0 | EN50: 0 | EO50: 0 | EP50: 0 | EQ50: 0 | ER50: 0 | ES50: 0 | ET50: 0 | EU50: 0 | EV50: 0 | EW50: 0 | EX50: 0 | EY50: 0 | EZ50: 0 | FA50: 0 | FB50: 0 | FC50: 0 | FD50: 0 | FE50: 0 | FF50: 0 | FG50: 0 | FH50: 0 | FI50: 0 | FJ50: 0 | FK50: 0 | FL50: 0 | FM50: 0 | FN50: 0 | FO50: 0 | FP50: 0 | FQ50: 0 | FR50: 0 | FS50: 0 | FT50: 0 | FU50: 0 | FV50: 0 | FW50: 0 | FX50: 0 | FY50: 0 | FZ50: 0 | GA50: 0 | GB50: 0 | GC50: 0 | GD50: 0 | GE50: 0 | GF50: 0 | GG50: 0 | GH50: 0 | GI50: 0 | GJ50: 0 | GK50: 0 | GL50: 0 | GM50: 0 | GN50: 0 | GO50: 0 | GP50: 0 | GQ50: 0 | GR50: 0 | GS50: 0 | GT50: 0 | GU50: 0 | GV50: 0 | GW50: 0 | GX50: 0 | GY50: 0 | GZ50: 0 | HA50: 0 | HB50: 0 | HC50: 0 | HD50: 0 | HE50: 0 | HF50: 0 | HG50: 0 | HH50: 0 | HI50: 0 | HJ50: 0 | HK50: 0 | HL50: 0 | HM50: 0 | HN50: 0 | HO50: 0 | HP50: 0 | HQ50: 0 | HR50: 0 | HS50: 0 | HT50: 0 | HU50: 0 | HV50: 1 | HW50: 1 | HX50: 0 | HY50: 1 | HZ50: 0 | IA50: 0 | IB50: 1 | IC50: 1 | ID50: 0 | IE50: 1 | IF50: 0 | IG50: 0 | IH50: 0 | II50: 0 | IJ50: 0 | IK50: 0 | IL50: 0 | IM50: 0 | IN50: 0 | IO50: 0 | IP50: 0 | IQ50: 0 | IR50: 0 | IS50: 0 | IT50: 0 | IU50: 0 | IV50: 0 | IW50: 0 | IX50: 0 | IY50: 0 | IZ50: 0 | JA50: 0 | JB50: 0 | JC50: 0 | JD50: 0 | JE50: 0 | JF50: 0 | JG50: 0 | JH50: 0 | JI50: 0 | JJ50: 0 | JK50: 0 | JL50: 0 | JM50: 0 | JN50: 0 | JO50: 0 | JP50: 0 | JQ50: 0 | JR50: 0 | JS50: 0 | JT50: 0 | JU50: 0 | JV50: 0 | JW50: 0 | JX50: 0 | JY50: 0 | JZ50: 0 | KA50: 0 | KB50: 0 | KC50: 0 | KD50: 0 | KE50: 0 | KF50: 0 | KG50: 0 | KH50: 0 | KI50: 0 | KJ50: 0 | KK50: 0 | KL50: 0 | KM50: 0 | KN50: 0 | KO50: 0 | KP50: 0 | KQ50: 0 | KR50: 0 | KS50: 0 | KT50: 0 | KU50: 0 | KV50: 0 | KW50: 0 | KX50: 0 | KY50: 0 | KZ50: 0 | LA50: 0 | LB50: 0 | LC50: 0 | LD50: 0 | LE50: 0 | LF50: 0 | LG50: 3 | LH50: 2 | LI50: 0 | LJ50: 2 | LK50: 0 | LL50: 0 | LM50: 0 | LN50: 0 | LO50: 0 | LP50: 0 | LQ50: 0 | LR50: 0
A51: LUCIANO CASTILLO COLONNA | B51: AYABACA | C51: 200201 | D51: OLLEROS | E51: I-2 | F51: AYABACA | G51: NINGUN CLAS | H51: AYABACA | I51: AYABACA | J51: SALUD LUCIANO CASTILLO COLONNA | K51: 1914 | L51: 11 | M51: 0 | N51: 0 | O51: 0 | P51: 0 | Q51: 0 | R51: 0 | S51: 0 | T51: 0 | U51: 0 | V51: 0 | W51: 0 | X51: 0 | Y51: 0 | Z51: 0 | AA51: 0 | AB51: 0 | AC51: 0 | AD51: 0 | AE51: 0 | AF51: 0 | AG51: 0 | AH51: 0 | AI51: 0 | AJ51: 0 | AK51: 0 | AL51: 0 | AM51: 0 | AN51: 0 | AO51: 0 | AP51: 0 | AQ51: 0 | AR51: 0 | AS51: 0 | AT51: 0 | AU51: 0 | AV51: 0 | AW51: 2 | AX51: 1 | AY51: 1 | AZ51: 0 | BA51: 0 | BB51: 0 | BC51: 0 | BD51: 0 | BE51: 0 | BF51: 0 | BG51: 0 | BH51: 0 | BI51: 0 | BJ51: 0 | BK51: 0 | BL51: 0 | BM51: 0 | BN51: 0 | BO51: 0 | BP51: 0 | BQ51: 0 | BR51: 0 | BS51: 0 | BT51: 0 | BU51: 0 | BV51: 0 | BW51: 0 | BX51: 0 | BY51: 0 | BZ51: 0 | CA51: 0 | CB51: 0 | CC51: 0 | CD51: 0 | CE51: 0 | CF51: 0 | CG51: 0 | CH51: 0 | CI51: 0 | CJ51: 0 | CK51: 0 | CL51: 0 | CM51: 0 | CN51: 0 | CO51: 0 | CP51: 0 | CQ51: 0 | CR51: 0 | CS51: 0 | CT51: 0 | CU51: 0 | CV51: 0 | CW51: 0 | CX51: 0 | CY51: 0 | CZ51: 0 | DA51: 0 | DB51: 0 | DC51: 0 | DD51: 0 | DE51: 0 | DF51: 0 | DG51: 0 | DH51: 0 | DI51: 0 | DJ51: 0 | DK51: 0 | DL51: 0 | DM51: 0 | DN51: 0 | DO51: 0 | DP51: 0 | DQ51: 0 | DR51: 0 | DS51: 0 | DT51: 0 | DU51: 0 | DV51: 0 | DW51: 0 | DX51: 0 | DY51: 0 | DZ51: 0 | EA51: 0 | EB51: 0 | EC51: 0 | ED51: 0 | EE51: 0 | EF51: 0 | EG51: 0 | EH51: 0 | EI51: 0 | EJ51: 0 | EK51: 0 | EL51: 0 | EM51: 0 | EN51: 0 | EO51: 0 | EP51: 0 | EQ51: 0 | ER51: 0 | ES51: 0 | ET51: 0 | EU51: 0 | EV51: 0 | EW51: 0 | EX51: 0 | EY51: 0 | EZ51: 0 | FA51: 0 | FB51: 0 | FC51: 0 | FD51: 0 | FE51: 0 | FF51: 0 | FG51: 0 | FH51: 0 | FI51: 0 | FJ51: 0 | FK51: 0 | FL51: 0 | FM51: 0 | FN51: 0 | FO51: 0 | FP51: 0 | FQ51: 0 | FR51: 0 | FS51: 0 | FT51: 0 | FU51: 0 | FV51: 0 | FW51: 0 | FX51: 0 | FY51: 0 | FZ51: 0 | GA51: 0 | GB51: 0 | GC51: 0 | GD51: 0 | GE51: 0 | GF51: 0 | GG51: 0 | GH51: 0 | GI51: 0 | GJ51: 0 | GK51: 0 | GL51: 0 | GM51: 0 | GN51: 0 | GO51: 0 | GP51: 0 | GQ51: 0 | GR51: 0 | GS51: 0 | GT51: 0 | GU51: 0 | GV51: 0 | GW51: 0 | GX51: 0 | GY51: 0 | GZ51: 0 | HA51: 0 | HB51: 0 | HC51: 0 | HD51: 0 | HE51: 0 | HF51: 0 | HG51: 0 | HH51: 0 | HI51: 0 | HJ51: 0 | HK51: 0 | HL51: 0 | HM51: 0 | HN51: 0 | HO51: 0 | HP51: 0 | HQ51: 0 | HR51: 0 | HS51: 0 | HT51: 0 | HU51: 0 | HV51: 0 | HW51: 0 | HX51: 0 | HY51: 0 | HZ51: 0 | IA51: 0 | IB51: 0 | IC51: 0 | ID51: 0 | IE51: 0 | IF51: 0 | IG51: 0 | IH51: 0 | II51: 0 | IJ51: 0 | IK51: 0 | IL51: 0 | IM51: 0 | IN51: 0 | IO51: 0 | IP51: 0 | IQ51: 0 | IR51: 0 | IS51: 0 | IT51: 0 | IU51: 0 | IV51: 0 | IW51: 0 | IX51: 0 | IY51: 0 | IZ51: 0 | JA51: 0 | JB51: 0 | JC51: 0 | JD51: 0 | JE51: 0 | JF51: 0 | JG51: 0 | JH51: 0 | JI51: 0 | JJ51: 0 | JK51: 0 | JL51: 0 | JM51: 0 | JN51: 0 | JO51: 0 | JP51: 0 | JQ51: 0 | JR51: 0 | JS51: 0 | JT51: 0 | JU51: 0 | JV51: 0 | JW51: 0 | JX51: 0 | JY51: 0 | JZ51: 0 | KA51: 0 | KB51: 0 | KC51: 0 | KD51: 0 | KE51: 0 | KF51: 0 | KG51: 0 | KH51: 0 | KI51: 0 | KJ51: 0 | KK51: 0 | KL51: 0 | KM51: 0 | KN51: 0 | KO51: 0 | KP51: 0 | KQ51: 0 | KR51: 0 | KS51: 0 | KT51: 0 | KU51: 0 | KV51: 0 | KW51: 0 | KX51: 0 | KY51: 0 | KZ51: 0 | LA51: 0 | LB51: 0 | LC51: 0 | LD51: 0 | LE51: 0 | LF51: 0 | LG51: 2 | LH51: 1 | LI51: 1 | LJ51: 0 | LK51: 0 | LL51: 0 | LM51: 0 | LN51: 0 | LO51: 0 | LP51: 0 | LQ51: 0 | LR51: 0
A52: LUCIANO CASTILLO COLONNA | B52: AYABACA | C52: 200201 | D52: OLLEROS | E52: I-2 | F52: AYABACA | G52: NINGUN CLAS | H52: AYABACA | I52: AYABACA | J52: SALUD LUCIANO CASTILLO COLONNA | K52: 1914 | L52: 10 | M52: 0 | N52: 0 | O52: 0 | P52: 0 | Q52: 0 | R52: 0 | S52: 0 | T52: 0 | U52: 0 | V52: 0 | W52: 0 | X52: 0 | Y52: 0 | Z52: 0 | AA52: 0 | AB52: 0 | AC52: 0 | AD52: 0 | AE52: 0 | AF52: 0 | AG52: 0 | AH52: 0 | AI52: 0 | AJ52: 0 | AK52: 0 | AL52: 0 | AM52: 0 | AN52: 0 | AO52: 0 | AP52: 0 | AQ52: 0 | AR52: 0 | AS52: 0 | AT52: 0 | AU52: 0 | AV52: 0 | AW52: 0 | AX52: 2 | AY52: 1 | AZ52: 1 | BA52: 0 | BB52: 1 | BC52: 0 | BD52: 0 | BE52: 0 | BF52: 0 | BG52: 0 | BH52: 0 | BI52: 0 | BJ52: 0 | BK52: 0 | BL52: 0 | BM52: 0 | BN52: 0 | BO52: 0 | BP52: 0 | BQ52: 0 | BR52: 0 | BS52: 0 | BT52: 0 | BU52: 0 | BV52: 0 | BW52: 0 | BX52: 0 | BY52: 0 | BZ52: 0 | CA52: 0 | CB52: 0 | CC52: 0 | CD52: 0 | CE52: 0 | CF52: 0 | CG52: 0 | CH52: 0 | CI52: 0 | CJ52: 0 | CK52: 0 | CL52: 0 | CM52: 0 | CN52: 0 | CO52: 0 | CP52: 0 | CQ52: 0 | CR52: 0 | CS52: 0 | CT52: 0 | CU52: 0 | CV52: 0 | CW52: 0 | CX52: 0 | CY52: 0 | CZ52: 0 | DA52: 0 | DB52: 0 | DC52: 0 | DD52: 0 | DE52: 0 | DF52: 0 | DG52: 0 | DH52: 0 | DI52: 0 | DJ52: 0 | DK52: 0 | DL52: 0 | DM52: 0 | DN52: 0 | DO52: 0 | DP52: 0 | DQ52: 0 | DR52: 0 | DS52: 0 | DT52: 0 | DU52: 0 | DV52: 0 | DW52: 0 | DX52: 0 | DY52: 0 | DZ52: 0 | EA52: 0 | EB52: 0 | EC52: 0 | ED52: 0 | EE52: 0 | EF52: 0 | EG52: 0 | EH52: 0 | EI52: 0 | EJ52: 0 | EK52: 0 | EL52: 0 | EM52: 0 | EN52: 0 | EO52: 0 | EP52: 0 | EQ52: 0 | ER52: 0 | ES52: 0 | ET52: 0 | EU52: 0 | EV52: 0 | EW52: 0 | EX52: 0 | EY52: 0 | EZ52: 0 | FA52: 0 | FB52: 0 | FC52: 0 | FD52: 0 | FE52: 0 | FF52: 0 | FG52: 0 | FH52: 0 | FI52: 0 | FJ52: 0 | FK52: 0 | FL52: 0 | FM52: 0 | FN52: 0 | FO52: 0 | FP52: 0 | FQ52: 0 | FR52: 0 | FS52: 0 | FT52: 0 | FU52: 0 | FV52: 0 | FW52: 0 | FX52: 0 | FY52: 0 | FZ52: 0 | GA52: 0 | GB52: 0 | GC52: 0 | GD52: 0 | GE52: 0 | GF52: 0 | GG52: 0 | GH52: 0 | GI52: 0 | GJ52: 0 | GK52: 0 | GL52: 0 | GM52: 0 | GN52: 0 | GO52: 0 | GP52: 0 | GQ52: 0 | GR52: 0 | GS52: 0 | GT52: 0 | GU52: 0 | GV52: 0 | GW52: 0 | GX52: 0 | GY52: 0 | GZ52: 0 | HA52: 0 | HB52: 0 | HC52: 0 | HD52: 0 | HE52: 0 | HF52: 0 | HG52: 0 | HH52: 0 | HI52: 0 | HJ52: 0 | HK52: 0 | HL52: 0 | HM52: 0 | HN52: 0 | HO52: 0 | HP52: 0 | HQ52: 0 | HR52: 0 | HS52: 0 | HT52: 0 | HU52: 0 | HV52: 0 | HW52: 0 | HX52: 1 | HY52: 0 | HZ52: 0 | IA52: 0 | IB52: 0 | IC52: 0 | ID52: 1 | IE52: 0 | IF52: 0 | IG52: 0 | IH52: 0 | II52: 0 | IJ52: 0 | IK52: 0 | IL52: 0 | IM52: 0 | IN52: 0 | IO52: 0 | IP52: 0 | IQ52: 0 | IR52: 0 | IS52: 0 | IT52: 0 | IU52: 0 | IV52: 0 | IW52: 0 | IX52: 0 | IY52: 0 | IZ52: 0 | JA52: 0 | JB52: 0 | JC52: 0 | JD52: 0 | JE52: 0 | JF52: 0 | JG52: 0 | JH52: 0 | JI52: 0 | JJ52: 0 | JK52: 1 | JL52: 0 | JM52: 0 | JN52: 0 | JO52: 0 | JP52: 0 | JQ52: 0 | JR52: 0 | JS52: 0 | JT52: 0 | JU52: 0 | JV52: 0 | JW52: 0 | JX52: 0 | JY52: 0 | JZ52: 0 | KA52: 0 | KB52: 0 | KC52: 0 | KD52: 0 | KE52: 0 | KF52: 0 | KG52: 0 | KH52: 0 | KI52: 0 | KJ52: 0 | KK52: 0 | KL52: 0 | KM52: 0 | KN52: 0 | KO52: 0 | KP52: 0 | KQ52: 0 | KR52: 0 | KS52: 0 | KT52: 0 | KU52: 0 | KV52: 0 | KW52: 0 | KX52: 0 | KY52: 0 | KZ52: 0 | LA52: 0 | LB52: 0 | LC52: 0 | LD52: 0 | LE52: 0 | LF52: 0 | LG52: 0 | LH52: 2 | LI52: 1 | LJ52: 1 | LK52: 0 | LL52: 1 | LM52: 0 | LN52: 0 | LO52: 0 | LP52: 0 | LQ52: 0 | LR52: 0
A53: LUCIANO CASTILLO COLONNA | B53: AYABACA | C53: 200201 | D53: OLLEROS | E53: I-2 | F53: AYABACA | G53: NINGUN CLAS | H53: AYABACA | I53: AYABACA | J53: SALUD LUCIANO CASTILLO COLONNA | K53: 1914 | L53: 9 | M53: 0 | N53: 0 | O53: 0 | P53: 0 | Q53: 0 | R53: 0 | S53: 0 | T53: 0 | U53: 0 | V53: 0 | W53: 0 | X53: 0 | Y53: 0 | Z53: 0 | AA53: 0 | AB53: 0 | AC53: 0 | AD53: 0 | AE53: 0 | AF53: 0 | AG53: 0 | AH53: 0 | AI53: 0 | AJ53: 0 | AK53: 0 | AL53: 0 | AM53: 0 | AN53: 0 | AO53: 0 | AP53: 0 | AQ53: 0 | AR53: 0 | AS53: 0 | AT53: 0 | AU53: 0 | AV53: 0 | AW53: 1 | AX53: 0 | AY53: 0 | AZ53: 1 | BA53: 0 | BB53: 1 | BC53: 0 | BD53: 0 | BE53: 0 | BF53: 0 | BG53: 0 | BH53: 0 | BI53: 0 | BJ53: 0 | BK53: 0 | BL53: 0 | BM53: 0 | BN53: 0 | BO53: 0 | BP53: 0 | BQ53: 0 | BR53: 0 | BS53: 0 | BT53: 0 | BU53: 0 | BV53: 0 | BW53: 0 | BX53: 0 | BY53: 0 | BZ53: 0 | CA53: 0 | CB53: 0 | CC53: 0 | CD53: 0 | CE53: 0 | CF53: 0 | CG53: 0 | CH53: 0 | CI53: 0 | CJ53: 0 | CK53: 0 | CL53: 0 | CM53: 0 | CN53: 0 | CO53: 0 | CP53: 0 | CQ53: 0 | CR53: 0 | CS53: 0 | CT53: 0 | CU53: 0 | CV53: 0 | CW53: 0 | CX53: 0 | CY53: 0 | CZ53: 0 | DA53: 0 | DB53: 0 | DC53: 0 | DD53: 0 | DE53: 0 | DF53: 0 | DG53: 0 | DH53: 0 | DI53: 0 | DJ53: 0 | DK53: 0 | DL53: 0 | DM53: 0 | DN53: 0 | DO53: 0 | DP53: 0 | DQ53: 0 | DR53: 0 | DS53: 0 | DT53: 0 | DU53: 0 | DV53: 0 | DW53: 0 | DX53: 0 | DY53: 0 | DZ53: 0 | EA53: 0 | EB53: 0 | EC53: 0 | ED53: 0 | EE53: 0 | EF53: 0 | EG53: 0 | EH53: 0 | EI53: 0 | EJ53: 0 | EK53: 0 | EL53: 0 | EM53: 0 | EN53: 0 | EO53: 0 | EP53: 0 | EQ53: 0 | ER53: 0 | ES53: 0 | ET53: 0 | EU53: 0 | EV53: 0 | EW53: 0 | EX53: 0 | EY53: 0 | EZ53: 0 | FA53: 0 | FB53: 0 | FC53: 0 | FD53: 0 | FE53: 0 | FF53: 0 | FG53: 0 | FH53: 0 | FI53: 0 | FJ53: 0 | FK53: 0 | FL53: 0 | FM53: 0 | FN53: 0 | FO53: 0 | FP53: 0 | FQ53: 0 | FR53: 0 | FS53: 0 | FT53: 0 | FU53: 0 | FV53: 0 | FW53: 0 | FX53: 0 | FY53: 0 | FZ53: 0 | GA53: 0 | GB53: 0 | GC53: 0 | GD53: 0 | GE53: 0 | GF53: 0 | GG53: 0 | GH53: 0 | GI53: 0 | GJ53: 0 | GK53: 0 | GL53: 0 | GM53: 0 | GN53: 0 | GO53: 0 | GP53: 0 | GQ53: 0 | GR53: 0 | GS53: 0 | GT53: 0 | GU53: 0 | GV53: 0 | GW53: 0 | GX53: 0 | GY53: 0 | GZ53: 0 | HA53: 0 | HB53: 0 | HC53: 0 | HD53: 0 | HE53: 0 | HF53: 0 | HG53: 0 | HH53: 0 | HI53: 0 | HJ53: 0 | HK53: 0 | HL53: 0 | HM53: 0 | HN53: 0 | HO53: 0 | HP53: 0 | HQ53: 0 | HR53: 0 | HS53: 0 | HT53: 0 | HU53: 0 | HV53: 0 | HW53: 0 | HX53: 0 | HY53: 0 | HZ53: 0 | IA53: 0 | IB53: 0 | IC53: 2 | ID53: 0 | IE53: 0 | IF53: 0 | IG53: 0 | IH53: 0 | II53: 0 | IJ53: 0 | IK53: 0 | IL53: 0 | IM53: 0 | IN53: 0 | IO53: 0 | IP53: 0 | IQ53: 0 | IR53: 0 | IS53: 0 | IT53: 0 | IU53: 0 | IV53: 0 | IW53: 0 | IX53: 0 | IY53: 0 | IZ53: 0 | JA53: 0 | JB53: 0 | JC53: 0 | JD53: 0 | JE53: 0 | JF53: 0 | JG53: 0 | JH53: 0 | JI53: 0 | JJ53: 0 | JK53: 0 | JL53: 0 | JM53: 0 | JN53: 0 | JO53: 0 | JP53: 0 | JQ53: 0 | JR53: 0 | JS53: 0 | JT53: 0 | JU53: 0 | JV53: 0 | JW53: 0 | JX53: 0 | JY53: 0 | JZ53: 0 | KA53: 0 | KB53: 0 | KC53: 0 | KD53: 0 | KE53: 0 | KF53: 0 | KG53: 0 | KH53: 0 | KI53: 0 | KJ53: 0 | KK53: 0 | KL53: 0 | KM53: 0 | KN53: 0 | KO53: 0 | KP53: 0 | KQ53: 0 | KR53: 0 | KS53: 0 | KT53: 0 | KU53: 0 | KV53: 0 | KW53: 0 | KX53: 0 | KY53: 0 | KZ53: 0 | LA53: 0 | LB53: 0 | LC53: 0 | LD53: 0 | LE53: 0 | LF53: 0 | LG53: 2 | LH53: 0 | LI53: 0 | LJ53: 1 | LK53: 0 | LL53: 1 | LM53: 0 | LN53: 0 | LO53: 0 | LP53: 0 | LQ53: 0 | LR53: 0
A54: LUCIANO CASTILLO COLONNA | B54: AYABACA | C54: 200201 | D54: OLLEROS | E54: I-2 | F54: AYABACA | G54: NINGUN CLAS | H54: AYABACA | I54: AYABACA | J54: SALUD LUCIANO CASTILLO COLONNA | K54: 1914 | L54: 7 | M54: 0 | N54: 0 | O54: 0 | P54: 0 | Q54: 0 | R54: 0 | S54: 0 | T54: 0 | U54: 0 | V54: 0 | W54: 0 | X54: 0 | Y54: 0 | Z54: 0 | AA54: 0 | AB54: 0 | AC54: 0 | AD54: 0 | AE54: 0 | AF54: 0 | AG54: 0 | AH54: 0 | AI54: 0 | AJ54: 0 | AK54: 0 | AL54: 0 | AM54: 0 | AN54: 0 | AO54: 0 | AP54: 0 | AQ54: 0 | AR54: 0 | AS54: 0 | AT54: 0 | AU54: 0 | AV54: 0 | AW54: 0 | AX54: 0 | AY54: 0 | AZ54: 0 | BA54: 0 | BB54: 0 | BC54: 0 | BD54: 0 | BE54: 0 | BF54: 0 | BG54: 0 | BH54: 0 | BI54: 0 | BJ54: 0 | BK54: 0 | BL54: 0 | BM54: 0 | BN54: 0 | BO54: 0 | BP54: 0 | BQ54: 0 | BR54: 0 | BS54: 0 | BT54: 0 | BU54: 0 | BV54: 0 | BW54: 0 | BX54: 0 | BY54: 0 | BZ54: 0 | CA54: 0 | CB54: 0 | CC54: 0 | CD54: 0 | CE54: 0 | CF54: 0 | CG54: 0 | CH54: 0 | CI54: 0 | CJ54: 0 | CK54: 0 | CL54: 0 | CM54: 0 | CN54: 0 | CO54: 0 | CP54: 0 | CQ54: 0 | CR54: 0 | CS54: 0 | CT54: 0 | CU54: 0 | CV54: 0 | CW54: 0 | CX54: 0 | CY54: 0 | CZ54: 0 | DA54: 0 | DB54: 0 | DC54: 0 | DD54: 0 | DE54: 0 | DF54: 0 | DG54: 0 | DH54: 0 | DI54: 0 | DJ54: 0 | DK54: 0 | DL54: 0 | DM54: 0 | DN54: 0 | DO54: 0 | DP54: 0 | DQ54: 0 | DR54: 0 | DS54: 0 | DT54: 0 | DU54: 0 | DV54: 0 | DW54: 0 | DX54: 0 | DY54: 0 | DZ54: 0 | EA54: 0 | EB54: 0 | EC54: 0 | ED54: 0 | EE54: 0 | EF54: 0 | EG54: 0 | EH54: 0 | EI54: 0 | EJ54: 0 | EK54: 0 | EL54: 0 | EM54: 0 | EN54: 0 | EO54: 0 | EP54: 0 | EQ54: 0 | ER54: 0 | ES54: 0 | ET54: 0 | EU54: 0 | EV54: 0 | EW54: 0 | EX54: 0 | EY54: 0 | EZ54: 0 | FA54: 0 | FB54: 0 | FC54: 0 | FD54: 0 | FE54: 0 | FF54: 0 | FG54: 0 | FH54: 0 | FI54: 0 | FJ54: 0 | FK54: 0 | FL54: 0 | FM54: 0 | FN54: 0 | FO54: 0 | FP54: 0 | FQ54: 0 | FR54: 0 | FS54: 0 | FT54: 0 | FU54: 0 | FV54: 0 | FW54: 0 | FX54: 0 | FY54: 0 | FZ54: 0 | GA54: 0 | GB54: 0 | GC54: 0 | GD54: 0 | GE54: 0 | GF54: 0 | GG54: 0 | GH54: 0 | GI54: 0 | GJ54: 0 | GK54: 0 | GL54: 0 | GM54: 0 | GN54: 0 | GO54: 0 | GP54: 0 | GQ54: 0 | GR54: 0 | GS54: 0 | GT54: 0 | GU54: 0 | GV54: 0 | GW54: 0 | GX54: 0 | GY54: 0 | GZ54: 0 | HA54: 0 | HB54: 0 | HC54: 0 | HD54: 0 | HE54: 0 | HF54: 0 | HG54: 0 | HH54: 0 | HI54: 0 | HJ54: 0 | HK54: 0 | HL54: 0 | HM54: 0 | HN54: 0 | HO54: 0 | HP54: 0 | HQ54: 0 | HR54: 0 | HS54: 0 | HT54: 0 | HU54: 0 | HV54: 0 | HW54: 0 | HX54: 0 | HY54: 0 | HZ54: 0 | IA54: 0 | IB54: 1 | IC54: 2 | ID54: 0 | IE54: 0 | IF54: 0 | IG54: 0 | IH54: 0 | II54: 0 | IJ54: 0 | IK54: 0 | IL54: 0 | IM54: 0 | IN54: 0 | IO54: 0 | IP54: 0 | IQ54: 0 | IR54: 0 | IS54: 0 | IT54: 0 | IU54: 0 | IV54: 0 | IW54: 0 | IX54: 0 | IY54: 0 | IZ54: 0 | JA54: 0 | JB54: 0 | JC54: 0 | JD54: 0 | JE54: 0 | JF54: 0 | JG54: 0 | JH54: 0 | JI54: 0 | JJ54: 0 | JK54: 0 | JL54: 0 | JM54: 0 | JN54: 0 | JO54: 0 | JP54: 0 | JQ54: 0 | JR54: 0 | JS54: 0 | JT54: 0 | JU54: 0 | JV54: 0 | JW54: 0 | JX54: 0 | JY54: 0 | JZ54: 0 | KA54: 0 | KB54: 0 | KC54: 0 | KD54: 0 | KE54: 0 | KF54: 0 | KG54: 0 | KH54: 0 | KI54: 0 | KJ54: 0 | KK54: 0 | KL54: 0 | KM54: 0 | KN54: 0 | KO54: 0 | KP54: 0 | KQ54: 0 | KR54: 0 | KS54: 0 | KT54: 0 | KU54: 0 | KV54: 0 | KW54: 0 | KX54: 0 | KY54: 0 | KZ54: 0 | LA54: 0 | LB54: 0 | LC54: 0 | LD54: 0 | LE54: 0 | LF54: 0 | LG54: 0 | LH54: 0 | LI54: 0 | LJ54: 0 | LK54: 0 | LL54: 0 | LM54: 0 | LN54: 0 | LO54: 0 | LP54: 0 | LQ54: 0 | LR54: 0
A55: LUCIANO CASTILLO COLONNA | B55: AYABACA | C55: 200201 | D55: OLLEROS | E55: I-2 | F55: AYABACA | G55: NINGUN CLAS | H55: AYABACA | I55: AYABACA | J55: SALUD LUCIANO CASTILLO COLONNA | K55: 1914 | L55: 8 | M55: 0 | N55: 0 | O55: 0 | P55: 0 | Q55: 0 | R55: 0 | S55: 0 | T55: 0 | U55: 0 | V55: 0 | W55: 0 | X55: 0 | Y55: 0 | Z55: 0 | AA55: 0 | AB55: 0 | AC55: 0 | AD55: 0 | AE55: 0 | AF55: 0 | AG55: 0 | AH55: 0 | AI55: 0 | AJ55: 0 | AK55: 0 | AL55: 0 | AM55: 0 | AN55: 0 | AO55: 0 | AP55: 0 | AQ55: 0 | AR55: 0 | AS55: 0 | AT55: 0 | AU55: 0 | AV55: 0 | AW55: 0 | AX55: 3 | AY55: 0 | AZ55: 2 | BA55: 0 | BB55: 0 | BC55: 0 | BD55: 0 | BE55: 0 | BF55: 0 | BG55: 0 | BH55: 0 | BI55: 0 | BJ55: 0 | BK55: 0 | BL55: 0 | BM55: 0 | BN55: 0 | BO55: 0 | BP55: 0 | BQ55: 0 | BR55: 0 | BS55: 0 | BT55: 0 | BU55: 0 | BV55: 0 | BW55: 0 | BX55: 0 | BY55: 0 | BZ55: 0 | CA55: 0 | CB55: 0 | CC55: 0 | CD55: 0 | CE55: 0 | CF55: 0 | CG55: 0 | CH55: 0 | CI55: 0 | CJ55: 0 | CK55: 0 | CL55: 0 | CM55: 0 | CN55: 0 | CO55: 0 | CP55: 0 | CQ55: 0 | CR55: 0 | CS55: 0 | CT55: 0 | CU55: 0 | CV55: 0 | CW55: 0 | CX55: 0 | CY55: 0 | CZ55: 0 | DA55: 0 | DB55: 0 | DC55: 0 | DD55: 0 | DE55: 0 | DF55: 0 | DG55: 0 | DH55: 0 | DI55: 0 | DJ55: 0 | DK55: 0 | DL55: 0 | DM55: 0 | DN55: 0 | DO55: 0 | DP55: 0 | DQ55: 0 | DR55: 0 | DS55: 0 | DT55: 0 | DU55: 0 | DV55: 0 | DW55: 0 | DX55: 0 | DY55: 0 | DZ55: 0 | EA55: 0 | EB55: 0 | EC55: 0 | ED55: 0 | EE55: 0 | EF55: 0 | EG55: 0 | EH55: 0 | EI55: 0 | EJ55: 0 | EK55: 0 | EL55: 0 | EM55: 0 | EN55: 0 | EO55: 0 | EP55: 0 | EQ55: 0 | ER55: 0 | ES55: 0 | ET55: 0 | EU55: 0 | EV55: 0 | EW55: 0 | EX55: 0 | EY55: 0 | EZ55: 0 | FA55: 0 | FB55: 0 | FC55: 0 | FD55: 0 | FE55: 0 | FF55: 0 | FG55: 0 | FH55: 0 | FI55: 0 | FJ55: 0 | FK55: 0 | FL55: 0 | FM55: 0 | FN55: 0 | FO55: 0 | FP55: 0 | FQ55: 0 | FR55: 0 | FS55: 0 | FT55: 0 | FU55: 0 | FV55: 0 | FW55: 0 | FX55: 0 | FY55: 0 | FZ55: 0 | GA55: 0 | GB55: 0 | GC55: 0 | GD55: 0 | GE55: 0 | GF55: 0 | GG55: 0 | GH55: 0 | GI55: 0 | GJ55: 0 | GK55: 0 | GL55: 0 | GM55: 0 | GN55: 0 | GO55: 0 | GP55: 0 | GQ55: 0 | GR55: 0 | GS55: 0 | GT55: 0 | GU55: 0 | GV55: 0 | GW55: 0 | GX55: 0 | GY55: 0 | GZ55: 0 | HA55: 0 | HB55: 0 | HC55: 0 | HD55: 0 | HE55: 0 | HF55: 0 | HG55: 0 | HH55: 0 | HI55: 0 | HJ55: 0 | HK55: 0 | HL55: 0 | HM55: 0 | HN55: 0 | HO55: 0 | HP55: 0 | HQ55: 0 | HR55: 0 | HS55: 0 | HT55: 0 | HU55: 0 | HV55: 0 | HW55: 0 | HX55: 0 | HY55: 0 | HZ55: 0 | IA55: 0 | IB55: 0 | IC55: 0 | ID55: 0 | IE55: 0 | IF55: 0 | IG55: 0 | IH55: 0 | II55: 0 | IJ55: 0 | IK55: 0 | IL55: 0 | IM55: 0 | IN55: 0 | IO55: 0 | IP55: 0 | IQ55: 0 | IR55: 0 | IS55: 0 | IT55: 0 | IU55: 0 | IV55: 0 | IW55: 0 | IX55: 0 | IY55: 0 | IZ55: 0 | JA55: 0 | JB55: 0 | JC55: 0 | JD55: 0 | JE55: 0 | JF55: 0 | JG55: 0 | JH55: 0 | JI55: 0 | JJ55: 0 | JK55: 0 | JL55: 0 | JM55: 0 | JN55: 0 | JO55: 0 | JP55: 0 | JQ55: 0 | JR55: 0 | JS55: 0 | JT55: 0 | JU55: 0 | JV55: 0 | JW55: 0 | JX55: 0 | JY55: 0 | JZ55: 0 | KA55: 0 | KB55: 0 | KC55: 0 | KD55: 0 | KE55: 0 | KF55: 0 | KG55: 0 | KH55: 0 | KI55: 0 | KJ55: 0 | KK55: 0 | KL55: 0 | KM55: 0 | KN55: 0 | KO55: 0 | KP55: 0 | KQ55: 0 | KR55: 0 | KS55: 0 | KT55: 0 | KU55: 0 | KV55: 0 | KW55: 0 | KX55: 0 | KY55: 0 | KZ55: 0 | LA55: 0 | LB55: 0 | LC55: 0 | LD55: 0 | LE55: 0 | LF55: 0 | LG55: 0 | LH55: 3 | LI55: 0 | LJ55: 2 | LK55: 0 | LL55: 0 | LM55: 0 | LN55: 0 | LO55: 0 | LP55: 0 | LQ55: 0 | LR55: 0
A56: LUCIANO CASTILLO COLONNA | B56: AYABACA | C56: 200201 | D56: OLLEROS | E56: I-2 | F56: AYABACA | G56: NINGUN CLAS | H56: AYABACA | I56: AYABACA | J56: SALUD LUCIANO CASTILLO COLONNA | K56: 1914 | L56: 5 | M56: 0 | N56: 0 | O56: 0 | P56: 0 | Q56: 0 | R56: 0 | S56: 0 | T56: 0 | U56: 0 | V56: 0 | W56: 0 | X56: 0 | Y56: 0 | Z56: 0 | AA56: 0 | AB56: 0 | AC56: 0 | AD56: 0 | AE56: 0 | AF56: 0 | AG56: 0 | AH56: 0 | AI56: 0 | AJ56: 0 | AK56: 0 | AL56: 0 | AM56: 0 | AN56: 0 | AO56: 0 | AP56: 0 | AQ56: 0 | AR56: 0 | AS56: 0 | AT56: 0 | AU56: 0 | AV56: 0 | AW56: 0 | AX56: 0 | AY56: 0 | AZ56: 0 | BA56: 0 | BB56: 0 | BC56: 0 | BD56: 0 | BE56: 0 | BF56: 0 | BG56: 0 | BH56: 0 | BI56: 0 | BJ56: 0 | BK56: 0 | BL56: 0 | BM56: 0 | BN56: 0 | BO56: 0 | BP56: 0 | BQ56: 0 | BR56: 0 | BS56: 0 | BT56: 0 | BU56: 0 | BV56: 0 | BW56: 0 | BX56: 0 | BY56: 0 | BZ56: 0 | CA56: 0 | CB56: 0 | CC56: 0 | CD56: 0 | CE56: 0 | CF56: 0 | CG56: 0 | CH56: 0 | CI56: 0 | CJ56: 0 | CK56: 0 | CL56: 0 | CM56: 0 | CN56: 0 | CO56: 0 | CP56: 0 | CQ56: 0 | CR56: 0 | CS56: 0 | CT56: 0 | CU56: 0 | CV56: 0 | CW56: 0 | CX56: 0 | CY56: 0 | CZ56: 0 | DA56: 0 | DB56: 0 | DC56: 0 | DD56: 0 | DE56: 0 | DF56: 0 | DG56: 0 | DH56: 0 | DI56: 0 | DJ56: 0 | DK56: 0 | DL56: 0 | DM56: 0 | DN56: 0 | DO56: 0 | DP56: 0 | DQ56: 0 | DR56: 0 | DS56: 0 | DT56: 0 | DU56: 0 | DV56: 0 | DW56: 0 | DX56: 0 | DY56: 0 | DZ56: 0 | EA56: 0 | EB56: 0 | EC56: 0 | ED56: 0 | EE56: 0 | EF56: 0 | EG56: 0 | EH56: 0 | EI56: 0 | EJ56: 0 | EK56: 0 | EL56: 0 | EM56: 0 | EN56: 0 | EO56: 0 | EP56: 0 | EQ56: 0 | ER56: 0 | ES56: 0 | ET56: 0 | EU56: 0 | EV56: 0 | EW56: 0 | EX56: 0 | EY56: 0 | EZ56: 0 | FA56: 0 | FB56: 0 | FC56: 0 | FD56: 0 | FE56: 0 | FF56: 0 | FG56: 0 | FH56: 0 | FI56: 0 | FJ56: 0 | FK56: 0 | FL56: 0 | FM56: 0 | FN56: 0 | FO56: 0 | FP56: 0 | FQ56: 0 | FR56: 0 | FS56: 0 | FT56: 0 | FU56: 0 | FV56: 0 | FW56: 0 | FX56: 0 | FY56: 0 | FZ56: 0 | GA56: 0 | GB56: 0 | GC56: 0 | GD56: 0 | GE56: 0 | GF56: 0 | GG56: 0 | GH56: 0 | GI56: 0 | GJ56: 0 | GK56: 0 | GL56: 0 | GM56: 0 | GN56: 0 | GO56: 0 | GP56: 0 | GQ56: 0 | GR56: 0 | GS56: 0 | GT56: 0 | GU56: 0 | GV56: 0 | GW56: 0 | GX56: 0 | GY56: 0 | GZ56: 0 | HA56: 0 | HB56: 0 | HC56: 0 | HD56: 0 | HE56: 0 | HF56: 0 | HG56: 0 | HH56: 0 | HI56: 0 | HJ56: 0 | HK56: 0 | HL56: 0 | HM56: 0 | HN56: 0 | HO56: 0 | HP56: 0 | HQ56: 0 | HR56: 0 | HS56: 0 | HT56: 0 | HU56: 0 | HV56: 0 | HW56: 0 | HX56: 0 | HY56: 0 | HZ56: 0 | IA56: 0 | IB56: 0 | IC56: 0 | ID56: 0 | IE56: 0 | IF56: 0 | IG56: 0 | IH56: 0 | II56: 0 | IJ56: 0 | IK56: 0 | IL56: 0 | IM56: 0 | IN56: 0 | IO56: 0 | IP56: 0 | IQ56: 0 | IR56: 0 | IS56: 0 | IT56: 0 | IU56: 0 | IV56: 0 | IW56: 0 | IX56: 0 | IY56: 0 | IZ56: 0 | JA56: 0 | JB56: 0 | JC56: 0 | JD56: 0 | JE56: 0 | JF56: 0 | JG56: 0 | JH56: 0 | JI56: 0 | JJ56: 0 | JK56: 2 | JL56: 0 | JM56: 0 | JN56: 0 | JO56: 0 | JP56: 0 | JQ56: 0 | JR56: 0 | JS56: 0 | JT56: 0 | JU56: 0 | JV56: 0 | JW56: 0 | JX56: 0 | JY56: 0 | JZ56: 0 | KA56: 0 | KB56: 0 | KC56: 0 | KD56: 0 | KE56: 0 | KF56: 0 | KG56: 0 | KH56: 0 | KI56: 0 | KJ56: 0 | KK56: 0 | KL56: 0 | KM56: 0 | KN56: 0 | KO56: 0 | KP56: 0 | KQ56: 0 | KR56: 0 | KS56: 0 | KT56: 0 | KU56: 0 | KV56: 0 | KW56: 0 | KX56: 0 | KY56: 0 | KZ56: 0 | LA56: 0 | LB56: 0 | LC56: 0 | LD56: 0 | LE56: 0 | LF56: 0 | LG56: 0 | LH56: 0 | LI56: 0 | LJ56: 0 | LK56: 0 | LL56: 0 | LM56: 0 | LN56: 0 | LO56: 0 | LP56: 0 | LQ56: 0 | LR56: 0
A57: LUCIANO CASTILLO COLONNA | B57: AYABACA | C57: 200201 | D57: OLLEROS | E57: I-2 | F57: AYABACA | G57: NINGUN CLAS | H57: AYABACA | I57: AYABACA | J57: SALUD LUCIANO CASTILLO COLONNA | K57: 1914 | L57: 6 | M57: 0 | N57: 0 | O57: 0 | P57: 0 | Q57: 0 | R57: 0 | S57: 0 | T57: 0 | U57: 0 | V57: 0 | W57: 0 | X57: 0 | Y57: 0 | Z57: 0 | AA57: 0 | AB57: 0 | AC57: 0 | AD57: 0 | AE57: 0 | AF57: 0 | AG57: 0 | AH57: 0 | AI57: 0 | AJ57: 0 | AK57: 0 | AL57: 0 | AM57: 0 | AN57: 0 | AO57: 0 | AP57: 0 | AQ57: 0 | AR57: 0 | AS57: 0 | AT57: 0 | AU57: 0 | AV57: 0 | AW57: 0 | AX57: 2 | AY57: 1 | AZ57: 2 | BA57: 1 | BB57: 0 | BC57: 0 | BD57: 0 | BE57: 0 | BF57: 0 | BG57: 0 | BH57: 0 | BI57: 0 | BJ57: 0 | BK57: 0 | BL57: 0 | BM57: 0 | BN57: 0 | BO57: 0 | BP57: 0 | BQ57: 0 | BR57: 0 | BS57: 0 | BT57: 0 | BU57: 0 | BV57: 0 | BW57: 0 | BX57: 0 | BY57: 0 | BZ57: 0 | CA57: 0 | CB57: 0 | CC57: 0 | CD57: 0 | CE57: 0 | CF57: 0 | CG57: 0 | CH57: 0 | CI57: 0 | CJ57: 0 | CK57: 0 | CL57: 0 | CM57: 0 | CN57: 0 | CO57: 0 | CP57: 0 | CQ57: 0 | CR57: 0 | CS57: 0 | CT57: 0 | CU57: 0 | CV57: 0 | CW57: 0 | CX57: 0 | CY57: 0 | CZ57: 0 | DA57: 0 | DB57: 0 | DC57: 0 | DD57: 0 | DE57: 0 | DF57: 0 | DG57: 0 | DH57: 0 | DI57: 0 | DJ57: 0 | DK57: 0 | DL57: 0 | DM57: 0 | DN57: 0 | DO57: 0 | DP57: 0 | DQ57: 0 | DR57: 0 | DS57: 0 | DT57: 0 | DU57: 0 | DV57: 0 | DW57: 0 | DX57: 0 | DY57: 0 | DZ57: 0 | EA57: 0 | EB57: 0 | EC57: 0 | ED57: 0 | EE57: 0 | EF57: 0 | EG57: 0 | EH57: 0 | EI57: 0 | EJ57: 0 | EK57: 0 | EL57: 0 | EM57: 0 | EN57: 0 | EO57: 0 | EP57: 0 | EQ57: 0 | ER57: 0 | ES57: 0 | ET57: 0 | EU57: 0 | EV57: 0 | EW57: 0 | EX57: 0 | EY57: 0 | EZ57: 0 | FA57: 0 | FB57: 0 | FC57: 0 | FD57: 0 | FE57: 0 | FF57: 0 | FG57: 0 | FH57: 0 | FI57: 0 | FJ57: 0 | FK57: 0 | FL57: 0 | FM57: 0 | FN57: 0 | FO57: 0 | FP57: 0 | FQ57: 0 | FR57: 0 | FS57: 0 | FT57: 0 | FU57: 0 | FV57: 0 | FW57: 0 | FX57: 0 | FY57: 0 | FZ57: 0 | GA57: 0 | GB57: 0 | GC57: 0 | GD57: 0 | GE57: 0 | GF57: 0 | GG57: 0 | GH57: 0 | GI57: 0 | GJ57: 0 | GK57: 0 | GL57: 0 | GM57: 0 | GN57: 0 | GO57: 0 | GP57: 0 | GQ57: 0 | GR57: 0 | GS57: 0 | GT57: 0 | GU57: 0 | GV57: 0 | GW57: 0 | GX57: 0 | GY57: 0 | GZ57: 0 | HA57: 0 | HB57: 0 | HC57: 0 | HD57: 0 | HE57: 0 | HF57: 0 | HG57: 0 | HH57: 0 | HI57: 0 | HJ57: 0 | HK57: 0 | HL57: 0 | HM57: 0 | HN57: 0 | HO57: 0 | HP57: 0 | HQ57: 0 | HR57: 0 | HS57: 0 | HT57: 0 | HU57: 0 | HV57: 0 | HW57: 1 | HX57: 1 | HY57: 2 | HZ57: 0 | IA57: 0 | IB57: 0 | IC57: 1 | ID57: 1 | IE57: 2 | IF57: 0 | IG57: 0 | IH57: 0 | II57: 0 | IJ57: 0 | IK57: 0 | IL57: 0 | IM57: 0 | IN57: 1 | IO57: 0 | IP57: 0 | IQ57: 0 | IR57: 0 | IS57: 0 | IT57: 0 | IU57: 0 | IV57: 0 | IW57: 0 | IX57: 0 | IY57: 0 | IZ57: 0 | JA57: 0 | JB57: 0 | JC57: 0 | JD57: 0 | JE57: 0 | JF57: 0 | JG57: 0 | JH57: 1 | JI57: 0 | JJ57: 0 | JK57: 0 | JL57: 0 | JM57: 0 | JN57: 0 | JO57: 0 | JP57: 0 | JQ57: 0 | JR57: 0 | JS57: 0 | JT57: 0 | JU57: 0 | JV57: 0 | JW57: 0 | JX57: 0 | JY57: 0 | JZ57: 0 | KA57: 0 | KB57: 0 | KC57: 0 | KD57: 0 | KE57: 0 | KF57: 0 | KG57: 0 | KH57: 0 | KI57: 0 | KJ57: 0 | KK57: 0 | KL57: 0 | KM57: 0 | KN57: 0 | KO57: 0 | KP57: 0 | KQ57: 0 | KR57: 0 | KS57: 0 | KT57: 0 | KU57: 0 | KV57: 0 | KW57: 0 | KX57: 0 | KY57: 0 | KZ57: 0 | LA57: 0 | LB57: 0 | LC57: 0 | LD57: 0 | LE57: 0 | LF57: 0 | LG57: 0 | LH57: 2 | LI57: 1 | LJ57: 2 | LK57: 1 | LL57: 0 | LM57: 0 | LN57: 0 | LO57: 0 | LP57: 0 | LQ57: 0 | LR57: 0
A58: LUCIANO CASTILLO COLONNA | B58: AYABACA | C58: 200201 | D58: OLLEROS | E58: I-2 | F58: AYABACA | G58: NINGUN CLAS | H58: AYABACA | I58: AYABACA | J58: SALUD LUCIANO CASTILLO COLONNA | K58: 1914 | L58: 4 | M58: 0 | N58: 0 | O58: 0 | P58: 0 | Q58: 0 | R58: 0 | S58: 0 | T58: 0 | U58: 0 | V58: 0 | W58: 0 | X58: 0 | Y58: 0 | Z58: 0 | AA58: 0 | AB58: 0 | AC58: 0 | AD58: 0 | AE58: 0 | AF58: 0 | AG58: 0 | AH58: 0 | AI58: 0 | AJ58: 0 | AK58: 0 | AL58: 0 | AM58: 0 | AN58: 0 | AO58: 0 | AP58: 0 | AQ58: 0 | AR58: 0 | AS58: 0 | AT58: 0 | AU58: 0 | AV58: 0 | AW58: 0 | AX58: 1 | AY58: 0 | AZ58: 0 | BA58: 0 | BB58: 0 | BC58: 1 | BD58: 0 | BE58: 0 | BF58: 0 | BG58: 0 | BH58: 0 | BI58: 0 | BJ58: 0 | BK58: 0 | BL58: 0 | BM58: 0 | BN58: 0 | BO58: 0 | BP58: 0 | BQ58: 0 | BR58: 0 | BS58: 0 | BT58: 0 | BU58: 0 | BV58: 0 | BW58: 0 | BX58: 0 | BY58: 0 | BZ58: 0 | CA58: 0 | CB58: 0 | CC58: 0 | CD58: 0 | CE58: 0 | CF58: 0 | CG58: 0 | CH58: 0 | CI58: 0 | CJ58: 0 | CK58: 0 | CL58: 0 | CM58: 0 | CN58: 0 | CO58: 0 | CP58: 0 | CQ58: 0 | CR58: 0 | CS58: 0 | CT58: 0 | CU58: 0 | CV58: 0 | CW58: 0 | CX58: 0 | CY58: 0 | CZ58: 0 | DA58: 0 | DB58: 0 | DC58: 0 | DD58: 0 | DE58: 0 | DF58: 0 | DG58: 0 | DH58: 0 | DI58: 0 | DJ58: 0 | DK58: 0 | DL58: 0 | DM58: 0 | DN58: 0 | DO58: 0 | DP58: 0 | DQ58: 0 | DR58: 1 | DS58: 0 | DT58: 0 | DU58: 0 | DV58: 0 | DW58: 0 | DX58: 0 | DY58: 0 | DZ58: 0 | EA58: 0 | EB58: 0 | EC58: 0 | ED58: 0 | EE58: 0 | EF58: 0 | EG58: 0 | EH58: 0 | EI58: 1 | EJ58: 1 | EK58: 0 | EL58: 0 | EM58: 0 | EN58: 0 | EO58: 0 | EP58: 0 | EQ58: 0 | ER58: 0 | ES58: 0 | ET58: 0 | EU58: 0 | EV58: 0 | EW58: 0 | EX58: 0 | EY58: 0 | EZ58: 0 | FA58: 0 | FB58: 0 | FC58: 0 | FD58: 0 | FE58: 0 | FF58: 0 | FG58: 0 | FH58: 0 | FI58: 0 | FJ58: 0 | FK58: 0 | FL58: 0 | FM58: 0 | FN58: 0 | FO58: 0 | FP58: 0 | FQ58: 0 | FR58: 0 | FS58: 0 | FT58: 0 | FU58: 0 | FV58: 0 | FW58: 0 | FX58: 0 | FY58: 0 | FZ58: 0 | GA58: 0 | GB58: 0 | GC58: 0 | GD58: 0 | GE58: 0 | GF58: 0 | GG58: 0 | GH58: 0 | GI58: 0 | GJ58: 0 | GK58: 0 | GL58: 0 | GM58: 0 | GN58: 0 | GO58: 0 | GP58: 0 | GQ58: 0 | GR58: 0 | GS58: 0 | GT58: 0 | GU58: 0 | GV58: 0 | GW58: 0 | GX58: 0 | GY58: 0 | GZ58: 0 | HA58: 0 | HB58: 0 | HC58: 0 | HD58: 0 | HE58: 0 | HF58: 0 | HG58: 0 | HH58: 0 | HI58: 0 | HJ58: 0 | HK58: 0 | HL58: 0 | HM58: 0 | HN58: 0 | HO58: 0 | HP58: 0 | HQ58: 0 | HR58: 0 | HS58: 0 | HT58: 0 | HU58: 0 | HV58: 0 | HW58: 0 | HX58: 0 | HY58: 0 | HZ58: 0 | IA58: 0 | IB58: 0 | IC58: 0 | ID58: 0 | IE58: 0 | IF58: 0 | IG58: 0 | IH58: 0 | II58: 0 | IJ58: 0 | IK58: 0 | IL58: 0 | IM58: 0 | IN58: 0 | IO58: 0 | IP58: 0 | IQ58: 0 | IR58: 0 | IS58: 0 | IT58: 0 | IU58: 0 | IV58: 0 | IW58: 0 | IX58: 0 | IY58: 0 | IZ58: 0 | JA58: 0 | JB58: 0 | JC58: 0 | JD58: 0 | JE58: 0 | JF58: 0 | JG58: 0 | JH58: 0 | JI58: 0 | JJ58: 0 | JK58: 0 | JL58: 0 | JM58: 0 | JN58: 0 | JO58: 0 | JP58: 0 | JQ58: 0 | JR58: 0 | JS58: 0 | JT58: 0 | JU58: 0 | JV58: 0 | JW58: 0 | JX58: 0 | JY58: 0 | JZ58: 0 | KA58: 0 | KB58: 0 | KC58: 0 | KD58: 0 | KE58: 0 | KF58: 0 | KG58: 0 | KH58: 0 | KI58: 0 | KJ58: 0 | KK58: 0 | KL58: 0 | KM58: 0 | KN58: 0 | KO58: 0 | KP58: 0 | KQ58: 0 | KR58: 0 | KS58: 0 | KT58: 0 | KU58: 0 | KV58: 0 | KW58: 0 | KX58: 0 | KY58: 0 | KZ58: 0 | LA58: 0 | LB58: 0 | LC58: 0 | LD58: 0 | LE58: 0 | LF58: 0 | LG58: 1 | LH58: 2 | LI58: 0 | LJ58: 0 | LK58: 0 | LL58: 0 | LM58: 0 | LN58: 0 | LO58: 1 | LP58: 0 | LQ58: 1 | LR58: 0
A59: LUCIANO CASTILLO COLONNA | B59: AYABACA | C59: 200201 | D59: OLLEROS | E59: I-2 | F59: AYABACA | G59: NINGUN CLAS | H59: AYABACA | I59: AYABACA | J59: SALUD LUCIANO CASTILLO COLONNA | K59: 1914 | L59: 1 | M59: 0 | N59: 0 | O59: 0 | P59: 0 | Q59: 0 | R59: 0 | S59: 0 | T59: 0 | U59: 0 | V59: 0 | W59: 0 | X59: 0 | Y59: 0 | Z59: 0 | AA59: 0 | AB59: 0 | AC59: 0 | AD59: 0 | AE59: 0 | AF59: 0 | AG59: 0 | AH59: 0 | AI59: 0 | AJ59: 0 | AK59: 0 | AL59: 0 | AM59: 0 | AN59: 0 | AO59: 0 | AP59: 0 | AQ59: 0 | AR59: 0 | AS59: 0 | AT59: 0 | AU59: 0 | AV59: 0 | AW59: 2 | AX59: 3 | AY59: 3 | AZ59: 3 | BA59: 0 | BB59: 3 | BC59: 0 | BD59: 0 | BE59: 0 | BF59: 0 | BG59: 0 | BH59: 0 | BI59: 0 | BJ59: 0 | BK59: 0 | BL59: 0 | BM59: 0 | BN59: 0 | BO59: 0 | BP59: 0 | BQ59: 0 | BR59: 0 | BS59: 0 | BT59: 0 | BU59: 0 | BV59: 0 | BW59: 0 | BX59: 0 | BY59: 0 | BZ59: 0 | CA59: 0 | CB59: 0 | CC59: 0 | CD59: 0 | CE59: 0 | CF59: 0 | CG59: 0 | CH59: 0 | CI59: 0 | CJ59: 0 | CK59: 0 | CL59: 0 | CM59: 0 | CN59: 0 | CO59: 0 | CP59: 0 | CQ59: 0 | CR59: 0 | CS59: 0 | CT59: 0 | CU59: 0 | CV59: 0 | CW59: 0 | CX59: 0 | CY59: 0 | CZ59: 0 | DA59: 0 | DB59: 0 | DC59: 0 | DD59: 0 | DE59: 0 | DF59: 0 | DG59: 0 | DH59: 0 | DI59: 0 | DJ59: 0 | DK59: 0 | DL59: 0 | DM59: 0 | DN59: 0 | DO59: 0 | DP59: 0 | DQ59: 0 | DR59: 0 | DS59: 0 | DT59: 0 | DU59: 0 | DV59: 0 | DW59: 0 | DX59: 0 | DY59: 0 | DZ59: 0 | EA59: 0 | EB59: 0 | EC59: 0 | ED59: 0 | EE59: 0 | EF59: 0 | EG59: 0 | EH59: 0 | EI59: 0 | EJ59: 0 | EK59: 0 | EL59: 0 | EM59: 0 | EN59: 0 | EO59: 0 | EP59: 0 | EQ59: 0 | ER59: 0 | ES59: 0 | ET59: 0 | EU59: 0 | EV59: 0 | EW59: 0 | EX59: 0 | EY59: 0 | EZ59: 0 | FA59: 0 | FB59: 0 | FC59: 0 | FD59: 0 | FE59: 0 | FF59: 0 | FG59: 0 | FH59: 0 | FI59: 0 | FJ59: 0 | FK59: 0 | FL59: 0 | FM59: 0 | FN59: 0 | FO59: 0 | FP59: 0 | FQ59: 0 | FR59: 0 | FS59: 0 | FT59: 0 | FU59: 0 | FV59: 0 | FW59: 0 | FX59: 0 | FY59: 0 | FZ59: 0 | GA59: 0 | GB59: 0 | GC59: 0 | GD59: 0 | GE59: 0 | GF59: 0 | GG59: 0 | GH59: 0 | GI59: 0 | GJ59: 0 | GK59: 0 | GL59: 0 | GM59: 0 | GN59: 0 | GO59: 0 | GP59: 0 | GQ59: 0 | GR59: 0 | GS59: 0 | GT59: 0 | GU59: 0 | GV59: 0 | GW59: 0 | GX59: 0 | GY59: 0 | GZ59: 0 | HA59: 0 | HB59: 0 | HC59: 0 | HD59: 0 | HE59: 0 | HF59: 0 | HG59: 0 | HH59: 0 | HI59: 0 | HJ59: 0 | HK59: 0 | HL59: 0 | HM59: 0 | HN59: 0 | HO59: 0 | HP59: 0 | HQ59: 0 | HR59: 0 | HS59: 0 | HT59: 0 | HU59: 0 | HV59: 0 | HW59: 0 | HX59: 0 | HY59: 0 | HZ59: 0 | IA59: 0 | IB59: 0 | IC59: 0 | ID59: 0 | IE59: 0 | IF59: 0 | IG59: 0 | IH59: 0 | II59: 0 | IJ59: 0 | IK59: 0 | IL59: 0 | IM59: 0 | IN59: 0 | IO59: 0 | IP59: 0 | IQ59: 0 | IR59: 0 | IS59: 0 | IT59: 0 | IU59: 0 | IV59: 0 | IW59: 0 | IX59: 0 | IY59: 0 | IZ59: 0 | JA59: 0 | JB59: 0 | JC59: 0 | JD59: 0 | JE59: 0 | JF59: 0 | JG59: 0 | JH59: 0 | JI59: 0 | JJ59: 0 | JK59: 0 | JL59: 0 | JM59: 0 | JN59: 0 | JO59: 0 | JP59: 0 | JQ59: 0 | JR59: 0 | JS59: 0 | JT59: 0 | JU59: 0 | JV59: 0 | JW59: 0 | JX59: 0 | JY59: 0 | JZ59: 0 | KA59: 0 | KB59: 0 | KC59: 0 | KD59: 0 | KE59: 0 | KF59: 0 | KG59: 0 | KH59: 0 | KI59: 0 | KJ59: 0 | KK59: 0 | KL59: 0 | KM59: 0 | KN59: 0 | KO59: 0 | KP59: 0 | KQ59: 0 | KR59: 0 | KS59: 0 | KT59: 0 | KU59: 0 | KV59: 0 | KW59: 0 | KX59: 0 | KY59: 0 | KZ59: 0 | LA59: 0 | LB59: 0 | LC59: 0 | LD59: 0 | LE59: 0 | LF59: 0 | LG59: 2 | LH59: 2 | LI59: 2 | LJ59: 3 | LK59: 1 | LL59: 3 | LM59: 0 | LN59: 0 | LO59: 0 | LP59: 0 | LQ59: 0 | LR59: 0
A60: LUCIANO CASTILLO COLONNA | B60: AYABACA | C60: 200201 | D60: OLLEROS | E60: I-2 | F60: AYABACA | G60: NINGUN CLAS | H60: AYABACA | I60: AYABACA | J60: SALUD LUCIANO CASTILLO COLONNA | K60: 1914 | L60: 2 | M60: 0 | N60: 0 | O60: 0 | P60: 0 | Q60: 0 | R60: 0 | S60: 0 | T60: 0 | U60: 0 | V60: 0 | W60: 0 | X60: 0 | Y60: 0 | Z60: 0 | AA60: 0 | AB60: 0 | AC60: 0 | AD60: 0 | AE60: 0 | AF60: 0 | AG60: 0 | AH60: 0 | AI60: 0 | AJ60: 0 | AK60: 0 | AL60: 0 | AM60: 0 | AN60: 0 | AO60: 0 | AP60: 0 | AQ60: 0 | AR60: 0 | AS60: 0 | AT60: 0 | AU60: 0 | AV60: 0 | AW60: 0 | AX60: 0 | AY60: 1 | AZ60: 1 | BA60: 0 | BB60: 0 | BC60: 0 | BD60: 0 | BE60: 0 | BF60: 0 | BG60: 0 | BH60: 0 | BI60: 0 | BJ60: 0 | BK60: 0 | BL60: 0 | BM60: 0 | BN60: 0 | BO60: 0 | BP60: 0 | BQ60: 0 | BR60: 0 | BS60: 0 | BT60: 0 | BU60: 0 | BV60: 0 | BW60: 0 | BX60: 0 | BY60: 0 | BZ60: 0 | CA60: 0 | CB60: 0 | CC60: 0 | CD60: 0 | CE60: 0 | CF60: 0 | CG60: 0 | CH60: 0 | CI60: 0 | CJ60: 0 | CK60: 0 | CL60: 0 | CM60: 0 | CN60: 0 | CO60: 0 | CP60: 0 | CQ60: 0 | CR60: 0 | CS60: 0 | CT60: 0 | CU60: 0 | CV60: 0 | CW60: 0 | CX60: 0 | CY60: 0 | CZ60: 0 | DA60: 0 | DB60: 0 | DC60: 0 | DD60: 0 | DE60: 0 | DF60: 0 | DG60: 0 | DH60: 0 | DI60: 0 | DJ60: 0 | DK60: 0 | DL60: 0 | DM60: 0 | DN60: 0 | DO60: 0 | DP60: 0 | DQ60: 0 | DR60: 0 | DS60: 0 | DT60: 0 | DU60: 0 | DV60: 0 | DW60: 0 | DX60: 0 | DY60: 0 | DZ60: 0 | EA60: 0 | EB60: 0 | EC60: 0 | ED60: 0 | EE60: 0 | EF60: 0 | EG60: 0 | EH60: 0 | EI60: 0 | EJ60: 0 | EK60: 0 | EL60: 0 | EM60: 0 | EN60: 0 | EO60: 0 | EP60: 0 | EQ60: 0 | ER60: 0 | ES60: 0 | ET60: 0 | EU60: 0 | EV60: 0 | EW60: 0 | EX60: 0 | EY60: 0 | EZ60: 0 | FA60: 0 | FB60: 0 | FC60: 0 | FD60: 0 | FE60: 0 | FF60: 0 | FG60: 0 | FH60: 0 | FI60: 0 | FJ60: 0 | FK60: 0 | FL60: 0 | FM60: 0 | FN60: 0 | FO60: 0 | FP60: 0 | FQ60: 0 | FR60: 0 | FS60: 0 | FT60: 0 | FU60: 0 | FV60: 0 | FW60: 0 | FX60: 0 | FY60: 0 | FZ60: 0 | GA60: 0 | GB60: 0 | GC60: 0 | GD60: 0 | GE60: 0 | GF60: 0 | GG60: 0 | GH60: 0 | GI60: 0 | GJ60: 0 | GK60: 0 | GL60: 0 | GM60: 0 | GN60: 0 | GO60: 0 | GP60: 0 | GQ60: 0 | GR60: 0 | GS60: 0 | GT60: 0 | GU60: 0 | GV60: 0 | GW60: 0 | GX60: 0 | GY60: 0 | GZ60: 0 | HA60: 0 | HB60: 0 | HC60: 0 | HD60: 0 | HE60: 0 | HF60: 0 | HG60: 0 | HH60: 0 | HI60: 0 | HJ60: 0 | HK60: 0 | HL60: 0 | HM60: 0 | HN60: 0 | HO60: 0 | HP60: 0 | HQ60: 0 | HR60: 0 | HS60: 0 | HT60: 0 | HU60: 0 | HV60: 0 | HW60: 0 | HX60: 0 | HY60: 0 | HZ60: 0 | IA60: 0 | IB60: 0 | IC60: 0 | ID60: 0 | IE60: 0 | IF60: 0 | IG60: 0 | IH60: 0 | II60: 0 | IJ60: 0 | IK60: 0 | IL60: 0 | IM60: 0 | IN60: 0 | IO60: 0 | IP60: 0 | IQ60: 0 | IR60: 0 | IS60: 0 | IT60: 0 | IU60: 0 | IV60: 0 | IW60: 0 | IX60: 0 | IY60: 0 | IZ60: 0 | JA60: 0 | JB60: 0 | JC60: 0 | JD60: 0 | JE60: 0 | JF60: 0 | JG60: 0 | JH60: 0 | JI60: 0 | JJ60: 0 | JK60: 1 | JL60: 0 | JM60: 0 | JN60: 0 | JO60: 0 | JP60: 0 | JQ60: 0 | JR60: 0 | JS60: 0 | JT60: 0 | JU60: 0 | JV60: 0 | JW60: 0 | JX60: 0 | JY60: 0 | JZ60: 0 | KA60: 0 | KB60: 0 | KC60: 0 | KD60: 0 | KE60: 0 | KF60: 0 | KG60: 0 | KH60: 0 | KI60: 0 | KJ60: 0 | KK60: 0 | KL60: 0 | KM60: 0 | KN60: 0 | KO60: 0 | KP60: 0 | KQ60: 0 | KR60: 0 | KS60: 0 | KT60: 0 | KU60: 0 | KV60: 0 | KW60: 0 | KX60: 0 | KY60: 0 | KZ60: 0 | LA60: 0 | LB60: 0 | LC60: 0 | LD60: 0 | LE60: 0 | LF60: 0 | LG60: 0 | LH60: 0 | LI60: 1 | LJ60: 1 | LK60: 0 | LL60: 0 | LM60: 0 | LN60: 0 | LO60: 0 | LP60: 0 | LQ60: 0 | LR60: 0
A61: LUCIANO CASTILLO COLONNA | B61: AYABACA | C61: 200201 | D61: OLLEROS | E61: I-2 | F61: AYABACA | G61: NINGUN CLAS | H61: AYABACA | I61: AYABACA | J61: SALUD LUCIANO CASTILLO COLONNA | K61: 1914 | L61: 3 | M61: 0 | N61: 0 | O61: 0 | P61: 0 | Q61: 0 | R61: 0 | S61: 0 | T61: 0 | U61: 0 | V61: 0 | W61: 0 | X61: 0 | Y61: 0 | Z61: 0 | AA61: 0 | AB61: 0 | AC61: 0 | AD61: 0 | AE61: 0 | AF61: 0 | AG61: 0 | AH61: 0 | AI61: 0 | AJ61: 0 | AK61: 0 | AL61: 0 | AM61: 0 | AN61: 0 | AO61: 0 | AP61: 0 | AQ61: 0 | AR61: 0 | AS61: 0 | AT61: 0 | AU61: 0 | AV61: 0 | AW61: 0 | AX61: 2 | AY61: 1 | AZ61: 3 | BA61: 0 | BB61: 0 | BC61: 0 | BD61: 0 | BE61: 0 | BF61: 0 | BG61: 0 | BH61: 0 | BI61: 0 | BJ61: 0 | BK61: 0 | BL61: 0 | BM61: 0 | BN61: 0 | BO61: 0 | BP61: 0 | BQ61: 0 | BR61: 0 | BS61: 0 | BT61: 0 | BU61: 0 | BV61: 0 | BW61: 0 | BX61: 0 | BY61: 0 | BZ61: 0 | CA61: 0 | CB61: 0 | CC61: 0 | CD61: 0 | CE61: 0 | CF61: 0 | CG61: 0 | CH61: 0 | CI61: 0 | CJ61: 0 | CK61: 0 | CL61: 0 | CM61: 0 | CN61: 0 | CO61: 0 | CP61: 0 | CQ61: 0 | CR61: 0 | CS61: 0 | CT61: 0 | CU61: 0 | CV61: 0 | CW61: 0 | CX61: 0 | CY61: 0 | CZ61: 0 | DA61: 0 | DB61: 0 | DC61: 0 | DD61: 0 | DE61: 0 | DF61: 0 | DG61: 0 | DH61: 0 | DI61: 0 | DJ61: 0 | DK61: 0 | DL61: 0 | DM61: 0 | DN61: 0 | DO61: 0 | DP61: 0 | DQ61: 0 | DR61: 0 | DS61: 0 | DT61: 2 | DU61: 0 | DV61: 0 | DW61: 0 | DX61: 0 | DY61: 0 | DZ61: 0 | EA61: 0 | EB61: 0 | EC61: 0 | ED61: 0 | EE61: 0 | EF61: 0 | EG61: 0 | EH61: 0 | EI61: 0 | EJ61: 0 | EK61: 0 | EL61: 0 | EM61: 0 | EN61: 0 | EO61: 0 | EP61: 0 | EQ61: 0 | ER61: 0 | ES61: 0 | ET61: 0 | EU61: 0 | EV61: 0 | EW61: 0 | EX61: 0 | EY61: 0 | EZ61: 0 | FA61: 0 | FB61: 0 | FC61: 0 | FD61: 0 | FE61: 0 | FF61: 0 | FG61: 0 | FH61: 0 | FI61: 0 | FJ61: 0 | FK61: 0 | FL61: 0 | FM61: 0 | FN61: 0 | FO61: 0 | FP61: 0 | FQ61: 0 | FR61: 0 | FS61: 0 | FT61: 0 | FU61: 0 | FV61: 0 | FW61: 0 | FX61: 0 | FY61: 0 | FZ61: 0 | GA61: 0 | GB61: 0 | GC61: 0 | GD61: 0 | GE61: 0 | GF61: 0 | GG61: 0 | GH61: 0 | GI61: 0 | GJ61: 0 | GK61: 0 | GL61: 0 | GM61: 0 | GN61: 0 | GO61: 0 | GP61: 0 | GQ61: 0 | GR61: 0 | GS61: 0 | GT61: 0 | GU61: 0 | GV61: 0 | GW61: 0 | GX61: 0 | GY61: 0 | GZ61: 0 | HA61: 0 | HB61: 0 | HC61: 0 | HD61: 0 | HE61: 0 | HF61: 0 | HG61: 0 | HH61: 0 | HI61: 0 | HJ61: 0 | HK61: 0 | HL61: 0 | HM61: 0 | HN61: 0 | HO61: 0 | HP61: 0 | HQ61: 0 | HR61: 0 | HS61: 0 | HT61: 0 | HU61: 0 | HV61: 0 | HW61: 0 | HX61: 0 | HY61: 0 | HZ61: 0 | IA61: 0 | IB61: 0 | IC61: 0 | ID61: 0 | IE61: 0 | IF61: 0 | IG61: 0 | IH61: 0 | II61: 0 | IJ61: 0 | IK61: 0 | IL61: 0 | IM61: 0 | IN61: 1 | IO61: 0 | IP61: 0 | IQ61: 0 | IR61: 0 | IS61: 0 | IT61: 0 | IU61: 0 | IV61: 0 | IW61: 0 | IX61: 0 | IY61: 0 | IZ61: 0 | JA61: 0 | JB61: 0 | JC61: 0 | JD61: 0 | JE61: 0 | JF61: 0 | JG61: 0 | JH61: 1 | JI61: 0 | JJ61: 0 | JK61: 0 | JL61: 0 | JM61: 0 | JN61: 0 | JO61: 0 | JP61: 0 | JQ61: 0 | JR61: 0 | JS61: 0 | JT61: 0 | JU61: 0 | JV61: 0 | JW61: 0 | JX61: 0 | JY61: 0 | JZ61: 0 | KA61: 0 | KB61: 0 | KC61: 0 | KD61: 0 | KE61: 0 | KF61: 0 | KG61: 0 | KH61: 0 | KI61: 0 | KJ61: 0 | KK61: 0 | KL61: 0 | KM61: 0 | KN61: 0 | KO61: 0 | KP61: 0 | KQ61: 0 | KR61: 0 | KS61: 0 | KT61: 0 | KU61: 0 | KV61: 0 | KW61: 0 | KX61: 0 | KY61: 0 | KZ61: 0 | LA61: 0 | LB61: 0 | LC61: 0 | LD61: 0 | LE61: 0 | LF61: 0 | LG61: 0 | LH61: 2 | LI61: 1 | LJ61: 3 | LK61: 0 | LL61: 0 | LM61: 0 | LN61: 0 | LO61: 0 | LP61: 0 | LQ61: 1 | LR61: 0
A62: LUCIANO CASTILLO COLONNA | B62: AYABACA | C62: 200201 | D62: ARAGOTO | E62: I-2 | F62: AYABACA | G62: NINGUN CLAS | H62: AYABACA | I62: AYABACA | J62: SALUD LUCIANO CASTILLO COLONNA | K62: 1915 | L62: 3 | M62: 0 | N62: 2 | O62: 0 | P62: 2 | Q62: 0 | R62: 0 | S62: 0 | T62: 0 | U62: 2 | V62: 1 | W62: 1 | X62: 2 | Y62: 0 | Z62: 0 | AA62: 0 | AB62: 0 | AC62: 1 | AD62: 0 | AE62: 0 | AF62: 0 | AG62: 0 | AH62: 0 | AI62: 0 | AJ62: 0 | AK62: 0 | AL62: 0 | AM62: 0 | AN62: 0 | AO62: 0 | AP62: 0 | AQ62: 0 | AR62: 0 | AS62: 0 | AT62: 0 | AU62: 0 | AV62: 0 | AW62: 0 | AX62: 1 | AY62: 0 | AZ62: 1 | BA62: 0 | BB62: 0 | BC62: 1 | BD62: 2 | BE62: 1 | BF62: 2 | BG62: 1 | BH62: 0 | BI62: 0 | BJ62: 0 | BK62: 0 | BL62: 0 | BM62: 0 | BN62: 0 | BO62: 0 | BP62: 0 | BQ62: 0 | BR62: 0 | BS62: 0 | BT62: 1 | BU62: 0 | BV62: 0 | BW62: 0 | BX62: 0 | BY62: 0 | BZ62: 0 | CA62: 0 | CB62: 0 | CC62: 0 | CD62: 0 | CE62: 0 | CF62: 0 | CG62: 0 | CH62: 0 | CI62: 0 | CJ62: 0 | CK62: 0 | CL62: 0 | CM62: 0 | CN62: 0 | CO62: 0 | CP62: 0 | CQ62: 0 | CR62: 0 | CS62: 0 | CT62: 0 | CU62: 0 | CV62: 0 | CW62: 0 | CX62: 0 | CY62: 0 | CZ62: 0 | DA62: 0 | DB62: 0 | DC62: 0 | DD62: 0 | DE62: 0 | DF62: 0 | DG62: 0 | DH62: 0 | DI62: 0 | DJ62: 0 | DK62: 0 | DL62: 0 | DM62: 0 | DN62: 0 | DO62: 0 | DP62: 0 | DQ62: 0 | DR62: 0 | DS62: 0 | DT62: 0 | DU62: 0 | DV62: 0 | DW62: 0 | DX62: 0 | DY62: 0 | DZ62: 0 | EA62: 0 | EB62: 0 | EC62: 0 | ED62: 0 | EE62: 0 | EF62: 0 | EG62: 0 | EH62: 0 | EI62: 0 | EJ62: 0 | EK62: 0 | EL62: 0 | EM62: 0 | EN62: 0 | EO62: 0 | EP62: 0 | EQ62: 0 | ER62: 0 | ES62: 0 | ET62: 0 | EU62: 0 | EV62: 0 | EW62: 0 | EX62: 0 | EY62: 0 | EZ62: 0 | FA62: 0 | FB62: 0 | FC62: 0 | FD62: 0 | FE62: 0 | FF62: 0 | FG62: 0 | FH62: 0 | FI62: 0 | FJ62: 0 | FK62: 0 | FL62: 0 | FM62: 0 | FN62: 0 | FO62: 0 | FP62: 0 | FQ62: 0 | FR62: 0 | FS62: 0 | FT62: 0 | FU62: 0 | FV62: 0 | FW62: 0 | FX62: 0 | FY62: 0 | FZ62: 0 | GA62: 0 | GB62: 0 | GC62: 0 | GD62: 0 | GE62: 0 | GF62: 0 | GG62: 0 | GH62: 0 | GI62: 0 | GJ62: 0 | GK62: 0 | GL62: 0 | GM62: 0 | GN62: 0 | GO62: 0 | GP62: 0 | GQ62: 0 | GR62: 0 | GS62: 0 | GT62: 0 | GU62: 0 | GV62: 0 | GW62: 0 | GX62: 0 | GY62: 0 | GZ62: 0 | HA62: 0 | HB62: 0 | HC62: 0 | HD62: 0 | HE62: 0 | HF62: 0 | HG62: 0 | HH62: 0 | HI62: 0 | HJ62: 0 | HK62: 0 | HL62: 0 | HM62: 0 | HN62: 0 | HO62: 0 | HP62: 0 | HQ62: 0 | HR62: 0 | HS62: 0 | HT62: 0 | HU62: 0 | HV62: 0 | HW62: 0 | HX62: 0 | HY62: 0 | HZ62: 0 | IA62: 0 | IB62: 0 | IC62: 0 | ID62: 0 | IE62: 0 | IF62: 0 | IG62: 0 | IH62: 0 | II62: 0 | IJ62: 0 | IK62: 0 | IL62: 0 | IM62: 0 | IN62: 2 | IO62: 0 | IP62: 3 | IQ62: 0 | IR62: 0 | IS62: 0 | IT62: 0 | IU62: 0 | IV62: 0 | IW62: 0 | IX62: 0 | IY62: 0 | IZ62: 0 | JA62: 0 | JB62: 0 | JC62: 0 | JD62: 0 | JE62: 0 | JF62: 0 | JG62: 0 | JH62: 0 | JI62: 0 | JJ62: 0 | JK62: 0 | JL62: 0 | JM62: 0 | JN62: 0 | JO62: 0 | JP62: 0 | JQ62: 0 | JR62: 0 | JS62: 0 | JT62: 0 | JU62: 0 | JV62: 0 | JW62: 0 | JX62: 0 | JY62: 0 | JZ62: 0 | KA62: 0 | KB62: 0 | KC62: 0 | KD62: 0 | KE62: 0 | KF62: 0 | KG62: 0 | KH62: 0 | KI62: 0 | KJ62: 0 | KK62: 0 | KL62: 0 | KM62: 0 | KN62: 0 | KO62: 0 | KP62: 0 | KQ62: 0 | KR62: 0 | KS62: 0 | KT62: 0 | KU62: 0 | KV62: 0 | KW62: 0 | KX62: 0 | KY62: 0 | KZ62: 0 | LA62: 0 | LB62: 0 | LC62: 0 | LD62: 0 | LE62: 0 | LF62: 0 | LG62: 0 | LH62: 2 | LI62: 2 | LJ62: 3 | LK62: 2 | LL62: 2 | LM62: 0 | LN62: 0 | LO62: 0 | LP62: 0 | LQ62: 0 | LR62: 0
